{"text_format":"1","workbook":"xlsx","n_sheets":25,"sheets":["Intro","Dashboard","Input data review","Data input check","BoQ core input","BoQ optional input","Proj transport Liq Fuel input","Soil excavation input","Overheads input","Person-days input","Project input","Office input","Custom carbon factor input","Overheads db","Standard carbon factor database","Emissions db","BoQ carbon factor db","userName","Carbon factor dropdowns","Conversion factors","Clients_projects","Locations_projects","Emission table","FrontSheet","Summary"],"not_rendered":{"charts":13,"images":17,"macros":1,"external_links":1,"defined_names":224,"comments":0,"pivot_tables":0},"unopened":[],"bounds":{"document_bytes":16777216,"sheet_cells":100000,"rows_first":2000,"rows_last":500,"rows_between":2000,"halvings":0,"cell_chars":16384,"cell_head_chars":4096},"cells_cut":0,"cells_raw":0,"read":"whole","date_system":"1900"}

{"sheet":"Intro","index":0,"n_rows":46,"n_cols":5,"rows_kept":46,"cut":false,"hidden":false,"merged":[[45,2,45,3],[45,4,45,16],[4,2,4,16],[6,2,6,16],[7,2,7,16],[10,2,10,16],[8,2,8,16],[44,2,44,3],[44,4,44,16],[43,2,43,3],[43,4,43,16],[11,2,11,16],[41,2,41,3],[41,4,41,16],[42,2,42,3],[42,4,42,16],[39,2,39,16],[40,2,40,3],[40,4,40,16]]}
[]
[]
[]
[]
[null,null,"FAME Carbon Calculator"]
[]
[null,null,"Introduction"]
[null,null,"•\tTool Overview: Designed to help archaeology organisations set baselines, track carbon footprints and comply with PAS 2080 requirements. \n•\tPurpose: Create project-specific carbon footprints that can be aggregated by clients, geographic locations and as organisation totals (forecast and actual) to analyse performance, set baselines, identify high-carbon activities, set targets, and track carbon reduction progress.\n•\tBest Usability: Use Excel 2021 or later on Windows for optimal performance."]
[null,null,"The dashboard is the main tab where you can view and summarise carbon footprint data.\nView Options: \n•\tWhole company (within a specified time period)\n•\tSpecific project (within a specified time period)\n•\tClient (carbon footprint of all projects for a specific client within a specified time period)\n•\tLocation (carbon footprint of all projects for a specific location within a specified time period)\nExport Data: Export data as CSV for client reporting. "]
[]
[null,null,"Navigation"]
[null,null,"The tabs in the tool are colour-coded to help with navigation:\n•\tOrange Tabs: Check entered data for a project or time period\n•\tBlue Tabs: Regular data input (e.g. monthly or quarterly).\n•\tYellow Tabs: Less frequent updates.\n•\tGreen Tabs: Contains databases."]
[]
[]
[]
[]
[]
[]
[]
[]
[]
[]
[]
[]
[]
[]
[]
[]
[]
[]
[]
[]
[]
[]
[]
[]
[]
[]
[]
[null,null,"Version Control"]
[null,null,"Version",null,"Change"]
[null,null,2.1800000000000002,null,"Name entry on opening to reduce admin burden, resolving protection bug"]
[null,null,2.19,null,"Update local authority list to full list of Scottish Local Authorities"]
[null,null,"2.20",null,"Minor updates to intro wording as requested by Kenneth A on 10/4/2025"]
[null,null,"2.21",null,"Sum introduced at bottom of dashboard for scope 1, 2 and 3 figures.\nInput data review tab created to help with large project administration\nScreen updating on opening to prevent screen flicker and speed up login.\nCSV error resolved when running on certain computers.\nDESNZ 2025 carbon factors added to carbon factor database."]
[null,null,"2.22",null,"Modification to BOQ core input to allow input of hotels and associated services as part of the project carbon footprint. Relevant carbon factors added to the database."]

{"sheet":"Dashboard","index":1,"n_rows":83,"n_cols":21,"rows_kept":83,"cut":false,"hidden":false,"merged":[[18,1,18,3],[18,17,18,20],[4,1,4,12],[8,2,8,3],[8,18,8,20],[9,2,9,3],[9,18,9,20],[10,2,10,3],[10,18,10,20],[11,18,11,20],[13,1,13,3],[13,17,13,20],[15,1,15,3],[15,17,15,20],[21,1,21,3],[21,17,21,20],[49,2,49,4],[49,18,49,20],[50,2,50,4],[50,18,50,20],[51,2,51,4],[51,18,51,20],[52,2,52,4],[52,18,52,20],[55,1,55,4],[55,17,55,20],[57,1,57,4],[57,17,57,20],[60,1,60,4],[60,17,60,20],[63,1,63,4],[63,17,63,20]]}
[]
[]
[]
[]
[null,"Dashboard"]
[]
[null,"Overall carbon footprint",null,null,null,null,null,null,null,null,null,null,null,null,null,null,null,"Project carbon footprint"]
[]
[null,"Market/locational",null,null,null,null,null,null,null,null,null,null,null,null,null,null,null,"Project name"]
[null,"Start date",null,null,null,null,null,null,null,null,null,null,null,null,null,null,null,"Market/locational"]
[null,"End date",null,null,null,null,null,null,null,null,null,null,null,null,null,null,null,"Start date"]
[null,null,null,null,null,null,null,null,null,null,null,null,null,null,null,null,null,"End date"]
[]
[null,{"$f":"annual_tbl_title","v":"Total market-based carbon footprint (tonnes CO2e)"},null,null,null,null,null,null,null,null,null,null,null,null,null,null,null,{"$f":"\"Total \"&LOWER(proj_mark_or_loc)&\" carbon footprint (tonnes CO2e)\"","v":"Total  carbon footprint (tonnes CO2e)"}]
[null,"Emission","1/1/2024 - 1/1/2025","1/1/2025 - 1/1/2026",null,null,null,null,null,null,null,null,null,null,null,null,null,"Emission","Forecast","Actual","Actual as a % of forecast"]
[null,"Scope 1",null,null,null,null,null,null,null,null,null,null,null,null,null,null,null,"Scope 1"]
[null,"Stationary combustion",{"$f":"'Emission table'!C12","v":0},{"$f":"'Emission table'!D12","v":0},null,null,null,null,null,null,null,null,null,null,null,null,null,"Stationary combustion",{"$f":"'Emission table'!K13","v":0},{"$f":"'Emission table'!L13","v":0},{"$f":"'Emission table'!M13","v":0}]
[null,"Project transport - company owned/leased vehicles",{"$f":"'Emission table'!C13","v":0},{"$f":"'Emission table'!D13","v":0},null,null,null,null,null,null,null,null,null,null,null,null,null,"Project transport - company owned/leased vehicles",{"$f":"'Emission table'!K14","v":0},{"$f":"'Emission table'!L14","v":0},{"$f":"'Emission table'!M14","v":0}]
[null,"Scope 2",null,null,null,null,null,null,null,null,null,null,null,null,null,null,null,"Scope 2"]
[null,"Electricity",{"$f":"'Emission table'!C14","v":0},{"$f":"'Emission table'!D14","v":0},null,null,null,null,null,null,null,null,null,null,null,null,null,"Electricity",{"$f":"'Emission table'!K15","v":0},{"$f":"'Emission table'!L15","v":0},{"$f":"'Emission table'!M15","v":0}]
[null,"Electricity - company owned/leased EVs",{"$f":"'Emission table'!C15","v":0},{"$f":"'Emission table'!D15","v":0},null,null,null,null,null,null,null,null,null,null,null,null,null,"Electricity - company owned/leased EVs",{"$f":"'Emission table'!K16","v":0},{"$f":"'Emission table'!L16","v":0},{"$f":"'Emission table'!M16","v":0}]
[null,"Scope 3",null,null,null,null,null,null,null,null,null,null,null,null,null,null,null,"Scope 3"]
[null,"Upstream leased assets",{"$f":"'Emission table'!C16","v":0},{"$f":"'Emission table'!D16","v":0},null,null,null,null,null,null,null,null,null,null,null,null,null,"Upstream leased assets",{"$f":"'Emission table'!K17","v":0},{"$f":"'Emission table'!L17","v":0},{"$f":"'Emission table'!M17","v":0}]
[null,"Overheads - business travel",{"$f":"'Emission table'!C17","v":0},{"$f":"'Emission table'!D17","v":0},null,null,null,null,null,null,null,null,null,null,null,null,null,"Overheads - business travel",{"$f":"'Emission table'!K18","v":0},{"$f":"'Emission table'!L18","v":0},{"$f":"'Emission table'!M18","v":0}]
[null,"Commuting",{"$f":"'Emission table'!C18","v":0},{"$f":"'Emission table'!D18","v":0},null,null,null,null,null,null,null,null,null,null,null,null,null,"Commuting",{"$f":"'Emission table'!K19","v":0},{"$f":"'Emission table'!L19","v":0},{"$f":"'Emission table'!M19","v":0}]
[null,"Upstream impacts - overheads",{"$f":"'Emission table'!C19","v":0},{"$f":"'Emission table'!D19","v":0},null,null,null,null,null,null,null,null,null,null,null,null,null,"Upstream impacts - overheads",{"$f":"'Emission table'!K20","v":0},{"$f":"'Emission table'!L20","v":0},{"$f":"'Emission table'!M20","v":0}]
[null,"Project transport - greyfleet",{"$f":"'Emission table'!C20","v":0},{"$f":"'Emission table'!D20","v":0},null,null,null,null,null,null,null,null,null,null,null,null,null,"Project transport - greyfleet",{"$f":"'Emission table'!K21","v":0},{"$f":"'Emission table'!L21","v":0},{"$f":"'Emission table'!M21","v":0}]
[null,"Project transport - business travel",{"$f":"'Emission table'!C21","v":0},{"$f":"'Emission table'!D21","v":0},null,null,null,null,null,null,null,null,null,null,null,null,null,"Project transport - business travel",{"$f":"'Emission table'!K22","v":0},{"$f":"'Emission table'!L22","v":0},{"$f":"'Emission table'!M22","v":0}]
[null,"Upstream impacts - project specific",{"$f":"'Emission table'!C22","v":0},{"$f":"'Emission table'!D22","v":0},null,null,null,null,null,null,null,null,null,null,null,null,null,"Upstream impacts - project specific",{"$f":"'Emission table'!K23","v":0},{"$f":"'Emission table'!L23","v":0},{"$f":"'Emission table'!M23","v":0}]
[null,"Preliminaries",{"$f":"'Emission table'!C23","v":0},{"$f":"'Emission table'!D23","v":0},null,null,null,null,null,null,null,null,null,null,null,null,null,"Preliminaries",{"$f":"'Emission table'!K24","v":0},{"$f":"'Emission table'!L24","v":0},{"$f":"'Emission table'!M24","v":0}]
[null,"Excavation/Investigation",{"$f":"'Emission table'!C24","v":0},{"$f":"'Emission table'!D24","v":0},null,null,null,null,null,null,null,null,null,null,null,null,null,"Excavation/Investigation",{"$f":"'Emission table'!K25","v":0},{"$f":"'Emission table'!L25","v":0},{"$f":"'Emission table'!M25","v":0}]
[null,"Processing of recovered materials",{"$f":"'Emission table'!C25","v":0},{"$f":"'Emission table'!D25","v":0},null,null,null,null,null,null,null,null,null,null,null,null,null,"Processing of recovered materials",{"$f":"'Emission table'!K26","v":0},{"$f":"'Emission table'!L26","v":0},{"$f":"'Emission table'!M26","v":0}]
[null,"Post-excavation assessment",{"$f":"'Emission table'!C26","v":0},{"$f":"'Emission table'!D26","v":0},null,null,null,null,null,null,null,null,null,null,null,null,null,"Post-excavation assessment",{"$f":"'Emission table'!K27","v":0},{"$f":"'Emission table'!L27","v":0},{"$f":"'Emission table'!M27","v":0}]
[null,"Post-excavation analysis and dissemination",{"$f":"'Emission table'!C27","v":0},{"$f":"'Emission table'!D27","v":0},null,null,null,null,null,null,null,null,null,null,null,null,null,"Post-excavation analysis and dissemination",{"$f":"'Emission table'!K28","v":0},{"$f":"'Emission table'!L28","v":0},{"$f":"'Emission table'!M28","v":0}]
[null,"Public engagement",{"$f":"'Emission table'!C28","v":0},{"$f":"'Emission table'!D28","v":0},null,null,null,null,null,null,null,null,null,null,null,null,null,"Public engagement",{"$f":"'Emission table'!K29","v":0},{"$f":"'Emission table'!L29","v":0},{"$f":"'Emission table'!M29","v":0}]
[null,"Deposition",{"$f":"'Emission table'!C29","v":0},{"$f":"'Emission table'!D29","v":0},null,null,null,null,null,null,null,null,null,null,null,null,null,"Deposition",{"$f":"'Emission table'!K30","v":0},{"$f":"'Emission table'!L30","v":0},{"$f":"'Emission table'!M30","v":0}]
[null,"Plant hire",{"$f":"'Emission table'!C30","v":0},{"$f":"'Emission table'!D30","v":0},null,null,null,null,null,null,null,null,null,null,null,null,null,"Plant hire",{"$f":"'Emission table'!K31","v":0},{"$f":"'Emission table'!L31","v":0},{"$f":"'Emission table'!M31","v":0}]
[null,"Development emissions [fossil]",{"$f":"'Emission table'!C31","v":0},{"$f":"'Emission table'!D31","v":0},null,null,null,null,null,null,null,null,null,null,null,null,null,"Development emissions [fossil]",{"$f":"'Emission table'!K32","v":0},{"$f":"'Emission table'!L32","v":0},{"$f":"'Emission table'!M32","v":0}]
[null,"Development emissions [biogenic]",{"$f":"'Emission table'!C32","v":0},{"$f":"'Emission table'!D32","v":0},null,null,null,null,null,null,null,null,null,null,null,null,null,"Development emissions [biogenic]",{"$f":"'Emission table'!K33","v":0},{"$f":"'Emission table'!L33","v":0},{"$f":"'Emission table'!M33","v":0}]
[null,"Biogenic emissions",{"$f":"'Emission table'!C33","v":0},{"$f":"'Emission table'!D33","v":0},null,null,null,null,null,null,null,null,null,null,null,null,null,"Biogenic emissions",{"$f":"'Emission table'!K34","v":0},{"$f":"'Emission table'!L34","v":0},{"$f":"'Emission table'!M34","v":0}]
[null,"Scope 1, 2 ,3 Fossil emissions Archaeology specific",{"$f":"SUM(C17:C18,C20:C21,C23:C37)","v":0},{"$f":"SUM(D17:D18,D20:D21,D23:D37)","v":0},null,null,null,null,null,null,null,null,null,null,null,null,null,"Scope 1, 2 ,3 Fossil emissions Archaeology specific",{"$f":"SUM(S17:S18,S20:S21,S23:S37)","v":0},{"$f":"SUM(T17:T18,T20:T21,T23:T37)","v":0},{"$f":"IFERROR(T41/S41,0)","v":0}]
[]
[]
[]
[]
[]
[]
[null,"Client carbon footprint",null,null,null,null,null,null,null,null,null,null,null,null,null,null,null,"Geographical area carbon footprint"]
[]
[null,"Client name",null,null,null,null,null,null,null,null,null,null,null,null,null,null,null,"Location"]
[null,"Market/locational",null,null,null,null,null,null,null,null,null,null,null,null,null,null,null,"Market/locational"]
[null,"Start date",null,null,null,null,null,null,null,null,null,null,null,null,null,null,null,"Start date"]
[null,"End date",null,null,null,null,null,null,null,null,null,null,null,null,null,null,null,"End date"]
[]
[]
[null,{"$f":"client_tbl_title","v":"Total locational-based carbon footprint (tonnes CO2e)"},null,null,null,null,null,null,null,null,null,null,null,null,null,null,null,{"$f":"loc_tbl_title","v":"Total market-based carbon footprint (tonnes CO2e)"}]
[null,"Emission","Forecast","Actual","Actual as a % of forecast",null,null,null,null,null,null,null,null,null,null,null,null,"Emission","Forecast","Actual","Actual as a % of forecast"]
[null,"Scope 1",null,null,null,null,null,null,null,null,null,null,null,null,null,null,null,"Scope 1"]
[null,"Stationary combustion",{"$f":"'Emission table'!Z13","v":0},{"$f":"'Emission table'!AA13","v":0},{"$f":"'Emission table'!AB13","v":0},null,null,null,null,null,null,null,null,null,null,null,null,"Stationary combustion",{"$f":"'Emission table'!AJ13","v":0},{"$f":"'Emission table'!AK13","v":0},{"$f":"'Emission table'!AL13","v":0}]
[null,"Project transport - company owned/leased vehicles",{"$f":"'Emission table'!Z14","v":0},{"$f":"'Emission table'!AA14","v":0},{"$f":"'Emission table'!AB14","v":0},null,null,null,null,null,null,null,null,null,null,null,null,"Project transport - company owned/leased vehicles",{"$f":"'Emission table'!AJ14","v":0},{"$f":"'Emission table'!AK14","v":0},{"$f":"'Emission table'!AL14","v":0}]
[null,"Scope 2",null,null,null,null,null,null,null,null,null,null,null,null,null,null,null,"Scope 2"]
[null,"Electricity consumption",{"$f":"'Emission table'!Z15","v":0},{"$f":"'Emission table'!AA15","v":0},{"$f":"'Emission table'!AB15","v":0},null,null,null,null,null,null,null,null,null,null,null,null,"Electricity consumption",{"$f":"'Emission table'!AJ15","v":0},{"$f":"'Emission table'!AK15","v":0},{"$f":"'Emission table'!AL15","v":0}]
[null,"Electricity - company owned/leased EVs",{"$f":"'Emission table'!Z16","v":0},{"$f":"'Emission table'!AA16","v":0},{"$f":"'Emission table'!AB16","v":0},null,null,null,null,null,null,null,null,null,null,null,null,"Electricity - company owned/leased EVs",{"$f":"'Emission table'!AJ16","v":0},{"$f":"'Emission table'!AK16","v":0},{"$f":"'Emission table'!AL16","v":0}]
[null,"Scope 3",null,null,null,null,null,null,null,null,null,null,null,null,null,null,null,"Scope 3"]
[null,"Upstream leased assets",{"$f":"'Emission table'!Z17","v":0},{"$f":"'Emission table'!AA17","v":0},{"$f":"'Emission table'!AB17","v":0},null,null,null,null,null,null,null,null,null,null,null,null,"Upstream leased assets",{"$f":"'Emission table'!AJ17","v":0},{"$f":"'Emission table'!AK17","v":0},{"$f":"'Emission table'!AL17","v":0}]
[null,"Overheads - business travel",{"$f":"'Emission table'!Z18","v":0},{"$f":"'Emission table'!AA18","v":0},{"$f":"'Emission table'!AB18","v":0},null,null,null,null,null,null,null,null,null,null,null,null,"Overheads - business travel",{"$f":"'Emission table'!AJ18","v":0},{"$f":"'Emission table'!AK18","v":0},{"$f":"'Emission table'!AL18","v":0}]
[null,"Commuting",{"$f":"'Emission table'!Z19","v":0},{"$f":"'Emission table'!AA19","v":0},{"$f":"'Emission table'!AB19","v":0},null,null,null,null,null,null,null,null,null,null,null,null,"Commuting",{"$f":"'Emission table'!AJ19","v":0},{"$f":"'Emission table'!AK19","v":0},{"$f":"'Emission table'!AL19","v":0}]
[null,"Upstream impacts - overheads",{"$f":"'Emission table'!Z20","v":0},{"$f":"'Emission table'!AA20","v":0},{"$f":"'Emission table'!AB20","v":0},null,null,null,null,null,null,null,null,null,null,null,null,"Upstream impacts - overheads",{"$f":"'Emission table'!AJ20","v":0},{"$f":"'Emission table'!AK20","v":0},{"$f":"'Emission table'!AL20","v":0}]
[null,"Project transport - greyfleet",{"$f":"'Emission table'!Z21","v":0},{"$f":"'Emission table'!AA21","v":0},{"$f":"'Emission table'!AB21","v":0},null,null,null,null,null,null,null,null,null,null,null,null,"Project transport - greyfleet",{"$f":"'Emission table'!AJ21","v":0},{"$f":"'Emission table'!AK21","v":0},{"$f":"'Emission table'!AL21","v":0}]
[null,"Project transport - business travel",{"$f":"'Emission table'!Z22","v":0},{"$f":"'Emission table'!AA22","v":0},{"$f":"'Emission table'!AB22","v":0},null,null,null,null,null,null,null,null,null,null,null,null,"Project transport - business travel",{"$f":"'Emission table'!AJ22","v":0},{"$f":"'Emission table'!AK22","v":0},{"$f":"'Emission table'!AL22","v":0}]
[null,"Upstream impacts - project specific",{"$f":"'Emission table'!Z23","v":0},{"$f":"'Emission table'!AA23","v":0},{"$f":"'Emission table'!AB23","v":0},null,null,null,null,null,null,null,null,null,null,null,null,"Upstream impacts - project specific",{"$f":"'Emission table'!AJ23","v":0},{"$f":"'Emission table'!AK23","v":0},{"$f":"'Emission table'!AL23","v":0}]
[null,"Preliminaries",{"$f":"'Emission table'!Z24","v":0},{"$f":"'Emission table'!AA24","v":0},{"$f":"'Emission table'!AB24","v":0},null,null,null,null,null,null,null,null,null,null,null,null,"Preliminaries",{"$f":"'Emission table'!AJ24","v":0},{"$f":"'Emission table'!AK24","v":0},{"$f":"'Emission table'!AL24","v":0}]
[null,"Excavation/Investigation",{"$f":"'Emission table'!Z25","v":0},{"$f":"'Emission table'!AA25","v":0},{"$f":"'Emission table'!AB25","v":0},null,null,null,null,null,null,null,null,null,null,null,null,"Excavation/Investigation",{"$f":"'Emission table'!AJ25","v":0},{"$f":"'Emission table'!AK25","v":0},{"$f":"'Emission table'!AL25","v":0}]
[null,"Processing of recovered materials",{"$f":"'Emission table'!Z26","v":0},{"$f":"'Emission table'!AA26","v":0},{"$f":"'Emission table'!AB26","v":0},null,null,null,null,null,null,null,null,null,null,null,null,"Processing of recovered materials",{"$f":"'Emission table'!AJ26","v":0},{"$f":"'Emission table'!AK26","v":0},{"$f":"'Emission table'!AL26","v":0}]
[null,"Post-excavation assessment",{"$f":"'Emission table'!Z27","v":0},{"$f":"'Emission table'!AA27","v":0},{"$f":"'Emission table'!AB27","v":0},null,null,null,null,null,null,null,null,null,null,null,null,"Post-excavation assessment",{"$f":"'Emission table'!AJ27","v":0},{"$f":"'Emission table'!AK27","v":0},{"$f":"'Emission table'!AL27","v":0}]
[null,"Post-excavation analysis and dissemination",{"$f":"'Emission table'!Z28","v":0},{"$f":"'Emission table'!AA28","v":0},{"$f":"'Emission table'!AB28","v":0},null,null,null,null,null,null,null,null,null,null,null,null,"Post-excavation analysis and dissemination",{"$f":"'Emission table'!AJ28","v":0},{"$f":"'Emission table'!AK28","v":0},{"$f":"'Emission table'!AL28","v":0}]
[null,"Public engagement",{"$f":"'Emission table'!Z29","v":0},{"$f":"'Emission table'!AA29","v":0},{"$f":"'Emission table'!AB29","v":0},null,null,null,null,null,null,null,null,null,null,null,null,"Public engagement",{"$f":"'Emission table'!AJ29","v":0},{"$f":"'Emission table'!AK29","v":0},{"$f":"'Emission table'!AL29","v":0}]
[null,"Deposition",{"$f":"'Emission table'!Z30","v":0},{"$f":"'Emission table'!AA30","v":0},{"$f":"'Emission table'!AB30","v":0},null,null,null,null,null,null,null,null,null,null,null,null,"Deposition",{"$f":"'Emission table'!AJ30","v":0},{"$f":"'Emission table'!AK30","v":0},{"$f":"'Emission table'!AL30","v":0}]
[null,"Plant hire",{"$f":"'Emission table'!Z31","v":1.5068032786885246E-3},{"$f":"'Emission table'!AA31","v":0},{"$f":"'Emission table'!AB31","v":0},null,null,null,null,null,null,null,null,null,null,null,null,"Plant hire",{"$f":"'Emission table'!AJ31","v":0},{"$f":"'Emission table'!AK31","v":0},{"$f":"'Emission table'!AL31","v":0}]
[null,"Development emissions [fossil]",{"$f":"'Emission table'!Z32","v":0},{"$f":"'Emission table'!AA32","v":0},{"$f":"'Emission table'!AB32","v":0},null,null,null,null,null,null,null,null,null,null,null,null,"Development emissions [fossil]",{"$f":"'Emission table'!AJ32","v":0},{"$f":"'Emission table'!AK32","v":0},{"$f":"'Emission table'!AL32","v":0}]
[null,"Development emissions [biogenic]",{"$f":"'Emission table'!Z33","v":0},{"$f":"'Emission table'!AA33","v":0},{"$f":"'Emission table'!AB33","v":0},null,null,null,null,null,null,null,null,null,null,null,null,"Development emissions [biogenic]",{"$f":"'Emission table'!AJ33","v":0},{"$f":"'Emission table'!AK33","v":0},{"$f":"'Emission table'!AL33","v":0}]
[null,"Biogenic emissions",{"$f":"'Emission table'!Z34","v":0},{"$f":"'Emission table'!AA34","v":0},{"$f":"'Emission table'!AB34","v":0},null,null,null,null,null,null,null,null,null,null,null,null,"Biogenic emissions",{"$f":"'Emission table'!AJ34","v":0},{"$f":"'Emission table'!AK34","v":0},{"$f":"'Emission table'!AL34","v":0}]
[null,"Scope 1, 2 ,3 Fossil emissions Archaeology specific",{"$f":"SUM(C59:C60,C62:C63,C65:C79)","v":1.5068032786885246E-3},{"$f":"SUM(D59:D60,D62:D63,D65:D79)","v":0},{"$f":"IF(C83=0,0,D83/C83)","v":0},null,null,null,null,null,null,null,null,null,null,null,null,null,{"$f":"SUM(S59:S60,S62:S63,S65:S79)","v":0},{"$f":"SUM(T59:T60,T62:T63,T65:T79)","v":0},{"$f":"IF(S83=0,0,T83/S83)","v":0}]

{"sheet":"Input data review","index":2,"n_rows":10,"n_cols":10,"rows_kept":10,"cut":false,"hidden":false,"merged":[[5,4,5,7],[8,6,8,7],[8,8,8,9]]}
[]
[]
[]
[]
[]
[null,null,null,"Project name"]
[null,null,null,"Please note that this will return only direct project inputs. Overheads will not be returned as these are shared between different projects"]
[]
[null,null,null,null,null,null,"Archaeology only quantity",null,"Archaeology and other development"]
[null,null,"Unique Code","Input Sheet","Input Type","Unit","Forecast","Actual","Forecast ","Actual "]

{"sheet":"Data input check","index":3,"n_rows":22,"n_cols":23,"rows_kept":22,"cut":false,"hidden":false,"merged":[[18,3,18,6],[18,7,18,12],[18,13,18,22],[12,7,12,12],[4,1,4,12],[7,7,7,12],[8,7,8,12],[9,7,9,12],[10,7,10,12],[11,7,11,12],[11,2,11,6],[12,2,12,6],[7,2,7,6],[8,2,8,6],[9,2,9,6],[10,2,10,6]]}
[]
[]
[]
[]
[null,"Data input check"]
[]
[]
[null,null,"Do you want to check data inputs for a project or a time period?",null,null,null,null,"Project"]
[null,null,"Project name",null,null,null,null,"Project - Master"]
[null,null,"Start month",null,null,null,null,4]
[null,null,"Start year",null,null,null,null,2025]
[null,null,"End month",null,null,null,null,5]
[null,null,"End year",null,null,null,null,2025]
[]
[]
[]
[null,null,"This is indicative only. Monthly data will be indicated as present if at least one day within the month has some data input."]
[null,null,"Project - Master"]
[null,null,null,"Person-days",null,null,null,"Overheads",null,null,null,null,null,"Project-specific"]
[null,null,"Month","Actual project person-days","Forecast project person-days","Actual total person-days","Forecast total person-days","Forecast buildings data","Actual buildings data","Forecast commuting/homeworking data","Actual commuting/homeworking data","Forecast business travel data","Actual business travel data","Forecast project transport - company vehicles data","Actual project transport - company vehicles data","Forecast project transport - greyfleet data","Actual project transport - greyfleet data","Forecast project transport - business travel data","Actual project transport - business travel data","Forecast BoQ data","Actual BoQ data","Forecast soil/excavation data","Actual soil/excavation data"]
[null,null,"2025-04-01"]
[null,null,"2025-05-01"]

{"sheet":"BoQ core input","index":4,"n_rows":147,"n_cols":9,"rows_kept":147,"cut":false,"hidden":false,"merged":[[19,2,21,2],[13,1,13,2],[4,1,4,3],[8,1,8,2],[9,1,9,2],[10,1,10,2],[11,2,12,2]]}
[]
[]
[]
[]
[null,"Core bill of quantities input"]
[]
[]
[]
[null,"Name of person inputting the data"]
[null,"Project code",null,""]
[null,"Record type"]
[null,"Start date","Only applicable if actual data is input\ndd/mm/yyyy"]
[null,"End date"]
[null,"Additional notes"]
[]
[]
[]
[]
[]
[null,"First record number to be amended","This will be automatically populated by the recall function.\nIf you do not want to amend an entry please clear the amendment data.",""]
[null,"Last record number to be amended",null,""]
[null,"Reason for amendment"]
[]
[]
[null,"This section must be filled out for each project"]
[null,"Some of the activities listed below might be carried out in-house and therefore included in other aspects of the tool. To avoid double counting please ensure that only externally contracted activities are included on this tab and in-house activities are covered in the overheads."]
[null,"We have flagged some activities using an asterisk where we think it is likely that it was carried out in-house and so will be captured elsewhere in the tool, however, this is not exhaustive."]
[null,"Highlighted blue are cells where a physical unit carbon factor is available. Where possible use this instead of monetary data."]
[null,"Please do not input formulae. If using formulae ensure you have copy and pasted values before submitting to the database."]
[null,"Reference","Item specification","Descriptions","Unit","Quantity solely for archaeology activity","Quantity for archaeology and other development purposes","Custom carbon factor (if applicable)","Notes"]
[null,"AA - Accommodation and Subistence"]
[null,"AA1","Hotels and Accommodation","Spend on overnight accommodation with third party providers.","Room per night"]
[null,"AA2","Food and Subsistence","Food purchased at restaurants, cafes and supermarkets when working away from home","£"]
[null,"Y - PLANT HIRE"]
[null,"Y0","Option 1 - Diesel consumption","Common user mechanical plant and equipment used\nin construction operations.\nLitres of diesel consumed/£ spent on diesel used by third party plant/equipment hire\nIf excavator diesel consumption is included here then do not input data in the excavator section of the Soil excavation input tab","litres"]
[null,"Y1","Option 1 - Biodiesel consumption","Common user mechanical plant and equipment used\nin construction operations.\nLitres of biodiesel consumed/£ spent on biodiesel used by third party plant/equipment hire\nIf excavator biodiesel consumption is included here then do not input data in the excavator section of the Soil excavation input tab","litres"]
[null,"Y2","Option 2 - Amount spent on plant hire","Common user mechanical plant and equipment used\nin construction operations.\nAmount spent on hiring equipment/plant\nIf you are able to separate spend on excavators, then exclude this spend here and input data in the excavator section of the Soil excavation input tab","£"]
[null,"A - PRELIMINARIES"]
[null,"A1","Supply H&S Plan*",null,"FTE working hour"]
[null,"A2 - Supply and update 'WSI' or Method Statement "]
[null,"A2.1","Supply  'WSI' or Method Statement*",null,"FTE working hour"]
[null,"A2.2","Update  'WSI' or Method Statement*",null,"FTE working hour"]
[null,"A3 - Supply and update Programme"]
[null,"A3.1","Supply  Programme*",null,"FTE working hour"]
[null,"A3.2","Update Programme*",null,"FTE working hour"]
[null,"A4","Attend meetings*",null,"FTE working hour"]
[null,"A5","Handover*",null,"FTE working hour"]
[null,"A7 - Site establishment"]
[null,"A7.1.1.1","Option 1 - Temporary site accommodation, diesel consumption","Temporary site accommodation\nShould cover:\n•\tPurchase charges.\n•\tHire charges.\n•\tDelivery of temporary site accommodation to site and erection, construction and  removal of temporary site accommodation.\n•\tIntruder alarms.\n•\tLand/property rental where site accommodation is located off-site.\n•\tRelocation and alterations of temporary accommodation during construction stage.\n•\tReinstating temporary site accommodation to original condition before removal from site.\n•\tRemoval of site accommodation and temporary works in connection with site accommodation.","litres"]
[null,"A7.1.1.2","Option 1 - Temporary site accommodation, biodiesel consumption","Temporary site accommodation\nShould cover:\n•\tPurchase charges.\n•\tHire charges.\n•\tDelivery of temporary site accommodation to site and erection, construction and  removal of temporary site accommodation.\n•\tIntruder alarms.\n•\tLand/property rental where site accommodation is located off-site.\n•\tRelocation and alterations of temporary accommodation during construction stage.\n•\tReinstating temporary site accommodation to original condition before removal from site.\n•\tRemoval of site accommodation and temporary works in connection with site accommodation.","£"]
[null,"A7.1.1.3","Option 2 - Amount spent on temporary site accommodation","Temporary site accommodation\nShould cover:\n•\tPurchase charges.\n•\tHire charges.\n•\tDelivery of temporary site accommodation to site and erection, construction and  removal of temporary site accommodation.\n•\tIntruder alarms.\n•\tLand/property rental where site accommodation is located off-site.\n•\tRelocation and alterations of temporary accommodation during construction stage.\n•\tReinstating temporary site accommodation to original condition before removal from site.\n•\tRemoval of site accommodation and temporary works in connection with site accommodation.","£"]
[null,"A7.2.1","Temporary works in connection with site establishment (road surface)","Specify coverage, could cover:\n•\tTemporary bases and foundations for site accommodation, including maintenance and reinstatement of existing surfaces on completion of the works.\n•\tTemporary site roads, paths and pavings (including on-site car parking), including reinstatement of existing surfaces on completion of the works.\n•\tTemporary surface water drainage to temporary site roads, paths and pavements, including maintenance and removal on completion of the works.\n•\tConnections to temporary service, including maintenance and removal on completion of the works.\n•\tConnections to temporary drainage, including maintenance and removal on completion of the works.","m2"]
[null,"A7.2.2","Temporary works in connection with site establishment (concrete)","Specify coverage, could cover:\n•\tTemporary bases and foundations for site accommodation, including maintenance and reinstatement of existing surfaces on completion of the works.\n•\tTemporary site roads, paths and pavings (including on-site car parking), including reinstatement of existing surfaces on completion of the works.\n•\tTemporary surface water drainage to temporary site roads, paths and pavements, including maintenance and removal on completion of the works.\n•\tConnections to temporary service, including maintenance and removal on completion of the works.\n•\tConnections to temporary drainage, including maintenance and removal on completion of the works.","m3"]
[null,"A7.3","Furniture and equipment","Specify coverage, could cover:\n•\tWorkstations for staff, including maintenance.\n•\tGeneral office furniture, including maintenance.\n•\tConference/meeting room furniture, including maintenance.\n•\tPhotocopiers, including purchase/rental, maintenance and other running costs.\n•\tCanteen furniture, including maintenance.\n•\tCanteen equipment, including purchase/rental, maintenance and other running costs.\n•\tFloor coverings, including maintenance.\n•\tWater dispensers, including purchase/rental, maintenance and other running costs.\n•\tHeaters, including maintenance of heaters\n•\tOther office equipment, including maintenance.\n•\tRemoval of furniture and equipment\n•\tMaintenance furniture and floor covering.\n•\tWater dispensers, including purchase/rental, maintenance and other running costs.\n•\tHeaters, including maintenance of heaters.\n•\tOther office equipment, including maintenance.\n•\tRemoval of furniture and equipment.\n•\tMaintenance furniture and floor covering.","£"]
[null,"A7.4.1","IT systems - hardware","Specify coverage, could cover:\n•\tComputer hardware, including purchase/rental, installation, initial set up, maintenance and running costs, such as:\no\tdesktop and laptop computers\no\tCAD stations\no\tserver and network equipment\no\tprinters and plotters\no\tother computer system hardware.","£"]
[null,"A7.4.2","IT systems - software","Specify coverage, could cover:\n•\tSoftware and software licences.\n•\tModem lines, modems and connections (i.e. email and internet capability).\n•\tWAN lines and connections (if on WAN).\n•\tLine rental charges.\n•\tInternet/website addresses.\n•\tInternet service provider (ISP) charges.\n•\tLine calls charges.\n•\tIT support and maintenance.","£"]
[null,"A7.5.1","Stationary and printing","Specify coverage, could cover:\n•\tStationery.\n•\tFax consumables (e.g. paper and toners).\n•\tDrawing printer consumables (e.g. ink cartridges).","kg"]
[null,"A7.5.2","Computer and printer consumables","Specify coverage, could cover:\n•\tComputer and printer consumables (e.g. ink cartridges).","£"]
[null,"A7.5.3","Postage","Specify coverage, could cover:\n•\tPostage.\n•\tCourier charges.\n•Phone costs","£"]
[null,"A7.5.4","Food and drink","Specify coverage, could cover:\n•\tTea, coffee, water bottles, etc.","£"]
[null,"A7.5.5","First aid consumables","•\tFirst aid consumables.","kg"]
[null,"A7.6.1","Catering",null,"£"]
[null,"A7.6.2","Equipment maintenance",null,"£"]
[null,"A7.6.3","Document management","including management information systems and EDMS","£"]
[null,"A7.6.4","Printing (purchasing)","including reports and drawings","kg"]
[null,"A7.6.5","Parking","Off-site parking charges\nTolls","£"]
[null,"A7.6.6","Meeting room facilities*",null,"£"]
[null,"A7.6.7","Photographic services","Photographic activities and other brought-in services","£"]
[null,"A7.7","Sundries","Specify coverage, could cover:\n•\tSignboards.\n•\tSafety and information notice boards.\n•\tFire points.\n•\tShelters.\n•\tTool stores.\n•\tEmployer’s composite signboards.","kg"]
[null,"A8 - Temporary services"]
[null,"A8.1.1","Temporary water supply - services/meter charges","• Meter charges","m3"]
[null,"A8.1.2","Temporary water supply - infrastructure (connections and distribution)","Specify coverage, could cover:\n•\tTemporary connections.\n•\tDistribution equipment, installation and adaptations.","£"]
[null,"A8.2.1","Temporary gas supply - services (charges)","Natural gas consumption:\n- Charges\n- Bottled gas","kWh"]
[null,"A8.2.2","Temporary gas supply - infrastructure (connections and distribution)","Specify coverage, could cover:\n•\tGas connection.\n•\tDistribution equipment, installation and adaptations.","£"]
[null,"A8.3.1.1","Temporary electricity supply - infrastructure (attendance, UPS, etc)","Specify coverage, could cover:\n•\tAttendance.\n•\tUninterrupted power supply (UPS).\n•\tTemporary substation modifications.","£"]
[null,"A8.3.1.2","Temporary electricity supply - infrastructure (connections and distribution)","Specify coverage, could cover:\n•\tTemporary connections.\n•\tTemporary electrical supply for tower cranes.\n•\tDistribution equipment, installation and adaptations.","£"]
[null,"A8.3.2","Temporary electricity supply - charges","Electricity consumption:\n•\tCharges – power consumption for site establishment.\n•\tCharges – power consumption for the works.","kWh"]
[null,"A8.4.1.1","Temporary telecommunication systems - consumables (wires and lines)","Specify coverage, could cover:\n•\tLandlines including:\no\ttelephone and fax lines and\no\tISDN lines.","£"]
[null,"A8.4.1.2","Temporary telecommunication systems - consumables (handsets etc)","Specify coverage, could cover:\n•\tTelephone and related equipment, including:\no\tPABX equipment\no\thandsets, including purchase or rental\no\tfax machines, including purchase or rental\no\tinstallation of equipment and\no\tmaintenance of equipment.\n•\tMobile phones, including:\no\tpurchase or rental\no\tspare batteries and\no\tmobile phone charges.\n•\tTelephone charges, including:\no\tfax and telephone consumables.\n•\tRadios, including:\no\tpurchase or rental charges\no\tbase set\no\thandsets and chargers\no\trepairs and maintenance\no\tspare batteries.","£"]
[null,"A8.4.2","Temporary telecommunication systems - services","Specify coverage, could cover:\n•\tLandlines including:\no\tconnection charges\n•\tTelephone and related equipment, including:\no\tconnection charges\n•\tMobile phones, including:\no\tconnection charges\n•\tTelephone charges, including:\no\ttelephone call charges\no\tfax charges and\n•\tRadios, including:\no\tlicences","£"]
[null,"A8.5.1","Temporary drainage - infrastructure","Specify coverage, could cover:\n•\tTemporary mains.\n•\tSeptic tanks.\n•\tOn-site treatment plant.\n•\tHolding tanks.\n•\tDistribution pipework, etc.","£"]
[null,"A9.3.1","Hoardings, fences and gates (steel hot rolled coil)","Specify coverage, could cover:\n•\tPerimeter hoardings and fencing, etc. to site boundaries and to form site compounds.\n•\tAccess gates, including frames and ironmongery.\n•\tPainting of hoardings, fencing, gates, etc.\n•\tTemporary doors.\n•\tModification to line of hoarding and fencing during construction.\n•\tDismantling and removal of hoarding, fencing, gates, etc.","kg"]
[null,"A9.3.2","Hoardings, fences and gates (steel welded pipe)","Specify coverage, could cover:\n•\tPerimeter hoardings and fencing, etc. to site boundaries and to form site compounds.\n•\tAccess gates, including frames and ironmongery.\n•\tPainting of hoardings, fencing, gates, etc.\n•\tTemporary doors.\n•\tModification to line of hoarding and fencing during construction.\n•\tDismantling and removal of hoarding, fencing, gates, etc.","kg"]
[null,"A9.3.3","Hoardings, fences and gates (aluminium sheet)","Specify coverage, could cover:\n•\tPerimeter hoardings and fencing, etc. to site boundaries and to form site compounds.\n•\tAccess gates, including frames and ironmongery.\n•\tPainting of hoardings, fencing, gates, etc.\n•\tTemporary doors.\n•\tModification to line of hoarding and fencing during construction.\n•\tDismantling and removal of hoarding, fencing, gates, etc.","kg"]
[null,"A9.3.4","Hoardings, fences and gates (aluminium extruded profile)","Specify coverage, could cover:\n•\tPerimeter hoardings and fencing, etc. to site boundaries and to form site compounds.\n•\tAccess gates, including frames and ironmongery.\n•\tPainting of hoardings, fencing, gates, etc.\n•\tTemporary doors.\n•\tModification to line of hoarding and fencing during construction.\n•\tDismantling and removal of hoarding, fencing, gates, etc.","kg"]
[null,"A10 - Safety and environmental protection"]
[null,"A10.1.1","Safety programme - services*","Specify coverage, could cover:\n•\tHealth and safety manager/officers.\n•\tSafety audits, including safety audits carried out by an external consultant.\n•\tNurse.\n•\tTraffic marshals.","£"]
[null,"A10.1.2","Safety programme - PPE","Specify coverage, could cover:\n•\tPersonal protective equipment (PPE), including for the employer and consultants.\n•\tPPE for multi-service gangs","£"]
[null,"A10.1.3","Safety programme - equipment","Specify coverage, could cover:\n•\tFire points.\n•\tTemporary fire alarms.\n•\tFire extinguishers.\n•\tStatutory safety signage.","£"]
[null,"A10.1.4","Safety programme - education","Specify coverage, could cover:\n•\tStaff safety training.\n•\tSite safety incentive scheme.\n•\tNotices and information to neighbours.","£"]
[null,"A10.2.1","Barriers and safety scaffolding (steel hot rolled coil)","Specify coverage, could cover:\n•\tGuard rails and edge protection (e.g. to edges of suspended slabs and roofs).\n•\tTemporary staircase balustrades (i.e. to new staircases during construction).\n•\tLift shaft protection.\n•\tProtection to holes and openings in ground floor slabs, suspended slabs, etc.\n•\tDebris netting/plastic sheeting.\n•\tFan protection.\n•\tScaffold inspections.\n•\tHoist run-offs.\n•\tProtective walkways.\n•\tOther safety measures.","kg"]
[null,"A10.2.2","Barriers and safety scaffolding (steel welded pipe)","Specify coverage, could cover:\n•\tGuard rails and edge protection (e.g. to edges of suspended slabs and roofs).\n•\tTemporary staircase balustrades (i.e. to new staircases during construction).\n•\tLift shaft protection.\n•\tProtection to holes and openings in ground floor slabs, suspended slabs, etc.\n•\tDebris netting/plastic sheeting.\n•\tFan protection.\n•\tScaffold inspections.\n•\tHoist run-offs.\n•\tProtective walkways.\n•\tOther safety measures.","kg"]
[null,"A10.2.3","Barriers and safety scaffolding (aluminium sheet)","Specify coverage, could cover:\n•\tGuard rails and edge protection (e.g. to edges of suspended slabs and roofs).\n•\tTemporary staircase balustrades (i.e. to new staircases during construction).\n•\tLift shaft protection.\n•\tProtection to holes and openings in ground floor slabs, suspended slabs, etc.\n•\tDebris netting/plastic sheeting.\n•\tFan protection.\n•\tScaffold inspections.\n•\tHoist run-offs.\n•\tProtective walkways.\n•\tOther safety measures.","kg"]
[null,"A10.2.4","Barriers and safety scaffolding (aluminium extruded profile)","Specify coverage, could cover:\n•\tGuard rails and edge protection (e.g. to edges of suspended slabs and roofs).\n•\tTemporary staircase balustrades (i.e. to new staircases during construction).\n•\tLift shaft protection.\n•\tProtection to holes and openings in ground floor slabs, suspended slabs, etc.\n•\tDebris netting/plastic sheeting.\n•\tFan protection.\n•\tScaffold inspections.\n•\tHoist run-offs.\n•\tProtective walkways.\n•\tOther safety measures.","kg"]
[null,"A11 - Control and protection"]
[null,"A11.1","Survey, inspections and monitoring","Specify coverage, could cover:\n•\tSurveys.\n•\tTopographical survey.\n•\tStructural/dilapidations survey adjoining buildings.\n•\tEnvironmental surveys.\n•\tMovement monitoring.\n•\tMaintenance and inspection costs.","£"]
[null,"A11.2.2.1","Setting out - equipment (steel hot rolled coil)","Specify coverage, could cover:\n•\tInstruments for setting out.","kg"]
[null,"A11.2.2.2","Setting out - equipment (steel welded pipe)","Specify coverage, could cover:\n•\tInstruments for setting out.","kg"]
[null,"A11.2.2.3","Setting out - equipment (aluminium sheet)","Specify coverage, could cover:\n•\tInstruments for setting out.","kg"]
[null,"A11.2.2.4","Setting out - equipment (aluminium extruded profile)","Specify coverage, could cover:\n•\tInstruments for setting out.","kg"]
[null,"A11.5","Environmental control of building","Specify coverage, could cover:\n•\tDry out building.\n•\tTemporary heating/cooling.\n•\tTemporary waterproofing, including over roofs.\n•\tTemporary enclosures.","£"]
[null,"A14 - Cleaning"]
[null,"A14.2","Maintenance of roads, paths and pavings","Specify coverage, could cover:\n•\tMaintenance of temporary site roads, paths, and pavements.\n•\tMaintenance of public and private roads, including wheel spinners and road sweepers.","£"]
[null,"A16 - Insurance, bonds, guarantees and warranties"]
[null,"A16.1","Works insurance","Specify coverage, could cover:\n•\tContractor’s all risks (CAR) insurance.\n•\tContractor’s plant and equipment insurance.\n•\tTemporary buildings insurance.\n•\tTerrorism insurance.\n•\tOther insurances in connection with the works.\n•\tInsurance premium tax (IPT).\n•\tAllowance for recovery of all or part of insurance premium excess.","£"]
[null,"A16.2","Public liability insurance","Specify coverage, could cover:\n•\tNon-negligence insurance.\n•\tProfessional indemnity insurance.\n•\tIPT.\n•\tAllowance for recovery of all or part of insurance premium excess.","£"]
[null,"A16.3","Employer’s (main contractor’s) liability insurance","Specify coverage, could cover:\n•\tManagement and staff, including administrative staff.\n•\tWorks operatives.\n•\tIPT.\n•\tAllowance for recovery of all or part of insurance premium excess.\n•\tWorks operatives.\n•\tIPT.\n•\tAllowance for recovery of all or part of insurance premium excess.","£"]
[null,"A16.4","Other insurances","Specify coverage, could cover:\n•\tEmployer’s loss of liquidated damages.\n•\tLatent defects cover.\n•\tMotor vehicles.\n•\tOther insurances.\n•\tIPT.\n•\tAllowance for recovery of all or part of insurance premium excess.","£"]
[null,"A16.5","Bonds","Specify coverage, could cover:\n•\tTender bonds.\n•\tPerformance bonds.","£"]
[null,"A16.6","Guarantees","Specify coverage, could cover:\n•\tParent company guarantees.\n•\tProduct guarantees, insurance backed guarantees.","£"]
[null,"A16.7","Warranties","Specify coverage, could cover:\n•\tCollateral warranties.\n•\tFunder’s warranties.\n•\tPurchaser’s and tenant’s warranties.\n•\tOther warranties.","£"]
[null,"A17","De-watering","Specify coverage, could cover:\n•\tHire\n•\tInstallation\n•\tMaintenance\n•\tDelivery each way","£"]
[null,"B - EXCAVATION/INVESTIGATION - this might involve other methods than just excavation"]
[null,"B1.5","Surveys, characterisations, and photography","Eg.  metal detecting survey, hedgerow survey, conventional aerial photography, historic landscape and seascape characterisation\nActivities specified in FAME's Bill of Quantities Section B1.5-7, B1.17-22, B1.24 -30 ","£"]
[null,"B1.8","Sampling","Eg. gravity core, monolith, timber\nActivities specified in FAME's Bill of Quantities Section B1.8-16","£"]
[null,"B1.19.2","Acoustic Ground Discriminating Radar","An extra processing unit which can be used in conjunction with single beam echo sounders to determine the roughness and hardness of the seafloor. Mainly used for marine biology, but has been used in archaeology. http://purl.org/heritagedata/schemes/agl_et/concepts/147321","£"]
[null,"B1.23","Desk Based Assessment*","A programme of assessment of the known or potential archaeological resource within a specified area or site on land, inter-tidal zone or underwater by the consultation and collation of existing written, graphic, photographic and electronic data. http://purl.org/heritagedata/schemes/agl_et/concepts/145123","FTE working hour"]
[null,"B1.31","Remote Operated Vehicle Survey","A technique utilised in maritime recording; a remote operated vehicle (ROV) is a tethered underwater robot. ROVs have been used to locate and inspect a number of historic shipwrecks in depths beyond the reach of human divers. http://purl.org/heritagedata/schemes/agl_et/concepts/147311","£"]
[null,"D - POST-EXCAVATION ASSESSMENT"]
[null,"D1.4","Photo and Record logs*","A complete log of all the photos taken and record documents created during the excavation.","kg"]
[null,"E - POST-EXCAVATION ANALYSIS AND DISSEMINATION"]
[null,"E1","Chemical Techniques*","eg. Alpha spectrometry, pH determination, stable isotope analysis\nSee FAME's Bill of Quantities Section E1","£"]
[null,"E2","Dating Techniques*","eg. Electron spin resonance, lead isotope dating, radiocarbon dating\nSee FAME's Bill of Quantities Section E2","£"]
[null,"E3","Physical techniques*","eg. Clast lithological analysis, moisture content, particle size analysis\nSee FAME's Bill of Quantities Section E3","£"]
[null,"E5.1","Report write-up*","Compiling together a report of the work. Usually contains the background information on the project (purpose, research conducted before work), a description of methods, the data of what was found and analysed and possible an interpretation of section. It might also have specialist sub-reports discussing materials that received specialised analysis and appendixes of raw data/images.","£"]
[null,"E5.2","Specialist sub-reports - add as many as required.*","Sub-reports discussing materials that received specialised analysis.","£"]
[null,"E5.3","Figure creation*","The creation of special figures/graphs for report. ","£"]
[null,"E5.3.1","Site plan processing*","Site plans may require digitisation or additional cleaning up if born digital.","£"]
[null,"E5.3.2","Section plan processing*","Section plans may require digitisation or additional cleaning up if born digital.","£"]
[null,"E5.3.3","Reconstructions*","Special images that ‘reconstruct’ what a person, place or artefact might have looked like in the past. ","£"]
[null,"E5.3.4","Artefact drawings*","Detailed drawings of artefacts that provide more interprated views that can not be obtained with photographs.","£"]
[null,"E5.3.5","Graphs and tables*","The creation of graphs and tables of the data and any analysis.","£"]
[null,"E5.3.6","Other figures*","Anything not covered in the other categories.","£"]
[null,"E5.4","Copyediting*","Identifying and fixing errors related to spelling and grammatical typos, tone and style inconsistencies, awkward syntax, and poor word choice.","£"]
[null,"E5.5","Review and revision*","Review of the document by experts looking at the research and findings.","£"]
[null,"E5.6","Additional publication costs e.g. printing, design","Other costs not covered elsewhere.","£"]
[null,"F - PUBLIC ENGAGEMENT"]
[null,"F1","Location hire","Tours\nSchool visits\nPress release\nOpen days\nInterpretation panels\nInterviews","£"]
[null,"F2","Printed materials","Including interpretation panels","kg"]
[null,"F3","Digital items (third-party)","Podcast\nBlog post\nSocial media\nVideo documentary\nWebsites\nVirtual reconstruction","£"]
[null,"F4","Education services","Volunteering\nField school integration\nApprenticeships\nLectures\nEducational visits","£"]
[null,"G - DEPOSITION"]
[null,"G1","Museum/archive deposition charges","The charges from a museum or archive to deposit materials. Currently many charge on a 'per box' basis, sometimes those the size of those boxes are specified.","£"]
[null,"G2","Transport/carriage to museum","The charges to deliver the archive elments to the archive/museum. ","tonne.km"]
[null,"G3","Dispose of discarded materials","Disposing of the materials that are not sent to the archive","£"]
[null,"G4","OASIS upload*","Registering the project and digital materials with OASIS ","£"]
[null,"G5","Digital archive*","Depositing the digital materials into a digital archive","£"]

{"sheet":"BoQ optional input","index":5,"n_rows":66,"n_cols":9,"rows_kept":66,"cut":false,"hidden":false,"merged":[[4,1,4,6],[8,1,8,2],[8,3,8,5],[9,1,9,2],[9,3,9,5],[13,3,13,5],[19,3,19,5],[25,1,25,8],[26,1,26,8],[10,1,10,2],[10,3,10,5],[18,2,20,2],[18,3,18,5],[20,3,20,5],[11,2,12,2],[11,3,11,5],[12,3,12,5],[13,1,13,2]]}
[]
[]
[]
[]
[null,"Optional bill of quantities input"]
[]
[]
[]
[null,"Name of person inputting the data"]
[null,"Project code",null,""]
[null,"Record type"]
[null,"Start date","Only applicable if actual data is input\ndd/mm/yyyy"]
[null,"End date"]
[null,"Additional notes"]
[]
[]
[]
[]
[null,"First record number to be amended","This will be automatically populated by the recall function\nIf you do not want to amend an entry please clear the amendment data",""]
[null,"Last record number to be amended",null,""]
[null,"Reason for amendment"]
[]
[]
[null,"The categories listed in this section are thought to be low carbon aspects of the project implementation. "]
[null,"It is therefore optional to fill it out. However, if filled, out a more representative project carbon footprint will be produced."]
[null,"Some of the activities listed below might be carried out in-house and therefore included in other aspects of the tool. To avoid double counting please ensure that only externally contracted activities are included on this tab and in-house activities are covered in the overheads."]
[null,"We have flagged some activities using an asterisk where we think it is likely that it was carried out in-house and so will be captured elsewhere in the tool, however, this is not exhaustive."]
[null,"Please do not input formulae. If using formulae ensure you have copy and pasted values before submitting to the database."]
[null,"Reference","Item specification","Descriptions","Unit","Quantity solely for archaeology activity","Quantity for archaeology and other development purposes","Custom carbon factor (if applicable)","Notes"]
[null,"A - PRELIMINARIES"]
[null,"A8.5.2","Temporary drainage - waste","Specify coverage, could cover:\n•\tSewage pumping.\n•\tDrainage inst Disposal charges (i.e. rates).allation and adaptations.\n•\tDisposal costs (i.e. tanker charges).","£"]
[null,"A9 - Security"]
[null,"A9.1","Security staff","Specify coverage, could cover:\n•\tSecurity guards (day and night).\n•\tWatch patrols (day and night).","£"]
[null,"A9.2","Security equipment","Specify coverage, could cover:\n•\tSite pass issue equipment, including maintenance and removal.\n•\tSite pass consumables.\n•\tCCTV surveillance installation, including maintenance and removal.\n•\tTemporary vehicle control barriers, including maintenance and removal.","£"]
[null,"A10 - Safety and environmental protection"]
[null,"A10.3","Environmental protection measures","Specify coverage, could cover:\n•\tControl of pollution.\n•\tResidual control of noise.\n•\tEnvironmental monitoring.\n•\tEnvironmental manager/consultant.\n•\tEnvironmental audits, including safety audits carried out by external consultant.","£"]
[null,"A11 - Control and protection"]
[null,"A11.2.1","Setting out - services*","Specify coverage, could cover:\n•\tSetting out primary grids.\n•\tGrid transfers and level checks.\n•\tMaintenance of grids.\n•\tTake over control and independent checks (i.e. on change of subcontractors).","£"]
[null,"A11.3","Protection of works","Specify coverage, could cover:\n•\tProtection of finished works to project handover.\n•\tProtection of stairs, balustrades, etc. works to project handover.\n•\tProtection of fittings and furnishings works to project handover.\n•\tProtection of entrance doors and frames works to project handover.\n•\tProtection of lift cars and doors works to project handover.\n•\tProtection of specifically vulnerable products to project handover.\n•\tProtection of all sundry items.","£"]
[null,"A13 - Temporary works"]
[null,"A13.1","Access scaffolding","Specify coverage, could cover:\n•\tBringing to site, erecting and initial safety checks.\n•\tHire charges.\n•\tAltering and adapting during construction.\n•\tDismantling and removing from site.","£"]
[null,"A13.2","Temporary works","Specify coverage, could cover:\n•\tBringing to site, erecting and initial safety checks.\n•\tHire charges.\n•\tAltering and adapting during construction.\n•\tDismantling and removing from site.","£"]
[null,"A14 - Cleaning"]
[null,"A14.1.2","Site tidy - cleaning","Specify coverage, could cover:\n•\tCleaning site accommodation – internal, including cleaning telephone handsets, other office furniture and equipment and window cleaning.\n•\tPeriodic maintenance of site accommodation, including redecoration (internal and external).\n•\tPest control.","£"]
[null,"A14.1.3","Site tidy - waste disposal","Specify coverage, could cover:\n•\tWaste management, including rubbish disposal (including compactor visits; skips and waste bins; roll-off, roll-on waste bins) and other disposal.","£"]
[null,"A14.2","Maintenance of roads, paths and pavings","Specify coverage, could cover:\n•\tMaintenance of temporary site roads, paths, and pavements.\n•\tMaintenance of public and private roads, including wheel spinners and road sweepers.","£"]
[null,"A14.3","Building clean","Final builder’s clean.","£"]
[null,"C - PROCESSING OF RECOVERED MATERIALS"]
[null,"C1","Process, stabilise and catalogue bulk artefacts* ","For example: bone, fibre, hair, leather, metal, etc\nFor further examples of what should be included please see FAME's Bill of Quantities, Section C1","£"]
[null,"C2","Process, stabilise and catalogue 'special' artefacts*","For example: bone, fibre, hair, leather, metal, etc\nFor further examples of what should be included please see FAME's Bill of Quantities, Section C2","£"]
[null,"C3 - Process, catalogue and stabilise bulk soil samples as specified"]
[null,"C3.1","Soil samples for envi assessment*",null,"£"]
[null,"C3.2","Cremation-related deposits*",null,"£"]
[null,"C4 - Off-site 'excavation' of contained remains (urns, lead coffins etc.)"]
[null,"C4.1","Urned cremation remains",null,"£"]
[null,"C4.2","Coffins ",null,"£"]
[null,"C4.3","Block lifted deposits",null,"£"]
[null,"C5 - Process, catalogue and stablise structure elements as specified"]
[null,"C5.1","Structural elements*",null,"£"]
[null,"D - POST-EXCAVATION ASSESSMENT"]
[null,"D1 - Supply assessment of research potential of the archive"]
[null,"D1.1","Stratigraphic assemblage*","A review of the stratigraphic assemblage and its research potential.","£"]
[null,"D1.2","Artefactual assemblage*","A review of the artefactual  assemblage and its research potential.","£"]
[null,"D1.3","Environmental assemblage*","A review of the environmental assemblage and its research potential.","£"]
[null,"D2","Full Post-excavation assessment report*","A report that presents the research potential of the archive/materials recorvered and recommendations for Post-excavation analysis and dissemination","£"]
[null,"D3","Post-excavation assessment meetings*","A meeting(s) to discuss the reports findings and to agree to the next steps of the project.","£"]

{"sheet":"Proj transport Liq Fuel input","index":6,"n_rows":96,"n_cols":9,"rows_kept":96,"cut":false,"hidden":false,"merged":[[52,7,54,7],[52,8,54,11],[4,1,4,6],[46,8,48,11],[46,7,48,7],[49,7,51,7],[49,8,51,11],[8,1,8,2],[8,3,8,5],[10,1,10,2],[10,3,10,5],[11,2,12,2],[11,3,11,5],[12,3,12,5],[9,1,9,2],[9,3,9,5],[13,1,13,2],[13,3,13,5],[18,2,19,2],[18,3,18,5],[19,3,19,5],[94,3,94,4],[27,1,27,3],[28,1,28,3],[29,1,29,3],[30,1,30,3],[85,1,85,4],[44,1,44,5],[32,1,32,3],[81,1,81,4],[82,1,82,4],[83,1,83,4],[31,1,31,3],[94,1,94,2],[55,7,57,7],[55,8,57,11],[58,7,60,7],[58,8,60,11],[61,7,63,7],[61,8,63,11]]}
[]
[]
[]
[]
[null,"Project transport input"]
[]
[]
[]
[null,"Name of person inputting the data"]
[null,"Project code"]
[null,"Record type"]
[null,"Start date","dd/mm/yyyy"]
[null,"End date"]
[null,"Additional notes"]
[]
[]
[]
[]
[null,"Amendment of overhead record number","This will be automatically populated by the recall function\nIf you do not want to amend an entry please clear the amendment data"]
[null,"Reason for amendment"]
[]
[]
[]
[null,"Company owned and operated vehicles/Greyfleet"]
[null,"Greyfleet is when employees use their personal cars for business purposes [typically reimbursed 45p/mile]"]
[]
[]
[null,"Please input data for the period and project specified at the top of the page"]
[null,"If you have data at the resolution for Option A, this is preferable"]
[null,"For EV charging, only include any expensed charging, as office charging will be captured in the buildings' electricity consumption"]
[null,"If you only have monetary values for expensed charging, inputting the EV's mileage in Option B is preferred. As a last resort input the cost into Option C."]
[null,"Please do not input formulae. If using formulae ensure you have copy and pasted values before submitting to the database."]
[null,"Option A"]
[null,"Scope","Fuel","Amount"]
[]
[]
[]
[]
[]
[]
[]
[]
[null,"Definitions for the size of cars and vans are to the right of the input table."]
[null,"Please do not input formulae. If using formulae ensure you have copy and pasted values before submitting to the database."]
[null,"Option B"]
[null,"Scope","Type of vehicle","Detail","Distance","Unit"]
[null,null,null,null,null,null,null,"Small car","Petrol/LPG/CNG - up to a 1.4-litre engine\nDiesel - up to a 1.7-litre engine\nOthers - vehicles models of a similar size (i.e. market segment A or B)"]
[]
[]
[null,null,null,null,null,null,null,"Medium car","Petrol/LPG/CNG - from 1.4-litre to 2.0-litre engine\nDiesel - from 1.7-litre to 2.0-litre engine\nOthers - vehicles models of a similar size (i.e. generally market segment C)"]
[]
[]
[null,null,null,null,null,null,null,"Large car","Petrol/LPG/CNG - 2.0-litre engine +\nDiesel - 2.0-litre engine +\nOthers - vehicles models of a similar size (i.e. generally market segment D and above)"]
[]
[]
[null,null,null,null,null,null,null,"Class I (up to 1.305 tonnes)","Small vans/pick-ups e.g. Partner\nWeight refers to gross vehicle weight (GVW)"]
[]
[]
[null,null,null,null,null,null,null,"Class II (1.305 to 1.74 tonnes)","Medium vans/pick-ups [unable to find an example]\nWeight refers to gross vehicle weight (GVW)"]
[]
[]
[null,null,null,null,null,null,null,"Class III (1.74 to 3.5 tonnes)","Large vans: for example, Boxer, Crafter, Daily, Jumper, Master, Movano, Sprinter\nWeight refers to gross vehicle weight (GVW)"]
[]
[]
[]
[]
[]
[]
[]
[]
[]
[]
[]
[]
[]
[]
[]
[]
[]
[]
[]
[null,"Please input details for vehicles where the size and fuel type are unknown"]
[null,"For EV charging, only include any expensed charging, as office charging will be captured in the buildings' electricity consumption"]
[null,"If the kWh or mileage is available, please input that in Option A or B above."]
[null,"Please do not input formulae. If using formulae ensure you have copy and pasted values before submitting to the database."]
[null,"Option C"]
[null,"Scope","Type of vehicle","Distance/cost","Unit"]
[]
[]
[]
[]
[null,"Project related business travel"]
[]
[null,"Please input data for the period and project specified at the top of the page"]
[null,"Please do not input formulae. If using formulae ensure you have copy and pasted values before submitting to the database.",null,"Option A",null,"Option B"]
[null,"Mode of transport","Detail","Distance","Unit","Cost (£)"]

{"sheet":"Soil excavation input","index":7,"n_rows":41,"n_cols":16,"rows_kept":41,"cut":false,"hidden":false,"merged":[[10,1,10,2],[10,3,10,5],[27,1,27,2],[11,2,12,2],[11,3,11,5],[12,3,12,5],[13,1,13,2],[13,3,13,5],[18,2,19,2],[18,3,18,5],[19,3,19,5],[8,1,8,2],[8,3,8,5],[9,1,9,2],[9,3,9,5],[4,1,4,5],[28,1,28,2],[26,7,26,10],[26,11,26,14],[29,7,29,10],[29,11,29,14],[26,1,26,2],[33,7,33,10],[31,7,31,10],[26,15,26,18],[29,15,29,18],[27,7,28,10],[27,11,28,14],[27,15,28,18],[30,7,30,10],[30,11,30,14]]}
[]
[]
[]
[]
[null,"Soil excavation input"]
[]
[]
[]
[null,"Name of person inputting the data"]
[null,"Project code"]
[null,"Record type",null,"Forecast"]
[null,"Start date","dd/mm/yyyy"]
[null,"End date"]
[null,"Additional notes"]
[]
[]
[]
[]
[null,"Amendment of overhead record number","This will be automatically populated by the recall function\nIf you do not want to amend an entry please clear the amendment data"]
[null,"Reason for amendment"]
[]
[]
[]
[null,"Soil emissions"]
[]
[null,"For descriptions of the dropdown options, please see to the right of the input table"]
[null,"Country of activity",null,"Wales",null,null,null,"Land use description",null,null,null,"Soil type",null,null,null,"Area definition"]
[null,"Former land use",null,"Pasture",null,null,null,"Seminatural includes seminatural vegetation and grassland that receives no management. ",null,null,null,"Organic soils have an organic layer of 45 cm or more according to the Forestry Commission. These soils are also known as peats or deep peats.",null,null,null,"Area solely devoted to archaeological activity. The area will not be developed as part of the wider project later in time."]
[null,"Soil Type",null,"Organo-minerals"]
[null,"If the soil is organic (peat) and will be restored at the end of the project, please enter the number of months the peat will be stored ","Leave empty if it will not be restored to same conditions",null,null,null,null,"Pasture includes permanent managed grassland.",null,null,null,"Organo-mineral soils have an organic layer from 5 to 45 cm deep according to the Forestry Commission",null,null,null,"Area for archaeology and other development purposes covers areas where archaeological activity may happen at the early stages of a development project, but that the land on which the archaeology activity takes place will be permanently changed at the end of the project (e.g. from pasture into a road)."]
[null,null,null,null,null,null,null,"Arable includes arable and rotational grassland.",null,null,null,"The Forestry Commission describes these soils as having less than 5 cm organic layer. There are organic horizons, usually in the higher layers, but there is no layer which solely consists of decaying plant material."]
[null,"For descriptions of what should be classed as area solely for archaeological activity vs development purposes, please see the table to the right",null,null,null,null,null,"Woodland includes broadleaved and conifer woodland."]
[null,"Please do not input formulae. If using formulae ensure you have copy and pasted values before submitting to the database."]
[null,"Depth dug to","Area Unit","Area solely for archaeology activity","Area for archaeology and other development purposes",null,null,"Gardens are land adjoining a house or other built structure."]
[null,"less than 30cm","m2",1000]
[null,"30 cm or more"]
[]
[null,"Excavation"]
[]
[null,"Please do not input formulae. If using formulae ensure you have copy and pasted values before submitting to the database."]
[null,"Excavator type","Unit","Value solely for archaeology activity","Value for archaeology and other development purposes"]

{"sheet":"Overheads input","index":8,"n_rows":109,"n_cols":6,"rows_kept":109,"cut":false,"hidden":false,"merged":[[107,3,107,4],[57,1,57,3],[12,3,12,5],[12,1,12,2],[16,3,16,5],[16,2,17,2],[17,3,17,5],[107,1,107,2],[75,1,75,2],[98,1,98,2],[8,1,8,2],[8,3,8,5],[4,1,4,4],[10,2,11,2],[9,1,9,2],[9,3,9,5],[10,3,10,5],[11,3,11,5]]}
[]
[]
[]
[]
[null,"Overheads input"]
[]
[]
[]
[null,"Name of person inputting the data"]
[null,"Record type"]
[null,"Start month (inclusive)","Please input in the format MMM-YY\nPlease note that the period will include the start month but exclude the last month, so for the 2024 calendar year you must input Jan-24 to Jan-25"]
[null,"End month (exclusive)"]
[null,"Additional notes"]
[]
[]
[]
[null,"Amendment of overhead record number","This will be automatically populated by the recall function\nIf you do not want to amend an entry please clear the amendment data"]
[null,"Reason for amendment"]
[]
[]
[]
[null,"Buildings"]
[]
[]
[null,"Please input data for the period specified at the top of the page"]
[null,"If you have calculated the footprint for this category please input below - otherwise input the raw data."]
[null,"Please do not input both."]
[null,"If the market-based footprint is left blank, we will assume it is the same as the locational-based footprint."]
[null,"You must input the locational footprint at least."]
[null,"Please do not input formulae. If using formulae ensure you have copy and pasted values before submitting to the database."]
[null,"Option A"]
[null,"Category","Measured locational-based footprint (tCO2e)","Measured market-based footprint (tCO2e)"]
[null,"Stationary combustion"]
[null,"Electricity"]
[null,"Upstream energy emissions"]
[null,"Upstream leased assets"]
[]
[]
[null,"If the fuel used at your site is not listed, please contact info@spring-enviro.co.uk"]
[null,"Please do not input formulae. If using formulae ensure you have copy and pasted values before submitting to the database."]
[null,"Option B"]
[null,"Office name","Electricity (kWh)","Natural gas (kWh)","Fuel oil (litres)"]
[]
[]
[]
[]
[]
[]
[]
[]
[]
[]
[]
[]
[]
[null,"Please do not input formulae. If using formulae ensure you have copy and pasted values before submitting to the database."]
[null,"Option C"]
[null,"Please select the relevant categories where consumption needs to be estimated for the period specified at the top of the page"]
[null,"Office name","Electricity","Fossil fuels"]
[]
[]
[]
[]
[]
[]
[]
[]
[]
[]
[]
[]
[null,"Commuting/Homeworking"]
[]
[null,"Please input data for the period specified at the top of the page"]
[null,"If you have data at the resolution for Option A, this is preferable"]
[null,"Please do not input formulae. If using formulae ensure you have copy and pasted values before submitting to the database."]
[null,"Option A"]
[null,"Category","Surveyed/measured footprint (tCO2e)"]
[null,"Commuting and homeworking"]
[null,"Commuting"]
[null,"Homeworking"]
[]
[]
[]
[null,"Please do not input formulae. If using formulae ensure you have copy and pasted values before submitting to the database."]
[null,"Option B"]
[null,"Category","Estimate?","Average work from home frequency (days per week)"]
[null,"Commuting"]
[null,"Homeworking"]
[]
[]
[null,"Business travel"]
[]
[]
[null,"Please input data for the period specified at the top of the page"]
[null,"If you have calculated the footprint for this category please input below - otherwise input the raw data."]
[null,"Please do not input both."]
[null,"Do not include travel which will be captured in the BoQ on a project level"]
[null,"Please do not input formulae. If using formulae ensure you have copy and pasted values before submitting to the database."]
[null,"Option A"]
[null,"Category","Measured footprint (tCO2e)"]
[null,"Business travel"]
[null,"Business travel - upstream impacts"]
[]
[]
[]
[]
[null,"Please do not input formulae. If using formulae ensure you have copy and pasted values before submitting to the database.",null,"Option B",null,"Option C"]
[null,"Mode of transport","Detail","Distance","Unit","Cost (£)"]

{"sheet":"Person-days input","index":9,"n_rows":39,"n_cols":10,"rows_kept":39,"cut":false,"hidden":false,"merged":[[4,1,4,7],[37,8,37,9],[37,1,37,7],[8,1,8,3],[9,1,9,3],[10,1,10,3],[11,1,11,3],[12,1,12,3],[8,4,8,7],[9,4,9,7],[10,4,10,7],[17,3,18,3],[17,4,17,7],[18,4,18,7],[17,1,17,2],[18,1,18,2],[22,1,22,3],[11,4,11,7],[12,4,12,7]]}
[]
[]
[]
[]
[null,"Person-days input and database"]
[]
[]
[]
[null,"Name of person inputting the data"]
[null,"Record type",null,null,""]
[null,"Is this project specific or total company person-days?",null,null,""]
[null,"Project code"]
[null,"Additional notes"]
[]
[]
[]
[]
[null,"Amendment of overhead record number",null,"This will be automatically populated by the recall function\nIf you do not want to amend an entry please clear the amendment data"]
[null,"Reason for amendment"]
[]
[]
[]
[null,"Please do not input formulae. If using formulae ensure you have copy and pasted values before submitting to the database."]
[null,"Year","Month","Person-days in month"]
[]
[]
[]
[]
[]
[]
[]
[]
[]
[]
[]
[]
[]
[null,"Person-days database",null,null,null,null,null,null,"Misc"]
[null,"Record number","Date","Record type","Resolution","Project code","Person-days","Additional notes","Data entry by (name)","Data marker"]

{"sheet":"Project input","index":10,"n_rows":37,"n_cols":19,"rows_kept":37,"cut":false,"hidden":false,"merged":[[4,1,4,10],[11,1,11,4],[12,1,12,4],[24,1,24,3],[18,7,19,7],[18,10,19,10],[18,8,19,8],[18,9,19,9],[17,1,20,4],[18,5,19,5],[18,6,19,6],[21,1,21,4],[21,5,21,10],[8,1,8,4],[13,1,13,3],[14,1,14,3],[13,4,14,4],[15,1,15,4],[8,5,8,10],[11,5,11,10],[12,5,12,10],[13,5,13,10],[14,5,14,10],[15,5,15,10],[35,14,35,16],[25,1,25,4],[23,5,23,10],[24,5,24,10],[25,5,25,10],[23,1,23,3],[23,4,24,4],[35,1,35,13],[30,4,31,4],[30,1,30,3],[31,1,31,3],[30,5,30,10],[31,5,31,10]]}
[]
[]
[]
[]
[null,"Project input and database"]
[]
[]
[]
[null,"Name of person inputting the data"]
[]
[null,"Please not that you cannot change the project name or code after the initial submission"]
[null,"Project code",null,null,null,""]
[null,"Project name"]
[null,"Project client",null,null,"If not listed in dropdown, then type into box"]
[null,"Project location (county-level)"]
[null,"Company project manager"]
[]
[null,"Scope of project",null,null,null,1,2,3,4,5,6]
[null,null,null,null,null,"Feasibility","Planning","Field evaluation","Detailed design stage","Site construction","Use"]
[]
[null,null,null,null,null,false,false,false,false,false,false]
[null,"Scope commentary"]
[]
[null,"Expected project start date",null,null,"dd/mm/yyyy"]
[null,"Expected project end date"]
[null,"Additional notes"]
[]
[]
[]
[]
[null,"Amendment of project record number",null,null,"This will be automatically populated by the recall function\nIf you do not want to amend an entry please clear the amendment data",""]
[null,"Reason for amendment"]
[]
[]
[]
[null,"Project database",null,null,null,null,null,null,null,null,null,null,null,null,"Amendment data"]
[null,"Record number","Project name","Project code","Project client","Project location","Company project manager","Scope of project","Scope commentary","Expected start date","Expected end date","Other comments","Data entry by (name)","Original creation date","Latest amendment date","Amendment by (name)","Amendment reason","Start month","End month"]

{"sheet":"Office input","index":11,"n_rows":31,"n_cols":16,"rows_kept":31,"cut":false,"hidden":false,"merged":[[18,5,18,10],[19,5,19,10],[4,0,4,10],[8,1,8,4],[12,1,12,4],[11,5,11,10],[12,5,12,10],[8,5,8,10],[13,5,13,10],[14,5,14,10],[15,5,15,10],[16,5,16,10],[17,1,17,4],[17,5,17,10],[15,1,15,4],[19,1,19,4],[16,1,16,4],[11,1,11,4],[13,1,13,4],[14,1,14,4],[18,1,18,4],[29,12,29,15],[24,1,24,3],[24,4,25,4],[24,5,24,10],[25,1,25,3],[25,5,25,10],[29,1,29,10]]}
[]
[]
[]
[]
["Office input and database"]
[]
[]
[]
[null,"Name of person inputting the data"]
[]
[null,"Please note you cannot change the office name"]
[null,"Office name"]
[null,"Office address"]
[null,"Office area (m2)"]
[null,"Operational control over usage"]
[null,"Energy usage"]
[null,"Do you purchase renewable electricity?"]
[null,"Building type"]
[null,"Number of employees based at office"]
[null,"Additional notes"]
[]
[]
[]
[]
[null,"Amendment of project record number",null,null,"This will be automatically populated by the recall function\nIf you do not want to amend an entry please clear the amendment data",""]
[null,"Reason for amendment"]
[]
[]
[]
[null,"Site database",null,null,null,null,null,null,null,null,null,null,"Misc"]
[null,"Record number","Office name","Office address","Office area (m2)","Operational control over usage","Energy usage","Renewable electricity?","Building type","Number of employees based at office","Additional notes","Data entry by (name)","Original creation date","Latest amendment date","Amendment by (name)","Amendment reason"]

{"sheet":"Custom carbon factor input","index":12,"n_rows":29,"n_cols":13,"rows_kept":29,"cut":false,"hidden":false,"merged":[[21,1,21,2],[22,1,22,2],[16,4,16,8],[27,3,27,8],[21,3,22,3],[21,4,21,8],[22,4,22,8],[27,9,27,12],[4,1,4,8],[10,4,10,8],[10,1,10,3],[12,1,12,3],[12,4,12,8],[14,1,14,3],[11,1,11,3],[13,1,13,3],[11,4,11,8],[13,4,13,8],[14,4,14,8],[15,1,15,3],[15,4,15,8],[16,1,16,3],[27,1,27,2]]}
[]
[]
[]
[]
[null,"Custom carbon factor input and database"]
[]
[]
[]
[null,"Please ensure that any carbon factors that are input have the same boundaries and completeness as the carbon factors they are replacing."]
[null,"This will maintain consistency. "]
[null,"Name of person inputting the data"]
[null,"Carbon factor name/short description"]
[null,"Carbon factor description",null,null,""]
[null,"kgCO2e/unit"]
[null,"Carbon factor unit described above eg. kWh, litres"]
[null,"Carbon factor year"]
[null,"Additional notes"]
[]
[]
[]
[]
[null,"Amendment of project record number",null,"This will be automatically populated by the recall function\nIf you do not want to amend an entry please clear the amendment data",""]
[null,"Reason for amendment"]
[]
[]
[]
[]
[null,"Basic data",null,"Carbon factor details",null,null,null,null,null,"Misc"]
[null,"Carbon factor record","Data entry by (name)","Name","Description","kgCO2e/unit","Unit","Year","Notes","Original creation date","Latest amendment date","Amendment by (name)","Amendment reason"]

{"sheet":"Overheads db","index":13,"n_rows":8,"n_cols":32,"rows_kept":8,"cut":false,"hidden":false,"merged":[[6,23,6,30],[6,0,6,9],[4,0,4,14],[6,10,6,14],[6,18,6,22],[6,15,6,17]]}
[]
[]
[]
[]
["Overheads database"]
[]
["Basic data",null,null,null,null,null,null,null,null,null,"Buildings",null,null,null,null,"Commuting",null,null,"Business travel",null,null,null,null,"Measured footprint ",null,null,null,null,null,null,null,"Misc"]
["Overhead number","Data marker","Date of entry into database","Data entry by (name)","Record type","Record data start date","Record data end date","Category","User notes","Calculation notes","Office name","Operational control","Electricity (kWh)","Renewable","Natural gas (kWh)","Fuel oil (litres)","Commuting/ homeworking footprint (tCO2e)","Number of employees","Work from home frequency (days/week)","Mode of transport","Detail","Distance","Unit","Travel cost (£)","Stationary combustion (tCO2e)","Electricity locational-based (tCO2e)","Electricity market-based (tCO2e)","Upstream emissions locational-based (tCO2e)","Upstream emissions market-based (tCO2e)","Upstream leased assets locational-based (tCO2e)","Upstream leased assets market-based (tCO2e)","Business travel (tCO2e)"]

{"sheet":"Standard carbon factor database","index":14,"n_rows":668,"n_cols":17,"rows_kept":668,"cut":false,"hidden":false,"merged":[[4,1,4,8],[6,2,6,3],[6,5,6,9]]}
[]
[]
[]
[]
[null,"Standard carbon factor database"]
[]
[null,"Basic data","Carbon factor details",null,"Biogenic","Misc",null,null,null,null,"Misc"]
[null,"Carbon factor record","Description","kgCO2e/unit","Biogenic kgCO2e/unit","Unit","Year","Source","Country","Notes","Description code"]
[null,1,"Other business services",8.3260000000000001E-2,null,"EUR",2019,"EXIOBASE","UK","Basic price factor",{"$f":"SUBSTITUTE(SUBSTITUTE(LOWER(carbonfactor_db[[#This Row],[Description]]&carbonfactor_db[[#This Row],[Unit]]&carbonfactor_db[[#This Row],[Year]]),\" \",\"\"),\"-\",\"\")","v":"otherbusinessserviceseur2019"}]
[null,2,"Rental of machinery and equipment (without operator) and of personal and household goods (services)",0.21269894749177837,null,"EUR",2019,"Speedy Hire Financial and ESG report for 2024","UK","Speedy Hire Downstream Leased Assets factor, adjusted for inflation and currency to be CO2e/EUR in 2019",{"$f":"SUBSTITUTE(SUBSTITUTE(LOWER(carbonfactor_db[[#This Row],[Description]]&carbonfactor_db[[#This Row],[Unit]]&carbonfactor_db[[#This Row],[Year]]),\" \",\"\"),\"-\",\"\")","v":"rentalofmachineryandequipment(withoutoperator)andofpersonalandhouseholdgoods(services)eur2019"}]
[null,3,"Construction work",0.15509999999999999,null,"EUR",2019,"EXIOBASE","UK","Basic price factor",{"$f":"SUBSTITUTE(SUBSTITUTE(LOWER(carbonfactor_db[[#This Row],[Description]]&carbonfactor_db[[#This Row],[Unit]]&carbonfactor_db[[#This Row],[Year]]),\" \",\"\"),\"-\",\"\")","v":"constructionworkeur2019"}]
[null,4,"Furniture/other manufactured goods (not elsewhere specified)",0.14449999999999999,null,"EUR",2019,"EXIOBASE","UK","Basic price factor",{"$f":"SUBSTITUTE(SUBSTITUTE(LOWER(carbonfactor_db[[#This Row],[Description]]&carbonfactor_db[[#This Row],[Unit]]&carbonfactor_db[[#This Row],[Year]]),\" \",\"\"),\"-\",\"\")","v":"furniture/othermanufacturedgoods(notelsewherespecified)eur2019"}]
[null,5,"Office and computer machinery",0.20039999999999999,null,"EUR",2019,"EXIOBASE","UK","Basic price factor",{"$f":"SUBSTITUTE(SUBSTITUTE(LOWER(carbonfactor_db[[#This Row],[Description]]&carbonfactor_db[[#This Row],[Unit]]&carbonfactor_db[[#This Row],[Year]]),\" \",\"\"),\"-\",\"\")","v":"officeandcomputermachineryeur2019"}]
[null,6,"Computer and related services",8.1619999999999998E-2,null,"EUR",2019,"EXIOBASE","UK","Basic price factor",{"$f":"SUBSTITUTE(SUBSTITUTE(LOWER(carbonfactor_db[[#This Row],[Description]]&carbonfactor_db[[#This Row],[Unit]]&carbonfactor_db[[#This Row],[Year]]),\" \",\"\"),\"-\",\"\")","v":"computerandrelatedserviceseur2019"}]
[null,7,"Printed matter and recorded media",0.14680000000000001,null,"EUR",2019,"EXIOBASE","UK","Basic price factor",{"$f":"SUBSTITUTE(SUBSTITUTE(LOWER(carbonfactor_db[[#This Row],[Description]]&carbonfactor_db[[#This Row],[Unit]]&carbonfactor_db[[#This Row],[Year]]),\" \",\"\"),\"-\",\"\")","v":"printedmatterandrecordedmediaeur2019"}]
[null,8,"Post and telecommunications",7.0300000000000001E-2,null,"EUR",2019,"EXIOBASE","UK","Basic price factor",{"$f":"SUBSTITUTE(SUBSTITUTE(LOWER(carbonfactor_db[[#This Row],[Description]]&carbonfactor_db[[#This Row],[Unit]]&carbonfactor_db[[#This Row],[Year]]),\" \",\"\"),\"-\",\"\")","v":"postandtelecommunicationseur2019"}]
[null,9,"Beverages",0.47560000000000002,null,"EUR",2019,"EXIOBASE","UK","Basic price factor",{"$f":"SUBSTITUTE(SUBSTITUTE(LOWER(carbonfactor_db[[#This Row],[Description]]&carbonfactor_db[[#This Row],[Unit]]&carbonfactor_db[[#This Row],[Year]]),\" \",\"\"),\"-\",\"\")","v":"beverageseur2019"}]
[null,10,"Textiles",0.23169999999999999,null,"EUR",2019,"EXIOBASE","UK","Basic price factor",{"$f":"SUBSTITUTE(SUBSTITUTE(LOWER(carbonfactor_db[[#This Row],[Description]]&carbonfactor_db[[#This Row],[Unit]]&carbonfactor_db[[#This Row],[Year]]),\" \",\"\"),\"-\",\"\")","v":"textileseur2019"}]
[null,11,"Hotel and restaurant (services)",0.10100000000000001,null,"EUR",2019,"EXIOBASE","UK","Basic price factor",{"$f":"SUBSTITUTE(SUBSTITUTE(LOWER(carbonfactor_db[[#This Row],[Description]]&carbonfactor_db[[#This Row],[Unit]]&carbonfactor_db[[#This Row],[Year]]),\" \",\"\"),\"-\",\"\")","v":"hotelandrestaurant(services)eur2019"}]
[null,12,"Sale/maintenance/repair/parts/accessories of motor vehicles/motorcycles",6.8330000000000002E-2,null,"EUR",2019,"EXIOBASE","UK","Basic price factor",{"$f":"SUBSTITUTE(SUBSTITUTE(LOWER(carbonfactor_db[[#This Row],[Description]]&carbonfactor_db[[#This Row],[Unit]]&carbonfactor_db[[#This Row],[Year]]),\" \",\"\"),\"-\",\"\")","v":"sale/maintenance/repair/parts/accessoriesofmotorvehicles/motorcycleseur2019"}]
[null,13,"Supporting and auxiliary transport services/travel agency services",7.5889999999999999E-2,null,"EUR",2019,"EXIOBASE","UK","Basic price factor",{"$f":"SUBSTITUTE(SUBSTITUTE(LOWER(carbonfactor_db[[#This Row],[Description]]&carbonfactor_db[[#This Row],[Unit]]&carbonfactor_db[[#This Row],[Year]]),\" \",\"\"),\"-\",\"\")","v":"supportingandauxiliarytransportservices/travelagencyserviceseur2019"}]
[null,14,"Real estate services",5.7639999999999997E-2,null,"EUR",2019,"EXIOBASE","UK","Basic price factor",{"$f":"SUBSTITUTE(SUBSTITUTE(LOWER(carbonfactor_db[[#This Row],[Description]]&carbonfactor_db[[#This Row],[Unit]]&carbonfactor_db[[#This Row],[Year]]),\" \",\"\"),\"-\",\"\")","v":"realestateserviceseur2019"}]
[null,15,"Rubber and Plastic products",0.2828,null,"EUR",2019,"EXIOBASE","UK","Basic price factor",{"$f":"SUBSTITUTE(SUBSTITUTE(LOWER(carbonfactor_db[[#This Row],[Description]]&carbonfactor_db[[#This Row],[Unit]]&carbonfactor_db[[#This Row],[Year]]),\" \",\"\"),\"-\",\"\")","v":"rubberandplasticproductseur2019"}]
[null,16,"Collected and purified water/distribution of water (services)",0.17519999999999999,null,"EUR",2019,"EXIOBASE","UK","Basic price factor",{"$f":"SUBSTITUTE(SUBSTITUTE(LOWER(carbonfactor_db[[#This Row],[Description]]&carbonfactor_db[[#This Row],[Unit]]&carbonfactor_db[[#This Row],[Year]]),\" \",\"\"),\"-\",\"\")","v":"collectedandpurifiedwater/distributionofwater(services)eur2019"}]
[null,17,"Ethane",0.54200000000000004,null,"EUR",2019,"EXIOBASE","UK","Basic price factor",{"$f":"SUBSTITUTE(SUBSTITUTE(LOWER(carbonfactor_db[[#This Row],[Description]]&carbonfactor_db[[#This Row],[Unit]]&carbonfactor_db[[#This Row],[Year]]),\" \",\"\"),\"-\",\"\")","v":"ethaneeur2019"}]
[null,18,"LPG (liquefied petroleum gas)",0.96860000000000002,null,"EUR",2019,"EXIOBASE","UK","Basic price factor",{"$f":"SUBSTITUTE(SUBSTITUTE(LOWER(carbonfactor_db[[#This Row],[Description]]&carbonfactor_db[[#This Row],[Unit]]&carbonfactor_db[[#This Row],[Year]]),\" \",\"\"),\"-\",\"\")","v":"lpg(liquefiedpetroleumgas)eur2019"}]
[null,19,"Transmission of electricity (services)",0.95140000000000002,null,"EUR",2019,"EXIOBASE","UK","Basic price factor",{"$f":"SUBSTITUTE(SUBSTITUTE(LOWER(carbonfactor_db[[#This Row],[Description]]&carbonfactor_db[[#This Row],[Unit]]&carbonfactor_db[[#This Row],[Year]]),\" \",\"\"),\"-\",\"\")","v":"transmissionofelectricity(services)eur2019"}]
[null,20,"Radio/television and communication equipment and apparatus",0.16819999999999999,null,"EUR",2019,"EXIOBASE","UK","Basic price factor",{"$f":"SUBSTITUTE(SUBSTITUTE(LOWER(carbonfactor_db[[#This Row],[Description]]&carbonfactor_db[[#This Row],[Unit]]&carbonfactor_db[[#This Row],[Year]]),\" \",\"\"),\"-\",\"\")","v":"radio/televisionandcommunicationequipmentandapparatuseur2019"}]
[null,21,"Other waste for treatment: waste water treatment",1.5760000000000001,null,"EUR",2019,"EXIOBASE","UK","Basic price factor",{"$f":"SUBSTITUTE(SUBSTITUTE(LOWER(carbonfactor_db[[#This Row],[Description]]&carbonfactor_db[[#This Row],[Unit]]&carbonfactor_db[[#This Row],[Year]]),\" \",\"\"),\"-\",\"\")","v":"otherwastefortreatment:wastewatertreatmenteur2019"}]
[null,22,"Fabricated metal products/except machinery and equipment",0.2422,null,"EUR",2019,"EXIOBASE","UK","Basic price factor",{"$f":"SUBSTITUTE(SUBSTITUTE(LOWER(carbonfactor_db[[#This Row],[Description]]&carbonfactor_db[[#This Row],[Unit]]&carbonfactor_db[[#This Row],[Year]]),\" \",\"\"),\"-\",\"\")","v":"fabricatedmetalproducts/exceptmachineryandequipmenteur2019"}]
[null,23,"Education Services",5.2479999999999999E-2,null,"EUR",2019,"EXIOBASE","UK","Basic price factor",{"$f":"SUBSTITUTE(SUBSTITUTE(LOWER(carbonfactor_db[[#This Row],[Description]]&carbonfactor_db[[#This Row],[Unit]]&carbonfactor_db[[#This Row],[Year]]),\" \",\"\"),\"-\",\"\")","v":"educationserviceseur2019"}]
[null,24,"Paper and paper products",0.33639999999999998,null,"EUR",2019,"EXIOBASE","UK","Basic price factor",{"$f":"SUBSTITUTE(SUBSTITUTE(LOWER(carbonfactor_db[[#This Row],[Description]]&carbonfactor_db[[#This Row],[Unit]]&carbonfactor_db[[#This Row],[Year]]),\" \",\"\"),\"-\",\"\")","v":"paperandpaperproductseur2019"}]
[null,25,"Inert/metal waste for treatment: incineration",2.081,null,"EUR",2019,"EXIOBASE","UK","Basic price factor",{"$f":"SUBSTITUTE(SUBSTITUTE(LOWER(carbonfactor_db[[#This Row],[Description]]&carbonfactor_db[[#This Row],[Unit]]&carbonfactor_db[[#This Row],[Year]]),\" \",\"\"),\"-\",\"\")","v":"inert/metalwastefortreatment:incinerationeur2019"}]
[null,26,"Insurance and pension funding services",7.0930000000000007E-2,null,"EUR",2019,"EXIOBASE","UK","Basic price factor",{"$f":"SUBSTITUTE(SUBSTITUTE(LOWER(carbonfactor_db[[#This Row],[Description]]&carbonfactor_db[[#This Row],[Unit]]&carbonfactor_db[[#This Row],[Year]]),\" \",\"\"),\"-\",\"\")","v":"insuranceandpensionfundingserviceseur2019"}]
[null,27,"Financial intermediation services (except insurance and pension funding services)",6.5290000000000001E-2,null,"EUR",2019,"EXIOBASE","UK","Basic price factor",{"$f":"SUBSTITUTE(SUBSTITUTE(LOWER(carbonfactor_db[[#This Row],[Description]]&carbonfactor_db[[#This Row],[Unit]]&carbonfactor_db[[#This Row],[Year]]),\" \",\"\"),\"-\",\"\")","v":"financialintermediationservices(exceptinsuranceandpensionfundingservices)eur2019"}]
[null,28,"Research and Development services",0.2109,null,"EUR",2019,"EXIOBASE","UK","Basic price factor",{"$f":"SUBSTITUTE(SUBSTITUTE(LOWER(carbonfactor_db[[#This Row],[Description]]&carbonfactor_db[[#This Row],[Unit]]&carbonfactor_db[[#This Row],[Year]]),\" \",\"\"),\"-\",\"\")","v":"researchanddevelopmentserviceseur2019"}]
[null,29,"Other services",6.7879999999999996E-2,null,"EUR",2019,"EXIOBASE","UK","Basic price factor",{"$f":"SUBSTITUTE(SUBSTITUTE(LOWER(carbonfactor_db[[#This Row],[Description]]&carbonfactor_db[[#This Row],[Unit]]&carbonfactor_db[[#This Row],[Year]]),\" \",\"\"),\"-\",\"\")","v":"otherserviceseur2019"}]
[null,30,"Wood and products of wood",0.47020000000000001,null,"EUR",2019,"EXIOBASE","UK","Basic price factor",{"$f":"SUBSTITUTE(SUBSTITUTE(LOWER(carbonfactor_db[[#This Row],[Description]]&carbonfactor_db[[#This Row],[Unit]]&carbonfactor_db[[#This Row],[Year]]),\" \",\"\"),\"-\",\"\")","v":"woodandproductsofwoodeur2019"}]
[null,31,"Recreational/cultural and sporting services",7.4759999999999993E-2,null,"EUR",2019,"EXIOBASE","UK","Basic price factor",{"$f":"SUBSTITUTE(SUBSTITUTE(LOWER(carbonfactor_db[[#This Row],[Description]]&carbonfactor_db[[#This Row],[Unit]]&carbonfactor_db[[#This Row],[Year]]),\" \",\"\"),\"-\",\"\")","v":"recreational/culturalandsportingserviceseur2019"}]
[null,32,"Other land transportation services",7.1209189899999997E-2,null,"EUR",2019,"EXIOBASE","UK","Basic price factor - used the same trade margins as air transport services",{"$f":"SUBSTITUTE(SUBSTITUTE(LOWER(carbonfactor_db[[#This Row],[Description]]&carbonfactor_db[[#This Row],[Unit]]&carbonfactor_db[[#This Row],[Year]]),\" \",\"\"),\"-\",\"\")","v":"otherlandtransportationserviceseur2019"}]
[null,33,"Railway transportation services",0.21210000000000001,null,"EUR",2019,"EXIOBASE","UK","Basic price factor",{"$f":"SUBSTITUTE(SUBSTITUTE(LOWER(carbonfactor_db[[#This Row],[Description]]&carbonfactor_db[[#This Row],[Unit]]&carbonfactor_db[[#This Row],[Year]]),\" \",\"\"),\"-\",\"\")","v":"railwaytransportationserviceseur2019"}]
[null,34,"Diesel (average biofuel blend)",0.54269999999999996,null,"EUR",2019,"EXIOBASE","UK","Basic price factor",{"$f":"SUBSTITUTE(SUBSTITUTE(LOWER(carbonfactor_db[[#This Row],[Description]]&carbonfactor_db[[#This Row],[Unit]]&carbonfactor_db[[#This Row],[Year]]),\" \",\"\"),\"-\",\"\")","v":"diesel(averagebiofuelblend)eur2019"}]
[null,35,"Sea and coastal water transportation services",1.2949999999999999,null,"EUR",2019,"EXIOBASE","UK","Basic price factor",{"$f":"SUBSTITUTE(SUBSTITUTE(LOWER(carbonfactor_db[[#This Row],[Description]]&carbonfactor_db[[#This Row],[Unit]]&carbonfactor_db[[#This Row],[Year]]),\" \",\"\"),\"-\",\"\")","v":"seaandcoastalwatertransportationserviceseur2019"}]
[null,36,"Inland water transportation services",5.0609999999999999,null,"EUR",2019,"EXIOBASE","UK","Basic price factor",{"$f":"SUBSTITUTE(SUBSTITUTE(LOWER(carbonfactor_db[[#This Row],[Description]]&carbonfactor_db[[#This Row],[Unit]]&carbonfactor_db[[#This Row],[Year]]),\" \",\"\"),\"-\",\"\")","v":"inlandwatertransportationserviceseur2019"}]
[null,37,"Air transport services",1.093,null,"EUR",2019,"EXIOBASE","UK","Basic price factor",{"$f":"SUBSTITUTE(SUBSTITUTE(LOWER(carbonfactor_db[[#This Row],[Description]]&carbonfactor_db[[#This Row],[Unit]]&carbonfactor_db[[#This Row],[Year]]),\" \",\"\"),\"-\",\"\")","v":"airtransportserviceseur2019"}]
[null,38,"White diesel powered excavator",42.967509333333339,2.7359236121336581,"hour",2024,"Spring Environmental derived","UK",null,{"$f":"SUBSTITUTE(SUBSTITUTE(LOWER(carbonfactor_db[[#This Row],[Description]]&carbonfactor_db[[#This Row],[Unit]]&carbonfactor_db[[#This Row],[Year]]),\" \",\"\"),\"-\",\"\")","v":"whitedieselpoweredexcavatorhour2024"}]
[null,39,"White diesel powered excavator",0.42967509333333331,2.7359236121336578E-2,"m3",2024,"Spring Environmental derived","UK",null,{"$f":"SUBSTITUTE(SUBSTITUTE(LOWER(carbonfactor_db[[#This Row],[Description]]&carbonfactor_db[[#This Row],[Unit]]&carbonfactor_db[[#This Row],[Year]]),\" \",\"\"),\"-\",\"\")","v":"whitedieselpoweredexcavatorm32024"}]
[null,40,"Biodiesel excavator",0.60840101324822216,41.55183985927993,"hour",2024,"Spring Environmental derived","UK",null,{"$f":"SUBSTITUTE(SUBSTITUTE(LOWER(carbonfactor_db[[#This Row],[Description]]&carbonfactor_db[[#This Row],[Unit]]&carbonfactor_db[[#This Row],[Year]]),\" \",\"\"),\"-\",\"\")","v":"biodieselexcavatorhour2024"}]
[null,41,"Biodiesel excavator",6.0840101324822213E-3,0.41551839859279927,"m3",2024,"Spring Environmental derived","UK",null,{"$f":"SUBSTITUTE(SUBSTITUTE(LOWER(carbonfactor_db[[#This Row],[Description]]&carbonfactor_db[[#This Row],[Unit]]&carbonfactor_db[[#This Row],[Year]]),\" \",\"\"),\"-\",\"\")","v":"biodieselexcavatorm32024"}]
[null,42,"Electric Excavator charged from UK mains",11.975660572192186,4.3335601044766996,"hour",2024,"Spring Environmental derived","UK",null,{"$f":"SUBSTITUTE(SUBSTITUTE(LOWER(carbonfactor_db[[#This Row],[Description]]&carbonfactor_db[[#This Row],[Unit]]&carbonfactor_db[[#This Row],[Year]]),\" \",\"\"),\"-\",\"\")","v":"electricexcavatorchargedfromukmainshour2024"}]
[null,43,"Electric excavator charged from UK mains",0.11975660572192187,4.3335601044767049,"m3",2024,"Spring Environmental derived","UK",null,{"$f":"SUBSTITUTE(SUBSTITUTE(LOWER(carbonfactor_db[[#This Row],[Description]]&carbonfactor_db[[#This Row],[Unit]]&carbonfactor_db[[#This Row],[Year]]),\" \",\"\"),\"-\",\"\")","v":"electricexcavatorchargedfromukmainsm32024"}]
[null,44,"Electric excavator renewable power",2.2999999999999998,4.3335601044767049,"hour",2024,"Spring Environmental derived","UK",null,{"$f":"SUBSTITUTE(SUBSTITUTE(LOWER(carbonfactor_db[[#This Row],[Description]]&carbonfactor_db[[#This Row],[Unit]]&carbonfactor_db[[#This Row],[Year]]),\" \",\"\"),\"-\",\"\")","v":"electricexcavatorrenewablepowerhour2024"}]
[null,45,"Electric excavator renewable power",2.3E-2,4.3335601044767049,"m3",2024,"Spring Environmental derived","UK",null,{"$f":"SUBSTITUTE(SUBSTITUTE(LOWER(carbonfactor_db[[#This Row],[Description]]&carbonfactor_db[[#This Row],[Unit]]&carbonfactor_db[[#This Row],[Year]]),\" \",\"\"),\"-\",\"\")","v":"electricexcavatorrenewablepowerm32024"}]
[null,46,"England - 30 cm or less - Seminatural",440000,null,"ha",2024,"Spring Environmental derived","UK",null,{"$f":"SUBSTITUTE(SUBSTITUTE(LOWER(carbonfactor_db[[#This Row],[Description]]&carbonfactor_db[[#This Row],[Unit]]&carbonfactor_db[[#This Row],[Year]]),\" \",\"\"),\"-\",\"\")","v":"england30cmorlessseminaturalha2024"}]
[null,47,"England - 30 cm or more - Seminatural",1063000,null,"ha",2024,"Spring Environmental derived","UK",null,{"$f":"SUBSTITUTE(SUBSTITUTE(LOWER(carbonfactor_db[[#This Row],[Description]]&carbonfactor_db[[#This Row],[Unit]]&carbonfactor_db[[#This Row],[Year]]),\" \",\"\"),\"-\",\"\")","v":"england30cmormoreseminaturalha2024"}]
[null,48,"Scotland - 30 cm or less - Seminatural",587000,null,"ha",2024,"Spring Environmental derived","UK",null,{"$f":"SUBSTITUTE(SUBSTITUTE(LOWER(carbonfactor_db[[#This Row],[Description]]&carbonfactor_db[[#This Row],[Unit]]&carbonfactor_db[[#This Row],[Year]]),\" \",\"\"),\"-\",\"\")","v":"scotland30cmorlessseminaturalha2024"}]
[null,49,"Scotland - 30 cm or more - Seminatural",1210000,null,"ha",2024,"Spring Environmental derived","UK",null,{"$f":"SUBSTITUTE(SUBSTITUTE(LOWER(carbonfactor_db[[#This Row],[Description]]&carbonfactor_db[[#This Row],[Unit]]&carbonfactor_db[[#This Row],[Year]]),\" \",\"\"),\"-\",\"\")","v":"scotland30cmormoreseminaturalha2024"}]
[null,50,"Wales - 30 cm or less - Seminatural",403000,null,"ha",2024,"Spring Environmental derived","UK",null,{"$f":"SUBSTITUTE(SUBSTITUTE(LOWER(carbonfactor_db[[#This Row],[Description]]&carbonfactor_db[[#This Row],[Unit]]&carbonfactor_db[[#This Row],[Year]]),\" \",\"\"),\"-\",\"\")","v":"wales30cmorlessseminaturalha2024"}]
[null,51,"Wales - 30 cm or more - Seminatural",843000,null,"ha",2024,"Spring Environmental derived","UK",null,{"$f":"SUBSTITUTE(SUBSTITUTE(LOWER(carbonfactor_db[[#This Row],[Description]]&carbonfactor_db[[#This Row],[Unit]]&carbonfactor_db[[#This Row],[Year]]),\" \",\"\"),\"-\",\"\")","v":"wales30cmormoreseminaturalha2024"}]
[null,52,"Northern Ireland - 30 cm or less - Seminatural",697000,null,"ha",2024,"Spring Environmental derived","UK",null,{"$f":"SUBSTITUTE(SUBSTITUTE(LOWER(carbonfactor_db[[#This Row],[Description]]&carbonfactor_db[[#This Row],[Unit]]&carbonfactor_db[[#This Row],[Year]]),\" \",\"\"),\"-\",\"\")","v":"northernireland30cmorlessseminaturalha2024"}]
[null,53,"Northern Ireland - 30 cm or more - Seminatural",1430000,null,"ha",2024,"Spring Environmental derived","UK",null,{"$f":"SUBSTITUTE(SUBSTITUTE(LOWER(carbonfactor_db[[#This Row],[Description]]&carbonfactor_db[[#This Row],[Unit]]&carbonfactor_db[[#This Row],[Year]]),\" \",\"\"),\"-\",\"\")","v":"northernireland30cmormoreseminaturalha2024"}]
[null,54,"England - 30 cm or less - Pasture",293000,null,"ha",2024,"Spring Environmental derived","UK",null,{"$f":"SUBSTITUTE(SUBSTITUTE(LOWER(carbonfactor_db[[#This Row],[Description]]&carbonfactor_db[[#This Row],[Unit]]&carbonfactor_db[[#This Row],[Year]]),\" \",\"\"),\"-\",\"\")","v":"england30cmorlesspastureha2024"}]
[null,55,"England - 30 cm or more - Pasture",477000,null,"ha",2024,"Spring Environmental derived","UK",null,{"$f":"SUBSTITUTE(SUBSTITUTE(LOWER(carbonfactor_db[[#This Row],[Description]]&carbonfactor_db[[#This Row],[Unit]]&carbonfactor_db[[#This Row],[Year]]),\" \",\"\"),\"-\",\"\")","v":"england30cmormorepastureha2024"}]
[null,56,"Scotland - 30 cm or less - Pasture",587000,null,"ha",2024,"Spring Environmental derived","UK",null,{"$f":"SUBSTITUTE(SUBSTITUTE(LOWER(carbonfactor_db[[#This Row],[Description]]&carbonfactor_db[[#This Row],[Unit]]&carbonfactor_db[[#This Row],[Year]]),\" \",\"\"),\"-\",\"\")","v":"scotland30cmorlesspastureha2024"}]
[null,57,"Scotland - 30 cm or more - Pasture",843000,null,"ha",2024,"Spring Environmental derived","UK",null,{"$f":"SUBSTITUTE(SUBSTITUTE(LOWER(carbonfactor_db[[#This Row],[Description]]&carbonfactor_db[[#This Row],[Unit]]&carbonfactor_db[[#This Row],[Year]]),\" \",\"\"),\"-\",\"\")","v":"scotland30cmormorepastureha2024"}]
[null,58,"Wales - 30 cm or less - Pasture",330000,null,"ha",2024,"Spring Environmental derived","UK",null,{"$f":"SUBSTITUTE(SUBSTITUTE(LOWER(carbonfactor_db[[#This Row],[Description]]&carbonfactor_db[[#This Row],[Unit]]&carbonfactor_db[[#This Row],[Year]]),\" \",\"\"),\"-\",\"\")","v":"wales30cmorlesspastureha2024"}]
[null,59,"Wales - 30 cm or more - Pasture",513000,null,"ha",2024,"Spring Environmental derived","UK",null,{"$f":"SUBSTITUTE(SUBSTITUTE(LOWER(carbonfactor_db[[#This Row],[Description]]&carbonfactor_db[[#This Row],[Unit]]&carbonfactor_db[[#This Row],[Year]]),\" \",\"\"),\"-\",\"\")","v":"wales30cmormorepastureha2024"}]
[null,60,"Northern Ireland - 30 cm or less - Pasture",477000,null,"ha",2024,"Spring Environmental derived","UK",null,{"$f":"SUBSTITUTE(SUBSTITUTE(LOWER(carbonfactor_db[[#This Row],[Description]]&carbonfactor_db[[#This Row],[Unit]]&carbonfactor_db[[#This Row],[Year]]),\" \",\"\"),\"-\",\"\")","v":"northernireland30cmorlesspastureha2024"}]
[null,61,"Northern Ireland - 30 cm or more - Pasture",770000,null,"ha",2024,"Spring Environmental derived","UK",null,{"$f":"SUBSTITUTE(SUBSTITUTE(LOWER(carbonfactor_db[[#This Row],[Description]]&carbonfactor_db[[#This Row],[Unit]]&carbonfactor_db[[#This Row],[Year]]),\" \",\"\"),\"-\",\"\")","v":"northernireland30cmormorepastureha2024"}]
[null,62,"England - 30 cm or less - Arable",257000,null,"ha",2024,"Spring Environmental derived","UK",null,{"$f":"SUBSTITUTE(SUBSTITUTE(LOWER(carbonfactor_db[[#This Row],[Description]]&carbonfactor_db[[#This Row],[Unit]]&carbonfactor_db[[#This Row],[Year]]),\" \",\"\"),\"-\",\"\")","v":"england30cmorlessarableha2024"}]
[null,63,"England - 30 cm or more - Arable",440000,null,"ha",2024,"Spring Environmental derived","UK",null,{"$f":"SUBSTITUTE(SUBSTITUTE(LOWER(carbonfactor_db[[#This Row],[Description]]&carbonfactor_db[[#This Row],[Unit]]&carbonfactor_db[[#This Row],[Year]]),\" \",\"\"),\"-\",\"\")","v":"england30cmormorearableha2024"}]
[null,64,"Scotland - 30 cm or less - Arable",440000,null,"ha",2024,"Spring Environmental derived","UK",null,{"$f":"SUBSTITUTE(SUBSTITUTE(LOWER(carbonfactor_db[[#This Row],[Description]]&carbonfactor_db[[#This Row],[Unit]]&carbonfactor_db[[#This Row],[Year]]),\" \",\"\"),\"-\",\"\")","v":"scotland30cmorlessarableha2024"}]
[null,65,"Scotland - 30 cm or more - Arable",550000,null,"ha",2024,"Spring Environmental derived","UK",null,{"$f":"SUBSTITUTE(SUBSTITUTE(LOWER(carbonfactor_db[[#This Row],[Description]]&carbonfactor_db[[#This Row],[Unit]]&carbonfactor_db[[#This Row],[Year]]),\" \",\"\"),\"-\",\"\")","v":"scotland30cmormorearableha2024"}]
[null,66,"Wales - 30 cm or less - Arable",257000,null,"ha",2024,"Spring Environmental derived","UK",null,{"$f":"SUBSTITUTE(SUBSTITUTE(LOWER(carbonfactor_db[[#This Row],[Description]]&carbonfactor_db[[#This Row],[Unit]]&carbonfactor_db[[#This Row],[Year]]),\" \",\"\"),\"-\",\"\")","v":"wales30cmorlessarableha2024"}]
[null,67,"Wales - 30 cm or more - Arable",403000,null,"ha",2024,"Spring Environmental derived","UK",null,{"$f":"SUBSTITUTE(SUBSTITUTE(LOWER(carbonfactor_db[[#This Row],[Description]]&carbonfactor_db[[#This Row],[Unit]]&carbonfactor_db[[#This Row],[Year]]),\" \",\"\"),\"-\",\"\")","v":"wales30cmormorearableha2024"}]
[null,68,"Northern Ireland - 30 cm or less - Arable",367000,null,"ha",2024,"Spring Environmental derived","UK",null,{"$f":"SUBSTITUTE(SUBSTITUTE(LOWER(carbonfactor_db[[#This Row],[Description]]&carbonfactor_db[[#This Row],[Unit]]&carbonfactor_db[[#This Row],[Year]]),\" \",\"\"),\"-\",\"\")","v":"northernireland30cmorlessarableha2024"}]
[null,69,"Northern Ireland - 30 cm or more - Arable",550000,null,"ha",2024,"Spring Environmental derived","UK",null,{"$f":"SUBSTITUTE(SUBSTITUTE(LOWER(carbonfactor_db[[#This Row],[Description]]&carbonfactor_db[[#This Row],[Unit]]&carbonfactor_db[[#This Row],[Year]]),\" \",\"\"),\"-\",\"\")","v":"northernireland30cmormorearableha2024"}]
[null,70,"England - 30 cm or less - Woodland",367000,null,"ha",2024,"Spring Environmental derived","UK",null,{"$f":"SUBSTITUTE(SUBSTITUTE(LOWER(carbonfactor_db[[#This Row],[Description]]&carbonfactor_db[[#This Row],[Unit]]&carbonfactor_db[[#This Row],[Year]]),\" \",\"\"),\"-\",\"\")","v":"england30cmorlesswoodlandha2024"}]
[null,71,"England - 30 cm or more - Woodland",623000,null,"ha",2024,"Spring Environmental derived","UK",null,{"$f":"SUBSTITUTE(SUBSTITUTE(LOWER(carbonfactor_db[[#This Row],[Description]]&carbonfactor_db[[#This Row],[Unit]]&carbonfactor_db[[#This Row],[Year]]),\" \",\"\"),\"-\",\"\")","v":"england30cmormorewoodlandha2024"}]
[null,72,"Scotland - 30 cm or less - Woodland",623000,null,"ha",2024,"Spring Environmental derived","UK",null,{"$f":"SUBSTITUTE(SUBSTITUTE(LOWER(carbonfactor_db[[#This Row],[Description]]&carbonfactor_db[[#This Row],[Unit]]&carbonfactor_db[[#This Row],[Year]]),\" \",\"\"),\"-\",\"\")","v":"scotland30cmorlesswoodlandha2024"}]
[null,73,"Scotland - 30 cm or more - Woodland",1210000,null,"ha",2024,"Spring Environmental derived","UK",null,{"$f":"SUBSTITUTE(SUBSTITUTE(LOWER(carbonfactor_db[[#This Row],[Description]]&carbonfactor_db[[#This Row],[Unit]]&carbonfactor_db[[#This Row],[Year]]),\" \",\"\"),\"-\",\"\")","v":"scotland30cmormorewoodlandha2024"}]
[null,74,"Wales - 30 cm or less - Woodland",440000,null,"ha",2024,"Spring Environmental derived","UK",null,{"$f":"SUBSTITUTE(SUBSTITUTE(LOWER(carbonfactor_db[[#This Row],[Description]]&carbonfactor_db[[#This Row],[Unit]]&carbonfactor_db[[#This Row],[Year]]),\" \",\"\"),\"-\",\"\")","v":"wales30cmorlesswoodlandha2024"}]
[null,75,"Wales - 30 cm or more - Woodland",733000,null,"ha",2024,"Spring Environmental derived","UK",null,{"$f":"SUBSTITUTE(SUBSTITUTE(LOWER(carbonfactor_db[[#This Row],[Description]]&carbonfactor_db[[#This Row],[Unit]]&carbonfactor_db[[#This Row],[Year]]),\" \",\"\"),\"-\",\"\")","v":"wales30cmormorewoodlandha2024"}]
[null,76,"Northern Ireland - 30 cm or less - Woodland",660000,null,"ha",2024,"Spring Environmental derived","UK",null,{"$f":"SUBSTITUTE(SUBSTITUTE(LOWER(carbonfactor_db[[#This Row],[Description]]&carbonfactor_db[[#This Row],[Unit]]&carbonfactor_db[[#This Row],[Year]]),\" \",\"\"),\"-\",\"\")","v":"northernireland30cmorlesswoodlandha2024"}]
[null,77,"Northern Ireland - 30 cm or more - Woodland",1357000,null,"ha",2024,"Spring Environmental derived","UK",null,{"$f":"SUBSTITUTE(SUBSTITUTE(LOWER(carbonfactor_db[[#This Row],[Description]]&carbonfactor_db[[#This Row],[Unit]]&carbonfactor_db[[#This Row],[Year]]),\" \",\"\"),\"-\",\"\")","v":"northernireland30cmormorewoodlandha2024"}]
[null,78,"England - 30 cm or less - Gardens",146666.66666666666,null,"ha",2024,"Spring Environmental derived","UK",null,{"$f":"SUBSTITUTE(SUBSTITUTE(LOWER(carbonfactor_db[[#This Row],[Description]]&carbonfactor_db[[#This Row],[Unit]]&carbonfactor_db[[#This Row],[Year]]),\" \",\"\"),\"-\",\"\")","v":"england30cmorlessgardensha2024"}]
[null,79,"England - 30 cm or more - Gardens",220000,null,"ha",2024,"Spring Environmental derived","UK",null,{"$f":"SUBSTITUTE(SUBSTITUTE(LOWER(carbonfactor_db[[#This Row],[Description]]&carbonfactor_db[[#This Row],[Unit]]&carbonfactor_db[[#This Row],[Year]]),\" \",\"\"),\"-\",\"\")","v":"england30cmormoregardensha2024"}]
[null,80,"Scotland - 30 cm or less - Gardens",256666.66666666663,null,"ha",2024,"Spring Environmental derived","UK",null,{"$f":"SUBSTITUTE(SUBSTITUTE(LOWER(carbonfactor_db[[#This Row],[Description]]&carbonfactor_db[[#This Row],[Unit]]&carbonfactor_db[[#This Row],[Year]]),\" \",\"\"),\"-\",\"\")","v":"scotland30cmorlessgardensha2024"}]
[null,81,"Scotland - 30 cm or more - Gardens",330000,null,"ha",2024,"Spring Environmental derived","UK",null,{"$f":"SUBSTITUTE(SUBSTITUTE(LOWER(carbonfactor_db[[#This Row],[Description]]&carbonfactor_db[[#This Row],[Unit]]&carbonfactor_db[[#This Row],[Year]]),\" \",\"\"),\"-\",\"\")","v":"scotland30cmormoregardensha2024"}]
[null,82,"Wales - 30 cm or less - Gardens",146666.66666666666,null,"ha",2024,"Spring Environmental derived","UK",null,{"$f":"SUBSTITUTE(SUBSTITUTE(LOWER(carbonfactor_db[[#This Row],[Description]]&carbonfactor_db[[#This Row],[Unit]]&carbonfactor_db[[#This Row],[Year]]),\" \",\"\"),\"-\",\"\")","v":"wales30cmorlessgardensha2024"}]
[null,83,"Wales - 30 cm or more - Gardens",220000,null,"ha",2024,"Spring Environmental derived","UK",null,{"$f":"SUBSTITUTE(SUBSTITUTE(LOWER(carbonfactor_db[[#This Row],[Description]]&carbonfactor_db[[#This Row],[Unit]]&carbonfactor_db[[#This Row],[Year]]),\" \",\"\"),\"-\",\"\")","v":"wales30cmormoregardensha2024"}]
[null,84,"Northern Ireland - 30 cm or less - Gardens",110000,null,"ha",2024,"Spring Environmental derived","UK",null,{"$f":"SUBSTITUTE(SUBSTITUTE(LOWER(carbonfactor_db[[#This Row],[Description]]&carbonfactor_db[[#This Row],[Unit]]&carbonfactor_db[[#This Row],[Year]]),\" \",\"\"),\"-\",\"\")","v":"northernireland30cmorlessgardensha2024"}]
[null,85,"Northern Ireland - 30 cm or more - Gardens",183333.33333333331,null,"ha",2024,"Spring Environmental derived","UK",null,{"$f":"SUBSTITUTE(SUBSTITUTE(LOWER(carbonfactor_db[[#This Row],[Description]]&carbonfactor_db[[#This Row],[Unit]]&carbonfactor_db[[#This Row],[Year]]),\" \",\"\"),\"-\",\"\")","v":"northernireland30cmormoregardensha2024"}]
[null,86,"Peat monthly loss",2.8396500000000002,null,"month",2024,"Calculating carbon budgets of wind farms on Scottish peatlands ","UK",null,{"$f":"SUBSTITUTE(SUBSTITUTE(LOWER(carbonfactor_db[[#This Row],[Description]]&carbonfactor_db[[#This Row],[Unit]]&carbonfactor_db[[#This Row],[Year]]),\" \",\"\"),\"-\",\"\")","v":"peatmonthlylossmonth2024"}]
[null,87,"Commuting",249.809658576987,null,"employee/yr",2024,"UK commuting statistics","UK",null,{"$f":"SUBSTITUTE(SUBSTITUTE(LOWER(carbonfactor_db[[#This Row],[Description]]&carbonfactor_db[[#This Row],[Unit]]&carbonfactor_db[[#This Row],[Year]]),\" \",\"\"),\"-\",\"\")","v":"commutingemployee/yr2024"}]
[null,88,"Steel hot rolled coil",2.2599999999999998,null,"kg",2024,"ICE","UK",null,{"$f":"SUBSTITUTE(SUBSTITUTE(LOWER(carbonfactor_db[[#This Row],[Description]]&carbonfactor_db[[#This Row],[Unit]]&carbonfactor_db[[#This Row],[Year]]),\" \",\"\"),\"-\",\"\")","v":"steelhotrolledcoilkg2024"}]
[null,89,"Road surface",14.2,null,"m2",2024,"ICE","UK","Asphalt, 3% (bitumen) binder content (by mass)",{"$f":"SUBSTITUTE(SUBSTITUTE(LOWER(carbonfactor_db[[#This Row],[Description]]&carbonfactor_db[[#This Row],[Unit]]&carbonfactor_db[[#This Row],[Year]]),\" \",\"\"),\"-\",\"\")","v":"roadsurfacem22024"}]
[null,90,"Polypropylene (injection moulding)",4.49,null,"kg",2024,"ICE","UK",null,{"$f":"SUBSTITUTE(SUBSTITUTE(LOWER(carbonfactor_db[[#This Row],[Description]]&carbonfactor_db[[#This Row],[Unit]]&carbonfactor_db[[#This Row],[Year]]),\" \",\"\"),\"-\",\"\")","v":"polypropylene(injectionmoulding)kg2024"}]
[null,91,"ABS",3.76,null,"kg",2024,"ICE","UK",null,{"$f":"SUBSTITUTE(SUBSTITUTE(LOWER(carbonfactor_db[[#This Row],[Description]]&carbonfactor_db[[#This Row],[Unit]]&carbonfactor_db[[#This Row],[Year]]),\" \",\"\"),\"-\",\"\")","v":"abskg2024"}]
[null,92,"Steel welded pipe",2.5099999999999998,null,"kg",2024,"ICE","UK",null,{"$f":"SUBSTITUTE(SUBSTITUTE(LOWER(carbonfactor_db[[#This Row],[Description]]&carbonfactor_db[[#This Row],[Unit]]&carbonfactor_db[[#This Row],[Year]]),\" \",\"\"),\"-\",\"\")","v":"steelweldedpipekg2024"}]
[null,93,"Aluminium sheet",6.58,null,"kg",2024,"ICE","UK","European mix, inc imports",{"$f":"SUBSTITUTE(SUBSTITUTE(LOWER(carbonfactor_db[[#This Row],[Description]]&carbonfactor_db[[#This Row],[Unit]]&carbonfactor_db[[#This Row],[Year]]),\" \",\"\"),\"-\",\"\")","v":"aluminiumsheetkg2024"}]
[null,94,"Aluminium extruded profile",6.83,null,"kg",2024,"ICE","UK","European mix, inc imports",{"$f":"SUBSTITUTE(SUBSTITUTE(LOWER(carbonfactor_db[[#This Row],[Description]]&carbonfactor_db[[#This Row],[Unit]]&carbonfactor_db[[#This Row],[Year]]),\" \",\"\"),\"-\",\"\")","v":"aluminiumextrudedprofilekg2024"}]
[null,95,"Concrete - average UK mix",0.10336134453781512,null,"kg",2024,"ICE","UK","General",{"$f":"SUBSTITUTE(SUBSTITUTE(LOWER(carbonfactor_db[[#This Row],[Description]]&carbonfactor_db[[#This Row],[Unit]]&carbonfactor_db[[#This Row],[Year]]),\" \",\"\"),\"-\",\"\")","v":"concreteaverageukmixkg2024"}]
[null,96,"Concrete - average UK mix",246,null,"m3",2024,"ICE","UK","General",{"$f":"SUBSTITUTE(SUBSTITUTE(LOWER(carbonfactor_db[[#This Row],[Description]]&carbonfactor_db[[#This Row],[Unit]]&carbonfactor_db[[#This Row],[Year]]),\" \",\"\"),\"-\",\"\")","v":"concreteaverageukmixm32024"}]
[null,97,"Electricity",0.20705000000000001,null,"kWh",2024,"DESNZ","UK",null,{"$f":"SUBSTITUTE(SUBSTITUTE(LOWER(carbonfactor_db[[#This Row],[Description]]&carbonfactor_db[[#This Row],[Unit]]&carbonfactor_db[[#This Row],[Year]]),\" \",\"\"),\"-\",\"\")","v":"electricitykwh2024"}]
[null,98,"Electricity - upstream",6.8170000000000008E-2,null,"kWh",2024,"DESNZ","UK","T&D and WTT for generation and WTT for T&D",{"$f":"SUBSTITUTE(SUBSTITUTE(LOWER(carbonfactor_db[[#This Row],[Description]]&carbonfactor_db[[#This Row],[Unit]]&carbonfactor_db[[#This Row],[Year]]),\" \",\"\"),\"-\",\"\")","v":"electricityupstreamkwh2024"}]
[null,99,"Electricity - biogenic",0.11507000000000001,null,"kWh",2024,"DESNZ","UK",null,{"$f":"SUBSTITUTE(SUBSTITUTE(LOWER(carbonfactor_db[[#This Row],[Description]]&carbonfactor_db[[#This Row],[Unit]]&carbonfactor_db[[#This Row],[Year]]),\" \",\"\"),\"-\",\"\")","v":"electricitybiogenickwh2024"}]
[null,100,"Natural gas",0.18290000000000001,null,"kWh",2024,"DESNZ","UK",null,{"$f":"SUBSTITUTE(SUBSTITUTE(LOWER(carbonfactor_db[[#This Row],[Description]]&carbonfactor_db[[#This Row],[Unit]]&carbonfactor_db[[#This Row],[Year]]),\" \",\"\"),\"-\",\"\")","v":"naturalgaskwh2024"}]
[null,101,"Natural gas - upstream",3.0210000000000001E-2,null,"kWh",2024,"DESNZ","UK",null,{"$f":"SUBSTITUTE(SUBSTITUTE(LOWER(carbonfactor_db[[#This Row],[Description]]&carbonfactor_db[[#This Row],[Unit]]&carbonfactor_db[[#This Row],[Year]]),\" \",\"\"),\"-\",\"\")","v":"naturalgasupstreamkwh2024"}]
[null,102,"Fuel oil",3.1749299999999998,null,"litres",2024,"DESNZ","UK",null,{"$f":"SUBSTITUTE(SUBSTITUTE(LOWER(carbonfactor_db[[#This Row],[Description]]&carbonfactor_db[[#This Row],[Unit]]&carbonfactor_db[[#This Row],[Year]]),\" \",\"\"),\"-\",\"\")","v":"fueloillitres2024"}]
[null,103,"Fuel oil - upstream",0.69538999999999995,null,"litres",2024,"DESNZ","UK",null,{"$f":"SUBSTITUTE(SUBSTITUTE(LOWER(carbonfactor_db[[#This Row],[Description]]&carbonfactor_db[[#This Row],[Unit]]&carbonfactor_db[[#This Row],[Year]]),\" \",\"\"),\"-\",\"\")","v":"fueloilupstreamlitres2024"}]
[null,104,"Diesel (average biofuel blend)",2.5127899999999999,null,"litres",2024,"DESNZ","UK",null,{"$f":"SUBSTITUTE(SUBSTITUTE(LOWER(carbonfactor_db[[#This Row],[Description]]&carbonfactor_db[[#This Row],[Unit]]&carbonfactor_db[[#This Row],[Year]]),\" \",\"\"),\"-\",\"\")","v":"diesel(averagebiofuelblend)litres2024"}]
[null,105,"Diesel (average biofuel blend) - upstream",0.61101000000000005,null,"litres",2024,"DESNZ","UK",null,{"$f":"SUBSTITUTE(SUBSTITUTE(LOWER(carbonfactor_db[[#This Row],[Description]]&carbonfactor_db[[#This Row],[Unit]]&carbonfactor_db[[#This Row],[Year]]),\" \",\"\"),\"-\",\"\")","v":"diesel(averagebiofuelblend)upstreamlitres2024"}]
[null,106,"Diesel (average biofuel blend) - biogenic",0.16,null,"litres",2024,"DESNZ","UK",null,{"$f":"SUBSTITUTE(SUBSTITUTE(LOWER(carbonfactor_db[[#This Row],[Description]]&carbonfactor_db[[#This Row],[Unit]]&carbonfactor_db[[#This Row],[Year]]),\" \",\"\"),\"-\",\"\")","v":"diesel(averagebiofuelblend)biogeniclitres2024"}]
[null,107,"Petrol (average biofuel blend)",2.0844,null,"litres",2024,"DESNZ","UK",null,{"$f":"SUBSTITUTE(SUBSTITUTE(LOWER(carbonfactor_db[[#This Row],[Description]]&carbonfactor_db[[#This Row],[Unit]]&carbonfactor_db[[#This Row],[Year]]),\" \",\"\"),\"-\",\"\")","v":"petrol(averagebiofuelblend)litres2024"}]
[null,108,"Petrol (average biofuel blend) - upstream",0.58094000000000001,null,"litres",2024,"DESNZ","UK",null,{"$f":"SUBSTITUTE(SUBSTITUTE(LOWER(carbonfactor_db[[#This Row],[Description]]&carbonfactor_db[[#This Row],[Unit]]&carbonfactor_db[[#This Row],[Year]]),\" \",\"\"),\"-\",\"\")","v":"petrol(averagebiofuelblend)upstreamlitres2024"}]
[null,109,"Petrol (average biofuel blend) - biogenic",0.13,null,"litres",2024,"DESNZ","UK",null,{"$f":"SUBSTITUTE(SUBSTITUTE(LOWER(carbonfactor_db[[#This Row],[Description]]&carbonfactor_db[[#This Row],[Unit]]&carbonfactor_db[[#This Row],[Year]]),\" \",\"\"),\"-\",\"\")","v":"petrol(averagebiofuelblend)biogeniclitres2024"}]
[null,110,"Biodiesel HVO",3.5580000000000001E-2,null,"litres",2024,"DESNZ","UK",null,{"$f":"SUBSTITUTE(SUBSTITUTE(LOWER(carbonfactor_db[[#This Row],[Description]]&carbonfactor_db[[#This Row],[Unit]]&carbonfactor_db[[#This Row],[Year]]),\" \",\"\"),\"-\",\"\")","v":"biodieselhvolitres2024"}]
[null,111,"Biodiesel HVO - upstream",0.55900000000000005,null,"litres",2024,"DESNZ","UK",null,{"$f":"SUBSTITUTE(SUBSTITUTE(LOWER(carbonfactor_db[[#This Row],[Description]]&carbonfactor_db[[#This Row],[Unit]]&carbonfactor_db[[#This Row],[Year]]),\" \",\"\"),\"-\",\"\")","v":"biodieselhvoupstreamlitres2024"}]
[null,112,"Biodiesel HVO - biogenic",2.4300000000000002,null,"litres",2024,"DESNZ","UK",null,{"$f":"SUBSTITUTE(SUBSTITUTE(LOWER(carbonfactor_db[[#This Row],[Description]]&carbonfactor_db[[#This Row],[Unit]]&carbonfactor_db[[#This Row],[Year]]),\" \",\"\"),\"-\",\"\")","v":"biodieselhvobiogeniclitres2024"}]
[null,113,"Paper",{"$f":"1339.31834/1000","v":1.3393183399999999},null,"kg",2024,"DESNZ","UK",null,{"$f":"SUBSTITUTE(SUBSTITUTE(LOWER(carbonfactor_db[[#This Row],[Description]]&carbonfactor_db[[#This Row],[Unit]]&carbonfactor_db[[#This Row],[Year]]),\" \",\"\"),\"-\",\"\")","v":"paperkg2024"}]
[null,114,"Water supply",0.15311,null,"m3",2024,"DESNZ","UK",null,{"$f":"SUBSTITUTE(SUBSTITUTE(LOWER(carbonfactor_db[[#This Row],[Description]]&carbonfactor_db[[#This Row],[Unit]]&carbonfactor_db[[#This Row],[Year]]),\" \",\"\"),\"-\",\"\")","v":"watersupplym32024"}]
[null,115,"Homeworking (office equipment + heating)",0.33378000000000002,null,"FTE working hour",2024,"DESNZ","UK",null,{"$f":"SUBSTITUTE(SUBSTITUTE(LOWER(carbonfactor_db[[#This Row],[Description]]&carbonfactor_db[[#This Row],[Unit]]&carbonfactor_db[[#This Row],[Year]]),\" \",\"\"),\"-\",\"\")","v":"homeworking(officeequipment+heating)fteworkinghour2024"}]
[null,116,"Car average unknown fuel",0.16691,null,"km",2024,"DESNZ","UK",null,{"$f":"SUBSTITUTE(SUBSTITUTE(LOWER(carbonfactor_db[[#This Row],[Description]]&carbonfactor_db[[#This Row],[Unit]]&carbonfactor_db[[#This Row],[Year]]),\" \",\"\"),\"-\",\"\")","v":"caraverageunknownfuelkm2024"}]
[null,117,"Car small diesel",0.13994000000000001,null,"km",2024,"DESNZ","UK",null,{"$f":"SUBSTITUTE(SUBSTITUTE(LOWER(carbonfactor_db[[#This Row],[Description]]&carbonfactor_db[[#This Row],[Unit]]&carbonfactor_db[[#This Row],[Year]]),\" \",\"\"),\"-\",\"\")","v":"carsmalldieselkm2024"}]
[null,118,"Car medium diesel",0.16807,null,"km",2024,"DESNZ","UK",null,{"$f":"SUBSTITUTE(SUBSTITUTE(LOWER(carbonfactor_db[[#This Row],[Description]]&carbonfactor_db[[#This Row],[Unit]]&carbonfactor_db[[#This Row],[Year]]),\" \",\"\"),\"-\",\"\")","v":"carmediumdieselkm2024"}]
[null,119,"Car large diesel",0.20729,null,"km",2024,"DESNZ","UK",null,{"$f":"SUBSTITUTE(SUBSTITUTE(LOWER(carbonfactor_db[[#This Row],[Description]]&carbonfactor_db[[#This Row],[Unit]]&carbonfactor_db[[#This Row],[Year]]),\" \",\"\"),\"-\",\"\")","v":"carlargedieselkm2024"}]
[null,120,"Car average diesel",0.16983999999999999,null,"km",2024,"DESNZ","UK",null,{"$f":"SUBSTITUTE(SUBSTITUTE(LOWER(carbonfactor_db[[#This Row],[Description]]&carbonfactor_db[[#This Row],[Unit]]&carbonfactor_db[[#This Row],[Year]]),\" \",\"\"),\"-\",\"\")","v":"caraveragedieselkm2024"}]
[null,121,"Car small petrol",0.14369999999999999,null,"km",2024,"DESNZ","UK",null,{"$f":"SUBSTITUTE(SUBSTITUTE(LOWER(carbonfactor_db[[#This Row],[Description]]&carbonfactor_db[[#This Row],[Unit]]&carbonfactor_db[[#This Row],[Year]]),\" \",\"\"),\"-\",\"\")","v":"carsmallpetrolkm2024"}]
[null,122,"Car medium petrol",0.17726,null,"km",2024,"DESNZ","UK",null,{"$f":"SUBSTITUTE(SUBSTITUTE(LOWER(carbonfactor_db[[#This Row],[Description]]&carbonfactor_db[[#This Row],[Unit]]&carbonfactor_db[[#This Row],[Year]]),\" \",\"\"),\"-\",\"\")","v":"carmediumpetrolkm2024"}]
[null,123,"Car large petrol",0.26884999999999998,null,"km",2024,"DESNZ","UK",null,{"$f":"SUBSTITUTE(SUBSTITUTE(LOWER(carbonfactor_db[[#This Row],[Description]]&carbonfactor_db[[#This Row],[Unit]]&carbonfactor_db[[#This Row],[Year]]),\" \",\"\"),\"-\",\"\")","v":"carlargepetrolkm2024"}]
[null,124,"Car average petrol",0.16450000000000001,null,"km",2024,"DESNZ","UK",null,{"$f":"SUBSTITUTE(SUBSTITUTE(LOWER(carbonfactor_db[[#This Row],[Description]]&carbonfactor_db[[#This Row],[Unit]]&carbonfactor_db[[#This Row],[Year]]),\" \",\"\"),\"-\",\"\")","v":"caraveragepetrolkm2024"}]
[null,125,"Car small EV",3.9370000000000002E-2,null,"km",2024,"DESNZ","UK",null,{"$f":"SUBSTITUTE(SUBSTITUTE(LOWER(carbonfactor_db[[#This Row],[Description]]&carbonfactor_db[[#This Row],[Unit]]&carbonfactor_db[[#This Row],[Year]]),\" \",\"\"),\"-\",\"\")","v":"carsmallevkm2024"}]
[null,126,"Car medium EV",4.249E-2,null,"km",2024,"DESNZ","UK",null,{"$f":"SUBSTITUTE(SUBSTITUTE(LOWER(carbonfactor_db[[#This Row],[Description]]&carbonfactor_db[[#This Row],[Unit]]&carbonfactor_db[[#This Row],[Year]]),\" \",\"\"),\"-\",\"\")","v":"carmediumevkm2024"}]
[null,127,"Car large EV",4.5249999999999999E-2,null,"km",2024,"DESNZ","UK",null,{"$f":"SUBSTITUTE(SUBSTITUTE(LOWER(carbonfactor_db[[#This Row],[Description]]&carbonfactor_db[[#This Row],[Unit]]&carbonfactor_db[[#This Row],[Year]]),\" \",\"\"),\"-\",\"\")","v":"carlargeevkm2024"}]
[null,128,"Car average EV",4.3580000000000001E-2,null,"km",2024,"DESNZ","UK",null,{"$f":"SUBSTITUTE(SUBSTITUTE(LOWER(carbonfactor_db[[#This Row],[Description]]&carbonfactor_db[[#This Row],[Unit]]&carbonfactor_db[[#This Row],[Year]]),\" \",\"\"),\"-\",\"\")","v":"caraverageevkm2024"}]
[null,129,"Car small unknown fuel",0.14262,null,"km",2024,"DESNZ","UK",null,{"$f":"SUBSTITUTE(SUBSTITUTE(LOWER(carbonfactor_db[[#This Row],[Description]]&carbonfactor_db[[#This Row],[Unit]]&carbonfactor_db[[#This Row],[Year]]),\" \",\"\"),\"-\",\"\")","v":"carsmallunknownfuelkm2024"}]
[null,130,"Car medium unknown fuel",0.17255999999999999,null,"km",2024,"DESNZ","UK",null,{"$f":"SUBSTITUTE(SUBSTITUTE(LOWER(carbonfactor_db[[#This Row],[Description]]&carbonfactor_db[[#This Row],[Unit]]&carbonfactor_db[[#This Row],[Year]]),\" \",\"\"),\"-\",\"\")","v":"carmediumunknownfuelkm2024"}]
[null,131,"Car large unknown fuel",0.22472,null,"km",2024,"DESNZ","UK",null,{"$f":"SUBSTITUTE(SUBSTITUTE(LOWER(carbonfactor_db[[#This Row],[Description]]&carbonfactor_db[[#This Row],[Unit]]&carbonfactor_db[[#This Row],[Year]]),\" \",\"\"),\"-\",\"\")","v":"carlargeunknownfuelkm2024"}]
[null,132,"Car small hybrid",0.11274000000000001,null,"km",2024,"DESNZ","UK",null,{"$f":"SUBSTITUTE(SUBSTITUTE(LOWER(carbonfactor_db[[#This Row],[Description]]&carbonfactor_db[[#This Row],[Unit]]&carbonfactor_db[[#This Row],[Year]]),\" \",\"\"),\"-\",\"\")","v":"carsmallhybridkm2024"}]
[null,133,"Car medium hybrid",0.1149,null,"km",2024,"DESNZ","UK",null,{"$f":"SUBSTITUTE(SUBSTITUTE(LOWER(carbonfactor_db[[#This Row],[Description]]&carbonfactor_db[[#This Row],[Unit]]&carbonfactor_db[[#This Row],[Year]]),\" \",\"\"),\"-\",\"\")","v":"carmediumhybridkm2024"}]
[null,134,"Car large hybrid",0.15486,null,"km",2024,"DESNZ","UK",null,{"$f":"SUBSTITUTE(SUBSTITUTE(LOWER(carbonfactor_db[[#This Row],[Description]]&carbonfactor_db[[#This Row],[Unit]]&carbonfactor_db[[#This Row],[Year]]),\" \",\"\"),\"-\",\"\")","v":"carlargehybridkm2024"}]
[null,135,"Car average hybrid",0.12606999999999999,null,"km",2024,"DESNZ","UK",null,{"$f":"SUBSTITUTE(SUBSTITUTE(LOWER(carbonfactor_db[[#This Row],[Description]]&carbonfactor_db[[#This Row],[Unit]]&carbonfactor_db[[#This Row],[Year]]),\" \",\"\"),\"-\",\"\")","v":"caraveragehybridkm2024"}]
[null,136,"Car small plug-in hybrid",3.0120000000000001E-2,null,"km",2024,"DESNZ","UK",null,{"$f":"SUBSTITUTE(SUBSTITUTE(LOWER(carbonfactor_db[[#This Row],[Description]]&carbonfactor_db[[#This Row],[Unit]]&carbonfactor_db[[#This Row],[Year]]),\" \",\"\"),\"-\",\"\")","v":"carsmallpluginhybridkm2024"}]
[null,137,"Car medium plug-in hybrid",8.1199999999999994E-2,null,"km",2024,"DESNZ","UK",null,{"$f":"SUBSTITUTE(SUBSTITUTE(LOWER(carbonfactor_db[[#This Row],[Description]]&carbonfactor_db[[#This Row],[Unit]]&carbonfactor_db[[#This Row],[Year]]),\" \",\"\"),\"-\",\"\")","v":"carmediumpluginhybridkm2024"}]
[null,138,"Car large plug-in hybrid",0.10306,null,"km",2024,"DESNZ","UK",null,{"$f":"SUBSTITUTE(SUBSTITUTE(LOWER(carbonfactor_db[[#This Row],[Description]]&carbonfactor_db[[#This Row],[Unit]]&carbonfactor_db[[#This Row],[Year]]),\" \",\"\"),\"-\",\"\")","v":"carlargepluginhybridkm2024"}]
[null,139,"Car average plug-in hybrid",9.3600000000000003E-2,null,"km",2024,"DESNZ","UK",null,{"$f":"SUBSTITUTE(SUBSTITUTE(LOWER(carbonfactor_db[[#This Row],[Description]]&carbonfactor_db[[#This Row],[Unit]]&carbonfactor_db[[#This Row],[Year]]),\" \",\"\"),\"-\",\"\")","v":"caraveragepluginhybridkm2024"}]
[null,140,"Van class I (up to 1.305 tonnes) diesel",0.15356,null,"km",2024,"DESNZ","UK",null,{"$f":"SUBSTITUTE(SUBSTITUTE(LOWER(carbonfactor_db[[#This Row],[Description]]&carbonfactor_db[[#This Row],[Unit]]&carbonfactor_db[[#This Row],[Year]]),\" \",\"\"),\"-\",\"\")","v":"vanclassi(upto1.305tonnes)dieselkm2024"}]
[null,141,"Van class II (1.305 to 1.74 tonnes) diesel",0.18831999999999999,null,"km",2024,"DESNZ","UK",null,{"$f":"SUBSTITUTE(SUBSTITUTE(LOWER(carbonfactor_db[[#This Row],[Description]]&carbonfactor_db[[#This Row],[Unit]]&carbonfactor_db[[#This Row],[Year]]),\" \",\"\"),\"-\",\"\")","v":"vanclassii(1.305to1.74tonnes)dieselkm2024"}]
[null,142,"Van class III (1.74 to 3.5 tonnes) diesel",0.27365,null,"km",2024,"DESNZ","UK",null,{"$f":"SUBSTITUTE(SUBSTITUTE(LOWER(carbonfactor_db[[#This Row],[Description]]&carbonfactor_db[[#This Row],[Unit]]&carbonfactor_db[[#This Row],[Year]]),\" \",\"\"),\"-\",\"\")","v":"vanclassiii(1.74to3.5tonnes)dieselkm2024"}]
[null,143,"Van average (up to 3.5 tonnes) diesel",0.25023000000000001,null,"km",2024,"DESNZ","UK",null,{"$f":"SUBSTITUTE(SUBSTITUTE(LOWER(carbonfactor_db[[#This Row],[Description]]&carbonfactor_db[[#This Row],[Unit]]&carbonfactor_db[[#This Row],[Year]]),\" \",\"\"),\"-\",\"\")","v":"vanaverage(upto3.5tonnes)dieselkm2024"}]
[null,144,"Van class I (up to 1.305 tonnes) petrol",0.20071,null,"km",2024,"DESNZ","UK",null,{"$f":"SUBSTITUTE(SUBSTITUTE(LOWER(carbonfactor_db[[#This Row],[Description]]&carbonfactor_db[[#This Row],[Unit]]&carbonfactor_db[[#This Row],[Year]]),\" \",\"\"),\"-\",\"\")","v":"vanclassi(upto1.305tonnes)petrolkm2024"}]
[null,145,"Van class II (1.305 to 1.74 tonnes) petrol",0.21709000000000001,null,"km",2024,"DESNZ","UK",null,{"$f":"SUBSTITUTE(SUBSTITUTE(LOWER(carbonfactor_db[[#This Row],[Description]]&carbonfactor_db[[#This Row],[Unit]]&carbonfactor_db[[#This Row],[Year]]),\" \",\"\"),\"-\",\"\")","v":"vanclassii(1.305to1.74tonnes)petrolkm2024"}]
[null,146,"Van class III (1.74 to 3.5 tonnes) petrol",0.34922999999999998,null,"km",2024,"DESNZ","UK",null,{"$f":"SUBSTITUTE(SUBSTITUTE(LOWER(carbonfactor_db[[#This Row],[Description]]&carbonfactor_db[[#This Row],[Unit]]&carbonfactor_db[[#This Row],[Year]]),\" \",\"\"),\"-\",\"\")","v":"vanclassiii(1.74to3.5tonnes)petrolkm2024"}]
[null,147,"Van average (up to 3.5 tonnes) petrol",0.22095000000000001,null,"km",2024,"DESNZ","UK",null,{"$f":"SUBSTITUTE(SUBSTITUTE(LOWER(carbonfactor_db[[#This Row],[Description]]&carbonfactor_db[[#This Row],[Unit]]&carbonfactor_db[[#This Row],[Year]]),\" \",\"\"),\"-\",\"\")","v":"vanaverage(upto3.5tonnes)petrolkm2024"}]
[null,148,"Van class I (up to 1.305 tonnes) electric",3.909E-2,null,"km",2024,"DESNZ","UK",null,{"$f":"SUBSTITUTE(SUBSTITUTE(LOWER(carbonfactor_db[[#This Row],[Description]]&carbonfactor_db[[#This Row],[Unit]]&carbonfactor_db[[#This Row],[Year]]),\" \",\"\"),\"-\",\"\")","v":"vanclassi(upto1.305tonnes)electrickm2024"}]
[null,149,"Van class II (1.305 to 1.74 tonnes) electric",6.0240000000000002E-2,null,"km",2024,"DESNZ","UK",null,{"$f":"SUBSTITUTE(SUBSTITUTE(LOWER(carbonfactor_db[[#This Row],[Description]]&carbonfactor_db[[#This Row],[Unit]]&carbonfactor_db[[#This Row],[Year]]),\" \",\"\"),\"-\",\"\")","v":"vanclassii(1.305to1.74tonnes)electrickm2024"}]
[null,150,"Van class III (1.74 to 3.5 tonnes) electric",8.2030000000000006E-2,null,"km",2024,"DESNZ","UK",null,{"$f":"SUBSTITUTE(SUBSTITUTE(LOWER(carbonfactor_db[[#This Row],[Description]]&carbonfactor_db[[#This Row],[Unit]]&carbonfactor_db[[#This Row],[Year]]),\" \",\"\"),\"-\",\"\")","v":"vanclassiii(1.74to3.5tonnes)electrickm2024"}]
[null,151,"Van average (up to 3.5 tonnes) electric",7.2789999999999994E-2,null,"km",2024,"DESNZ","UK",null,{"$f":"SUBSTITUTE(SUBSTITUTE(LOWER(carbonfactor_db[[#This Row],[Description]]&carbonfactor_db[[#This Row],[Unit]]&carbonfactor_db[[#This Row],[Year]]),\" \",\"\"),\"-\",\"\")","v":"vanaverage(upto3.5tonnes)electrickm2024"}]
[null,152,"Van average (up to 3.5 tonnes) unknown fuel",0.24934000000000001,null,"km",2024,"DESNZ","UK",null,{"$f":"SUBSTITUTE(SUBSTITUTE(LOWER(carbonfactor_db[[#This Row],[Description]]&carbonfactor_db[[#This Row],[Unit]]&carbonfactor_db[[#This Row],[Year]]),\" \",\"\"),\"-\",\"\")","v":"vanaverage(upto3.5tonnes)unknownfuelkm2024"}]
[null,153,"Van average (up to 3.5 tonnes) diesel",0.61643000000000003,null,"tonne.km",2024,"DESNZ","UK",null,{"$f":"SUBSTITUTE(SUBSTITUTE(LOWER(carbonfactor_db[[#This Row],[Description]]&carbonfactor_db[[#This Row],[Unit]]&carbonfactor_db[[#This Row],[Year]]),\" \",\"\"),\"-\",\"\")","v":"vanaverage(upto3.5tonnes)dieseltonne.km2024"}]
[null,154,"Motorbike",0.11367000000000001,null,"km",2024,"DESNZ","UK","Average motorbike",{"$f":"SUBSTITUTE(SUBSTITUTE(LOWER(carbonfactor_db[[#This Row],[Description]]&carbonfactor_db[[#This Row],[Unit]]&carbonfactor_db[[#This Row],[Year]]),\" \",\"\"),\"-\",\"\")","v":"motorbikekm2024"}]
[null,155,"Taxi regular taxi",0.14860999999999999,null,"passenger.km",2024,"DESNZ","UK",null,{"$f":"SUBSTITUTE(SUBSTITUTE(LOWER(carbonfactor_db[[#This Row],[Description]]&carbonfactor_db[[#This Row],[Unit]]&carbonfactor_db[[#This Row],[Year]]),\" \",\"\"),\"-\",\"\")","v":"taxiregulartaxipassenger.km2024"}]
[null,156,"Taxi black cab",0.20402000000000001,null,"passenger.km",2024,"DESNZ","UK",null,{"$f":"SUBSTITUTE(SUBSTITUTE(LOWER(carbonfactor_db[[#This Row],[Description]]&carbonfactor_db[[#This Row],[Unit]]&carbonfactor_db[[#This Row],[Year]]),\" \",\"\"),\"-\",\"\")","v":"taxiblackcabpassenger.km2024"}]
[null,157,"Bus",0.10846,null,"passenger.km",2024,"DESNZ","UK","Average local bus",{"$f":"SUBSTITUTE(SUBSTITUTE(LOWER(carbonfactor_db[[#This Row],[Description]]&carbonfactor_db[[#This Row],[Unit]]&carbonfactor_db[[#This Row],[Year]]),\" \",\"\"),\"-\",\"\")","v":"buspassenger.km2024"}]
[null,158,"Rail national",3.5459999999999998E-2,null,"passenger.km",2024,"DESNZ","UK",null,{"$f":"SUBSTITUTE(SUBSTITUTE(LOWER(carbonfactor_db[[#This Row],[Description]]&carbonfactor_db[[#This Row],[Unit]]&carbonfactor_db[[#This Row],[Year]]),\" \",\"\"),\"-\",\"\")","v":"railnationalpassenger.km2024"}]
[null,159,"Rail international",4.4600000000000004E-3,null,"passenger.km",2024,"DESNZ","UK",null,{"$f":"SUBSTITUTE(SUBSTITUTE(LOWER(carbonfactor_db[[#This Row],[Description]]&carbonfactor_db[[#This Row],[Unit]]&carbonfactor_db[[#This Row],[Year]]),\" \",\"\"),\"-\",\"\")","v":"railinternationalpassenger.km2024"}]
[null,160,"Tram",2.86E-2,null,"passenger.km",2024,"DESNZ","UK",null,{"$f":"SUBSTITUTE(SUBSTITUTE(LOWER(carbonfactor_db[[#This Row],[Description]]&carbonfactor_db[[#This Row],[Unit]]&carbonfactor_db[[#This Row],[Year]]),\" \",\"\"),\"-\",\"\")","v":"trampassenger.km2024"}]
[null,161,"London Underground",2.7799999999999998E-2,null,"passenger.km",2024,"DESNZ","UK",null,{"$f":"SUBSTITUTE(SUBSTITUTE(LOWER(carbonfactor_db[[#This Row],[Description]]&carbonfactor_db[[#This Row],[Unit]]&carbonfactor_db[[#This Row],[Year]]),\" \",\"\"),\"-\",\"\")","v":"londonundergroundpassenger.km2024"}]
[null,162,"Flight Domestic, to/from UK average passenger",0.27256999999999998,null,"passenger.km",2024,"DESNZ","UK",null,{"$f":"SUBSTITUTE(SUBSTITUTE(LOWER(carbonfactor_db[[#This Row],[Description]]&carbonfactor_db[[#This Row],[Unit]]&carbonfactor_db[[#This Row],[Year]]),\" \",\"\"),\"-\",\"\")","v":"flightdomestic,to/fromukaveragepassengerpassenger.km2024"}]
[null,163,"Flight Short-haul, to/from UK average passenger",0.18592,null,"passenger.km",2024,"DESNZ","UK",null,{"$f":"SUBSTITUTE(SUBSTITUTE(LOWER(carbonfactor_db[[#This Row],[Description]]&carbonfactor_db[[#This Row],[Unit]]&carbonfactor_db[[#This Row],[Year]]),\" \",\"\"),\"-\",\"\")","v":"flightshorthaul,to/fromukaveragepassengerpassenger.km2024"}]
[null,164,"Flight Short-haul, to/from UK economy class",0.18287,null,"passenger.km",2024,"DESNZ","UK",null,{"$f":"SUBSTITUTE(SUBSTITUTE(LOWER(carbonfactor_db[[#This Row],[Description]]&carbonfactor_db[[#This Row],[Unit]]&carbonfactor_db[[#This Row],[Year]]),\" \",\"\"),\"-\",\"\")","v":"flightshorthaul,to/fromukeconomyclasspassenger.km2024"}]
[null,165,"Flight Short-haul, to/from UK business class",0.27429999999999999,null,"passenger.km",2024,"DESNZ","UK",null,{"$f":"SUBSTITUTE(SUBSTITUTE(LOWER(carbonfactor_db[[#This Row],[Description]]&carbonfactor_db[[#This Row],[Unit]]&carbonfactor_db[[#This Row],[Year]]),\" \",\"\"),\"-\",\"\")","v":"flightshorthaul,to/fromukbusinessclasspassenger.km2024"}]
[null,166,"Flight Long-haul, to/from UK average passenger",0.26128000000000001,null,"passenger.km",2024,"DESNZ","UK",null,{"$f":"SUBSTITUTE(SUBSTITUTE(LOWER(carbonfactor_db[[#This Row],[Description]]&carbonfactor_db[[#This Row],[Unit]]&carbonfactor_db[[#This Row],[Year]]),\" \",\"\"),\"-\",\"\")","v":"flightlonghaul,to/fromukaveragepassengerpassenger.km2024"}]
[null,167,"Flight Long-haul, to/from UK economy class",0.20011000000000001,null,"passenger.km",2024,"DESNZ","UK",null,{"$f":"SUBSTITUTE(SUBSTITUTE(LOWER(carbonfactor_db[[#This Row],[Description]]&carbonfactor_db[[#This Row],[Unit]]&carbonfactor_db[[#This Row],[Year]]),\" \",\"\"),\"-\",\"\")","v":"flightlonghaul,to/fromukeconomyclasspassenger.km2024"}]
[null,168,"Flight Long-haul, to/from UK premium economy class",0.32014999999999999,null,"passenger.km",2024,"DESNZ","UK",null,{"$f":"SUBSTITUTE(SUBSTITUTE(LOWER(carbonfactor_db[[#This Row],[Description]]&carbonfactor_db[[#This Row],[Unit]]&carbonfactor_db[[#This Row],[Year]]),\" \",\"\"),\"-\",\"\")","v":"flightlonghaul,to/fromukpremiumeconomyclasspassenger.km2024"}]
[null,169,"Flight Long-haul, to/from UK business class",0.58028000000000002,null,"passenger.km",2024,"DESNZ","UK",null,{"$f":"SUBSTITUTE(SUBSTITUTE(LOWER(carbonfactor_db[[#This Row],[Description]]&carbonfactor_db[[#This Row],[Unit]]&carbonfactor_db[[#This Row],[Year]]),\" \",\"\"),\"-\",\"\")","v":"flightlonghaul,to/fromukbusinessclasspassenger.km2024"}]
[null,170,"Flight Long-haul, to/from UK first class",0.8004,null,"passenger.km",2024,"DESNZ","UK",null,{"$f":"SUBSTITUTE(SUBSTITUTE(LOWER(carbonfactor_db[[#This Row],[Description]]&carbonfactor_db[[#This Row],[Unit]]&carbonfactor_db[[#This Row],[Year]]),\" \",\"\"),\"-\",\"\")","v":"flightlonghaul,to/fromukfirstclasspassenger.km2024"}]
[null,171,"Flight International, to/from non-UK average passenger",0.17580000000000001,null,"passenger.km",2024,"DESNZ","UK",null,{"$f":"SUBSTITUTE(SUBSTITUTE(LOWER(carbonfactor_db[[#This Row],[Description]]&carbonfactor_db[[#This Row],[Unit]]&carbonfactor_db[[#This Row],[Year]]),\" \",\"\"),\"-\",\"\")","v":"flightinternational,to/fromnonukaveragepassengerpassenger.km2024"}]
[null,172,"Flight International, to/from non-UK economy class",0.13464999999999999,null,"passenger.km",2024,"DESNZ","UK",null,{"$f":"SUBSTITUTE(SUBSTITUTE(LOWER(carbonfactor_db[[#This Row],[Description]]&carbonfactor_db[[#This Row],[Unit]]&carbonfactor_db[[#This Row],[Year]]),\" \",\"\"),\"-\",\"\")","v":"flightinternational,to/fromnonukeconomyclasspassenger.km2024"}]
[null,173,"Flight International, to/from non-UK premium economy class",0.21542,null,"passenger.km",2024,"DESNZ","UK",null,{"$f":"SUBSTITUTE(SUBSTITUTE(LOWER(carbonfactor_db[[#This Row],[Description]]&carbonfactor_db[[#This Row],[Unit]]&carbonfactor_db[[#This Row],[Year]]),\" \",\"\"),\"-\",\"\")","v":"flightinternational,to/fromnonukpremiumeconomyclasspassenger.km2024"}]
[null,174,"Flight International, to/from non-UK Business class",0.39044000000000001,null,"passenger.km",2024,"DESNZ","UK",null,{"$f":"SUBSTITUTE(SUBSTITUTE(LOWER(carbonfactor_db[[#This Row],[Description]]&carbonfactor_db[[#This Row],[Unit]]&carbonfactor_db[[#This Row],[Year]]),\" \",\"\"),\"-\",\"\")","v":"flightinternational,to/fromnonukbusinessclasspassenger.km2024"}]
[null,175,"Flight International, to/from non-UK First class",0.53854000000000002,null,"passenger.km",2024,"DESNZ","UK",null,{"$f":"SUBSTITUTE(SUBSTITUTE(LOWER(carbonfactor_db[[#This Row],[Description]]&carbonfactor_db[[#This Row],[Unit]]&carbonfactor_db[[#This Row],[Year]]),\" \",\"\"),\"-\",\"\")","v":"flightinternational,to/fromnonukfirstclasspassenger.km2024"}]
[null,176,"Ferry",0.11269999999999999,null,"passenger.km",2024,"DESNZ","UK","Average (all passenger)",{"$f":"SUBSTITUTE(SUBSTITUTE(LOWER(carbonfactor_db[[#This Row],[Description]]&carbonfactor_db[[#This Row],[Unit]]&carbonfactor_db[[#This Row],[Year]]),\" \",\"\"),\"-\",\"\")","v":"ferrypassenger.km2024"}]
[null,177,"Car average unknown fuel - upstream",4.3990000000000001E-2,null,"km",2024,"DESNZ","UK",null,{"$f":"SUBSTITUTE(SUBSTITUTE(LOWER(carbonfactor_db[[#This Row],[Description]]&carbonfactor_db[[#This Row],[Unit]]&carbonfactor_db[[#This Row],[Year]]),\" \",\"\"),\"-\",\"\")","v":"caraverageunknownfuelupstreamkm2024"}]
[null,178,"Car small diesel - upstream",3.4090000000000002E-2,null,"km",2024,"DESNZ","UK",null,{"$f":"SUBSTITUTE(SUBSTITUTE(LOWER(carbonfactor_db[[#This Row],[Description]]&carbonfactor_db[[#This Row],[Unit]]&carbonfactor_db[[#This Row],[Year]]),\" \",\"\"),\"-\",\"\")","v":"carsmalldieselupstreamkm2024"}]
[null,179,"Car medium diesel - upstream",4.1029999999999997E-2,null,"km",2024,"DESNZ","UK",null,{"$f":"SUBSTITUTE(SUBSTITUTE(LOWER(carbonfactor_db[[#This Row],[Description]]&carbonfactor_db[[#This Row],[Unit]]&carbonfactor_db[[#This Row],[Year]]),\" \",\"\"),\"-\",\"\")","v":"carmediumdieselupstreamkm2024"}]
[null,180,"Car large diesel - upstream",5.0700000000000002E-2,null,"km",2024,"DESNZ","UK",null,{"$f":"SUBSTITUTE(SUBSTITUTE(LOWER(carbonfactor_db[[#This Row],[Description]]&carbonfactor_db[[#This Row],[Unit]]&carbonfactor_db[[#This Row],[Year]]),\" \",\"\"),\"-\",\"\")","v":"carlargedieselupstreamkm2024"}]
[null,181,"Car average diesel - upstream",4.1459999999999997E-2,null,"km",2024,"DESNZ","UK",null,{"$f":"SUBSTITUTE(SUBSTITUTE(LOWER(carbonfactor_db[[#This Row],[Description]]&carbonfactor_db[[#This Row],[Unit]]&carbonfactor_db[[#This Row],[Year]]),\" \",\"\"),\"-\",\"\")","v":"caraveragedieselupstreamkm2024"}]
[null,182,"Car small petrol - upstream",4.0149999999999998E-2,null,"km",2024,"DESNZ","UK",null,{"$f":"SUBSTITUTE(SUBSTITUTE(LOWER(carbonfactor_db[[#This Row],[Description]]&carbonfactor_db[[#This Row],[Unit]]&carbonfactor_db[[#This Row],[Year]]),\" \",\"\"),\"-\",\"\")","v":"carsmallpetrolupstreamkm2024"}]
[null,183,"Car medium petrol - upstream",4.9570000000000003E-2,null,"km",2024,"DESNZ","UK",null,{"$f":"SUBSTITUTE(SUBSTITUTE(LOWER(carbonfactor_db[[#This Row],[Description]]&carbonfactor_db[[#This Row],[Unit]]&carbonfactor_db[[#This Row],[Year]]),\" \",\"\"),\"-\",\"\")","v":"carmediumpetrolupstreamkm2024"}]
[null,184,"Car large petrol - upstream",7.528E-2,null,"km",2024,"DESNZ","UK",null,{"$f":"SUBSTITUTE(SUBSTITUTE(LOWER(carbonfactor_db[[#This Row],[Description]]&carbonfactor_db[[#This Row],[Unit]]&carbonfactor_db[[#This Row],[Year]]),\" \",\"\"),\"-\",\"\")","v":"carlargepetrolupstreamkm2024"}]
[null,185,"Car average petrol - upstream",4.5990000000000003E-2,null,"km",2024,"DESNZ","UK",null,{"$f":"SUBSTITUTE(SUBSTITUTE(LOWER(carbonfactor_db[[#This Row],[Description]]&carbonfactor_db[[#This Row],[Unit]]&carbonfactor_db[[#This Row],[Year]]),\" \",\"\"),\"-\",\"\")","v":"caraveragepetrolupstreamkm2024"}]
[null,186,"Car small EV - upstream",9.4800000000000006E-3,null,"km",2024,"DESNZ","UK",null,{"$f":"SUBSTITUTE(SUBSTITUTE(LOWER(carbonfactor_db[[#This Row],[Description]]&carbonfactor_db[[#This Row],[Unit]]&carbonfactor_db[[#This Row],[Year]]),\" \",\"\"),\"-\",\"\")","v":"carsmallevupstreamkm2024"}]
[null,187,"Car medium EV - upstream",1.022E-2,null,"km",2024,"DESNZ","UK",null,{"$f":"SUBSTITUTE(SUBSTITUTE(LOWER(carbonfactor_db[[#This Row],[Description]]&carbonfactor_db[[#This Row],[Unit]]&carbonfactor_db[[#This Row],[Year]]),\" \",\"\"),\"-\",\"\")","v":"carmediumevupstreamkm2024"}]
[null,188,"Car large EV - upstream",1.0880000000000001E-2,null,"km",2024,"DESNZ","UK",null,{"$f":"SUBSTITUTE(SUBSTITUTE(LOWER(carbonfactor_db[[#This Row],[Description]]&carbonfactor_db[[#This Row],[Unit]]&carbonfactor_db[[#This Row],[Year]]),\" \",\"\"),\"-\",\"\")","v":"carlargeevupstreamkm2024"}]
[null,189,"Car average EV - upstream",1.0489999999999999E-2,null,"km",2024,"DESNZ","UK",null,{"$f":"SUBSTITUTE(SUBSTITUTE(LOWER(carbonfactor_db[[#This Row],[Description]]&carbonfactor_db[[#This Row],[Unit]]&carbonfactor_db[[#This Row],[Year]]),\" \",\"\"),\"-\",\"\")","v":"caraverageevupstreamkm2024"},null,null,null,null,null,{"$f":"VLOOKUP(\"england30cmorlesspastureha2024\",carbonfactor_db[Description code],1,FALSE)","v":"england30cmorlesspastureha2024"}]
[null,190,"Car small unknown fuel - upstream",3.8359999999999998E-2,null,"km",2024,"DESNZ","UK",null,{"$f":"SUBSTITUTE(SUBSTITUTE(LOWER(carbonfactor_db[[#This Row],[Description]]&carbonfactor_db[[#This Row],[Unit]]&carbonfactor_db[[#This Row],[Year]]),\" \",\"\"),\"-\",\"\")","v":"carsmallunknownfuelupstreamkm2024"}]
[null,191,"Car medium unknown fuel - upstream",4.5179999999999998E-2,null,"km",2024,"DESNZ","UK",null,{"$f":"SUBSTITUTE(SUBSTITUTE(LOWER(carbonfactor_db[[#This Row],[Description]]&carbonfactor_db[[#This Row],[Unit]]&carbonfactor_db[[#This Row],[Year]]),\" \",\"\"),\"-\",\"\")","v":"carmediumunknownfuelupstreamkm2024"}]
[null,192,"Car large unknown fuel - upstream",5.7639999999999997E-2,null,"km",2024,"DESNZ","UK",null,{"$f":"SUBSTITUTE(SUBSTITUTE(LOWER(carbonfactor_db[[#This Row],[Description]]&carbonfactor_db[[#This Row],[Unit]]&carbonfactor_db[[#This Row],[Year]]),\" \",\"\"),\"-\",\"\")","v":"carlargeunknownfuelupstreamkm2024"}]
[null,193,"Car small hybrid - upstream",3.0259999999999999E-2,null,"km",2024,"DESNZ","UK",null,{"$f":"SUBSTITUTE(SUBSTITUTE(LOWER(carbonfactor_db[[#This Row],[Description]]&carbonfactor_db[[#This Row],[Unit]]&carbonfactor_db[[#This Row],[Year]]),\" \",\"\"),\"-\",\"\")","v":"carsmallhybridupstreamkm2024"}]
[null,194,"Car medium hybrid - upstream",2.998E-2,null,"km",2024,"DESNZ","UK",null,{"$f":"SUBSTITUTE(SUBSTITUTE(LOWER(carbonfactor_db[[#This Row],[Description]]&carbonfactor_db[[#This Row],[Unit]]&carbonfactor_db[[#This Row],[Year]]),\" \",\"\"),\"-\",\"\")","v":"carmediumhybridupstreamkm2024"}]
[null,195,"Car large hybrid - upstream",3.9609999999999999E-2,null,"km",2024,"DESNZ","UK",null,{"$f":"SUBSTITUTE(SUBSTITUTE(LOWER(carbonfactor_db[[#This Row],[Description]]&carbonfactor_db[[#This Row],[Unit]]&carbonfactor_db[[#This Row],[Year]]),\" \",\"\"),\"-\",\"\")","v":"carlargehybridupstreamkm2024"}]
[null,196,"Car average hybrid - upstream",3.3149999999999999E-2,null,"km",2024,"DESNZ","UK",null,{"$f":"SUBSTITUTE(SUBSTITUTE(LOWER(carbonfactor_db[[#This Row],[Description]]&carbonfactor_db[[#This Row],[Unit]]&carbonfactor_db[[#This Row],[Year]]),\" \",\"\"),\"-\",\"\")","v":"caraveragehybridupstreamkm2024"}]
[null,197,"Car small plug-in hybrid - upstream",1.52E-2,null,"km",2024,"DESNZ","UK",null,{"$f":"SUBSTITUTE(SUBSTITUTE(LOWER(carbonfactor_db[[#This Row],[Description]]&carbonfactor_db[[#This Row],[Unit]]&carbonfactor_db[[#This Row],[Year]]),\" \",\"\"),\"-\",\"\")","v":"carsmallpluginhybridupstreamkm2024"}]
[null,198,"Car medium plug-in hybrid - upstream",2.5239999999999999E-2,null,"km",2024,"DESNZ","UK",null,{"$f":"SUBSTITUTE(SUBSTITUTE(LOWER(carbonfactor_db[[#This Row],[Description]]&carbonfactor_db[[#This Row],[Unit]]&carbonfactor_db[[#This Row],[Year]]),\" \",\"\"),\"-\",\"\")","v":"carmediumpluginhybridupstreamkm2024"}]
[null,199,"Car large plug-in hybrid - upstream",3.2210000000000003E-2,null,"km",2024,"DESNZ","UK",null,{"$f":"SUBSTITUTE(SUBSTITUTE(LOWER(carbonfactor_db[[#This Row],[Description]]&carbonfactor_db[[#This Row],[Unit]]&carbonfactor_db[[#This Row],[Year]]),\" \",\"\"),\"-\",\"\")","v":"carlargepluginhybridupstreamkm2024"}]
[null,200,"Car average plug-in hybrid - upstream",2.9340000000000001E-2,null,"km",2024,"DESNZ","UK",null,{"$f":"SUBSTITUTE(SUBSTITUTE(LOWER(carbonfactor_db[[#This Row],[Description]]&carbonfactor_db[[#This Row],[Unit]]&carbonfactor_db[[#This Row],[Year]]),\" \",\"\"),\"-\",\"\")","v":"caraveragepluginhybridupstreamkm2024"}]
[null,201,"Van class I (up to 1.305 tonnes) diesel - upstream",3.746E-2,null,"km",2024,"DESNZ","UK",null,{"$f":"SUBSTITUTE(SUBSTITUTE(LOWER(carbonfactor_db[[#This Row],[Description]]&carbonfactor_db[[#This Row],[Unit]]&carbonfactor_db[[#This Row],[Year]]),\" \",\"\"),\"-\",\"\")","v":"vanclassi(upto1.305tonnes)dieselupstreamkm2024"}]
[null,202,"Van class II (1.305 to 1.74 tonnes) diesel - upstream",4.6019999999999998E-2,null,"km",2024,"DESNZ","UK",null,{"$f":"SUBSTITUTE(SUBSTITUTE(LOWER(carbonfactor_db[[#This Row],[Description]]&carbonfactor_db[[#This Row],[Unit]]&carbonfactor_db[[#This Row],[Year]]),\" \",\"\"),\"-\",\"\")","v":"vanclassii(1.305to1.74tonnes)dieselupstreamkm2024"}]
[null,203,"Van class III (1.74 to 3.5 tonnes) diesel - upstream",6.7059999999999995E-2,null,"km",2024,"DESNZ","UK",null,{"$f":"SUBSTITUTE(SUBSTITUTE(LOWER(carbonfactor_db[[#This Row],[Description]]&carbonfactor_db[[#This Row],[Unit]]&carbonfactor_db[[#This Row],[Year]]),\" \",\"\"),\"-\",\"\")","v":"vanclassiii(1.74to3.5tonnes)dieselupstreamkm2024"}]
[null,204,"Van average (up to 3.5 tonnes) diesel - upstream",6.1280000000000001E-2,null,"km",2024,"DESNZ","UK",null,{"$f":"SUBSTITUTE(SUBSTITUTE(LOWER(carbonfactor_db[[#This Row],[Description]]&carbonfactor_db[[#This Row],[Unit]]&carbonfactor_db[[#This Row],[Year]]),\" \",\"\"),\"-\",\"\")","v":"vanaverage(upto3.5tonnes)dieselupstreamkm2024"}]
[null,205,"Van class I (up to 1.305 tonnes) petrol - upstream",5.6140000000000002E-2,null,"km",2024,"DESNZ","UK",null,{"$f":"SUBSTITUTE(SUBSTITUTE(LOWER(carbonfactor_db[[#This Row],[Description]]&carbonfactor_db[[#This Row],[Unit]]&carbonfactor_db[[#This Row],[Year]]),\" \",\"\"),\"-\",\"\")","v":"vanclassi(upto1.305tonnes)petrolupstreamkm2024"}]
[null,206,"Van class II (1.305 to 1.74 tonnes) petrol - upstream",6.0740000000000002E-2,null,"km",2024,"DESNZ","UK",null,{"$f":"SUBSTITUTE(SUBSTITUTE(LOWER(carbonfactor_db[[#This Row],[Description]]&carbonfactor_db[[#This Row],[Unit]]&carbonfactor_db[[#This Row],[Year]]),\" \",\"\"),\"-\",\"\")","v":"vanclassii(1.305to1.74tonnes)petrolupstreamkm2024"}]
[null,207,"Van class III (1.74 to 3.5 tonnes) petrol - upstream",9.783E-2,null,"km",2024,"DESNZ","UK",null,{"$f":"SUBSTITUTE(SUBSTITUTE(LOWER(carbonfactor_db[[#This Row],[Description]]&carbonfactor_db[[#This Row],[Unit]]&carbonfactor_db[[#This Row],[Year]]),\" \",\"\"),\"-\",\"\")","v":"vanclassiii(1.74to3.5tonnes)petrolupstreamkm2024"}]
[null,208,"Van average (up to 3.5 tonnes) petrol - upstream",6.1830000000000003E-2,null,"km",2024,"DESNZ","UK",null,{"$f":"SUBSTITUTE(SUBSTITUTE(LOWER(carbonfactor_db[[#This Row],[Description]]&carbonfactor_db[[#This Row],[Unit]]&carbonfactor_db[[#This Row],[Year]]),\" \",\"\"),\"-\",\"\")","v":"vanaverage(upto3.5tonnes)petrolupstreamkm2024"}]
[null,209,"Van class I (up to 1.305 tonnes) electric - upstream",9.4299999999999991E-3,null,"km",2024,"DESNZ","UK",null,{"$f":"SUBSTITUTE(SUBSTITUTE(LOWER(carbonfactor_db[[#This Row],[Description]]&carbonfactor_db[[#This Row],[Unit]]&carbonfactor_db[[#This Row],[Year]]),\" \",\"\"),\"-\",\"\")","v":"vanclassi(upto1.305tonnes)electricupstreamkm2024"}]
[null,210,"Van class II (1.305 to 1.74 tonnes) electric - upstream",1.4540000000000001E-2,null,"km",2024,"DESNZ","UK",null,{"$f":"SUBSTITUTE(SUBSTITUTE(LOWER(carbonfactor_db[[#This Row],[Description]]&carbonfactor_db[[#This Row],[Unit]]&carbonfactor_db[[#This Row],[Year]]),\" \",\"\"),\"-\",\"\")","v":"vanclassii(1.305to1.74tonnes)electricupstreamkm2024"}]
[null,211,"Van class III (1.74 to 3.5 tonnes) electric - upstream",1.9789999999999999E-2,null,"km",2024,"DESNZ","UK",null,{"$f":"SUBSTITUTE(SUBSTITUTE(LOWER(carbonfactor_db[[#This Row],[Description]]&carbonfactor_db[[#This Row],[Unit]]&carbonfactor_db[[#This Row],[Year]]),\" \",\"\"),\"-\",\"\")","v":"vanclassiii(1.74to3.5tonnes)electricupstreamkm2024"}]
[null,212,"Van average (up to 3.5 tonnes) electric - upstream",1.7590000000000001E-2,null,"km",2024,"DESNZ","UK",null,{"$f":"SUBSTITUTE(SUBSTITUTE(LOWER(carbonfactor_db[[#This Row],[Description]]&carbonfactor_db[[#This Row],[Unit]]&carbonfactor_db[[#This Row],[Year]]),\" \",\"\"),\"-\",\"\")","v":"vanaverage(upto3.5tonnes)electricupstreamkm2024"}]
[null,213,"Van average (up to 3.5 tonnes) unknown fuel - upstream",6.13E-2,null,"km",2024,"DESNZ","UK",null,{"$f":"SUBSTITUTE(SUBSTITUTE(LOWER(carbonfactor_db[[#This Row],[Description]]&carbonfactor_db[[#This Row],[Unit]]&carbonfactor_db[[#This Row],[Year]]),\" \",\"\"),\"-\",\"\")","v":"vanaverage(upto3.5tonnes)unknownfuelupstreamkm2024"}]
[null,214,"Van average (up to 3.5 tonnes) diesel - upstream",0.15095,null,"passenger.km",2024,"DESNZ","UK",null,{"$f":"SUBSTITUTE(SUBSTITUTE(LOWER(carbonfactor_db[[#This Row],[Description]]&carbonfactor_db[[#This Row],[Unit]]&carbonfactor_db[[#This Row],[Year]]),\" \",\"\"),\"-\",\"\")","v":"vanaverage(upto3.5tonnes)dieselupstreampassenger.km2024"}]
[null,215,"Motorbike - upstream",2.9559999999999999E-2,null,"passenger.km",2024,"DESNZ","UK","Average motorbike",{"$f":"SUBSTITUTE(SUBSTITUTE(LOWER(carbonfactor_db[[#This Row],[Description]]&carbonfactor_db[[#This Row],[Unit]]&carbonfactor_db[[#This Row],[Year]]),\" \",\"\"),\"-\",\"\")","v":"motorbikeupstreampassenger.km2024"}]
[null,216,"Taxi regular taxi - upstream",3.6970000000000003E-2,null,"passenger.km",2024,"DESNZ","UK",null,{"$f":"SUBSTITUTE(SUBSTITUTE(LOWER(carbonfactor_db[[#This Row],[Description]]&carbonfactor_db[[#This Row],[Unit]]&carbonfactor_db[[#This Row],[Year]]),\" \",\"\"),\"-\",\"\")","v":"taxiregulartaxiupstreampassenger.km2024"}]
[null,217,"Taxi black cab - upstream",5.0900000000000001E-2,null,"passenger.km",2024,"DESNZ","UK",null,{"$f":"SUBSTITUTE(SUBSTITUTE(LOWER(carbonfactor_db[[#This Row],[Description]]&carbonfactor_db[[#This Row],[Unit]]&carbonfactor_db[[#This Row],[Year]]),\" \",\"\"),\"-\",\"\")","v":"taxiblackcabupstreampassenger.km2024"}]
[null,218,"Bus - upstream",2.649E-2,null,"passenger.km",2024,"DESNZ","UK","Average local bus",{"$f":"SUBSTITUTE(SUBSTITUTE(LOWER(carbonfactor_db[[#This Row],[Description]]&carbonfactor_db[[#This Row],[Unit]]&carbonfactor_db[[#This Row],[Year]]),\" \",\"\"),\"-\",\"\")","v":"busupstreampassenger.km2024"}]
[null,219,"Rail national - upstream",8.9700000000000005E-3,null,"passenger.km",2024,"DESNZ","UK",null,{"$f":"SUBSTITUTE(SUBSTITUTE(LOWER(carbonfactor_db[[#This Row],[Description]]&carbonfactor_db[[#This Row],[Unit]]&carbonfactor_db[[#This Row],[Year]]),\" \",\"\"),\"-\",\"\")","v":"railnationalupstreampassenger.km2024"}]
[null,220,"Rail international - upstream",1.17E-3,null,"passenger.km",2024,"DESNZ","UK",null,{"$f":"SUBSTITUTE(SUBSTITUTE(LOWER(carbonfactor_db[[#This Row],[Description]]&carbonfactor_db[[#This Row],[Unit]]&carbonfactor_db[[#This Row],[Year]]),\" \",\"\"),\"-\",\"\")","v":"railinternationalupstreampassenger.km2024"}]
[null,221,"Tram - upstream",7.4900000000000001E-3,null,"passenger.km",2024,"DESNZ","UK",null,{"$f":"SUBSTITUTE(SUBSTITUTE(LOWER(carbonfactor_db[[#This Row],[Description]]&carbonfactor_db[[#This Row],[Unit]]&carbonfactor_db[[#This Row],[Year]]),\" \",\"\"),\"-\",\"\")","v":"tramupstreampassenger.km2024"}]
[null,222,"London Underground - upstream",7.28E-3,null,"passenger.km",2024,"DESNZ","UK",null,{"$f":"SUBSTITUTE(SUBSTITUTE(LOWER(carbonfactor_db[[#This Row],[Description]]&carbonfactor_db[[#This Row],[Unit]]&carbonfactor_db[[#This Row],[Year]]),\" \",\"\"),\"-\",\"\")","v":"londonundergroundupstreampassenger.km2024"}]
[null,223,"Flight Domestic, to/from UK average passenger - upstream",3.3500000000000002E-2,null,"passenger.km",2024,"DESNZ","UK",null,{"$f":"SUBSTITUTE(SUBSTITUTE(LOWER(carbonfactor_db[[#This Row],[Description]]&carbonfactor_db[[#This Row],[Unit]]&carbonfactor_db[[#This Row],[Year]]),\" \",\"\"),\"-\",\"\")","v":"flightdomestic,to/fromukaveragepassengerupstreampassenger.km2024"}]
[null,224,"Flight Short-haul, to/from UK average passenger - upstream",2.2859999999999998E-2,null,"passenger.km",2024,"DESNZ","UK",null,{"$f":"SUBSTITUTE(SUBSTITUTE(LOWER(carbonfactor_db[[#This Row],[Description]]&carbonfactor_db[[#This Row],[Unit]]&carbonfactor_db[[#This Row],[Year]]),\" \",\"\"),\"-\",\"\")","v":"flightshorthaul,to/fromukaveragepassengerupstreampassenger.km2024"}]
[null,225,"Flight Short-haul, to/from UK economy class - upstream",2.249E-2,null,"passenger.km",2024,"DESNZ","UK",null,{"$f":"SUBSTITUTE(SUBSTITUTE(LOWER(carbonfactor_db[[#This Row],[Description]]&carbonfactor_db[[#This Row],[Unit]]&carbonfactor_db[[#This Row],[Year]]),\" \",\"\"),\"-\",\"\")","v":"flightshorthaul,to/fromukeconomyclassupstreampassenger.km2024"}]
[null,226,"Flight Short-haul, to/from UK business class - upstream",3.3730000000000003E-2,null,"passenger.km",2024,"DESNZ","UK",null,{"$f":"SUBSTITUTE(SUBSTITUTE(LOWER(carbonfactor_db[[#This Row],[Description]]&carbonfactor_db[[#This Row],[Unit]]&carbonfactor_db[[#This Row],[Year]]),\" \",\"\"),\"-\",\"\")","v":"flightshorthaul,to/fromukbusinessclassupstreampassenger.km2024"}]
[null,227,"Flight Long-haul, to/from UK average passenger - upstream",3.2129999999999999E-2,null,"passenger.km",2024,"DESNZ","UK",null,{"$f":"SUBSTITUTE(SUBSTITUTE(LOWER(carbonfactor_db[[#This Row],[Description]]&carbonfactor_db[[#This Row],[Unit]]&carbonfactor_db[[#This Row],[Year]]),\" \",\"\"),\"-\",\"\")","v":"flightlonghaul,to/fromukaveragepassengerupstreampassenger.km2024"}]
[null,228,"Flight Long-haul, to/from UK economy class - upstream",2.461E-2,null,"passenger.km",2024,"DESNZ","UK",null,{"$f":"SUBSTITUTE(SUBSTITUTE(LOWER(carbonfactor_db[[#This Row],[Description]]&carbonfactor_db[[#This Row],[Unit]]&carbonfactor_db[[#This Row],[Year]]),\" \",\"\"),\"-\",\"\")","v":"flightlonghaul,to/fromukeconomyclassupstreampassenger.km2024"}]
[null,229,"Flight Long-haul, to/from UK premium economy class - upstream",3.9370000000000002E-2,null,"passenger.km",2024,"DESNZ","UK",null,{"$f":"SUBSTITUTE(SUBSTITUTE(LOWER(carbonfactor_db[[#This Row],[Description]]&carbonfactor_db[[#This Row],[Unit]]&carbonfactor_db[[#This Row],[Year]]),\" \",\"\"),\"-\",\"\")","v":"flightlonghaul,to/fromukpremiumeconomyclassupstreampassenger.km2024"}]
[null,230,"Flight Long-haul, to/from UK business class - upstream",7.1370000000000003E-2,null,"passenger.km",2024,"DESNZ","UK",null,{"$f":"SUBSTITUTE(SUBSTITUTE(LOWER(carbonfactor_db[[#This Row],[Description]]&carbonfactor_db[[#This Row],[Unit]]&carbonfactor_db[[#This Row],[Year]]),\" \",\"\"),\"-\",\"\")","v":"flightlonghaul,to/fromukbusinessclassupstreampassenger.km2024"}]
[null,231,"Flight Long-haul, to/from UK first class - upstream",9.844E-2,null,"passenger.km",2024,"DESNZ","UK",null,{"$f":"SUBSTITUTE(SUBSTITUTE(LOWER(carbonfactor_db[[#This Row],[Description]]&carbonfactor_db[[#This Row],[Unit]]&carbonfactor_db[[#This Row],[Year]]),\" \",\"\"),\"-\",\"\")","v":"flightlonghaul,to/fromukfirstclassupstreampassenger.km2024"}]
[null,232,"Flight International, to/from non-UK average passenger - upstream",2.162E-2,null,"passenger.km",2024,"DESNZ","UK",null,{"$f":"SUBSTITUTE(SUBSTITUTE(LOWER(carbonfactor_db[[#This Row],[Description]]&carbonfactor_db[[#This Row],[Unit]]&carbonfactor_db[[#This Row],[Year]]),\" \",\"\"),\"-\",\"\")","v":"flightinternational,to/fromnonukaveragepassengerupstreampassenger.km2024"}]
[null,233,"Flight International, to/from non-UK economy class - upstream",1.6559999999999998E-2,null,"passenger.km",2024,"DESNZ","UK",null,{"$f":"SUBSTITUTE(SUBSTITUTE(LOWER(carbonfactor_db[[#This Row],[Description]]&carbonfactor_db[[#This Row],[Unit]]&carbonfactor_db[[#This Row],[Year]]),\" \",\"\"),\"-\",\"\")","v":"flightinternational,to/fromnonukeconomyclassupstreampassenger.km2024"}]
[null,234,"Flight International, to/from non-UK premium economy class - upstream",2.649E-2,null,"passenger.km",2024,"DESNZ","UK",null,{"$f":"SUBSTITUTE(SUBSTITUTE(LOWER(carbonfactor_db[[#This Row],[Description]]&carbonfactor_db[[#This Row],[Unit]]&carbonfactor_db[[#This Row],[Year]]),\" \",\"\"),\"-\",\"\")","v":"flightinternational,to/fromnonukpremiumeconomyclassupstreampassenger.km2024"}]
[null,235,"Flight International, to/from non-UK Business class - upstream",4.802E-2,null,"passenger.km",2024,"DESNZ","UK",null,{"$f":"SUBSTITUTE(SUBSTITUTE(LOWER(carbonfactor_db[[#This Row],[Description]]&carbonfactor_db[[#This Row],[Unit]]&carbonfactor_db[[#This Row],[Year]]),\" \",\"\"),\"-\",\"\")","v":"flightinternational,to/fromnonukbusinessclassupstreampassenger.km2024"}]
[null,236,"Flight International, to/from non-UK First class - upstream",6.6229999999999997E-2,null,"passenger.km",2024,"DESNZ","UK",null,{"$f":"SUBSTITUTE(SUBSTITUTE(LOWER(carbonfactor_db[[#This Row],[Description]]&carbonfactor_db[[#This Row],[Unit]]&carbonfactor_db[[#This Row],[Year]]),\" \",\"\"),\"-\",\"\")","v":"flightinternational,to/fromnonukfirstclassupstreampassenger.km2024"}]
[null,237,"Ferry - upstream",2.555E-2,null,"passenger.km",2024,"DESNZ","UK",null,{"$f":"SUBSTITUTE(SUBSTITUTE(LOWER(carbonfactor_db[[#This Row],[Description]]&carbonfactor_db[[#This Row],[Unit]]&carbonfactor_db[[#This Row],[Year]]),\" \",\"\"),\"-\",\"\")","v":"ferryupstreampassenger.km2024"}]
[null,238,"Electricity",0.20707428859060403,null,"kWh",2023,"DESNZ","UK",null,{"$f":"SUBSTITUTE(SUBSTITUTE(LOWER(carbonfactor_db[[#This Row],[Description]]&carbonfactor_db[[#This Row],[Unit]]&carbonfactor_db[[#This Row],[Year]]),\" \",\"\"),\"-\",\"\")","v":"electricitykwh2023"}]
[null,239,"Electricity - upstream",6.7785111409395971E-2,null,"kWh",2023,"DESNZ","UK","T&D and WTT for generation and WTT for T&D",{"$f":"SUBSTITUTE(SUBSTITUTE(LOWER(carbonfactor_db[[#This Row],[Description]]&carbonfactor_db[[#This Row],[Unit]]&carbonfactor_db[[#This Row],[Year]]),\" \",\"\"),\"-\",\"\")","v":"electricityupstreamkwh2023"}]
[null,240,"Electricity - biogenic",0.11506924154625897,null,"kWh",2023,"DESNZ","UK",null,{"$f":"SUBSTITUTE(SUBSTITUTE(LOWER(carbonfactor_db[[#This Row],[Description]]&carbonfactor_db[[#This Row],[Unit]]&carbonfactor_db[[#This Row],[Year]]),\" \",\"\"),\"-\",\"\")","v":"electricitybiogenickwh2023"}]
[null,241,"Natural gas",0.18292892617449666,null,"kWh",2023,"DESNZ","UK",null,{"$f":"SUBSTITUTE(SUBSTITUTE(LOWER(carbonfactor_db[[#This Row],[Description]]&carbonfactor_db[[#This Row],[Unit]]&carbonfactor_db[[#This Row],[Year]]),\" \",\"\"),\"-\",\"\")","v":"naturalgaskwh2023"}]
[null,242,"Natural gas - upstream",3.0210000000000001E-2,null,"kWh",2023,"DESNZ","UK",null,{"$f":"SUBSTITUTE(SUBSTITUTE(LOWER(carbonfactor_db[[#This Row],[Description]]&carbonfactor_db[[#This Row],[Unit]]&carbonfactor_db[[#This Row],[Year]]),\" \",\"\"),\"-\",\"\")","v":"naturalgasupstreamkwh2023"}]
[null,243,"Fuel oil",3.1749249825503356,null,"litres",2023,"DESNZ","UK",null,{"$f":"SUBSTITUTE(SUBSTITUTE(LOWER(carbonfactor_db[[#This Row],[Description]]&carbonfactor_db[[#This Row],[Unit]]&carbonfactor_db[[#This Row],[Year]]),\" \",\"\"),\"-\",\"\")","v":"fueloillitres2023"}]
[null,244,"Fuel oil - upstream",0.69538999999999995,null,"litres",2023,"DESNZ","UK",null,{"$f":"SUBSTITUTE(SUBSTITUTE(LOWER(carbonfactor_db[[#This Row],[Description]]&carbonfactor_db[[#This Row],[Unit]]&carbonfactor_db[[#This Row],[Year]]),\" \",\"\"),\"-\",\"\")","v":"fueloilupstreamlitres2023"}]
[null,245,"Diesel (average biofuel blend)",2.5120638845637586,null,"litres",2023,"DESNZ","UK",null,{"$f":"SUBSTITUTE(SUBSTITUTE(LOWER(carbonfactor_db[[#This Row],[Description]]&carbonfactor_db[[#This Row],[Unit]]&carbonfactor_db[[#This Row],[Year]]),\" \",\"\"),\"-\",\"\")","v":"diesel(averagebiofuelblend)litres2023"}]
[null,246,"Diesel (average biofuel blend) - upstream",0.61101000000000005,null,"litres",2023,"DESNZ","UK",null,{"$f":"SUBSTITUTE(SUBSTITUTE(LOWER(carbonfactor_db[[#This Row],[Description]]&carbonfactor_db[[#This Row],[Unit]]&carbonfactor_db[[#This Row],[Year]]),\" \",\"\"),\"-\",\"\")","v":"diesel(averagebiofuelblend)upstreamlitres2023"}]
[null,247,"Diesel (average biofuel blend) - biogenic",0.14000000000000001,null,"litres",2023,"DESNZ","UK",null,{"$f":"SUBSTITUTE(SUBSTITUTE(LOWER(carbonfactor_db[[#This Row],[Description]]&carbonfactor_db[[#This Row],[Unit]]&carbonfactor_db[[#This Row],[Year]]),\" \",\"\"),\"-\",\"\")","v":"diesel(averagebiofuelblend)biogeniclitres2023"}]
[null,248,"Petrol (average biofuel blend)",2.0974731275167802,null,"litres",2023,"DESNZ","UK",null,{"$f":"SUBSTITUTE(SUBSTITUTE(LOWER(carbonfactor_db[[#This Row],[Description]]&carbonfactor_db[[#This Row],[Unit]]&carbonfactor_db[[#This Row],[Year]]),\" \",\"\"),\"-\",\"\")","v":"petrol(averagebiofuelblend)litres2023"}]
[null,249,"Petrol (average biofuel blend) - upstream",0.58094000000000001,null,"litres",2023,"DESNZ","UK",null,{"$f":"SUBSTITUTE(SUBSTITUTE(LOWER(carbonfactor_db[[#This Row],[Description]]&carbonfactor_db[[#This Row],[Unit]]&carbonfactor_db[[#This Row],[Year]]),\" \",\"\"),\"-\",\"\")","v":"petrol(averagebiofuelblend)upstreamlitres2023"}]
[null,250,"Petrol (average biofuel blend) - biogenic",0.12,null,"litres",2023,"DESNZ","UK",null,{"$f":"SUBSTITUTE(SUBSTITUTE(LOWER(carbonfactor_db[[#This Row],[Description]]&carbonfactor_db[[#This Row],[Unit]]&carbonfactor_db[[#This Row],[Year]]),\" \",\"\"),\"-\",\"\")","v":"petrol(averagebiofuelblend)biogeniclitres2023"}]
[null,251,"Biodiesel HVO",3.5580000000000001E-2,null,"litres",2023,"DESNZ","UK",null,{"$f":"SUBSTITUTE(SUBSTITUTE(LOWER(carbonfactor_db[[#This Row],[Description]]&carbonfactor_db[[#This Row],[Unit]]&carbonfactor_db[[#This Row],[Year]]),\" \",\"\"),\"-\",\"\")","v":"biodieselhvolitres2023"}]
[null,252,"Biodiesel HVO - upstream",0.27844000000000002,null,"litres",2023,"DESNZ","UK",null,{"$f":"SUBSTITUTE(SUBSTITUTE(LOWER(carbonfactor_db[[#This Row],[Description]]&carbonfactor_db[[#This Row],[Unit]]&carbonfactor_db[[#This Row],[Year]]),\" \",\"\"),\"-\",\"\")","v":"biodieselhvoupstreamlitres2023"}]
[null,253,"Biodiesel HVO - biogenic",2.4300000000000002,null,"litres",2023,"DESNZ","UK",null,{"$f":"SUBSTITUTE(SUBSTITUTE(LOWER(carbonfactor_db[[#This Row],[Description]]&carbonfactor_db[[#This Row],[Unit]]&carbonfactor_db[[#This Row],[Year]]),\" \",\"\"),\"-\",\"\")","v":"biodieselhvobiogeniclitres2023"}]
[null,254,"Paper",{"$f":"910.478097809396/1000","v":0.91047809780939604},null,"kg",2023,"DESNZ","UK",null,{"$f":"SUBSTITUTE(SUBSTITUTE(LOWER(carbonfactor_db[[#This Row],[Description]]&carbonfactor_db[[#This Row],[Unit]]&carbonfactor_db[[#This Row],[Year]]),\" \",\"\"),\"-\",\"\")","v":"paperkg2023"}]
[null,255,"Water supply",0.1766845465790137,null,"m3",2023,"DESNZ","UK",null,{"$f":"SUBSTITUTE(SUBSTITUTE(LOWER(carbonfactor_db[[#This Row],[Description]]&carbonfactor_db[[#This Row],[Unit]]&carbonfactor_db[[#This Row],[Year]]),\" \",\"\"),\"-\",\"\")","v":"watersupplym32023"}]
[null,256,"Homeworking (office equipment + heating)",0.33378120456670213,null,"FTE working hour",2023,"DESNZ","UK",null,{"$f":"SUBSTITUTE(SUBSTITUTE(LOWER(carbonfactor_db[[#This Row],[Description]]&carbonfactor_db[[#This Row],[Unit]]&carbonfactor_db[[#This Row],[Year]]),\" \",\"\"),\"-\",\"\")","v":"homeworking(officeequipment+heating)fteworkinghour2023"}]
[null,257,"Car average unknown fuel",0.16674,null,"km",2023,"DESNZ","UK",null,{"$f":"SUBSTITUTE(SUBSTITUTE(LOWER(carbonfactor_db[[#This Row],[Description]]&carbonfactor_db[[#This Row],[Unit]]&carbonfactor_db[[#This Row],[Year]]),\" \",\"\"),\"-\",\"\")","v":"caraverageunknownfuelkm2023"}]
[null,258,"Car small diesel",0.13930644888053692,null,"km",2023,"DESNZ","UK",null,{"$f":"SUBSTITUTE(SUBSTITUTE(LOWER(carbonfactor_db[[#This Row],[Description]]&carbonfactor_db[[#This Row],[Unit]]&carbonfactor_db[[#This Row],[Year]]),\" \",\"\"),\"-\",\"\")","v":"carsmalldieselkm2023"}]
[null,259,"Car medium diesel",0.16715644888053691,null,"km",2023,"DESNZ","UK",null,{"$f":"SUBSTITUTE(SUBSTITUTE(LOWER(carbonfactor_db[[#This Row],[Description]]&carbonfactor_db[[#This Row],[Unit]]&carbonfactor_db[[#This Row],[Year]]),\" \",\"\"),\"-\",\"\")","v":"carmediumdieselkm2023"}]
[null,260,"Car large diesel",0.20858644888053693,null,"km",2023,"DESNZ","UK",null,{"$f":"SUBSTITUTE(SUBSTITUTE(LOWER(carbonfactor_db[[#This Row],[Description]]&carbonfactor_db[[#This Row],[Unit]]&carbonfactor_db[[#This Row],[Year]]),\" \",\"\"),\"-\",\"\")","v":"carlargedieselkm2023"}]
[null,261,"Car average diesel",0.16982644888053691,null,"km",2023,"DESNZ","UK",null,{"$f":"SUBSTITUTE(SUBSTITUTE(LOWER(carbonfactor_db[[#This Row],[Description]]&carbonfactor_db[[#This Row],[Unit]]&carbonfactor_db[[#This Row],[Year]]),\" \",\"\"),\"-\",\"\")","v":"caraveragedieselkm2023"}]
[null,262,"Car small petrol",0.14079853422818792,null,"km",2023,"DESNZ","UK",null,{"$f":"SUBSTITUTE(SUBSTITUTE(LOWER(carbonfactor_db[[#This Row],[Description]]&carbonfactor_db[[#This Row],[Unit]]&carbonfactor_db[[#This Row],[Year]]),\" \",\"\"),\"-\",\"\")","v":"carsmallpetrolkm2023"}]
[null,263,"Car medium petrol",0.17818853422818792,null,"km",2023,"DESNZ","UK",null,{"$f":"SUBSTITUTE(SUBSTITUTE(LOWER(carbonfactor_db[[#This Row],[Description]]&carbonfactor_db[[#This Row],[Unit]]&carbonfactor_db[[#This Row],[Year]]),\" \",\"\"),\"-\",\"\")","v":"carmediumpetrolkm2023"}]
[null,264,"Car large petrol",0.27223853422818795,null,"km",2023,"DESNZ","UK",null,{"$f":"SUBSTITUTE(SUBSTITUTE(LOWER(carbonfactor_db[[#This Row],[Description]]&carbonfactor_db[[#This Row],[Unit]]&carbonfactor_db[[#This Row],[Year]]),\" \",\"\"),\"-\",\"\")","v":"carlargepetrolkm2023"}]
[null,265,"Car average petrol",0.16390853422818791,null,"km",2023,"DESNZ","UK",null,{"$f":"SUBSTITUTE(SUBSTITUTE(LOWER(carbonfactor_db[[#This Row],[Description]]&carbonfactor_db[[#This Row],[Unit]]&carbonfactor_db[[#This Row],[Year]]),\" \",\"\"),\"-\",\"\")","v":"caraveragepetrolkm2023"}]
[null,266,"Car small EV",4.4399300671140937E-2,null,"km",2023,"DESNZ","UK",null,{"$f":"SUBSTITUTE(SUBSTITUTE(LOWER(carbonfactor_db[[#This Row],[Description]]&carbonfactor_db[[#This Row],[Unit]]&carbonfactor_db[[#This Row],[Year]]),\" \",\"\"),\"-\",\"\")","v":"carsmallevkm2023"}]
[null,267,"Car medium EV",4.8457271140939603E-2,null,"km",2023,"DESNZ","UK",null,{"$f":"SUBSTITUTE(SUBSTITUTE(LOWER(carbonfactor_db[[#This Row],[Description]]&carbonfactor_db[[#This Row],[Unit]]&carbonfactor_db[[#This Row],[Year]]),\" \",\"\"),\"-\",\"\")","v":"carmediumevkm2023"}]
[null,268,"Car large EV",5.3355334228187917E-2,null,"km",2023,"DESNZ","UK",null,{"$f":"SUBSTITUTE(SUBSTITUTE(LOWER(carbonfactor_db[[#This Row],[Description]]&carbonfactor_db[[#This Row],[Unit]]&carbonfactor_db[[#This Row],[Year]]),\" \",\"\"),\"-\",\"\")","v":"carlargeevkm2023"}]
[null,269,"Car average EV",5.0427363758389264E-2,null,"km",2023,"DESNZ","UK",null,{"$f":"SUBSTITUTE(SUBSTITUTE(LOWER(carbonfactor_db[[#This Row],[Description]]&carbonfactor_db[[#This Row],[Unit]]&carbonfactor_db[[#This Row],[Year]]),\" \",\"\"),\"-\",\"\")","v":"caraverageevkm2023"}]
[null,270,"Car small unknown fuel",0.14044000000000001,null,"km",2023,"DESNZ","UK",null,{"$f":"SUBSTITUTE(SUBSTITUTE(LOWER(carbonfactor_db[[#This Row],[Description]]&carbonfactor_db[[#This Row],[Unit]]&carbonfactor_db[[#This Row],[Year]]),\" \",\"\"),\"-\",\"\")","v":"carsmallunknownfuelkm2023"}]
[null,271,"Car medium unknown fuel",0.17257000000000003,null,"km",2023,"DESNZ","UK",null,{"$f":"SUBSTITUTE(SUBSTITUTE(LOWER(carbonfactor_db[[#This Row],[Description]]&carbonfactor_db[[#This Row],[Unit]]&carbonfactor_db[[#This Row],[Year]]),\" \",\"\"),\"-\",\"\")","v":"carmediumunknownfuelkm2023"}]
[null,272,"Car large unknown fuel",0.22627,null,"km",2023,"DESNZ","UK",null,{"$f":"SUBSTITUTE(SUBSTITUTE(LOWER(carbonfactor_db[[#This Row],[Description]]&carbonfactor_db[[#This Row],[Unit]]&carbonfactor_db[[#This Row],[Year]]),\" \",\"\"),\"-\",\"\")","v":"carlargeunknownfuelkm2023"}]
[null,273,"Car small hybrid",0.10149885771812081,null,"km",2023,"DESNZ","UK",null,{"$f":"SUBSTITUTE(SUBSTITUTE(LOWER(carbonfactor_db[[#This Row],[Description]]&carbonfactor_db[[#This Row],[Unit]]&carbonfactor_db[[#This Row],[Year]]),\" \",\"\"),\"-\",\"\")","v":"carsmallhybridkm2023"}]
[null,274,"Car medium hybrid",0.10903843624161073,null,"km",2023,"DESNZ","UK",null,{"$f":"SUBSTITUTE(SUBSTITUTE(LOWER(carbonfactor_db[[#This Row],[Description]]&carbonfactor_db[[#This Row],[Unit]]&carbonfactor_db[[#This Row],[Year]]),\" \",\"\"),\"-\",\"\")","v":"carmediumhybridkm2023"}]
[null,275,"Car large hybrid",0.15243580000000001,null,"km",2023,"DESNZ","UK",null,{"$f":"SUBSTITUTE(SUBSTITUTE(LOWER(carbonfactor_db[[#This Row],[Description]]&carbonfactor_db[[#This Row],[Unit]]&carbonfactor_db[[#This Row],[Year]]),\" \",\"\"),\"-\",\"\")","v":"carlargehybridkm2023"}]
[null,276,"Car average hybrid",0.11897858791946307,null,"km",2023,"DESNZ","UK",null,{"$f":"SUBSTITUTE(SUBSTITUTE(LOWER(carbonfactor_db[[#This Row],[Description]]&carbonfactor_db[[#This Row],[Unit]]&carbonfactor_db[[#This Row],[Year]]),\" \",\"\"),\"-\",\"\")","v":"caraveragehybridkm2023"}]
[null,277,"Car small plug-in hybrid",2.163E-2,null,"km",2023,"DESNZ","UK",null,{"$f":"SUBSTITUTE(SUBSTITUTE(LOWER(carbonfactor_db[[#This Row],[Description]]&carbonfactor_db[[#This Row],[Unit]]&carbonfactor_db[[#This Row],[Year]]),\" \",\"\"),\"-\",\"\")","v":"carsmallpluginhybridkm2023"}]
[null,278,"Car medium plug-in hybrid",6.1439999999999995E-2,null,"km",2023,"DESNZ","UK",null,{"$f":"SUBSTITUTE(SUBSTITUTE(LOWER(carbonfactor_db[[#This Row],[Description]]&carbonfactor_db[[#This Row],[Unit]]&carbonfactor_db[[#This Row],[Year]]),\" \",\"\"),\"-\",\"\")","v":"carmediumpluginhybridkm2023"}]
[null,279,"Car large plug-in hybrid",7.0819999999999994E-2,null,"km",2023,"DESNZ","UK",null,{"$f":"SUBSTITUTE(SUBSTITUTE(LOWER(carbonfactor_db[[#This Row],[Description]]&carbonfactor_db[[#This Row],[Unit]]&carbonfactor_db[[#This Row],[Year]]),\" \",\"\"),\"-\",\"\")","v":"carlargepluginhybridkm2023"}]
[null,280,"Car average plug-in hybrid",6.5879999999999994E-2,null,"km",2023,"DESNZ","UK",null,{"$f":"SUBSTITUTE(SUBSTITUTE(LOWER(carbonfactor_db[[#This Row],[Description]]&carbonfactor_db[[#This Row],[Unit]]&carbonfactor_db[[#This Row],[Year]]),\" \",\"\"),\"-\",\"\")","v":"caraveragepluginhybridkm2023"}]
[null,281,"Van class I (up to 1.305 tonnes) diesel",0.1421240268456376,null,"km",2023,"DESNZ","UK",null,{"$f":"SUBSTITUTE(SUBSTITUTE(LOWER(carbonfactor_db[[#This Row],[Description]]&carbonfactor_db[[#This Row],[Unit]]&carbonfactor_db[[#This Row],[Year]]),\" \",\"\"),\"-\",\"\")","v":"vanclassi(upto1.305tonnes)dieselkm2023"}]
[null,282,"Van class II (1.305 to 1.74 tonnes) diesel",0.17405402684563759,null,"km",2023,"DESNZ","UK",null,{"$f":"SUBSTITUTE(SUBSTITUTE(LOWER(carbonfactor_db[[#This Row],[Description]]&carbonfactor_db[[#This Row],[Unit]]&carbonfactor_db[[#This Row],[Year]]),\" \",\"\"),\"-\",\"\")","v":"vanclassii(1.305to1.74tonnes)dieselkm2023"}]
[null,283,"Van class III (1.74 to 3.5 tonnes) diesel",0.25346402684563757,null,"km",2023,"DESNZ","UK",null,{"$f":"SUBSTITUTE(SUBSTITUTE(LOWER(carbonfactor_db[[#This Row],[Description]]&carbonfactor_db[[#This Row],[Unit]]&carbonfactor_db[[#This Row],[Year]]),\" \",\"\"),\"-\",\"\")","v":"vanclassiii(1.74to3.5tonnes)dieselkm2023"}]
[null,284,"Van average (up to 3.5 tonnes) diesel",0.23128402684563759,null,"km",2023,"DESNZ","UK",null,{"$f":"SUBSTITUTE(SUBSTITUTE(LOWER(carbonfactor_db[[#This Row],[Description]]&carbonfactor_db[[#This Row],[Unit]]&carbonfactor_db[[#This Row],[Year]]),\" \",\"\"),\"-\",\"\")","v":"vanaverage(upto3.5tonnes)dieselkm2023"}]
[null,285,"Van class I (up to 1.305 tonnes) petrol",0.18217453825503357,null,"km",2023,"DESNZ","UK",null,{"$f":"SUBSTITUTE(SUBSTITUTE(LOWER(carbonfactor_db[[#This Row],[Description]]&carbonfactor_db[[#This Row],[Unit]]&carbonfactor_db[[#This Row],[Year]]),\" \",\"\"),\"-\",\"\")","v":"vanclassi(upto1.305tonnes)petrolkm2023"}]
[null,286,"Van class II (1.305 to 1.74 tonnes) petrol",0.19594453825503358,null,"km",2023,"DESNZ","UK",null,{"$f":"SUBSTITUTE(SUBSTITUTE(LOWER(carbonfactor_db[[#This Row],[Description]]&carbonfactor_db[[#This Row],[Unit]]&carbonfactor_db[[#This Row],[Year]]),\" \",\"\"),\"-\",\"\")","v":"vanclassii(1.305to1.74tonnes)petrolkm2023"}]
[null,287,"Van class III (1.74 to 3.5 tonnes) petrol",0.3144445382550336,null,"km",2023,"DESNZ","UK",null,{"$f":"SUBSTITUTE(SUBSTITUTE(LOWER(carbonfactor_db[[#This Row],[Description]]&carbonfactor_db[[#This Row],[Unit]]&carbonfactor_db[[#This Row],[Year]]),\" \",\"\"),\"-\",\"\")","v":"vanclassiii(1.74to3.5tonnes)petrolkm2023"}]
[null,288,"Van average (up to 3.5 tonnes) petrol",0.20132453825503357,null,"km",2023,"DESNZ","UK",null,{"$f":"SUBSTITUTE(SUBSTITUTE(LOWER(carbonfactor_db[[#This Row],[Description]]&carbonfactor_db[[#This Row],[Unit]]&carbonfactor_db[[#This Row],[Year]]),\" \",\"\"),\"-\",\"\")","v":"vanaverage(upto3.5tonnes)petrolkm2023"}]
[null,289,"Van class I (up to 1.305 tonnes) electric",3.5441330201342283E-2,null,"km",2023,"DESNZ","UK",null,{"$f":"SUBSTITUTE(SUBSTITUTE(LOWER(carbonfactor_db[[#This Row],[Description]]&carbonfactor_db[[#This Row],[Unit]]&carbonfactor_db[[#This Row],[Year]]),\" \",\"\"),\"-\",\"\")","v":"vanclassi(upto1.305tonnes)electrickm2023"}]
[null,290,"Van class II (1.305 to 1.74 tonnes) electric",5.4597363758389264E-2,null,"km",2023,"DESNZ","UK",null,{"$f":"SUBSTITUTE(SUBSTITUTE(LOWER(carbonfactor_db[[#This Row],[Description]]&carbonfactor_db[[#This Row],[Unit]]&carbonfactor_db[[#This Row],[Year]]),\" \",\"\"),\"-\",\"\")","v":"vanclassii(1.305to1.74tonnes)electrickm2023"}]
[null,291,"Van class III (1.74 to 3.5 tonnes) electric",8.2521367785234903E-2,null,"km",2023,"DESNZ","UK",null,{"$f":"SUBSTITUTE(SUBSTITUTE(LOWER(carbonfactor_db[[#This Row],[Description]]&carbonfactor_db[[#This Row],[Unit]]&carbonfactor_db[[#This Row],[Year]]),\" \",\"\"),\"-\",\"\")","v":"vanclassiii(1.74to3.5tonnes)electrickm2023"}]
[null,292,"Van average (up to 3.5 tonnes) electric",6.7617363758389254E-2,null,"km",2023,"DESNZ","UK",null,{"$f":"SUBSTITUTE(SUBSTITUTE(LOWER(carbonfactor_db[[#This Row],[Description]]&carbonfactor_db[[#This Row],[Unit]]&carbonfactor_db[[#This Row],[Year]]),\" \",\"\"),\"-\",\"\")","v":"vanaverage(upto3.5tonnes)electrickm2023"}]
[null,293,"Van average (up to 3.5 tonnes) unknown fuel",0.23036965637583892,null,"km",2023,"DESNZ","UK",null,{"$f":"SUBSTITUTE(SUBSTITUTE(LOWER(carbonfactor_db[[#This Row],[Description]]&carbonfactor_db[[#This Row],[Unit]]&carbonfactor_db[[#This Row],[Year]]),\" \",\"\"),\"-\",\"\")","v":"vanaverage(upto3.5tonnes)unknownfuelkm2023"}]
[null,294,"Van average (up to 3.5 tonnes) diesel",0.57059626711409395,null,"tonne.km",2023,"DESNZ","UK",null,{"$f":"SUBSTITUTE(SUBSTITUTE(LOWER(carbonfactor_db[[#This Row],[Description]]&carbonfactor_db[[#This Row],[Unit]]&carbonfactor_db[[#This Row],[Year]]),\" \",\"\"),\"-\",\"\")","v":"vanaverage(upto3.5tonnes)dieseltonne.km2023"}]
[null,295,"Motorbike",0.1136742644295302,null,"km",2023,"DESNZ","UK","Average motorbike",{"$f":"SUBSTITUTE(SUBSTITUTE(LOWER(carbonfactor_db[[#This Row],[Description]]&carbonfactor_db[[#This Row],[Unit]]&carbonfactor_db[[#This Row],[Year]]),\" \",\"\"),\"-\",\"\")","v":"motorbikekm2023"}]
[null,296,"Taxi regular taxi",0.14861492593825501,null,"passenger.km",2023,"DESNZ","UK",null,{"$f":"SUBSTITUTE(SUBSTITUTE(LOWER(carbonfactor_db[[#This Row],[Description]]&carbonfactor_db[[#This Row],[Unit]]&carbonfactor_db[[#This Row],[Year]]),\" \",\"\"),\"-\",\"\")","v":"taxiregulartaxipassenger.km2023"}]
[null,297,"Taxi black cab",0.20402466838120806,null,"passenger.km",2023,"DESNZ","UK",null,{"$f":"SUBSTITUTE(SUBSTITUTE(LOWER(carbonfactor_db[[#This Row],[Description]]&carbonfactor_db[[#This Row],[Unit]]&carbonfactor_db[[#This Row],[Year]]),\" \",\"\"),\"-\",\"\")","v":"taxiblackcabpassenger.km2023"}]
[null,298,"Bus",0.10215039463087248,null,"passenger.km",2023,"DESNZ","UK","Average local bus",{"$f":"SUBSTITUTE(SUBSTITUTE(LOWER(carbonfactor_db[[#This Row],[Description]]&carbonfactor_db[[#This Row],[Unit]]&carbonfactor_db[[#This Row],[Year]]),\" \",\"\"),\"-\",\"\")","v":"buspassenger.km2023"}]
[null,299,"Rail national",3.5462963758389261E-2,null,"passenger.km",2023,"DESNZ","UK",null,{"$f":"SUBSTITUTE(SUBSTITUTE(LOWER(carbonfactor_db[[#This Row],[Description]]&carbonfactor_db[[#This Row],[Unit]]&carbonfactor_db[[#This Row],[Year]]),\" \",\"\"),\"-\",\"\")","v":"railnationalpassenger.km2023"}]
[null,300,"Rail international",4.4590778523489931E-3,null,"passenger.km",2023,"DESNZ","UK",null,{"$f":"SUBSTITUTE(SUBSTITUTE(LOWER(carbonfactor_db[[#This Row],[Description]]&carbonfactor_db[[#This Row],[Unit]]&carbonfactor_db[[#This Row],[Year]]),\" \",\"\"),\"-\",\"\")","v":"railinternationalpassenger.km2023"}]
[null,301,"Tram",2.8603267114093962E-2,null,"passenger.km",2023,"DESNZ","UK",null,{"$f":"SUBSTITUTE(SUBSTITUTE(LOWER(carbonfactor_db[[#This Row],[Description]]&carbonfactor_db[[#This Row],[Unit]]&carbonfactor_db[[#This Row],[Year]]),\" \",\"\"),\"-\",\"\")","v":"trampassenger.km2023"}]
[null,302,"London Underground",2.780206711409396E-2,null,"passenger.km",2023,"DESNZ","UK",null,{"$f":"SUBSTITUTE(SUBSTITUTE(LOWER(carbonfactor_db[[#This Row],[Description]]&carbonfactor_db[[#This Row],[Unit]]&carbonfactor_db[[#This Row],[Year]]),\" \",\"\"),\"-\",\"\")","v":"londonundergroundpassenger.km2023"}]
[null,303,"Flight Domestic, to/from UK average passenger",0.27257678523489931,null,"passenger.km",2023,"DESNZ","UK",null,{"$f":"SUBSTITUTE(SUBSTITUTE(LOWER(carbonfactor_db[[#This Row],[Description]]&carbonfactor_db[[#This Row],[Unit]]&carbonfactor_db[[#This Row],[Year]]),\" \",\"\"),\"-\",\"\")","v":"flightdomestic,to/fromukaveragepassengerpassenger.km2023"}]
[null,304,"Flight Short-haul, to/from UK average passenger",0.1859171395973154,null,"passenger.km",2023,"DESNZ","UK",null,{"$f":"SUBSTITUTE(SUBSTITUTE(LOWER(carbonfactor_db[[#This Row],[Description]]&carbonfactor_db[[#This Row],[Unit]]&carbonfactor_db[[#This Row],[Year]]),\" \",\"\"),\"-\",\"\")","v":"flightshorthaul,to/fromukaveragepassengerpassenger.km2023"}]
[null,305,"Flight Short-haul, to/from UK economy class",0.18286935436241611,null,"passenger.km",2023,"DESNZ","UK",null,{"$f":"SUBSTITUTE(SUBSTITUTE(LOWER(carbonfactor_db[[#This Row],[Description]]&carbonfactor_db[[#This Row],[Unit]]&carbonfactor_db[[#This Row],[Year]]),\" \",\"\"),\"-\",\"\")","v":"flightshorthaul,to/fromukeconomyclasspassenger.km2023"}]
[null,306,"Flight Short-haul, to/from UK business class",0.27430287785234903,null,"passenger.km",2023,"DESNZ","UK",null,{"$f":"SUBSTITUTE(SUBSTITUTE(LOWER(carbonfactor_db[[#This Row],[Description]]&carbonfactor_db[[#This Row],[Unit]]&carbonfactor_db[[#This Row],[Year]]),\" \",\"\"),\"-\",\"\")","v":"flightshorthaul,to/fromukbusinessclasspassenger.km2023"}]
[null,307,"Flight Long-haul, to/from UK average passenger",0.26128062953020131,null,"passenger.km",2023,"DESNZ","UK",null,{"$f":"SUBSTITUTE(SUBSTITUTE(LOWER(carbonfactor_db[[#This Row],[Description]]&carbonfactor_db[[#This Row],[Unit]]&carbonfactor_db[[#This Row],[Year]]),\" \",\"\"),\"-\",\"\")","v":"flightlonghaul,to/fromukaveragepassengerpassenger.km2023"}]
[null,308,"Flight Long-haul, to/from UK economy class",0.20010828053691276,null,"passenger.km",2023,"DESNZ","UK",null,{"$f":"SUBSTITUTE(SUBSTITUTE(LOWER(carbonfactor_db[[#This Row],[Description]]&carbonfactor_db[[#This Row],[Unit]]&carbonfactor_db[[#This Row],[Year]]),\" \",\"\"),\"-\",\"\")","v":"flightlonghaul,to/fromukeconomyclasspassenger.km2023"}]
[null,309,"Flight Long-haul, to/from UK premium economy class",0.3201551932885906,null,"passenger.km",2023,"DESNZ","UK",null,{"$f":"SUBSTITUTE(SUBSTITUTE(LOWER(carbonfactor_db[[#This Row],[Description]]&carbonfactor_db[[#This Row],[Unit]]&carbonfactor_db[[#This Row],[Year]]),\" \",\"\"),\"-\",\"\")","v":"flightlonghaul,to/fromukpremiumeconomyclasspassenger.km2023"}]
[null,310,"Flight Long-haul, to/from UK business class",0.58028693020134225,null,"passenger.km",2023,"DESNZ","UK",null,{"$f":"SUBSTITUTE(SUBSTITUTE(LOWER(carbonfactor_db[[#This Row],[Description]]&carbonfactor_db[[#This Row],[Unit]]&carbonfactor_db[[#This Row],[Year]]),\" \",\"\"),\"-\",\"\")","v":"flightlonghaul,to/fromukbusinessclasspassenger.km2023"}]
[null,311,"Flight Long-haul, to/from UK first class",0.80040302953020126,null,"passenger.km",2023,"DESNZ","UK",null,{"$f":"SUBSTITUTE(SUBSTITUTE(LOWER(carbonfactor_db[[#This Row],[Description]]&carbonfactor_db[[#This Row],[Unit]]&carbonfactor_db[[#This Row],[Year]]),\" \",\"\"),\"-\",\"\")","v":"flightlonghaul,to/fromukfirstclasspassenger.km2023"}]
[null,312,"Flight International, to/from non-UK average passenger",0.17580378389261744,null,"passenger.km",2023,"DESNZ","UK",null,{"$f":"SUBSTITUTE(SUBSTITUTE(LOWER(carbonfactor_db[[#This Row],[Description]]&carbonfactor_db[[#This Row],[Unit]]&carbonfactor_db[[#This Row],[Year]]),\" \",\"\"),\"-\",\"\")","v":"flightinternational,to/fromnonukaveragepassengerpassenger.km2023"}]
[null,313,"Flight International, to/from non-UK economy class",0.13464333030872483,null,"passenger.km",2023,"DESNZ","UK",null,{"$f":"SUBSTITUTE(SUBSTITUTE(LOWER(carbonfactor_db[[#This Row],[Description]]&carbonfactor_db[[#This Row],[Unit]]&carbonfactor_db[[#This Row],[Year]]),\" \",\"\"),\"-\",\"\")","v":"flightinternational,to/fromnonukeconomyclasspassenger.km2023"}]
[null,314,"Flight International, to/from non-UK premium economy class",0.21541942147651008,null,"passenger.km",2023,"DESNZ","UK",null,{"$f":"SUBSTITUTE(SUBSTITUTE(LOWER(carbonfactor_db[[#This Row],[Description]]&carbonfactor_db[[#This Row],[Unit]]&carbonfactor_db[[#This Row],[Year]]),\" \",\"\"),\"-\",\"\")","v":"flightinternational,to/fromnonukpremiumeconomyclasspassenger.km2023"}]
[null,315,"Flight International, to/from non-UK Business class",0.39044320536912752,null,"passenger.km",2023,"DESNZ","UK",null,{"$f":"SUBSTITUTE(SUBSTITUTE(LOWER(carbonfactor_db[[#This Row],[Description]]&carbonfactor_db[[#This Row],[Unit]]&carbonfactor_db[[#This Row],[Year]]),\" \",\"\"),\"-\",\"\")","v":"flightinternational,to/fromnonukbusinessclasspassenger.km2023"}]
[null,316,"Flight International, to/from non-UK First class",0.53854239999999998,null,"passenger.km",2023,"DESNZ","UK",null,{"$f":"SUBSTITUTE(SUBSTITUTE(LOWER(carbonfactor_db[[#This Row],[Description]]&carbonfactor_db[[#This Row],[Unit]]&carbonfactor_db[[#This Row],[Year]]),\" \",\"\"),\"-\",\"\")","v":"flightinternational,to/fromnonukfirstclasspassenger.km2023"}]
[null,317,"Ferry",0.11269808080536912,null,"passenger.km",2023,"DESNZ","UK","Average (all passenger)",{"$f":"SUBSTITUTE(SUBSTITUTE(LOWER(carbonfactor_db[[#This Row],[Description]]&carbonfactor_db[[#This Row],[Unit]]&carbonfactor_db[[#This Row],[Year]]),\" \",\"\"),\"-\",\"\")","v":"ferrypassenger.km2023"}]
[null,318,"Car average unknown fuel - upstream",4.3659999999999997E-2,null,"km",2023,"DESNZ","UK",null,{"$f":"SUBSTITUTE(SUBSTITUTE(LOWER(carbonfactor_db[[#This Row],[Description]]&carbonfactor_db[[#This Row],[Unit]]&carbonfactor_db[[#This Row],[Year]]),\" \",\"\"),\"-\",\"\")","v":"caraverageunknownfuelupstreamkm2023"}]
[null,319,"Car small diesel - upstream",3.3919999999999999E-2,null,"km",2023,"DESNZ","UK",null,{"$f":"SUBSTITUTE(SUBSTITUTE(LOWER(carbonfactor_db[[#This Row],[Description]]&carbonfactor_db[[#This Row],[Unit]]&carbonfactor_db[[#This Row],[Year]]),\" \",\"\"),\"-\",\"\")","v":"carsmalldieselupstreamkm2023"}]
[null,320,"Car medium diesel - upstream",4.079E-2,null,"km",2023,"DESNZ","UK",null,{"$f":"SUBSTITUTE(SUBSTITUTE(LOWER(carbonfactor_db[[#This Row],[Description]]&carbonfactor_db[[#This Row],[Unit]]&carbonfactor_db[[#This Row],[Year]]),\" \",\"\"),\"-\",\"\")","v":"carmediumdieselupstreamkm2023"}]
[null,321,"Car large diesel - upstream",5.0999999999999997E-2,null,"km",2023,"DESNZ","UK",null,{"$f":"SUBSTITUTE(SUBSTITUTE(LOWER(carbonfactor_db[[#This Row],[Description]]&carbonfactor_db[[#This Row],[Unit]]&carbonfactor_db[[#This Row],[Year]]),\" \",\"\"),\"-\",\"\")","v":"carlargedieselupstreamkm2023"}]
[null,322,"Car average diesel - upstream",4.1450000000000001E-2,null,"km",2023,"DESNZ","UK",null,{"$f":"SUBSTITUTE(SUBSTITUTE(LOWER(carbonfactor_db[[#This Row],[Description]]&carbonfactor_db[[#This Row],[Unit]]&carbonfactor_db[[#This Row],[Year]]),\" \",\"\"),\"-\",\"\")","v":"caraveragedieselupstreamkm2023"}]
[null,323,"Car small petrol - upstream",3.9070000000000001E-2,null,"km",2023,"DESNZ","UK",null,{"$f":"SUBSTITUTE(SUBSTITUTE(LOWER(carbonfactor_db[[#This Row],[Description]]&carbonfactor_db[[#This Row],[Unit]]&carbonfactor_db[[#This Row],[Year]]),\" \",\"\"),\"-\",\"\")","v":"carsmallpetrolupstreamkm2023"}]
[null,324,"Car medium petrol - upstream",4.9489999999999999E-2,null,"km",2023,"DESNZ","UK",null,{"$f":"SUBSTITUTE(SUBSTITUTE(LOWER(carbonfactor_db[[#This Row],[Description]]&carbonfactor_db[[#This Row],[Unit]]&carbonfactor_db[[#This Row],[Year]]),\" \",\"\"),\"-\",\"\")","v":"carmediumpetrolupstreamkm2023"}]
[null,325,"Car large petrol - upstream",7.5719999999999996E-2,null,"km",2023,"DESNZ","UK",null,{"$f":"SUBSTITUTE(SUBSTITUTE(LOWER(carbonfactor_db[[#This Row],[Description]]&carbonfactor_db[[#This Row],[Unit]]&carbonfactor_db[[#This Row],[Year]]),\" \",\"\"),\"-\",\"\")","v":"carlargepetrolupstreamkm2023"}]
[null,326,"Car average petrol - upstream",4.5510000000000002E-2,null,"km",2023,"DESNZ","UK",null,{"$f":"SUBSTITUTE(SUBSTITUTE(LOWER(carbonfactor_db[[#This Row],[Description]]&carbonfactor_db[[#This Row],[Unit]]&carbonfactor_db[[#This Row],[Year]]),\" \",\"\"),\"-\",\"\")","v":"caraveragepetrolupstreamkm2023"}]
[null,327,"Car small EV - upstream",3.8289852348993287E-3,null,"km",2023,"DESNZ","UK",null,{"$f":"SUBSTITUTE(SUBSTITUTE(LOWER(carbonfactor_db[[#This Row],[Description]]&carbonfactor_db[[#This Row],[Unit]]&carbonfactor_db[[#This Row],[Year]]),\" \",\"\"),\"-\",\"\")","v":"carsmallevupstreamkm2023"}]
[null,328,"Car medium EV - upstream",4.1990778523489933E-3,null,"km",2023,"DESNZ","UK",null,{"$f":"SUBSTITUTE(SUBSTITUTE(LOWER(carbonfactor_db[[#This Row],[Description]]&carbonfactor_db[[#This Row],[Unit]]&carbonfactor_db[[#This Row],[Year]]),\" \",\"\"),\"-\",\"\")","v":"carmediumevupstreamkm2023"}]
[null,329,"Car large EV - upstream",4.6190778523489935E-3,null,"km",2023,"DESNZ","UK",null,{"$f":"SUBSTITUTE(SUBSTITUTE(LOWER(carbonfactor_db[[#This Row],[Description]]&carbonfactor_db[[#This Row],[Unit]]&carbonfactor_db[[#This Row],[Year]]),\" \",\"\"),\"-\",\"\")","v":"carlargeevupstreamkm2023"}]
[null,330,"Car average EV - upstream",4.3690778523489933E-3,null,"km",2023,"DESNZ","UK",null,{"$f":"SUBSTITUTE(SUBSTITUTE(LOWER(carbonfactor_db[[#This Row],[Description]]&carbonfactor_db[[#This Row],[Unit]]&carbonfactor_db[[#This Row],[Year]]),\" \",\"\"),\"-\",\"\")","v":"caraverageevupstreamkm2023"}]
[null,331,"Car small unknown fuel - upstream",3.7490000000000002E-2,null,"km",2023,"DESNZ","UK",null,{"$f":"SUBSTITUTE(SUBSTITUTE(LOWER(carbonfactor_db[[#This Row],[Description]]&carbonfactor_db[[#This Row],[Unit]]&carbonfactor_db[[#This Row],[Year]]),\" \",\"\"),\"-\",\"\")","v":"carsmallunknownfuelupstreamkm2023"}]
[null,332,"Car medium unknown fuel - upstream",4.496E-2,null,"km",2023,"DESNZ","UK",null,{"$f":"SUBSTITUTE(SUBSTITUTE(LOWER(carbonfactor_db[[#This Row],[Description]]&carbonfactor_db[[#This Row],[Unit]]&carbonfactor_db[[#This Row],[Year]]),\" \",\"\"),\"-\",\"\")","v":"carmediumunknownfuelupstreamkm2023"}]
[null,333,"Car large unknown fuel - upstream",5.7799999999999997E-2,null,"km",2023,"DESNZ","UK",null,{"$f":"SUBSTITUTE(SUBSTITUTE(LOWER(carbonfactor_db[[#This Row],[Description]]&carbonfactor_db[[#This Row],[Unit]]&carbonfactor_db[[#This Row],[Year]]),\" \",\"\"),\"-\",\"\")","v":"carlargeunknownfuelupstreamkm2023"}]
[null,334,"Car small hybrid - upstream",2.7029999999999998E-2,null,"km",2023,"DESNZ","UK",null,{"$f":"SUBSTITUTE(SUBSTITUTE(LOWER(carbonfactor_db[[#This Row],[Description]]&carbonfactor_db[[#This Row],[Unit]]&carbonfactor_db[[#This Row],[Year]]),\" \",\"\"),\"-\",\"\")","v":"carsmallhybridupstreamkm2023"}]
[null,335,"Car medium hybrid - upstream",2.8309999999999998E-2,null,"km",2023,"DESNZ","UK",null,{"$f":"SUBSTITUTE(SUBSTITUTE(LOWER(carbonfactor_db[[#This Row],[Description]]&carbonfactor_db[[#This Row],[Unit]]&carbonfactor_db[[#This Row],[Year]]),\" \",\"\"),\"-\",\"\")","v":"carmediumhybridupstreamkm2023"}]
[null,336,"Car large hybrid - upstream",3.884E-2,null,"km",2023,"DESNZ","UK",null,{"$f":"SUBSTITUTE(SUBSTITUTE(LOWER(carbonfactor_db[[#This Row],[Description]]&carbonfactor_db[[#This Row],[Unit]]&carbonfactor_db[[#This Row],[Year]]),\" \",\"\"),\"-\",\"\")","v":"carlargehybridupstreamkm2023"}]
[null,337,"Car average hybrid - upstream",3.109E-2,null,"km",2023,"DESNZ","UK",null,{"$f":"SUBSTITUTE(SUBSTITUTE(LOWER(carbonfactor_db[[#This Row],[Description]]&carbonfactor_db[[#This Row],[Unit]]&carbonfactor_db[[#This Row],[Year]]),\" \",\"\"),\"-\",\"\")","v":"caraveragehybridupstreamkm2023"}]
[null,338,"Car small plug-in hybrid - upstream",1.3169999999999999E-2,null,"km",2023,"DESNZ","UK",null,{"$f":"SUBSTITUTE(SUBSTITUTE(LOWER(carbonfactor_db[[#This Row],[Description]]&carbonfactor_db[[#This Row],[Unit]]&carbonfactor_db[[#This Row],[Year]]),\" \",\"\"),\"-\",\"\")","v":"carsmallpluginhybridupstreamkm2023"}]
[null,339,"Car medium plug-in hybrid - upstream",2.2200000000000001E-2,null,"km",2023,"DESNZ","UK",null,{"$f":"SUBSTITUTE(SUBSTITUTE(LOWER(carbonfactor_db[[#This Row],[Description]]&carbonfactor_db[[#This Row],[Unit]]&carbonfactor_db[[#This Row],[Year]]),\" \",\"\"),\"-\",\"\")","v":"carmediumpluginhybridupstreamkm2023"}]
[null,340,"Car large plug-in hybrid - upstream",2.6349999999999998E-2,null,"km",2023,"DESNZ","UK",null,{"$f":"SUBSTITUTE(SUBSTITUTE(LOWER(carbonfactor_db[[#This Row],[Description]]&carbonfactor_db[[#This Row],[Unit]]&carbonfactor_db[[#This Row],[Year]]),\" \",\"\"),\"-\",\"\")","v":"carlargepluginhybridupstreamkm2023"}]
[null,341,"Car average plug-in hybrid - upstream",2.4400000000000002E-2,null,"km",2023,"DESNZ","UK",null,{"$f":"SUBSTITUTE(SUBSTITUTE(LOWER(carbonfactor_db[[#This Row],[Description]]&carbonfactor_db[[#This Row],[Unit]]&carbonfactor_db[[#This Row],[Year]]),\" \",\"\"),\"-\",\"\")","v":"caraveragepluginhybridupstreamkm2023"}]
[null,342,"Van class I (up to 1.305 tonnes) diesel - upstream",3.4630000000000001E-2,null,"km",2023,"DESNZ","UK",null,{"$f":"SUBSTITUTE(SUBSTITUTE(LOWER(carbonfactor_db[[#This Row],[Description]]&carbonfactor_db[[#This Row],[Unit]]&carbonfactor_db[[#This Row],[Year]]),\" \",\"\"),\"-\",\"\")","v":"vanclassi(upto1.305tonnes)dieselupstreamkm2023"}]
[null,343,"Van class II (1.305 to 1.74 tonnes) diesel - upstream",4.2500000000000003E-2,null,"km",2023,"DESNZ","UK",null,{"$f":"SUBSTITUTE(SUBSTITUTE(LOWER(carbonfactor_db[[#This Row],[Description]]&carbonfactor_db[[#This Row],[Unit]]&carbonfactor_db[[#This Row],[Year]]),\" \",\"\"),\"-\",\"\")","v":"vanclassii(1.305to1.74tonnes)dieselupstreamkm2023"}]
[null,344,"Van class III (1.74 to 3.5 tonnes) diesel - upstream",6.207E-2,null,"km",2023,"DESNZ","UK",null,{"$f":"SUBSTITUTE(SUBSTITUTE(LOWER(carbonfactor_db[[#This Row],[Description]]&carbonfactor_db[[#This Row],[Unit]]&carbonfactor_db[[#This Row],[Year]]),\" \",\"\"),\"-\",\"\")","v":"vanclassiii(1.74to3.5tonnes)dieselupstreamkm2023"}]
[null,345,"Van average (up to 3.5 tonnes) diesel - upstream",5.6599999999999998E-2,null,"km",2023,"DESNZ","UK",null,{"$f":"SUBSTITUTE(SUBSTITUTE(LOWER(carbonfactor_db[[#This Row],[Description]]&carbonfactor_db[[#This Row],[Unit]]&carbonfactor_db[[#This Row],[Year]]),\" \",\"\"),\"-\",\"\")","v":"vanaverage(upto3.5tonnes)dieselupstreamkm2023"}]
[null,346,"Van class I (up to 1.305 tonnes) petrol - upstream",5.0599999999999999E-2,null,"km",2023,"DESNZ","UK",null,{"$f":"SUBSTITUTE(SUBSTITUTE(LOWER(carbonfactor_db[[#This Row],[Description]]&carbonfactor_db[[#This Row],[Unit]]&carbonfactor_db[[#This Row],[Year]]),\" \",\"\"),\"-\",\"\")","v":"vanclassi(upto1.305tonnes)petrolupstreamkm2023"}]
[null,347,"Van class II (1.305 to 1.74 tonnes) petrol - upstream",5.4440000000000002E-2,null,"km",2023,"DESNZ","UK",null,{"$f":"SUBSTITUTE(SUBSTITUTE(LOWER(carbonfactor_db[[#This Row],[Description]]&carbonfactor_db[[#This Row],[Unit]]&carbonfactor_db[[#This Row],[Year]]),\" \",\"\"),\"-\",\"\")","v":"vanclassii(1.305to1.74tonnes)petrolupstreamkm2023"}]
[null,348,"Van class III (1.74 to 3.5 tonnes) petrol - upstream",8.7480000000000002E-2,null,"km",2023,"DESNZ","UK",null,{"$f":"SUBSTITUTE(SUBSTITUTE(LOWER(carbonfactor_db[[#This Row],[Description]]&carbonfactor_db[[#This Row],[Unit]]&carbonfactor_db[[#This Row],[Year]]),\" \",\"\"),\"-\",\"\")","v":"vanclassiii(1.74to3.5tonnes)petrolupstreamkm2023"}]
[null,349,"Van average (up to 3.5 tonnes) petrol - upstream",5.5939999999999997E-2,null,"km",2023,"DESNZ","UK",null,{"$f":"SUBSTITUTE(SUBSTITUTE(LOWER(carbonfactor_db[[#This Row],[Description]]&carbonfactor_db[[#This Row],[Unit]]&carbonfactor_db[[#This Row],[Year]]),\" \",\"\"),\"-\",\"\")","v":"vanaverage(upto3.5tonnes)petrolupstreamkm2023"}]
[null,350,"Van class I (up to 1.305 tonnes) electric - upstream",8.5299999999999994E-3,null,"km",2023,"DESNZ","UK",null,{"$f":"SUBSTITUTE(SUBSTITUTE(LOWER(carbonfactor_db[[#This Row],[Description]]&carbonfactor_db[[#This Row],[Unit]]&carbonfactor_db[[#This Row],[Year]]),\" \",\"\"),\"-\",\"\")","v":"vanclassi(upto1.305tonnes)electricupstreamkm2023"}]
[null,351,"Van class II (1.305 to 1.74 tonnes) electric - upstream",1.316E-2,null,"km",2023,"DESNZ","UK",null,{"$f":"SUBSTITUTE(SUBSTITUTE(LOWER(carbonfactor_db[[#This Row],[Description]]&carbonfactor_db[[#This Row],[Unit]]&carbonfactor_db[[#This Row],[Year]]),\" \",\"\"),\"-\",\"\")","v":"vanclassii(1.305to1.74tonnes)electricupstreamkm2023"}]
[null,352,"Van class III (1.74 to 3.5 tonnes) electric - upstream",1.9910000000000001E-2,null,"km",2023,"DESNZ","UK",null,{"$f":"SUBSTITUTE(SUBSTITUTE(LOWER(carbonfactor_db[[#This Row],[Description]]&carbonfactor_db[[#This Row],[Unit]]&carbonfactor_db[[#This Row],[Year]]),\" \",\"\"),\"-\",\"\")","v":"vanclassiii(1.74to3.5tonnes)electricupstreamkm2023"}]
[null,353,"Van average (up to 3.5 tonnes) electric - upstream",1.6330000000000001E-2,null,"km",2023,"DESNZ","UK",null,{"$f":"SUBSTITUTE(SUBSTITUTE(LOWER(carbonfactor_db[[#This Row],[Description]]&carbonfactor_db[[#This Row],[Unit]]&carbonfactor_db[[#This Row],[Year]]),\" \",\"\"),\"-\",\"\")","v":"vanaverage(upto3.5tonnes)electricupstreamkm2023"}]
[null,354,"Van average (up to 3.5 tonnes) unknown fuel - upstream",5.6579999999999998E-2,null,"km",2023,"DESNZ","UK",null,{"$f":"SUBSTITUTE(SUBSTITUTE(LOWER(carbonfactor_db[[#This Row],[Description]]&carbonfactor_db[[#This Row],[Unit]]&carbonfactor_db[[#This Row],[Year]]),\" \",\"\"),\"-\",\"\")","v":"vanaverage(upto3.5tonnes)unknownfuelupstreamkm2023"}]
[null,355,"Van average (up to 3.5 tonnes) diesel - upstream",0.13961999999999999,null,"passenger.km",2023,"DESNZ","UK",null,{"$f":"SUBSTITUTE(SUBSTITUTE(LOWER(carbonfactor_db[[#This Row],[Description]]&carbonfactor_db[[#This Row],[Unit]]&carbonfactor_db[[#This Row],[Year]]),\" \",\"\"),\"-\",\"\")","v":"vanaverage(upto3.5tonnes)dieselupstreampassenger.km2023"}]
[null,356,"Motorbike - upstream",2.9560740857659844E-2,null,"passenger.km",2023,"DESNZ","UK","Average motorbike",{"$f":"SUBSTITUTE(SUBSTITUTE(LOWER(carbonfactor_db[[#This Row],[Description]]&carbonfactor_db[[#This Row],[Unit]]&carbonfactor_db[[#This Row],[Year]]),\" \",\"\"),\"-\",\"\")","v":"motorbikeupstreampassenger.km2023"}]
[null,357,"Taxi regular taxi - upstream",3.6970871232702762E-2,null,"passenger.km",2023,"DESNZ","UK",null,{"$f":"SUBSTITUTE(SUBSTITUTE(LOWER(carbonfactor_db[[#This Row],[Description]]&carbonfactor_db[[#This Row],[Unit]]&carbonfactor_db[[#This Row],[Year]]),\" \",\"\"),\"-\",\"\")","v":"taxiregulartaxiupstreampassenger.km2023"}]
[null,358,"Taxi black cab - upstream",5.0896023172773634E-2,null,"passenger.km",2023,"DESNZ","UK",null,{"$f":"SUBSTITUTE(SUBSTITUTE(LOWER(carbonfactor_db[[#This Row],[Description]]&carbonfactor_db[[#This Row],[Unit]]&carbonfactor_db[[#This Row],[Year]]),\" \",\"\"),\"-\",\"\")","v":"taxiblackcabupstreampassenger.km2023"}]
[null,359,"Bus - upstream",2.4930000000000001E-2,null,"passenger.km",2023,"DESNZ","UK","Average local bus",{"$f":"SUBSTITUTE(SUBSTITUTE(LOWER(carbonfactor_db[[#This Row],[Description]]&carbonfactor_db[[#This Row],[Unit]]&carbonfactor_db[[#This Row],[Year]]),\" \",\"\"),\"-\",\"\")","v":"busupstreampassenger.km2023"}]
[null,360,"Rail national - upstream",8.9661739156600591E-3,null,"passenger.km",2023,"DESNZ","UK",null,{"$f":"SUBSTITUTE(SUBSTITUTE(LOWER(carbonfactor_db[[#This Row],[Description]]&carbonfactor_db[[#This Row],[Unit]]&carbonfactor_db[[#This Row],[Year]]),\" \",\"\"),\"-\",\"\")","v":"railnationalupstreampassenger.km2023"}]
[null,361,"Rail international - upstream",1.1660046796149852E-3,null,"passenger.km",2023,"DESNZ","UK",null,{"$f":"SUBSTITUTE(SUBSTITUTE(LOWER(carbonfactor_db[[#This Row],[Description]]&carbonfactor_db[[#This Row],[Unit]]&carbonfactor_db[[#This Row],[Year]]),\" \",\"\"),\"-\",\"\")","v":"railinternationalupstreampassenger.km2023"}]
[null,362,"Tram - upstream",7.4885645371824475E-3,null,"passenger.km",2023,"DESNZ","UK",null,{"$f":"SUBSTITUTE(SUBSTITUTE(LOWER(carbonfactor_db[[#This Row],[Description]]&carbonfactor_db[[#This Row],[Unit]]&carbonfactor_db[[#This Row],[Year]]),\" \",\"\"),\"-\",\"\")","v":"tramupstreampassenger.km2023"}]
[null,363,"London Underground - upstream",7.2774774831142171E-3,null,"passenger.km",2023,"DESNZ","UK",null,{"$f":"SUBSTITUTE(SUBSTITUTE(LOWER(carbonfactor_db[[#This Row],[Description]]&carbonfactor_db[[#This Row],[Unit]]&carbonfactor_db[[#This Row],[Year]]),\" \",\"\"),\"-\",\"\")","v":"londonundergroundupstreampassenger.km2023"}]
[null,364,"Flight Domestic, to/from UK average passenger - upstream",3.3500000000000002E-2,null,"passenger.km",2023,"DESNZ","UK",null,{"$f":"SUBSTITUTE(SUBSTITUTE(LOWER(carbonfactor_db[[#This Row],[Description]]&carbonfactor_db[[#This Row],[Unit]]&carbonfactor_db[[#This Row],[Year]]),\" \",\"\"),\"-\",\"\")","v":"flightdomestic,to/fromukaveragepassengerupstreampassenger.km2023"}]
[null,365,"Flight Short-haul, to/from UK average passenger - upstream",2.2859999999999998E-2,null,"passenger.km",2023,"DESNZ","UK",null,{"$f":"SUBSTITUTE(SUBSTITUTE(LOWER(carbonfactor_db[[#This Row],[Description]]&carbonfactor_db[[#This Row],[Unit]]&carbonfactor_db[[#This Row],[Year]]),\" \",\"\"),\"-\",\"\")","v":"flightshorthaul,to/fromukaveragepassengerupstreampassenger.km2023"}]
[null,366,"Flight Short-haul, to/from UK economy class - upstream",2.249E-2,null,"passenger.km",2023,"DESNZ","UK",null,{"$f":"SUBSTITUTE(SUBSTITUTE(LOWER(carbonfactor_db[[#This Row],[Description]]&carbonfactor_db[[#This Row],[Unit]]&carbonfactor_db[[#This Row],[Year]]),\" \",\"\"),\"-\",\"\")","v":"flightshorthaul,to/fromukeconomyclassupstreampassenger.km2023"}]
[null,367,"Flight Short-haul, to/from UK business class - upstream",3.3730000000000003E-2,null,"passenger.km",2023,"DESNZ","UK",null,{"$f":"SUBSTITUTE(SUBSTITUTE(LOWER(carbonfactor_db[[#This Row],[Description]]&carbonfactor_db[[#This Row],[Unit]]&carbonfactor_db[[#This Row],[Year]]),\" \",\"\"),\"-\",\"\")","v":"flightshorthaul,to/fromukbusinessclassupstreampassenger.km2023"}]
[null,368,"Flight Long-haul, to/from UK average passenger - upstream",3.2129999999999999E-2,null,"passenger.km",2023,"DESNZ","UK",null,{"$f":"SUBSTITUTE(SUBSTITUTE(LOWER(carbonfactor_db[[#This Row],[Description]]&carbonfactor_db[[#This Row],[Unit]]&carbonfactor_db[[#This Row],[Year]]),\" \",\"\"),\"-\",\"\")","v":"flightlonghaul,to/fromukaveragepassengerupstreampassenger.km2023"}]
[null,369,"Flight Long-haul, to/from UK economy class - upstream",2.461E-2,null,"passenger.km",2023,"DESNZ","UK",null,{"$f":"SUBSTITUTE(SUBSTITUTE(LOWER(carbonfactor_db[[#This Row],[Description]]&carbonfactor_db[[#This Row],[Unit]]&carbonfactor_db[[#This Row],[Year]]),\" \",\"\"),\"-\",\"\")","v":"flightlonghaul,to/fromukeconomyclassupstreampassenger.km2023"}]
[null,370,"Flight Long-haul, to/from UK premium economy class - upstream",3.9370000000000002E-2,null,"passenger.km",2023,"DESNZ","UK",null,{"$f":"SUBSTITUTE(SUBSTITUTE(LOWER(carbonfactor_db[[#This Row],[Description]]&carbonfactor_db[[#This Row],[Unit]]&carbonfactor_db[[#This Row],[Year]]),\" \",\"\"),\"-\",\"\")","v":"flightlonghaul,to/fromukpremiumeconomyclassupstreampassenger.km2023"}]
[null,371,"Flight Long-haul, to/from UK business class - upstream",7.1370000000000003E-2,null,"passenger.km",2023,"DESNZ","UK",null,{"$f":"SUBSTITUTE(SUBSTITUTE(LOWER(carbonfactor_db[[#This Row],[Description]]&carbonfactor_db[[#This Row],[Unit]]&carbonfactor_db[[#This Row],[Year]]),\" \",\"\"),\"-\",\"\")","v":"flightlonghaul,to/fromukbusinessclassupstreampassenger.km2023"}]
[null,372,"Flight Long-haul, to/from UK first class - upstream",9.844E-2,null,"passenger.km",2023,"DESNZ","UK",null,{"$f":"SUBSTITUTE(SUBSTITUTE(LOWER(carbonfactor_db[[#This Row],[Description]]&carbonfactor_db[[#This Row],[Unit]]&carbonfactor_db[[#This Row],[Year]]),\" \",\"\"),\"-\",\"\")","v":"flightlonghaul,to/fromukfirstclassupstreampassenger.km2023"}]
[null,373,"Flight International, to/from non-UK average passenger - upstream",2.162E-2,null,"passenger.km",2023,"DESNZ","UK",null,{"$f":"SUBSTITUTE(SUBSTITUTE(LOWER(carbonfactor_db[[#This Row],[Description]]&carbonfactor_db[[#This Row],[Unit]]&carbonfactor_db[[#This Row],[Year]]),\" \",\"\"),\"-\",\"\")","v":"flightinternational,to/fromnonukaveragepassengerupstreampassenger.km2023"}]
[null,374,"Flight International, to/from non-UK economy class - upstream",1.6559999999999998E-2,null,"passenger.km",2023,"DESNZ","UK",null,{"$f":"SUBSTITUTE(SUBSTITUTE(LOWER(carbonfactor_db[[#This Row],[Description]]&carbonfactor_db[[#This Row],[Unit]]&carbonfactor_db[[#This Row],[Year]]),\" \",\"\"),\"-\",\"\")","v":"flightinternational,to/fromnonukeconomyclassupstreampassenger.km2023"}]
[null,375,"Flight International, to/from non-UK premium economy class - upstream",2.649E-2,null,"passenger.km",2023,"DESNZ","UK",null,{"$f":"SUBSTITUTE(SUBSTITUTE(LOWER(carbonfactor_db[[#This Row],[Description]]&carbonfactor_db[[#This Row],[Unit]]&carbonfactor_db[[#This Row],[Year]]),\" \",\"\"),\"-\",\"\")","v":"flightinternational,to/fromnonukpremiumeconomyclassupstreampassenger.km2023"}]
[null,376,"Flight International, to/from non-UK Business class - upstream",4.802E-2,null,"passenger.km",2023,"DESNZ","UK",null,{"$f":"SUBSTITUTE(SUBSTITUTE(LOWER(carbonfactor_db[[#This Row],[Description]]&carbonfactor_db[[#This Row],[Unit]]&carbonfactor_db[[#This Row],[Year]]),\" \",\"\"),\"-\",\"\")","v":"flightinternational,to/fromnonukbusinessclassupstreampassenger.km2023"}]
[null,377,"Flight International, to/from non-UK First class - upstream",6.6229999999999997E-2,null,"passenger.km",2023,"DESNZ","UK",null,{"$f":"SUBSTITUTE(SUBSTITUTE(LOWER(carbonfactor_db[[#This Row],[Description]]&carbonfactor_db[[#This Row],[Unit]]&carbonfactor_db[[#This Row],[Year]]),\" \",\"\"),\"-\",\"\")","v":"flightinternational,to/fromnonukfirstclassupstreampassenger.km2023"}]
[null,378,"Ferry - upstream",2.5553781153433073E-2,null,"passenger.km",2023,"DESNZ","UK",null,{"$f":"SUBSTITUTE(SUBSTITUTE(LOWER(carbonfactor_db[[#This Row],[Description]]&carbonfactor_db[[#This Row],[Unit]]&carbonfactor_db[[#This Row],[Year]]),\" \",\"\"),\"-\",\"\")","v":"ferryupstreampassenger.km2023"}]
[null,379,"Electricity",0.19338,null,"kWh",2022,"DESNZ","UK",null,{"$f":"SUBSTITUTE(SUBSTITUTE(LOWER(carbonfactor_db[[#This Row],[Description]]&carbonfactor_db[[#This Row],[Unit]]&carbonfactor_db[[#This Row],[Year]]),\" \",\"\"),\"-\",\"\")","v":"electricitykwh2022"}]
[null,380,"Electricity - upstream",6.8169999999999994E-2,null,"kWh",2022,"DESNZ","UK","T&D and WTT for generation and WTT for T&D",{"$f":"SUBSTITUTE(SUBSTITUTE(LOWER(carbonfactor_db[[#This Row],[Description]]&carbonfactor_db[[#This Row],[Unit]]&carbonfactor_db[[#This Row],[Year]]),\" \",\"\"),\"-\",\"\")","v":"electricityupstreamkwh2022"}]
[null,381,"Electricity - biogenic",0.11506924154625897,null,"kWh",2022,"DESNZ","UK",null,{"$f":"SUBSTITUTE(SUBSTITUTE(LOWER(carbonfactor_db[[#This Row],[Description]]&carbonfactor_db[[#This Row],[Unit]]&carbonfactor_db[[#This Row],[Year]]),\" \",\"\"),\"-\",\"\")","v":"electricitybiogenickwh2022"}]
[null,382,"Natural gas",0.18254000000000001,null,"kWh",2022,"DESNZ","UK",null,{"$f":"SUBSTITUTE(SUBSTITUTE(LOWER(carbonfactor_db[[#This Row],[Description]]&carbonfactor_db[[#This Row],[Unit]]&carbonfactor_db[[#This Row],[Year]]),\" \",\"\"),\"-\",\"\")","v":"naturalgaskwh2022"}]
[null,383,"Natural gas - upstream",3.1099999999999999E-2,null,"kWh",2022,"DESNZ","UK",null,{"$f":"SUBSTITUTE(SUBSTITUTE(LOWER(carbonfactor_db[[#This Row],[Description]]&carbonfactor_db[[#This Row],[Unit]]&carbonfactor_db[[#This Row],[Year]]),\" \",\"\"),\"-\",\"\")","v":"naturalgasupstreamkwh2022"}]
[null,384,"Fuel oil",3.17523,null,"litres",2022,"DESNZ","UK",null,{"$f":"SUBSTITUTE(SUBSTITUTE(LOWER(carbonfactor_db[[#This Row],[Description]]&carbonfactor_db[[#This Row],[Unit]]&carbonfactor_db[[#This Row],[Year]]),\" \",\"\"),\"-\",\"\")","v":"fueloillitres2022"}]
[null,385,"Fuel oil - upstream",0.69723000000000002,null,"litres",2022,"DESNZ","UK",null,{"$f":"SUBSTITUTE(SUBSTITUTE(LOWER(carbonfactor_db[[#This Row],[Description]]&carbonfactor_db[[#This Row],[Unit]]&carbonfactor_db[[#This Row],[Year]]),\" \",\"\"),\"-\",\"\")","v":"fueloilupstreamlitres2022"}]
[null,386,"Diesel (average biofuel blend)",2.5578399999999997,null,"litres",2022,"DESNZ","UK",null,{"$f":"SUBSTITUTE(SUBSTITUTE(LOWER(carbonfactor_db[[#This Row],[Description]]&carbonfactor_db[[#This Row],[Unit]]&carbonfactor_db[[#This Row],[Year]]),\" \",\"\"),\"-\",\"\")","v":"diesel(averagebiofuelblend)litres2022"}]
[null,387,"Diesel (average biofuel blend) - upstream",0.60985999999999996,null,"litres",2022,"DESNZ","UK",null,{"$f":"SUBSTITUTE(SUBSTITUTE(LOWER(carbonfactor_db[[#This Row],[Description]]&carbonfactor_db[[#This Row],[Unit]]&carbonfactor_db[[#This Row],[Year]]),\" \",\"\"),\"-\",\"\")","v":"diesel(averagebiofuelblend)upstreamlitres2022"}]
[null,388,"Diesel (average biofuel blend) - biogenic",0.11020000000000001,null,"litres",2022,"DESNZ","UK",null,{"$f":"SUBSTITUTE(SUBSTITUTE(LOWER(carbonfactor_db[[#This Row],[Description]]&carbonfactor_db[[#This Row],[Unit]]&carbonfactor_db[[#This Row],[Year]]),\" \",\"\"),\"-\",\"\")","v":"diesel(averagebiofuelblend)biogeniclitres2022"}]
[null,389,"Petrol (average biofuel blend)",2.1618500000000003,null,"litres",2022,"DESNZ","UK",null,{"$f":"SUBSTITUTE(SUBSTITUTE(LOWER(carbonfactor_db[[#This Row],[Description]]&carbonfactor_db[[#This Row],[Unit]]&carbonfactor_db[[#This Row],[Year]]),\" \",\"\"),\"-\",\"\")","v":"petrol(averagebiofuelblend)litres2022"}]
[null,390,"Petrol (average biofuel blend) - upstream",0.61328000000000005,null,"litres",2022,"DESNZ","UK",null,{"$f":"SUBSTITUTE(SUBSTITUTE(LOWER(carbonfactor_db[[#This Row],[Description]]&carbonfactor_db[[#This Row],[Unit]]&carbonfactor_db[[#This Row],[Year]]),\" \",\"\"),\"-\",\"\")","v":"petrol(averagebiofuelblend)upstreamlitres2022"}]
[null,391,"Petrol (average biofuel blend) - biogenic",8.2930000000000004E-2,null,"litres",2022,"DESNZ","UK",null,{"$f":"SUBSTITUTE(SUBSTITUTE(LOWER(carbonfactor_db[[#This Row],[Description]]&carbonfactor_db[[#This Row],[Unit]]&carbonfactor_db[[#This Row],[Year]]),\" \",\"\"),\"-\",\"\")","v":"petrol(averagebiofuelblend)biogeniclitres2022"}]
[null,392,"Biodiesel HVO",3.5580000000000001E-2,null,"litres",2022,"DESNZ","UK",null,{"$f":"SUBSTITUTE(SUBSTITUTE(LOWER(carbonfactor_db[[#This Row],[Description]]&carbonfactor_db[[#This Row],[Unit]]&carbonfactor_db[[#This Row],[Year]]),\" \",\"\"),\"-\",\"\")","v":"biodieselhvolitres2022"}]
[null,393,"Biodiesel HVO - upstream",0.35177999999999998,null,"litres",2022,"DESNZ","UK",null,{"$f":"SUBSTITUTE(SUBSTITUTE(LOWER(carbonfactor_db[[#This Row],[Description]]&carbonfactor_db[[#This Row],[Unit]]&carbonfactor_db[[#This Row],[Year]]),\" \",\"\"),\"-\",\"\")","v":"biodieselhvoupstreamlitres2022"}]
[null,394,"Biodiesel HVO - biogenic",2.4700000000000002,null,"litres",2022,"DESNZ","UK",null,{"$f":"SUBSTITUTE(SUBSTITUTE(LOWER(carbonfactor_db[[#This Row],[Description]]&carbonfactor_db[[#This Row],[Unit]]&carbonfactor_db[[#This Row],[Year]]),\" \",\"\"),\"-\",\"\")","v":"biodieselhvobiogeniclitres2022"}]
[null,395,"Paper",{"$f":"919.39628/1000","v":0.91939628000000007},null,"kg",2022,"DESNZ","UK",null,{"$f":"SUBSTITUTE(SUBSTITUTE(LOWER(carbonfactor_db[[#This Row],[Description]]&carbonfactor_db[[#This Row],[Unit]]&carbonfactor_db[[#This Row],[Year]]),\" \",\"\"),\"-\",\"\")","v":"paperkg2022"}]
[null,396,"Water supply",0.14899999999999999,null,"m3",2022,"DESNZ","UK",null,{"$f":"SUBSTITUTE(SUBSTITUTE(LOWER(carbonfactor_db[[#This Row],[Description]]&carbonfactor_db[[#This Row],[Unit]]&carbonfactor_db[[#This Row],[Year]]),\" \",\"\"),\"-\",\"\")","v":"watersupplym32022"}]
[null,397,"Homeworking (office equipment + heating)",0.3407533148647296,null,"FTE working hour",2022,"DESNZ","UK",null,{"$f":"SUBSTITUTE(SUBSTITUTE(LOWER(carbonfactor_db[[#This Row],[Description]]&carbonfactor_db[[#This Row],[Unit]]&carbonfactor_db[[#This Row],[Year]]),\" \",\"\"),\"-\",\"\")","v":"homeworking(officeequipment+heating)fteworkinghour2022"}]
[null,398,"Car average unknown fuel",0.17066999999999999,null,"km",2022,"DESNZ","UK",null,{"$f":"SUBSTITUTE(SUBSTITUTE(LOWER(carbonfactor_db[[#This Row],[Description]]&carbonfactor_db[[#This Row],[Unit]]&carbonfactor_db[[#This Row],[Year]]),\" \",\"\"),\"-\",\"\")","v":"caraverageunknownfuelkm2022"}]
[null,399,"Car small diesel",0.13989414,null,"km",2022,"DESNZ","UK",null,{"$f":"SUBSTITUTE(SUBSTITUTE(LOWER(carbonfactor_db[[#This Row],[Description]]&carbonfactor_db[[#This Row],[Unit]]&carbonfactor_db[[#This Row],[Year]]),\" \",\"\"),\"-\",\"\")","v":"carsmalldieselkm2022"}]
[null,400,"Car medium diesel",0.16800414,null,"km",2022,"DESNZ","UK",null,{"$f":"SUBSTITUTE(SUBSTITUTE(LOWER(carbonfactor_db[[#This Row],[Description]]&carbonfactor_db[[#This Row],[Unit]]&carbonfactor_db[[#This Row],[Year]]),\" \",\"\"),\"-\",\"\")","v":"carmediumdieselkm2022"}]
[null,401,"Car large diesel",0.20953414000000001,null,"km",2022,"DESNZ","UK",null,{"$f":"SUBSTITUTE(SUBSTITUTE(LOWER(carbonfactor_db[[#This Row],[Description]]&carbonfactor_db[[#This Row],[Unit]]&carbonfactor_db[[#This Row],[Year]]),\" \",\"\"),\"-\",\"\")","v":"carlargedieselkm2022"}]
[null,402,"Car average diesel",0.17082414000000001,null,"km",2022,"DESNZ","UK",null,{"$f":"SUBSTITUTE(SUBSTITUTE(LOWER(carbonfactor_db[[#This Row],[Description]]&carbonfactor_db[[#This Row],[Unit]]&carbonfactor_db[[#This Row],[Year]]),\" \",\"\"),\"-\",\"\")","v":"caraveragedieselkm2022"}]
[null,403,"Car small petrol",0.14651999999999998,null,"km",2022,"DESNZ","UK",null,{"$f":"SUBSTITUTE(SUBSTITUTE(LOWER(carbonfactor_db[[#This Row],[Description]]&carbonfactor_db[[#This Row],[Unit]]&carbonfactor_db[[#This Row],[Year]]),\" \",\"\"),\"-\",\"\")","v":"carsmallpetrolkm2022"}]
[null,404,"Car medium petrol",0.18469999999999998,null,"km",2022,"DESNZ","UK",null,{"$f":"SUBSTITUTE(SUBSTITUTE(LOWER(carbonfactor_db[[#This Row],[Description]]&carbonfactor_db[[#This Row],[Unit]]&carbonfactor_db[[#This Row],[Year]]),\" \",\"\"),\"-\",\"\")","v":"carmediumpetrolkm2022"}]
[null,405,"Car large petrol",0.27639000000000002,null,"km",2022,"DESNZ","UK",null,{"$f":"SUBSTITUTE(SUBSTITUTE(LOWER(carbonfactor_db[[#This Row],[Description]]&carbonfactor_db[[#This Row],[Unit]]&carbonfactor_db[[#This Row],[Year]]),\" \",\"\"),\"-\",\"\")","v":"carlargepetrolkm2022"}]
[null,406,"Car average petrol",0.17047999999999999,null,"km",2022,"DESNZ","UK",null,{"$f":"SUBSTITUTE(SUBSTITUTE(LOWER(carbonfactor_db[[#This Row],[Description]]&carbonfactor_db[[#This Row],[Unit]]&carbonfactor_db[[#This Row],[Year]]),\" \",\"\"),\"-\",\"\")","v":"caraveragepetrolkm2022"}]
[null,407,"Car small EV",4.0460000000000003E-2,null,"km",2022,"DESNZ","UK",null,{"$f":"SUBSTITUTE(SUBSTITUTE(LOWER(carbonfactor_db[[#This Row],[Description]]&carbonfactor_db[[#This Row],[Unit]]&carbonfactor_db[[#This Row],[Year]]),\" \",\"\"),\"-\",\"\")","v":"carsmallevkm2022"}]
[null,408,"Car medium EV",4.4690000000000001E-2,null,"km",2022,"DESNZ","UK",null,{"$f":"SUBSTITUTE(SUBSTITUTE(LOWER(carbonfactor_db[[#This Row],[Description]]&carbonfactor_db[[#This Row],[Unit]]&carbonfactor_db[[#This Row],[Year]]),\" \",\"\"),\"-\",\"\")","v":"carmediumevkm2022"}]
[null,409,"Car large EV",5.0840000000000003E-2,null,"km",2022,"DESNZ","UK",null,{"$f":"SUBSTITUTE(SUBSTITUTE(LOWER(carbonfactor_db[[#This Row],[Description]]&carbonfactor_db[[#This Row],[Unit]]&carbonfactor_db[[#This Row],[Year]]),\" \",\"\"),\"-\",\"\")","v":"carlargeevkm2022"}]
[null,410,"Car average EV",5.0840000000000003E-2,null,"km",2022,"DESNZ","UK",null,{"$f":"SUBSTITUTE(SUBSTITUTE(LOWER(carbonfactor_db[[#This Row],[Description]]&carbonfactor_db[[#This Row],[Unit]]&carbonfactor_db[[#This Row],[Year]]),\" \",\"\"),\"-\",\"\")","v":"caraverageevkm2022"}]
[null,411,"Car small unknown fuel",0.1444,null,"km",2022,"DESNZ","UK",null,{"$f":"SUBSTITUTE(SUBSTITUTE(LOWER(carbonfactor_db[[#This Row],[Description]]&carbonfactor_db[[#This Row],[Unit]]&carbonfactor_db[[#This Row],[Year]]),\" \",\"\"),\"-\",\"\")","v":"carsmallunknownfuelkm2022"}]
[null,412,"Car medium unknown fuel",0.17588000000000001,null,"km",2022,"DESNZ","UK",null,{"$f":"SUBSTITUTE(SUBSTITUTE(LOWER(carbonfactor_db[[#This Row],[Description]]&carbonfactor_db[[#This Row],[Unit]]&carbonfactor_db[[#This Row],[Year]]),\" \",\"\"),\"-\",\"\")","v":"carmediumunknownfuelkm2022"}]
[null,413,"Car large unknown fuel",0.22733,null,"km",2022,"DESNZ","UK",null,{"$f":"SUBSTITUTE(SUBSTITUTE(LOWER(carbonfactor_db[[#This Row],[Description]]&carbonfactor_db[[#This Row],[Unit]]&carbonfactor_db[[#This Row],[Year]]),\" \",\"\"),\"-\",\"\")","v":"carlargeunknownfuelkm2022"}]
[null,414,"Car small hybrid",0.10332,null,"km",2022,"DESNZ","UK",null,{"$f":"SUBSTITUTE(SUBSTITUTE(LOWER(carbonfactor_db[[#This Row],[Description]]&carbonfactor_db[[#This Row],[Unit]]&carbonfactor_db[[#This Row],[Year]]),\" \",\"\"),\"-\",\"\")","v":"carsmallhybridkm2022"}]
[null,415,"Car medium hybrid",0.10999,null,"km",2022,"DESNZ","UK",null,{"$f":"SUBSTITUTE(SUBSTITUTE(LOWER(carbonfactor_db[[#This Row],[Description]]&carbonfactor_db[[#This Row],[Unit]]&carbonfactor_db[[#This Row],[Year]]),\" \",\"\"),\"-\",\"\")","v":"carmediumhybridkm2022"}]
[null,416,"Car large hybrid",0.15490999999999999,null,"km",2022,"DESNZ","UK",null,{"$f":"SUBSTITUTE(SUBSTITUTE(LOWER(carbonfactor_db[[#This Row],[Description]]&carbonfactor_db[[#This Row],[Unit]]&carbonfactor_db[[#This Row],[Year]]),\" \",\"\"),\"-\",\"\")","v":"carlargehybridkm2022"}]
[null,417,"Car average hybrid",0.12004000000000001,null,"km",2022,"DESNZ","UK",null,{"$f":"SUBSTITUTE(SUBSTITUTE(LOWER(carbonfactor_db[[#This Row],[Description]]&carbonfactor_db[[#This Row],[Unit]]&carbonfactor_db[[#This Row],[Year]]),\" \",\"\"),\"-\",\"\")","v":"caraveragehybridkm2022"}]
[null,418,"Car small plug-in hybrid",2.2160000000000003E-2,null,"km",2022,"DESNZ","UK",null,{"$f":"SUBSTITUTE(SUBSTITUTE(LOWER(carbonfactor_db[[#This Row],[Description]]&carbonfactor_db[[#This Row],[Unit]]&carbonfactor_db[[#This Row],[Year]]),\" \",\"\"),\"-\",\"\")","v":"carsmallpluginhybridkm2022"}]
[null,419,"Car medium plug-in hybrid",6.4750000000000002E-2,null,"km",2022,"DESNZ","UK",null,{"$f":"SUBSTITUTE(SUBSTITUTE(LOWER(carbonfactor_db[[#This Row],[Description]]&carbonfactor_db[[#This Row],[Unit]]&carbonfactor_db[[#This Row],[Year]]),\" \",\"\"),\"-\",\"\")","v":"carmediumpluginhybridkm2022"}]
[null,420,"Car large plug-in hybrid",7.4099999999999999E-2,null,"km",2022,"DESNZ","UK",null,{"$f":"SUBSTITUTE(SUBSTITUTE(LOWER(carbonfactor_db[[#This Row],[Description]]&carbonfactor_db[[#This Row],[Unit]]&carbonfactor_db[[#This Row],[Year]]),\" \",\"\"),\"-\",\"\")","v":"carlargepluginhybridkm2022"}]
[null,421,"Car average plug-in hybrid",6.8399999999999989E-2,null,"km",2022,"DESNZ","UK",null,{"$f":"SUBSTITUTE(SUBSTITUTE(LOWER(carbonfactor_db[[#This Row],[Description]]&carbonfactor_db[[#This Row],[Unit]]&carbonfactor_db[[#This Row],[Year]]),\" \",\"\"),\"-\",\"\")","v":"caraveragepluginhybridkm2022"}]
[null,422,"Van class I (up to 1.305 tonnes) diesel",0.14188999999999999,null,"km",2022,"DESNZ","UK",null,{"$f":"SUBSTITUTE(SUBSTITUTE(LOWER(carbonfactor_db[[#This Row],[Description]]&carbonfactor_db[[#This Row],[Unit]]&carbonfactor_db[[#This Row],[Year]]),\" \",\"\"),\"-\",\"\")","v":"vanclassi(upto1.305tonnes)dieselkm2022"}]
[null,423,"Van class II (1.305 to 1.74 tonnes) diesel",0.17513000000000001,null,"km",2022,"DESNZ","UK",null,{"$f":"SUBSTITUTE(SUBSTITUTE(LOWER(carbonfactor_db[[#This Row],[Description]]&carbonfactor_db[[#This Row],[Unit]]&carbonfactor_db[[#This Row],[Year]]),\" \",\"\"),\"-\",\"\")","v":"vanclassii(1.305to1.74tonnes)dieselkm2022"}]
[null,424,"Van class III (1.74 to 3.5 tonnes) diesel",0.25480999999999998,null,"km",2022,"DESNZ","UK",null,{"$f":"SUBSTITUTE(SUBSTITUTE(LOWER(carbonfactor_db[[#This Row],[Description]]&carbonfactor_db[[#This Row],[Unit]]&carbonfactor_db[[#This Row],[Year]]),\" \",\"\"),\"-\",\"\")","v":"vanclassiii(1.74to3.5tonnes)dieselkm2022"}]
[null,425,"Van average (up to 3.5 tonnes) diesel",0.23155999999999999,null,"km",2022,"DESNZ","UK",null,{"$f":"SUBSTITUTE(SUBSTITUTE(LOWER(carbonfactor_db[[#This Row],[Description]]&carbonfactor_db[[#This Row],[Unit]]&carbonfactor_db[[#This Row],[Year]]),\" \",\"\"),\"-\",\"\")","v":"vanaverage(upto3.5tonnes)dieselkm2022"}]
[null,426,"Van class I (up to 1.305 tonnes) petrol",0.19686999999999999,null,"km",2022,"DESNZ","UK",null,{"$f":"SUBSTITUTE(SUBSTITUTE(LOWER(carbonfactor_db[[#This Row],[Description]]&carbonfactor_db[[#This Row],[Unit]]&carbonfactor_db[[#This Row],[Year]]),\" \",\"\"),\"-\",\"\")","v":"vanclassi(upto1.305tonnes)petrolkm2022"}]
[null,427,"Van class II (1.305 to 1.74 tonnes) petrol",0.20460999999999999,null,"km",2022,"DESNZ","UK",null,{"$f":"SUBSTITUTE(SUBSTITUTE(LOWER(carbonfactor_db[[#This Row],[Description]]&carbonfactor_db[[#This Row],[Unit]]&carbonfactor_db[[#This Row],[Year]]),\" \",\"\"),\"-\",\"\")","v":"vanclassii(1.305to1.74tonnes)petrolkm2022"}]
[null,428,"Van class III (1.74 to 3.5 tonnes) petrol",0.32607000000000003,null,"km",2022,"DESNZ","UK",null,{"$f":"SUBSTITUTE(SUBSTITUTE(LOWER(carbonfactor_db[[#This Row],[Description]]&carbonfactor_db[[#This Row],[Unit]]&carbonfactor_db[[#This Row],[Year]]),\" \",\"\"),\"-\",\"\")","v":"vanclassiii(1.74to3.5tonnes)petrolkm2022"}]
[null,429,"Van average (up to 3.5 tonnes) petrol",0.21331999999999998,null,"km",2022,"DESNZ","UK",null,{"$f":"SUBSTITUTE(SUBSTITUTE(LOWER(carbonfactor_db[[#This Row],[Description]]&carbonfactor_db[[#This Row],[Unit]]&carbonfactor_db[[#This Row],[Year]]),\" \",\"\"),\"-\",\"\")","v":"vanaverage(upto3.5tonnes)petrolkm2022"}]
[null,430,"Van class I (up to 1.305 tonnes) electric",3.3100000000000004E-2,null,"km",2022,"DESNZ","UK",null,{"$f":"SUBSTITUTE(SUBSTITUTE(LOWER(carbonfactor_db[[#This Row],[Description]]&carbonfactor_db[[#This Row],[Unit]]&carbonfactor_db[[#This Row],[Year]]),\" \",\"\"),\"-\",\"\")","v":"vanclassi(upto1.305tonnes)electrickm2022"}]
[null,431,"Van class II (1.305 to 1.74 tonnes) electric",5.1680000000000004E-2,null,"km",2022,"DESNZ","UK",null,{"$f":"SUBSTITUTE(SUBSTITUTE(LOWER(carbonfactor_db[[#This Row],[Description]]&carbonfactor_db[[#This Row],[Unit]]&carbonfactor_db[[#This Row],[Year]]),\" \",\"\"),\"-\",\"\")","v":"vanclassii(1.305to1.74tonnes)electrickm2022"}]
[null,432,"Van class III (1.74 to 3.5 tonnes) electric",8.5440000000000002E-2,null,"km",2022,"DESNZ","UK",null,{"$f":"SUBSTITUTE(SUBSTITUTE(LOWER(carbonfactor_db[[#This Row],[Description]]&carbonfactor_db[[#This Row],[Unit]]&carbonfactor_db[[#This Row],[Year]]),\" \",\"\"),\"-\",\"\")","v":"vanclassiii(1.74to3.5tonnes)electrickm2022"}]
[null,433,"Van average (up to 3.5 tonnes) electric",5.7030000000000004E-2,null,"km",2022,"DESNZ","UK",null,{"$f":"SUBSTITUTE(SUBSTITUTE(LOWER(carbonfactor_db[[#This Row],[Description]]&carbonfactor_db[[#This Row],[Unit]]&carbonfactor_db[[#This Row],[Year]]),\" \",\"\"),\"-\",\"\")","v":"vanaverage(upto3.5tonnes)electrickm2022"}]
[null,434,"Van average (up to 3.5 tonnes) unknown fuel",0.23099,null,"km",2022,"DESNZ","UK",null,{"$f":"SUBSTITUTE(SUBSTITUTE(LOWER(carbonfactor_db[[#This Row],[Description]]&carbonfactor_db[[#This Row],[Unit]]&carbonfactor_db[[#This Row],[Year]]),\" \",\"\"),\"-\",\"\")","v":"vanaverage(upto3.5tonnes)unknownfuelkm2022"}]
[null,435,"Van average (up to 3.5 tonnes) diesel",0.57870999999999995,null,"tonne.km",2022,"DESNZ","UK",null,{"$f":"SUBSTITUTE(SUBSTITUTE(LOWER(carbonfactor_db[[#This Row],[Description]]&carbonfactor_db[[#This Row],[Unit]]&carbonfactor_db[[#This Row],[Year]]),\" \",\"\"),\"-\",\"\")","v":"vanaverage(upto3.5tonnes)dieseltonne.km2022"}]
[null,436,"Motorbike",0.11355,null,"km",2022,"DESNZ","UK","Average motorbike",{"$f":"SUBSTITUTE(SUBSTITUTE(LOWER(carbonfactor_db[[#This Row],[Description]]&carbonfactor_db[[#This Row],[Unit]]&carbonfactor_db[[#This Row],[Year]]),\" \",\"\"),\"-\",\"\")","v":"motorbikekm2022"}]
[null,437,"Taxi regular taxi",0.14876,null,"passenger.km",2022,"DESNZ","UK",null,{"$f":"SUBSTITUTE(SUBSTITUTE(LOWER(carbonfactor_db[[#This Row],[Description]]&carbonfactor_db[[#This Row],[Unit]]&carbonfactor_db[[#This Row],[Year]]),\" \",\"\"),\"-\",\"\")","v":"taxiregulartaxipassenger.km2022"}]
[null,438,"Taxi black cab",0.20416000000000001,null,"passenger.km",2022,"DESNZ","UK",null,{"$f":"SUBSTITUTE(SUBSTITUTE(LOWER(carbonfactor_db[[#This Row],[Description]]&carbonfactor_db[[#This Row],[Unit]]&carbonfactor_db[[#This Row],[Year]]),\" \",\"\"),\"-\",\"\")","v":"taxiblackcabpassenger.km2022"}]
[null,439,"Bus",9.6500000000000002E-2,null,"passenger.km",2022,"DESNZ","UK","Average local bus",{"$f":"SUBSTITUTE(SUBSTITUTE(LOWER(carbonfactor_db[[#This Row],[Description]]&carbonfactor_db[[#This Row],[Unit]]&carbonfactor_db[[#This Row],[Year]]),\" \",\"\"),\"-\",\"\")","v":"buspassenger.km2022"}]
[null,440,"Rail national",3.5490000000000001E-2,null,"passenger.km",2022,"DESNZ","UK",null,{"$f":"SUBSTITUTE(SUBSTITUTE(LOWER(carbonfactor_db[[#This Row],[Description]]&carbonfactor_db[[#This Row],[Unit]]&carbonfactor_db[[#This Row],[Year]]),\" \",\"\"),\"-\",\"\")","v":"railnationalpassenger.km2022"}]
[null,441,"Rail international",4.4599999999999996E-3,null,"passenger.km",2022,"DESNZ","UK",null,{"$f":"SUBSTITUTE(SUBSTITUTE(LOWER(carbonfactor_db[[#This Row],[Description]]&carbonfactor_db[[#This Row],[Unit]]&carbonfactor_db[[#This Row],[Year]]),\" \",\"\"),\"-\",\"\")","v":"railinternationalpassenger.km2022"}]
[null,442,"Tram",2.861E-2,null,"passenger.km",2022,"DESNZ","UK",null,{"$f":"SUBSTITUTE(SUBSTITUTE(LOWER(carbonfactor_db[[#This Row],[Description]]&carbonfactor_db[[#This Row],[Unit]]&carbonfactor_db[[#This Row],[Year]]),\" \",\"\"),\"-\",\"\")","v":"trampassenger.km2022"}]
[null,443,"London Underground",2.7809999999999998E-2,null,"passenger.km",2022,"DESNZ","UK",null,{"$f":"SUBSTITUTE(SUBSTITUTE(LOWER(carbonfactor_db[[#This Row],[Description]]&carbonfactor_db[[#This Row],[Unit]]&carbonfactor_db[[#This Row],[Year]]),\" \",\"\"),\"-\",\"\")","v":"londonundergroundpassenger.km2022"}]
[null,444,"Flight Domestic, to/from UK average passenger",0.24586999999999998,null,"passenger.km",2022,"DESNZ","UK",null,{"$f":"SUBSTITUTE(SUBSTITUTE(LOWER(carbonfactor_db[[#This Row],[Description]]&carbonfactor_db[[#This Row],[Unit]]&carbonfactor_db[[#This Row],[Year]]),\" \",\"\"),\"-\",\"\")","v":"flightdomestic,to/fromukaveragepassengerpassenger.km2022"}]
[null,445,"Flight Short-haul, to/from UK average passenger",0.15353000000000003,null,"passenger.km",2022,"DESNZ","UK",null,{"$f":"SUBSTITUTE(SUBSTITUTE(LOWER(carbonfactor_db[[#This Row],[Description]]&carbonfactor_db[[#This Row],[Unit]]&carbonfactor_db[[#This Row],[Year]]),\" \",\"\"),\"-\",\"\")","v":"flightshorthaul,to/fromukaveragepassengerpassenger.km2022"}]
[null,446,"Flight Short-haul, to/from UK economy class",0.15102000000000002,null,"passenger.km",2022,"DESNZ","UK",null,{"$f":"SUBSTITUTE(SUBSTITUTE(LOWER(carbonfactor_db[[#This Row],[Description]]&carbonfactor_db[[#This Row],[Unit]]&carbonfactor_db[[#This Row],[Year]]),\" \",\"\"),\"-\",\"\")","v":"flightshorthaul,to/fromukeconomyclasspassenger.km2022"}]
[null,447,"Flight Short-haul, to/from UK business class",0.22652000000000003,null,"passenger.km",2022,"DESNZ","UK",null,{"$f":"SUBSTITUTE(SUBSTITUTE(LOWER(carbonfactor_db[[#This Row],[Description]]&carbonfactor_db[[#This Row],[Unit]]&carbonfactor_db[[#This Row],[Year]]),\" \",\"\"),\"-\",\"\")","v":"flightshorthaul,to/fromukbusinessclasspassenger.km2022"}]
[null,448,"Flight Long-haul, to/from UK average passenger",0.19309000000000001,null,"passenger.km",2022,"DESNZ","UK",null,{"$f":"SUBSTITUTE(SUBSTITUTE(LOWER(carbonfactor_db[[#This Row],[Description]]&carbonfactor_db[[#This Row],[Unit]]&carbonfactor_db[[#This Row],[Year]]),\" \",\"\"),\"-\",\"\")","v":"flightlonghaul,to/fromukaveragepassengerpassenger.km2022"}]
[null,449,"Flight Long-haul, to/from UK economy class",0.14787000000000003,null,"passenger.km",2022,"DESNZ","UK",null,{"$f":"SUBSTITUTE(SUBSTITUTE(LOWER(carbonfactor_db[[#This Row],[Description]]&carbonfactor_db[[#This Row],[Unit]]&carbonfactor_db[[#This Row],[Year]]),\" \",\"\"),\"-\",\"\")","v":"flightlonghaul,to/fromukeconomyclasspassenger.km2022"}]
[null,450,"Flight Long-haul, to/from UK premium economy class",0.23659000000000002,null,"passenger.km",2022,"DESNZ","UK",null,{"$f":"SUBSTITUTE(SUBSTITUTE(LOWER(carbonfactor_db[[#This Row],[Description]]&carbonfactor_db[[#This Row],[Unit]]&carbonfactor_db[[#This Row],[Year]]),\" \",\"\"),\"-\",\"\")","v":"flightlonghaul,to/fromukpremiumeconomyclasspassenger.km2022"}]
[null,451,"Flight Long-haul, to/from UK business class",0.42882000000000003,null,"passenger.km",2022,"DESNZ","UK",null,{"$f":"SUBSTITUTE(SUBSTITUTE(LOWER(carbonfactor_db[[#This Row],[Description]]&carbonfactor_db[[#This Row],[Unit]]&carbonfactor_db[[#This Row],[Year]]),\" \",\"\"),\"-\",\"\")","v":"flightlonghaul,to/fromukbusinessclasspassenger.km2022"}]
[null,452,"Flight Long-haul, to/from UK first class",0.59147000000000005,null,"passenger.km",2022,"DESNZ","UK",null,{"$f":"SUBSTITUTE(SUBSTITUTE(LOWER(carbonfactor_db[[#This Row],[Description]]&carbonfactor_db[[#This Row],[Unit]]&carbonfactor_db[[#This Row],[Year]]),\" \",\"\"),\"-\",\"\")","v":"flightlonghaul,to/fromukfirstclasspassenger.km2022"}]
[null,453,"Flight International, to/from non-UK average passenger",0.18362000000000001,null,"passenger.km",2022,"DESNZ","UK",null,{"$f":"SUBSTITUTE(SUBSTITUTE(LOWER(carbonfactor_db[[#This Row],[Description]]&carbonfactor_db[[#This Row],[Unit]]&carbonfactor_db[[#This Row],[Year]]),\" \",\"\"),\"-\",\"\")","v":"flightinternational,to/fromnonukaveragepassengerpassenger.km2022"}]
[null,454,"Flight International, to/from non-UK economy class",0.140625,null,"passenger.km",2022,"DESNZ","UK",null,{"$f":"SUBSTITUTE(SUBSTITUTE(LOWER(carbonfactor_db[[#This Row],[Description]]&carbonfactor_db[[#This Row],[Unit]]&carbonfactor_db[[#This Row],[Year]]),\" \",\"\"),\"-\",\"\")","v":"flightinternational,to/fromnonukeconomyclasspassenger.km2022"}]
[null,455,"Flight International, to/from non-UK premium economy class",0.22500000000000001,null,"passenger.km",2022,"DESNZ","UK",null,{"$f":"SUBSTITUTE(SUBSTITUTE(LOWER(carbonfactor_db[[#This Row],[Description]]&carbonfactor_db[[#This Row],[Unit]]&carbonfactor_db[[#This Row],[Year]]),\" \",\"\"),\"-\",\"\")","v":"flightinternational,to/fromnonukpremiumeconomyclasspassenger.km2022"}]
[null,456,"Flight International, to/from non-UK Business class",0.40781000000000001,null,"passenger.km",2022,"DESNZ","UK",null,{"$f":"SUBSTITUTE(SUBSTITUTE(LOWER(carbonfactor_db[[#This Row],[Description]]&carbonfactor_db[[#This Row],[Unit]]&carbonfactor_db[[#This Row],[Year]]),\" \",\"\"),\"-\",\"\")","v":"flightinternational,to/fromnonukbusinessclasspassenger.km2022"}]
[null,457,"Flight International, to/from non-UK First class",0.56250999999999995,null,"passenger.km",2022,"DESNZ","UK",null,{"$f":"SUBSTITUTE(SUBSTITUTE(LOWER(carbonfactor_db[[#This Row],[Description]]&carbonfactor_db[[#This Row],[Unit]]&carbonfactor_db[[#This Row],[Year]]),\" \",\"\"),\"-\",\"\")","v":"flightinternational,to/fromnonukfirstclasspassenger.km2022"}]
[null,458,"Ferry",0.112862,null,"passenger.km",2022,"DESNZ","UK","Average (all passenger)",{"$f":"SUBSTITUTE(SUBSTITUTE(LOWER(carbonfactor_db[[#This Row],[Description]]&carbonfactor_db[[#This Row],[Unit]]&carbonfactor_db[[#This Row],[Year]]),\" \",\"\"),\"-\",\"\")","v":"ferrypassenger.km2022"}]
[null,459,"Car average unknown fuel - upstream",4.5080000000000002E-2,null,"km",2022,"DESNZ","UK",null,{"$f":"SUBSTITUTE(SUBSTITUTE(LOWER(carbonfactor_db[[#This Row],[Description]]&carbonfactor_db[[#This Row],[Unit]]&carbonfactor_db[[#This Row],[Year]]),\" \",\"\"),\"-\",\"\")","v":"caraverageunknownfuelupstreamkm2022"}]
[null,460,"Car small diesel - upstream",3.3439999999999998E-2,null,"km",2022,"DESNZ","UK",null,{"$f":"SUBSTITUTE(SUBSTITUTE(LOWER(carbonfactor_db[[#This Row],[Description]]&carbonfactor_db[[#This Row],[Unit]]&carbonfactor_db[[#This Row],[Year]]),\" \",\"\"),\"-\",\"\")","v":"carsmalldieselupstreamkm2022"}]
[null,461,"Car medium diesel - upstream",4.018E-2,null,"km",2022,"DESNZ","UK",null,{"$f":"SUBSTITUTE(SUBSTITUTE(LOWER(carbonfactor_db[[#This Row],[Description]]&carbonfactor_db[[#This Row],[Unit]]&carbonfactor_db[[#This Row],[Year]]),\" \",\"\"),\"-\",\"\")","v":"carmediumdieselupstreamkm2022"}]
[null,462,"Car large diesel - upstream",5.0590000000000003E-2,null,"km",2022,"DESNZ","UK",null,{"$f":"SUBSTITUTE(SUBSTITUTE(LOWER(carbonfactor_db[[#This Row],[Description]]&carbonfactor_db[[#This Row],[Unit]]&carbonfactor_db[[#This Row],[Year]]),\" \",\"\"),\"-\",\"\")","v":"carlargedieselupstreamkm2022"}]
[null,463,"Car average diesel - upstream",4.104E-2,null,"km",2022,"DESNZ","UK",null,{"$f":"SUBSTITUTE(SUBSTITUTE(LOWER(carbonfactor_db[[#This Row],[Description]]&carbonfactor_db[[#This Row],[Unit]]&carbonfactor_db[[#This Row],[Year]]),\" \",\"\"),\"-\",\"\")","v":"caraveragedieselupstreamkm2022"}]
[null,464,"Car small petrol - upstream",4.1860000000000001E-2,null,"km",2022,"DESNZ","UK",null,{"$f":"SUBSTITUTE(SUBSTITUTE(LOWER(carbonfactor_db[[#This Row],[Description]]&carbonfactor_db[[#This Row],[Unit]]&carbonfactor_db[[#This Row],[Year]]),\" \",\"\"),\"-\",\"\")","v":"carsmallpetrolupstreamkm2022"}]
[null,465,"Car medium petrol - upstream",5.2659999999999998E-2,null,"km",2022,"DESNZ","UK",null,{"$f":"SUBSTITUTE(SUBSTITUTE(LOWER(carbonfactor_db[[#This Row],[Description]]&carbonfactor_db[[#This Row],[Unit]]&carbonfactor_db[[#This Row],[Year]]),\" \",\"\"),\"-\",\"\")","v":"carmediumpetrolupstreamkm2022"}]
[null,466,"Car large petrol - upstream",7.8329999999999997E-2,null,"km",2022,"DESNZ","UK",null,{"$f":"SUBSTITUTE(SUBSTITUTE(LOWER(carbonfactor_db[[#This Row],[Description]]&carbonfactor_db[[#This Row],[Unit]]&carbonfactor_db[[#This Row],[Year]]),\" \",\"\"),\"-\",\"\")","v":"carlargepetrolupstreamkm2022"}]
[null,467,"Car average petrol - upstream",4.8849999999999998E-2,null,"km",2022,"DESNZ","UK",null,{"$f":"SUBSTITUTE(SUBSTITUTE(LOWER(carbonfactor_db[[#This Row],[Description]]&carbonfactor_db[[#This Row],[Unit]]&carbonfactor_db[[#This Row],[Year]]),\" \",\"\"),\"-\",\"\")","v":"caraveragepetrolupstreamkm2022"}]
[null,468,"Car small EV - upstream",3.6900000000000001E-3,null,"km",2022,"DESNZ","UK",null,{"$f":"SUBSTITUTE(SUBSTITUTE(LOWER(carbonfactor_db[[#This Row],[Description]]&carbonfactor_db[[#This Row],[Unit]]&carbonfactor_db[[#This Row],[Year]]),\" \",\"\"),\"-\",\"\")","v":"carsmallevupstreamkm2022"}]
[null,469,"Car medium EV - upstream",4.0999999999999995E-3,null,"km",2022,"DESNZ","UK",null,{"$f":"SUBSTITUTE(SUBSTITUTE(LOWER(carbonfactor_db[[#This Row],[Description]]&carbonfactor_db[[#This Row],[Unit]]&carbonfactor_db[[#This Row],[Year]]),\" \",\"\"),\"-\",\"\")","v":"carmediumevupstreamkm2022"}]
[null,470,"Car large EV - upstream",4.6499999999999996E-3,null,"km",2022,"DESNZ","UK",null,{"$f":"SUBSTITUTE(SUBSTITUTE(LOWER(carbonfactor_db[[#This Row],[Description]]&carbonfactor_db[[#This Row],[Unit]]&carbonfactor_db[[#This Row],[Year]]),\" \",\"\"),\"-\",\"\")","v":"carlargeevupstreamkm2022"}]
[null,471,"Car average EV - upstream",4.3099999999999996E-3,null,"km",2022,"DESNZ","UK",null,{"$f":"SUBSTITUTE(SUBSTITUTE(LOWER(carbonfactor_db[[#This Row],[Description]]&carbonfactor_db[[#This Row],[Unit]]&carbonfactor_db[[#This Row],[Year]]),\" \",\"\"),\"-\",\"\")","v":"caraverageevupstreamkm2022"}]
[null,472,"Car small unknown fuel - upstream",3.9039999999999998E-2,null,"km",2022,"DESNZ","UK",null,{"$f":"SUBSTITUTE(SUBSTITUTE(LOWER(carbonfactor_db[[#This Row],[Description]]&carbonfactor_db[[#This Row],[Unit]]&carbonfactor_db[[#This Row],[Year]]),\" \",\"\"),\"-\",\"\")","v":"carsmallunknownfuelupstreamkm2022"}]
[null,473,"Car medium unknown fuel - upstream",4.5990000000000003E-2,null,"km",2022,"DESNZ","UK",null,{"$f":"SUBSTITUTE(SUBSTITUTE(LOWER(carbonfactor_db[[#This Row],[Description]]&carbonfactor_db[[#This Row],[Unit]]&carbonfactor_db[[#This Row],[Year]]),\" \",\"\"),\"-\",\"\")","v":"carmediumunknownfuelupstreamkm2022"}]
[null,474,"Car large unknown fuel - upstream",5.7829999999999999E-2,null,"km",2022,"DESNZ","UK",null,{"$f":"SUBSTITUTE(SUBSTITUTE(LOWER(carbonfactor_db[[#This Row],[Description]]&carbonfactor_db[[#This Row],[Unit]]&carbonfactor_db[[#This Row],[Year]]),\" \",\"\"),\"-\",\"\")","v":"carlargeunknownfuelupstreamkm2022"}]
[null,475,"Car small hybrid - upstream",2.8080000000000001E-2,null,"km",2022,"DESNZ","UK",null,{"$f":"SUBSTITUTE(SUBSTITUTE(LOWER(carbonfactor_db[[#This Row],[Description]]&carbonfactor_db[[#This Row],[Unit]]&carbonfactor_db[[#This Row],[Year]]),\" \",\"\"),\"-\",\"\")","v":"carsmallhybridupstreamkm2022"}]
[null,476,"Car medium hybrid - upstream",2.8570000000000002E-2,null,"km",2022,"DESNZ","UK",null,{"$f":"SUBSTITUTE(SUBSTITUTE(LOWER(carbonfactor_db[[#This Row],[Description]]&carbonfactor_db[[#This Row],[Unit]]&carbonfactor_db[[#This Row],[Year]]),\" \",\"\"),\"-\",\"\")","v":"carmediumhybridupstreamkm2022"}]
[null,477,"Car large hybrid - upstream",3.8640000000000001E-2,null,"km",2022,"DESNZ","UK",null,{"$f":"SUBSTITUTE(SUBSTITUTE(LOWER(carbonfactor_db[[#This Row],[Description]]&carbonfactor_db[[#This Row],[Unit]]&carbonfactor_db[[#This Row],[Year]]),\" \",\"\"),\"-\",\"\")","v":"carlargehybridupstreamkm2022"}]
[null,478,"Car average hybrid - upstream",3.1320000000000001E-2,null,"km",2022,"DESNZ","UK",null,{"$f":"SUBSTITUTE(SUBSTITUTE(LOWER(carbonfactor_db[[#This Row],[Description]]&carbonfactor_db[[#This Row],[Unit]]&carbonfactor_db[[#This Row],[Year]]),\" \",\"\"),\"-\",\"\")","v":"caraveragehybridupstreamkm2022"}]
[null,479,"Car small plug-in hybrid - upstream",1.4930000000000001E-2,null,"km",2022,"DESNZ","UK",null,{"$f":"SUBSTITUTE(SUBSTITUTE(LOWER(carbonfactor_db[[#This Row],[Description]]&carbonfactor_db[[#This Row],[Unit]]&carbonfactor_db[[#This Row],[Year]]),\" \",\"\"),\"-\",\"\")","v":"carsmallpluginhybridupstreamkm2022"}]
[null,480,"Car medium plug-in hybrid - upstream",2.4979999999999999E-2,null,"km",2022,"DESNZ","UK",null,{"$f":"SUBSTITUTE(SUBSTITUTE(LOWER(carbonfactor_db[[#This Row],[Description]]&carbonfactor_db[[#This Row],[Unit]]&carbonfactor_db[[#This Row],[Year]]),\" \",\"\"),\"-\",\"\")","v":"carmediumpluginhybridupstreamkm2022"}]
[null,481,"Car large plug-in hybrid - upstream",2.8750000000000001E-2,null,"km",2022,"DESNZ","UK",null,{"$f":"SUBSTITUTE(SUBSTITUTE(LOWER(carbonfactor_db[[#This Row],[Description]]&carbonfactor_db[[#This Row],[Unit]]&carbonfactor_db[[#This Row],[Year]]),\" \",\"\"),\"-\",\"\")","v":"carlargepluginhybridupstreamkm2022"}]
[null,482,"Car average plug-in hybrid - upstream",2.657E-2,null,"km",2022,"DESNZ","UK",null,{"$f":"SUBSTITUTE(SUBSTITUTE(LOWER(carbonfactor_db[[#This Row],[Description]]&carbonfactor_db[[#This Row],[Unit]]&carbonfactor_db[[#This Row],[Year]]),\" \",\"\"),\"-\",\"\")","v":"caraveragepluginhybridupstreamkm2022"}]
[null,483,"Van class I (up to 1.305 tonnes) diesel - upstream",3.5680000000000003E-2,null,"km",2022,"DESNZ","UK",null,{"$f":"SUBSTITUTE(SUBSTITUTE(LOWER(carbonfactor_db[[#This Row],[Description]]&carbonfactor_db[[#This Row],[Unit]]&carbonfactor_db[[#This Row],[Year]]),\" \",\"\"),\"-\",\"\")","v":"vanclassi(upto1.305tonnes)dieselupstreamkm2022"}]
[null,484,"Van class II (1.305 to 1.74 tonnes) diesel - upstream",4.4670000000000001E-2,null,"km",2022,"DESNZ","UK",null,{"$f":"SUBSTITUTE(SUBSTITUTE(LOWER(carbonfactor_db[[#This Row],[Description]]&carbonfactor_db[[#This Row],[Unit]]&carbonfactor_db[[#This Row],[Year]]),\" \",\"\"),\"-\",\"\")","v":"vanclassii(1.305to1.74tonnes)dieselupstreamkm2022"}]
[null,485,"Van class III (1.74 to 3.5 tonnes) diesel - upstream",6.4909999999999995E-2,null,"km",2022,"DESNZ","UK",null,{"$f":"SUBSTITUTE(SUBSTITUTE(LOWER(carbonfactor_db[[#This Row],[Description]]&carbonfactor_db[[#This Row],[Unit]]&carbonfactor_db[[#This Row],[Year]]),\" \",\"\"),\"-\",\"\")","v":"vanclassiii(1.74to3.5tonnes)dieselupstreamkm2022"}]
[null,486,"Van average (up to 3.5 tonnes) diesel - upstream",5.8959999999999999E-2,null,"km",2022,"DESNZ","UK",null,{"$f":"SUBSTITUTE(SUBSTITUTE(LOWER(carbonfactor_db[[#This Row],[Description]]&carbonfactor_db[[#This Row],[Unit]]&carbonfactor_db[[#This Row],[Year]]),\" \",\"\"),\"-\",\"\")","v":"vanaverage(upto3.5tonnes)dieselupstreamkm2022"}]
[null,487,"Van class I (up to 1.305 tonnes) petrol - upstream",5.6030000000000003E-2,null,"km",2022,"DESNZ","UK",null,{"$f":"SUBSTITUTE(SUBSTITUTE(LOWER(carbonfactor_db[[#This Row],[Description]]&carbonfactor_db[[#This Row],[Unit]]&carbonfactor_db[[#This Row],[Year]]),\" \",\"\"),\"-\",\"\")","v":"vanclassi(upto1.305tonnes)petrolupstreamkm2022"}]
[null,488,"Van class II (1.305 to 1.74 tonnes) petrol - upstream",5.5559999999999998E-2,null,"km",2022,"DESNZ","UK",null,{"$f":"SUBSTITUTE(SUBSTITUTE(LOWER(carbonfactor_db[[#This Row],[Description]]&carbonfactor_db[[#This Row],[Unit]]&carbonfactor_db[[#This Row],[Year]]),\" \",\"\"),\"-\",\"\")","v":"vanclassii(1.305to1.74tonnes)petrolupstreamkm2022"}]
[null,489,"Van class III (1.74 to 3.5 tonnes) petrol - upstream",8.788E-2,null,"km",2022,"DESNZ","UK",null,{"$f":"SUBSTITUTE(SUBSTITUTE(LOWER(carbonfactor_db[[#This Row],[Description]]&carbonfactor_db[[#This Row],[Unit]]&carbonfactor_db[[#This Row],[Year]]),\" \",\"\"),\"-\",\"\")","v":"vanclassiii(1.74to3.5tonnes)petrolupstreamkm2022"}]
[null,490,"Van average (up to 3.5 tonnes) petrol - upstream",5.901E-2,null,"km",2022,"DESNZ","UK",null,{"$f":"SUBSTITUTE(SUBSTITUTE(LOWER(carbonfactor_db[[#This Row],[Description]]&carbonfactor_db[[#This Row],[Unit]]&carbonfactor_db[[#This Row],[Year]]),\" \",\"\"),\"-\",\"\")","v":"vanaverage(upto3.5tonnes)petrolupstreamkm2022"}]
[null,491,"Van class I (up to 1.305 tonnes) electric - upstream",3.0300000000000001E-3,null,"km",2022,"DESNZ","UK",null,{"$f":"SUBSTITUTE(SUBSTITUTE(LOWER(carbonfactor_db[[#This Row],[Description]]&carbonfactor_db[[#This Row],[Unit]]&carbonfactor_db[[#This Row],[Year]]),\" \",\"\"),\"-\",\"\")","v":"vanclassi(upto1.305tonnes)electricupstreamkm2022"}]
[null,492,"Van class II (1.305 to 1.74 tonnes) electric - upstream",4.7299999999999998E-3,null,"km",2022,"DESNZ","UK",null,{"$f":"SUBSTITUTE(SUBSTITUTE(LOWER(carbonfactor_db[[#This Row],[Description]]&carbonfactor_db[[#This Row],[Unit]]&carbonfactor_db[[#This Row],[Year]]),\" \",\"\"),\"-\",\"\")","v":"vanclassii(1.305to1.74tonnes)electricupstreamkm2022"}]
[null,493,"Van class III (1.74 to 3.5 tonnes) electric - upstream",7.8200000000000006E-3,null,"km",2022,"DESNZ","UK",null,{"$f":"SUBSTITUTE(SUBSTITUTE(LOWER(carbonfactor_db[[#This Row],[Description]]&carbonfactor_db[[#This Row],[Unit]]&carbonfactor_db[[#This Row],[Year]]),\" \",\"\"),\"-\",\"\")","v":"vanclassiii(1.74to3.5tonnes)electricupstreamkm2022"}]
[null,494,"Van average (up to 3.5 tonnes) electric - upstream",5.2199999999999998E-3,null,"km",2022,"DESNZ","UK",null,{"$f":"SUBSTITUTE(SUBSTITUTE(LOWER(carbonfactor_db[[#This Row],[Description]]&carbonfactor_db[[#This Row],[Unit]]&carbonfactor_db[[#This Row],[Year]]),\" \",\"\"),\"-\",\"\")","v":"vanaverage(upto3.5tonnes)electricupstreamkm2022"}]
[null,495,"Van average (up to 3.5 tonnes) unknown fuel - upstream",5.8959999999999999E-2,null,"km",2022,"DESNZ","UK",null,{"$f":"SUBSTITUTE(SUBSTITUTE(LOWER(carbonfactor_db[[#This Row],[Description]]&carbonfactor_db[[#This Row],[Unit]]&carbonfactor_db[[#This Row],[Year]]),\" \",\"\"),\"-\",\"\")","v":"vanaverage(upto3.5tonnes)unknownfuelupstreamkm2022"}]
[null,496,"Van average (up to 3.5 tonnes) diesel - upstream",0.14732999999999999,null,"passenger.km",2022,"DESNZ","UK",null,{"$f":"SUBSTITUTE(SUBSTITUTE(LOWER(carbonfactor_db[[#This Row],[Description]]&carbonfactor_db[[#This Row],[Unit]]&carbonfactor_db[[#This Row],[Year]]),\" \",\"\"),\"-\",\"\")","v":"vanaverage(upto3.5tonnes)dieselupstreampassenger.km2022"}]
[null,497,"Motorbike - upstream",3.134E-2,null,"passenger.km",2022,"DESNZ","UK","Average motorbike",{"$f":"SUBSTITUTE(SUBSTITUTE(LOWER(carbonfactor_db[[#This Row],[Description]]&carbonfactor_db[[#This Row],[Unit]]&carbonfactor_db[[#This Row],[Year]]),\" \",\"\"),\"-\",\"\")","v":"motorbikeupstreampassenger.km2022"}]
[null,498,"Taxi regular taxi - upstream",3.6319999999999998E-2,null,"passenger.km",2022,"DESNZ","UK",null,{"$f":"SUBSTITUTE(SUBSTITUTE(LOWER(carbonfactor_db[[#This Row],[Description]]&carbonfactor_db[[#This Row],[Unit]]&carbonfactor_db[[#This Row],[Year]]),\" \",\"\"),\"-\",\"\")","v":"taxiregulartaxiupstreampassenger.km2022"}]
[null,499,"Taxi black cab - upstream",0.05,null,"passenger.km",2022,"DESNZ","UK",null,{"$f":"SUBSTITUTE(SUBSTITUTE(LOWER(carbonfactor_db[[#This Row],[Description]]&carbonfactor_db[[#This Row],[Unit]]&carbonfactor_db[[#This Row],[Year]]),\" \",\"\"),\"-\",\"\")","v":"taxiblackcabupstreampassenger.km2022"}]
[null,500,"Bus - upstream",2.494E-2,null,"passenger.km",2022,"DESNZ","UK","Average local bus",{"$f":"SUBSTITUTE(SUBSTITUTE(LOWER(carbonfactor_db[[#This Row],[Description]]&carbonfactor_db[[#This Row],[Unit]]&carbonfactor_db[[#This Row],[Year]]),\" \",\"\"),\"-\",\"\")","v":"busupstreampassenger.km2022"}]
[null,501,"Rail national - upstream",8.9200000000000008E-3,null,"passenger.km",2022,"DESNZ","UK",null,{"$f":"SUBSTITUTE(SUBSTITUTE(LOWER(carbonfactor_db[[#This Row],[Description]]&carbonfactor_db[[#This Row],[Unit]]&carbonfactor_db[[#This Row],[Year]]),\" \",\"\"),\"-\",\"\")","v":"railnationalupstreampassenger.km2022"}]
[null,502,"Rail international - upstream",1.16E-3,null,"passenger.km",2022,"DESNZ","UK",null,{"$f":"SUBSTITUTE(SUBSTITUTE(LOWER(carbonfactor_db[[#This Row],[Description]]&carbonfactor_db[[#This Row],[Unit]]&carbonfactor_db[[#This Row],[Year]]),\" \",\"\"),\"-\",\"\")","v":"railinternationalupstreampassenger.km2022"}]
[null,503,"Tram - upstream",7.45E-3,null,"passenger.km",2022,"DESNZ","UK",null,{"$f":"SUBSTITUTE(SUBSTITUTE(LOWER(carbonfactor_db[[#This Row],[Description]]&carbonfactor_db[[#This Row],[Unit]]&carbonfactor_db[[#This Row],[Year]]),\" \",\"\"),\"-\",\"\")","v":"tramupstreampassenger.km2022"}]
[null,504,"London Underground - upstream",7.2399999999999999E-3,null,"passenger.km",2022,"DESNZ","UK",null,{"$f":"SUBSTITUTE(SUBSTITUTE(LOWER(carbonfactor_db[[#This Row],[Description]]&carbonfactor_db[[#This Row],[Unit]]&carbonfactor_db[[#This Row],[Year]]),\" \",\"\"),\"-\",\"\")","v":"londonundergroundupstreampassenger.km2022"}]
[null,505,"Flight Domestic, to/from UK average passenger - upstream",2.691E-2,null,"passenger.km",2022,"DESNZ","UK",null,{"$f":"SUBSTITUTE(SUBSTITUTE(LOWER(carbonfactor_db[[#This Row],[Description]]&carbonfactor_db[[#This Row],[Unit]]&carbonfactor_db[[#This Row],[Year]]),\" \",\"\"),\"-\",\"\")","v":"flightdomestic,to/fromukaveragepassengerupstreampassenger.km2022"}]
[null,506,"Flight Short-haul, to/from UK average passenger - upstream",1.6809999999999999E-2,null,"passenger.km",2022,"DESNZ","UK",null,{"$f":"SUBSTITUTE(SUBSTITUTE(LOWER(carbonfactor_db[[#This Row],[Description]]&carbonfactor_db[[#This Row],[Unit]]&carbonfactor_db[[#This Row],[Year]]),\" \",\"\"),\"-\",\"\")","v":"flightshorthaul,to/fromukaveragepassengerupstreampassenger.km2022"}]
[null,507,"Flight Short-haul, to/from UK economy class - upstream",1.6539999999999999E-2,null,"passenger.km",2022,"DESNZ","UK",null,{"$f":"SUBSTITUTE(SUBSTITUTE(LOWER(carbonfactor_db[[#This Row],[Description]]&carbonfactor_db[[#This Row],[Unit]]&carbonfactor_db[[#This Row],[Year]]),\" \",\"\"),\"-\",\"\")","v":"flightshorthaul,to/fromukeconomyclassupstreampassenger.km2022"}]
[null,508,"Flight Short-haul, to/from UK business class - upstream",2.4799999999999999E-2,null,"passenger.km",2022,"DESNZ","UK",null,{"$f":"SUBSTITUTE(SUBSTITUTE(LOWER(carbonfactor_db[[#This Row],[Description]]&carbonfactor_db[[#This Row],[Unit]]&carbonfactor_db[[#This Row],[Year]]),\" \",\"\"),\"-\",\"\")","v":"flightshorthaul,to/fromukbusinessclassupstreampassenger.km2022"}]
[null,509,"Flight Long-haul, to/from UK average passenger - upstream",2.1139999999999999E-2,null,"passenger.km",2022,"DESNZ","UK",null,{"$f":"SUBSTITUTE(SUBSTITUTE(LOWER(carbonfactor_db[[#This Row],[Description]]&carbonfactor_db[[#This Row],[Unit]]&carbonfactor_db[[#This Row],[Year]]),\" \",\"\"),\"-\",\"\")","v":"flightlonghaul,to/fromukaveragepassengerupstreampassenger.km2022"}]
[null,510,"Flight Long-haul, to/from UK economy class - upstream",1.619E-2,null,"passenger.km",2022,"DESNZ","UK",null,{"$f":"SUBSTITUTE(SUBSTITUTE(LOWER(carbonfactor_db[[#This Row],[Description]]&carbonfactor_db[[#This Row],[Unit]]&carbonfactor_db[[#This Row],[Year]]),\" \",\"\"),\"-\",\"\")","v":"flightlonghaul,to/fromukeconomyclassupstreampassenger.km2022"}]
[null,511,"Flight Long-haul, to/from UK premium economy class - upstream",2.5909999999999999E-2,null,"passenger.km",2022,"DESNZ","UK",null,{"$f":"SUBSTITUTE(SUBSTITUTE(LOWER(carbonfactor_db[[#This Row],[Description]]&carbonfactor_db[[#This Row],[Unit]]&carbonfactor_db[[#This Row],[Year]]),\" \",\"\"),\"-\",\"\")","v":"flightlonghaul,to/fromukpremiumeconomyclassupstreampassenger.km2022"}]
[null,512,"Flight Long-haul, to/from UK business class - upstream",4.6960000000000002E-2,null,"passenger.km",2022,"DESNZ","UK",null,{"$f":"SUBSTITUTE(SUBSTITUTE(LOWER(carbonfactor_db[[#This Row],[Description]]&carbonfactor_db[[#This Row],[Unit]]&carbonfactor_db[[#This Row],[Year]]),\" \",\"\"),\"-\",\"\")","v":"flightlonghaul,to/fromukbusinessclassupstreampassenger.km2022"}]
[null,513,"Flight Long-haul, to/from UK first class - upstream",6.4769999999999994E-2,null,"passenger.km",2022,"DESNZ","UK",null,{"$f":"SUBSTITUTE(SUBSTITUTE(LOWER(carbonfactor_db[[#This Row],[Description]]&carbonfactor_db[[#This Row],[Unit]]&carbonfactor_db[[#This Row],[Year]]),\" \",\"\"),\"-\",\"\")","v":"flightlonghaul,to/fromukfirstclassupstreampassenger.km2022"}]
[null,514,"Flight International, to/from non-UK average passenger - upstream",2.0109999999999999E-2,null,"passenger.km",2022,"DESNZ","UK",null,{"$f":"SUBSTITUTE(SUBSTITUTE(LOWER(carbonfactor_db[[#This Row],[Description]]&carbonfactor_db[[#This Row],[Unit]]&carbonfactor_db[[#This Row],[Year]]),\" \",\"\"),\"-\",\"\")","v":"flightinternational,to/fromnonukaveragepassengerupstreampassenger.km2022"}]
[null,515,"Flight International, to/from non-UK economy class - upstream",1.54E-2,null,"passenger.km",2022,"DESNZ","UK",null,{"$f":"SUBSTITUTE(SUBSTITUTE(LOWER(carbonfactor_db[[#This Row],[Description]]&carbonfactor_db[[#This Row],[Unit]]&carbonfactor_db[[#This Row],[Year]]),\" \",\"\"),\"-\",\"\")","v":"flightinternational,to/fromnonukeconomyclassupstreampassenger.km2022"}]
[null,516,"Flight International, to/from non-UK premium economy class - upstream",2.4639999999999999E-2,null,"passenger.km",2022,"DESNZ","UK",null,{"$f":"SUBSTITUTE(SUBSTITUTE(LOWER(carbonfactor_db[[#This Row],[Description]]&carbonfactor_db[[#This Row],[Unit]]&carbonfactor_db[[#This Row],[Year]]),\" \",\"\"),\"-\",\"\")","v":"flightinternational,to/fromnonukpremiumeconomyclassupstreampassenger.km2022"}]
[null,517,"Flight International, to/from non-UK Business class - upstream",4.4659999999999998E-2,null,"passenger.km",2022,"DESNZ","UK",null,{"$f":"SUBSTITUTE(SUBSTITUTE(LOWER(carbonfactor_db[[#This Row],[Description]]&carbonfactor_db[[#This Row],[Unit]]&carbonfactor_db[[#This Row],[Year]]),\" \",\"\"),\"-\",\"\")","v":"flightinternational,to/fromnonukbusinessclassupstreampassenger.km2022"}]
[null,518,"Flight International, to/from non-UK First class - upstream",6.1589999999999999E-2,null,"passenger.km",2022,"DESNZ","UK",null,{"$f":"SUBSTITUTE(SUBSTITUTE(LOWER(carbonfactor_db[[#This Row],[Description]]&carbonfactor_db[[#This Row],[Unit]]&carbonfactor_db[[#This Row],[Year]]),\" \",\"\"),\"-\",\"\")","v":"flightinternational,to/fromnonukfirstclassupstreampassenger.km2022"}]
[null,519,"Ferry - upstream",2.5347000000000001E-2,null,"passenger.km",2022,"DESNZ","UK",null,{"$f":"SUBSTITUTE(SUBSTITUTE(LOWER(carbonfactor_db[[#This Row],[Description]]&carbonfactor_db[[#This Row],[Unit]]&carbonfactor_db[[#This Row],[Year]]),\" \",\"\"),\"-\",\"\")","v":"ferryupstreampassenger.km2022"}]
[null,520,"Electricity",0.17699999999999999,null,"kWh",2025,"DESNZ","UK","T&D and WTT for generation and WTT for T&D",{"$f":"SUBSTITUTE(SUBSTITUTE(LOWER(carbonfactor_db[[#This Row],[Description]]&carbonfactor_db[[#This Row],[Unit]]&carbonfactor_db[[#This Row],[Year]]),\" \",\"\"),\"-\",\"\")","v":"electricitykwh2025"}]
[null,521,"Electricity - upstream",6.8400000000000002E-2,null,"kWh",2025,"DESNZ","UK",null,{"$f":"SUBSTITUTE(SUBSTITUTE(LOWER(carbonfactor_db[[#This Row],[Description]]&carbonfactor_db[[#This Row],[Unit]]&carbonfactor_db[[#This Row],[Year]]),\" \",\"\"),\"-\",\"\")","v":"electricityupstreamkwh2025"}]
[null,522,"Electricity - biogenic",0.11507000000000001,null,"kWh",2025,"DESNZ","UK",null,{"$f":"SUBSTITUTE(SUBSTITUTE(LOWER(carbonfactor_db[[#This Row],[Description]]&carbonfactor_db[[#This Row],[Unit]]&carbonfactor_db[[#This Row],[Year]]),\" \",\"\"),\"-\",\"\")","v":"electricitybiogenickwh2025"}]
[null,523,"Natural gas",0.18296000000000001,null,"kWh",2025,"DESNZ","UK",null,{"$f":"SUBSTITUTE(SUBSTITUTE(LOWER(carbonfactor_db[[#This Row],[Description]]&carbonfactor_db[[#This Row],[Unit]]&carbonfactor_db[[#This Row],[Year]]),\" \",\"\"),\"-\",\"\")","v":"naturalgaskwh2025"}]
[null,524,"Natural gas - upstream",3.0210000000000001E-2,null,"kWh",2025,"DESNZ","UK",null,{"$f":"SUBSTITUTE(SUBSTITUTE(LOWER(carbonfactor_db[[#This Row],[Description]]&carbonfactor_db[[#This Row],[Unit]]&carbonfactor_db[[#This Row],[Year]]),\" \",\"\"),\"-\",\"\")","v":"naturalgasupstreamkwh2025"}]
[null,525,"Fuel oil",3.1749200000000002,null,"litres",2025,"DESNZ","UK",null,{"$f":"SUBSTITUTE(SUBSTITUTE(LOWER(carbonfactor_db[[#This Row],[Description]]&carbonfactor_db[[#This Row],[Unit]]&carbonfactor_db[[#This Row],[Year]]),\" \",\"\"),\"-\",\"\")","v":"fueloillitres2025"}]
[null,526,"Fuel oil - upstream",0.69538999999999995,null,"litres",2025,"DESNZ","UK",null,{"$f":"SUBSTITUTE(SUBSTITUTE(LOWER(carbonfactor_db[[#This Row],[Description]]&carbonfactor_db[[#This Row],[Unit]]&carbonfactor_db[[#This Row],[Year]]),\" \",\"\"),\"-\",\"\")","v":"fueloilupstreamlitres2025"}]
[null,527,"Diesel (average biofuel blend)",2.5708199999999999,null,"litres",2025,"DESNZ","UK",null,{"$f":"SUBSTITUTE(SUBSTITUTE(LOWER(carbonfactor_db[[#This Row],[Description]]&carbonfactor_db[[#This Row],[Unit]]&carbonfactor_db[[#This Row],[Year]]),\" \",\"\"),\"-\",\"\")","v":"diesel(averagebiofuelblend)litres2025"}]
[null,528,"Diesel (average biofuel blend) - upstream",0.61101000000000005,null,"litres",2025,"DESNZ","UK",null,{"$f":"SUBSTITUTE(SUBSTITUTE(LOWER(carbonfactor_db[[#This Row],[Description]]&carbonfactor_db[[#This Row],[Unit]]&carbonfactor_db[[#This Row],[Year]]),\" \",\"\"),\"-\",\"\")","v":"diesel(averagebiofuelblend)upstreamlitres2025"}]
[null,529,"Diesel (average biofuel blend) - biogenic",0.14000000000000001,null,"litres",2025,"DESNZ","UK",null,{"$f":"SUBSTITUTE(SUBSTITUTE(LOWER(carbonfactor_db[[#This Row],[Description]]&carbonfactor_db[[#This Row],[Unit]]&carbonfactor_db[[#This Row],[Year]]),\" \",\"\"),\"-\",\"\")","v":"diesel(averagebiofuelblend)biogeniclitres2025"}]
[null,530,"Petrol (average biofuel blend)",2.0691600000000001,null,"litres",2025,"DESNZ","UK",null,{"$f":"SUBSTITUTE(SUBSTITUTE(LOWER(carbonfactor_db[[#This Row],[Description]]&carbonfactor_db[[#This Row],[Unit]]&carbonfactor_db[[#This Row],[Year]]),\" \",\"\"),\"-\",\"\")","v":"petrol(averagebiofuelblend)litres2025"}]
[null,531,"Petrol (average biofuel blend) - upstream",0.58094000000000001,null,"litres",2025,"DESNZ","UK",null,{"$f":"SUBSTITUTE(SUBSTITUTE(LOWER(carbonfactor_db[[#This Row],[Description]]&carbonfactor_db[[#This Row],[Unit]]&carbonfactor_db[[#This Row],[Year]]),\" \",\"\"),\"-\",\"\")","v":"petrol(averagebiofuelblend)upstreamlitres2025"}]
[null,532,"Petrol (average biofuel blend) - biogenic",0.13,null,"litres",2025,"DESNZ","UK",null,{"$f":"SUBSTITUTE(SUBSTITUTE(LOWER(carbonfactor_db[[#This Row],[Description]]&carbonfactor_db[[#This Row],[Unit]]&carbonfactor_db[[#This Row],[Year]]),\" \",\"\"),\"-\",\"\")","v":"petrol(averagebiofuelblend)biogeniclitres2025"}]
[null,533,"Biodiesel HVO",3.5580000000000001E-2,null,"litres",2025,"DESNZ","UK",null,{"$f":"SUBSTITUTE(SUBSTITUTE(LOWER(carbonfactor_db[[#This Row],[Description]]&carbonfactor_db[[#This Row],[Unit]]&carbonfactor_db[[#This Row],[Year]]),\" \",\"\"),\"-\",\"\")","v":"biodieselhvolitres2025"}]
[null,534,"Biodiesel HVO - upstream",0.56438999999999995,null,"litres",2025,"DESNZ","UK",null,{"$f":"SUBSTITUTE(SUBSTITUTE(LOWER(carbonfactor_db[[#This Row],[Description]]&carbonfactor_db[[#This Row],[Unit]]&carbonfactor_db[[#This Row],[Year]]),\" \",\"\"),\"-\",\"\")","v":"biodieselhvoupstreamlitres2025"}]
[null,535,"Biodiesel HVO - biogenic",2.4300000000000002,null,"litres",2025,"DESNZ","UK",null,{"$f":"SUBSTITUTE(SUBSTITUTE(LOWER(carbonfactor_db[[#This Row],[Description]]&carbonfactor_db[[#This Row],[Unit]]&carbonfactor_db[[#This Row],[Year]]),\" \",\"\"),\"-\",\"\")","v":"biodieselhvobiogeniclitres2025"}]
[null,536,"Paper",1.3450778999999999,null,"kg",2025,"DESNZ","UK",null,{"$f":"SUBSTITUTE(SUBSTITUTE(LOWER(carbonfactor_db[[#This Row],[Description]]&carbonfactor_db[[#This Row],[Unit]]&carbonfactor_db[[#This Row],[Year]]),\" \",\"\"),\"-\",\"\")","v":"paperkg2025"}]
[null,537,"Homeworking (office equipment + heating)",0.33378000000000002,null,"FTE working hour",2025,"DESNZ","UK",null,{"$f":"SUBSTITUTE(SUBSTITUTE(LOWER(carbonfactor_db[[#This Row],[Description]]&carbonfactor_db[[#This Row],[Unit]]&carbonfactor_db[[#This Row],[Year]]),\" \",\"\"),\"-\",\"\")","v":"homeworking(officeequipment+heating)fteworkinghour2025"}]
[null,538,"Car average unknown fuel",0.16725000000000001,null,"km",2025,"DESNZ","UK",null,{"$f":"SUBSTITUTE(SUBSTITUTE(LOWER(carbonfactor_db[[#This Row],[Description]]&carbonfactor_db[[#This Row],[Unit]]&carbonfactor_db[[#This Row],[Year]]),\" \",\"\"),\"-\",\"\")","v":"caraverageunknownfuelkm2025"}]
[null,539,"Car small diesel",0.1434,null,"km",2025,"DESNZ","UK",null,{"$f":"SUBSTITUTE(SUBSTITUTE(LOWER(carbonfactor_db[[#This Row],[Description]]&carbonfactor_db[[#This Row],[Unit]]&carbonfactor_db[[#This Row],[Year]]),\" \",\"\"),\"-\",\"\")","v":"carsmalldieselkm2025"}]
[null,540,"Car medium diesel",0.17174,null,"km",2025,"DESNZ","UK",null,{"$f":"SUBSTITUTE(SUBSTITUTE(LOWER(carbonfactor_db[[#This Row],[Description]]&carbonfactor_db[[#This Row],[Unit]]&carbonfactor_db[[#This Row],[Year]]),\" \",\"\"),\"-\",\"\")","v":"carmediumdieselkm2025"}]
[null,541,"Car large diesel",0.21007000000000001,null,"km",2025,"DESNZ","UK",null,{"$f":"SUBSTITUTE(SUBSTITUTE(LOWER(carbonfactor_db[[#This Row],[Description]]&carbonfactor_db[[#This Row],[Unit]]&carbonfactor_db[[#This Row],[Year]]),\" \",\"\"),\"-\",\"\")","v":"carlargedieselkm2025"}]
[null,542,"Car average diesel",0.17304,null,"km",2025,"DESNZ","UK",null,{"$f":"SUBSTITUTE(SUBSTITUTE(LOWER(carbonfactor_db[[#This Row],[Description]]&carbonfactor_db[[#This Row],[Unit]]&carbonfactor_db[[#This Row],[Year]]),\" \",\"\"),\"-\",\"\")","v":"caraveragedieselkm2025"}]
[null,543,"Car small petrol",0.14308000000000001,null,"km",2025,"DESNZ","UK",null,{"$f":"SUBSTITUTE(SUBSTITUTE(LOWER(carbonfactor_db[[#This Row],[Description]]&carbonfactor_db[[#This Row],[Unit]]&carbonfactor_db[[#This Row],[Year]]),\" \",\"\"),\"-\",\"\")","v":"carsmallpetrolkm2025"}]
[null,544,"Car medium petrol",0.17474000000000001,null,"km",2025,"DESNZ","UK",null,{"$f":"SUBSTITUTE(SUBSTITUTE(LOWER(carbonfactor_db[[#This Row],[Description]]&carbonfactor_db[[#This Row],[Unit]]&carbonfactor_db[[#This Row],[Year]]),\" \",\"\"),\"-\",\"\")","v":"carmediumpetrolkm2025"}]
[null,545,"Car large petrol",0.26828000000000002,null,"km",2025,"DESNZ","UK",null,{"$f":"SUBSTITUTE(SUBSTITUTE(LOWER(carbonfactor_db[[#This Row],[Description]]&carbonfactor_db[[#This Row],[Unit]]&carbonfactor_db[[#This Row],[Year]]),\" \",\"\"),\"-\",\"\")","v":"carlargepetrolkm2025"}]
[null,546,"Car average petrol",0.16272,null,"km",2025,"DESNZ","UK",null,{"$f":"SUBSTITUTE(SUBSTITUTE(LOWER(carbonfactor_db[[#This Row],[Description]]&carbonfactor_db[[#This Row],[Unit]]&carbonfactor_db[[#This Row],[Year]]),\" \",\"\"),\"-\",\"\")","v":"caraveragepetrolkm2025"}]
[null,547,"Car small EV",3.6880000000000003E-2,null,"km",2025,"DESNZ","UK",null,{"$f":"SUBSTITUTE(SUBSTITUTE(LOWER(carbonfactor_db[[#This Row],[Description]]&carbonfactor_db[[#This Row],[Unit]]&carbonfactor_db[[#This Row],[Year]]),\" \",\"\"),\"-\",\"\")","v":"carsmallevkm2025"}]
[null,548,"Car medium EV",3.882E-2,null,"km",2025,"DESNZ","UK",null,{"$f":"SUBSTITUTE(SUBSTITUTE(LOWER(carbonfactor_db[[#This Row],[Description]]&carbonfactor_db[[#This Row],[Unit]]&carbonfactor_db[[#This Row],[Year]]),\" \",\"\"),\"-\",\"\")","v":"carmediumevkm2025"}]
[null,549,"Car large EV",4.2049999999999997E-2,null,"km",2025,"DESNZ","UK",null,{"$f":"SUBSTITUTE(SUBSTITUTE(LOWER(carbonfactor_db[[#This Row],[Description]]&carbonfactor_db[[#This Row],[Unit]]&carbonfactor_db[[#This Row],[Year]]),\" \",\"\"),\"-\",\"\")","v":"carlargeevkm2025"}]
[null,550,"Car average EV",4.0469999999999999E-2,null,"km",2025,"DESNZ","UK",null,{"$f":"SUBSTITUTE(SUBSTITUTE(LOWER(carbonfactor_db[[#This Row],[Description]]&carbonfactor_db[[#This Row],[Unit]]&carbonfactor_db[[#This Row],[Year]]),\" \",\"\"),\"-\",\"\")","v":"caraverageevkm2025"}]
[null,551,"Car small unknown fuel",0.14321999999999999,null,"km",2025,"DESNZ","UK",null,{"$f":"SUBSTITUTE(SUBSTITUTE(LOWER(carbonfactor_db[[#This Row],[Description]]&carbonfactor_db[[#This Row],[Unit]]&carbonfactor_db[[#This Row],[Year]]),\" \",\"\"),\"-\",\"\")","v":"carsmallunknownfuelkm2025"}]
[null,552,"Car medium unknown fuel",0.17322000000000001,null,"km",2025,"DESNZ","UK",null,{"$f":"SUBSTITUTE(SUBSTITUTE(LOWER(carbonfactor_db[[#This Row],[Description]]&carbonfactor_db[[#This Row],[Unit]]&carbonfactor_db[[#This Row],[Year]]),\" \",\"\"),\"-\",\"\")","v":"carmediumunknownfuelkm2025"}]
[null,553,"Car large unknown fuel",0.22678000000000001,null,"km",2025,"DESNZ","UK",null,{"$f":"SUBSTITUTE(SUBSTITUTE(LOWER(carbonfactor_db[[#This Row],[Description]]&carbonfactor_db[[#This Row],[Unit]]&carbonfactor_db[[#This Row],[Year]]),\" \",\"\"),\"-\",\"\")","v":"carlargeunknownfuelkm2025"}]
[null,554,"Car small hybrid",0.11413,null,"km",2025,"DESNZ","UK",null,{"$f":"SUBSTITUTE(SUBSTITUTE(LOWER(carbonfactor_db[[#This Row],[Description]]&carbonfactor_db[[#This Row],[Unit]]&carbonfactor_db[[#This Row],[Year]]),\" \",\"\"),\"-\",\"\")","v":"carsmallhybridkm2025"}]
[null,555,"Car medium hybrid",0.11724,null,"km",2025,"DESNZ","UK",null,{"$f":"SUBSTITUTE(SUBSTITUTE(LOWER(carbonfactor_db[[#This Row],[Description]]&carbonfactor_db[[#This Row],[Unit]]&carbonfactor_db[[#This Row],[Year]]),\" \",\"\"),\"-\",\"\")","v":"carmediumhybridkm2025"}]
[null,556,"Car large hybrid",0.1565,null,"km",2025,"DESNZ","UK",null,{"$f":"SUBSTITUTE(SUBSTITUTE(LOWER(carbonfactor_db[[#This Row],[Description]]&carbonfactor_db[[#This Row],[Unit]]&carbonfactor_db[[#This Row],[Year]]),\" \",\"\"),\"-\",\"\")","v":"carlargehybridkm2025"}]
[null,557,"Car average hybrid",0.12825,null,"km",2025,"DESNZ","UK",null,{"$f":"SUBSTITUTE(SUBSTITUTE(LOWER(carbonfactor_db[[#This Row],[Description]]&carbonfactor_db[[#This Row],[Unit]]&carbonfactor_db[[#This Row],[Year]]),\" \",\"\"),\"-\",\"\")","v":"caraveragehybridkm2025"}]
[null,558,"Car small plug-in hybrid",5.6689999999999997E-2,null,"km",2025,"DESNZ","UK",null,{"$f":"SUBSTITUTE(SUBSTITUTE(LOWER(carbonfactor_db[[#This Row],[Description]]&carbonfactor_db[[#This Row],[Unit]]&carbonfactor_db[[#This Row],[Year]]),\" \",\"\"),\"-\",\"\")","v":"carsmallpluginhybridkm2025"}]
[null,559,"Car medium plug-in hybrid",8.8200000000000001E-2,null,"km",2025,"DESNZ","UK",null,{"$f":"SUBSTITUTE(SUBSTITUTE(LOWER(carbonfactor_db[[#This Row],[Description]]&carbonfactor_db[[#This Row],[Unit]]&carbonfactor_db[[#This Row],[Year]]),\" \",\"\"),\"-\",\"\")","v":"carmediumpluginhybridkm2025"}]
[null,560,"Car large plug-in hybrid",0.1143,null,"km",2025,"DESNZ","UK",null,{"$f":"SUBSTITUTE(SUBSTITUTE(LOWER(carbonfactor_db[[#This Row],[Description]]&carbonfactor_db[[#This Row],[Unit]]&carbonfactor_db[[#This Row],[Year]]),\" \",\"\"),\"-\",\"\")","v":"carlargepluginhybridkm2025"}]
[null,561,"Car average plug-in hybrid",0.10460999999999999,null,"km",2025,"DESNZ","UK",null,{"$f":"SUBSTITUTE(SUBSTITUTE(LOWER(carbonfactor_db[[#This Row],[Description]]&carbonfactor_db[[#This Row],[Unit]]&carbonfactor_db[[#This Row],[Year]]),\" \",\"\"),\"-\",\"\")","v":"caraveragepluginhybridkm2025"}]
[null,562,"Van class I (up to 1.305 tonnes) diesel",0.15737999999999999,null,"km",2025,"DESNZ","UK",null,{"$f":"SUBSTITUTE(SUBSTITUTE(LOWER(carbonfactor_db[[#This Row],[Description]]&carbonfactor_db[[#This Row],[Unit]]&carbonfactor_db[[#This Row],[Year]]),\" \",\"\"),\"-\",\"\")","v":"vanclassi(upto1.305tonnes)dieselkm2025"}]
[null,563,"Van class II (1.305 to 1.74 tonnes) diesel",0.19259999999999999,null,"km",2025,"DESNZ","UK",null,{"$f":"SUBSTITUTE(SUBSTITUTE(LOWER(carbonfactor_db[[#This Row],[Description]]&carbonfactor_db[[#This Row],[Unit]]&carbonfactor_db[[#This Row],[Year]]),\" \",\"\"),\"-\",\"\")","v":"vanclassii(1.305to1.74tonnes)dieselkm2025"}]
[null,564,"Van class III (1.74 to 3.5 tonnes) diesel",0.27877999999999997,null,"km",2025,"DESNZ","UK",null,{"$f":"SUBSTITUTE(SUBSTITUTE(LOWER(carbonfactor_db[[#This Row],[Description]]&carbonfactor_db[[#This Row],[Unit]]&carbonfactor_db[[#This Row],[Year]]),\" \",\"\"),\"-\",\"\")","v":"vanclassiii(1.74to3.5tonnes)dieselkm2025"}]
[null,565,"Van average (up to 3.5 tonnes) diesel",0.25561,null,"km",2025,"DESNZ","UK",null,{"$f":"SUBSTITUTE(SUBSTITUTE(LOWER(carbonfactor_db[[#This Row],[Description]]&carbonfactor_db[[#This Row],[Unit]]&carbonfactor_db[[#This Row],[Year]]),\" \",\"\"),\"-\",\"\")","v":"vanaverage(upto3.5tonnes)dieselkm2025"}]
[null,566,"Van class I (up to 1.305 tonnes) petrol",0.20188,null,"km",2025,"DESNZ","UK",null,{"$f":"SUBSTITUTE(SUBSTITUTE(LOWER(carbonfactor_db[[#This Row],[Description]]&carbonfactor_db[[#This Row],[Unit]]&carbonfactor_db[[#This Row],[Year]]),\" \",\"\"),\"-\",\"\")","v":"vanclassi(upto1.305tonnes)petrolkm2025"}]
[null,567,"Van class II (1.305 to 1.74 tonnes) petrol",0.20874000000000001,null,"km",2025,"DESNZ","UK",null,{"$f":"SUBSTITUTE(SUBSTITUTE(LOWER(carbonfactor_db[[#This Row],[Description]]&carbonfactor_db[[#This Row],[Unit]]&carbonfactor_db[[#This Row],[Year]]),\" \",\"\"),\"-\",\"\")","v":"vanclassii(1.305to1.74tonnes)petrolkm2025"}]
[null,568,"Van class III (1.74 to 3.5 tonnes) petrol",0.33844999999999997,null,"km",2025,"DESNZ","UK",null,{"$f":"SUBSTITUTE(SUBSTITUTE(LOWER(carbonfactor_db[[#This Row],[Description]]&carbonfactor_db[[#This Row],[Unit]]&carbonfactor_db[[#This Row],[Year]]),\" \",\"\"),\"-\",\"\")","v":"vanclassiii(1.74to3.5tonnes)petrolkm2025"}]
[null,569,"Van average (up to 3.5 tonnes) petrol",0.21335000000000001,null,"km",2025,"DESNZ","UK",null,{"$f":"SUBSTITUTE(SUBSTITUTE(LOWER(carbonfactor_db[[#This Row],[Description]]&carbonfactor_db[[#This Row],[Unit]]&carbonfactor_db[[#This Row],[Year]]),\" \",\"\"),\"-\",\"\")","v":"vanaverage(upto3.5tonnes)petrolkm2025"}]
[null,570,"Van class I (up to 1.305 tonnes) electric",3.798E-2,null,"km",2025,"DESNZ","UK",null,{"$f":"SUBSTITUTE(SUBSTITUTE(LOWER(carbonfactor_db[[#This Row],[Description]]&carbonfactor_db[[#This Row],[Unit]]&carbonfactor_db[[#This Row],[Year]]),\" \",\"\"),\"-\",\"\")","v":"vanclassi(upto1.305tonnes)electrickm2025"}]
[null,571,"Van class II (1.305 to 1.74 tonnes) electric",5.7770000000000002E-2,null,"km",2025,"DESNZ","UK",null,{"$f":"SUBSTITUTE(SUBSTITUTE(LOWER(carbonfactor_db[[#This Row],[Description]]&carbonfactor_db[[#This Row],[Unit]]&carbonfactor_db[[#This Row],[Year]]),\" \",\"\"),\"-\",\"\")","v":"vanclassii(1.305to1.74tonnes)electrickm2025"}]
[null,572,"Van class III (1.74 to 3.5 tonnes) electric",7.6090000000000005E-2,null,"km",2025,"DESNZ","UK",null,{"$f":"SUBSTITUTE(SUBSTITUTE(LOWER(carbonfactor_db[[#This Row],[Description]]&carbonfactor_db[[#This Row],[Unit]]&carbonfactor_db[[#This Row],[Year]]),\" \",\"\"),\"-\",\"\")","v":"vanclassiii(1.74to3.5tonnes)electrickm2025"}]
[null,573,"Van average (up to 3.5 tonnes) electric",6.9760000000000003E-2,null,"km",2025,"DESNZ","UK",null,{"$f":"SUBSTITUTE(SUBSTITUTE(LOWER(carbonfactor_db[[#This Row],[Description]]&carbonfactor_db[[#This Row],[Unit]]&carbonfactor_db[[#This Row],[Year]]),\" \",\"\"),\"-\",\"\")","v":"vanaverage(upto3.5tonnes)electrickm2025"}]
[null,574,"Van average (up to 3.5 tonnes) unknown fuel",0.25430000000000003,null,"km",2025,"DESNZ","UK",null,{"$f":"SUBSTITUTE(SUBSTITUTE(LOWER(carbonfactor_db[[#This Row],[Description]]&carbonfactor_db[[#This Row],[Unit]]&carbonfactor_db[[#This Row],[Year]]),\" \",\"\"),\"-\",\"\")","v":"vanaverage(upto3.5tonnes)unknownfuelkm2025"}]
[null,575,"Van average (up to 3.5 tonnes) diesel",0.63129999999999997,null,"tonne.km",2025,"DESNZ","UK",null,{"$f":"SUBSTITUTE(SUBSTITUTE(LOWER(carbonfactor_db[[#This Row],[Description]]&carbonfactor_db[[#This Row],[Unit]]&carbonfactor_db[[#This Row],[Year]]),\" \",\"\"),\"-\",\"\")","v":"vanaverage(upto3.5tonnes)dieseltonne.km2025"}]
[null,576,"Motorbike",0.11366999999999999,null,"km",2025,"DESNZ","UK","Average motorbike",{"$f":"SUBSTITUTE(SUBSTITUTE(LOWER(carbonfactor_db[[#This Row],[Description]]&carbonfactor_db[[#This Row],[Unit]]&carbonfactor_db[[#This Row],[Year]]),\" \",\"\"),\"-\",\"\")","v":"motorbikekm2025"}]
[null,577,"Taxi regular taxi",0.14860999999999999,null,"passenger.km",2025,"DESNZ","UK",null,{"$f":"SUBSTITUTE(SUBSTITUTE(LOWER(carbonfactor_db[[#This Row],[Description]]&carbonfactor_db[[#This Row],[Unit]]&carbonfactor_db[[#This Row],[Year]]),\" \",\"\"),\"-\",\"\")","v":"taxiregulartaxipassenger.km2025"}]
[null,578,"Taxi black cab",0.20402000000000001,null,"passenger.km",2025,"DESNZ","UK",null,{"$f":"SUBSTITUTE(SUBSTITUTE(LOWER(carbonfactor_db[[#This Row],[Description]]&carbonfactor_db[[#This Row],[Unit]]&carbonfactor_db[[#This Row],[Year]]),\" \",\"\"),\"-\",\"\")","v":"taxiblackcabpassenger.km2025"}]
[null,579,"Bus",0.12525,null,"passenger.km",2025,"DESNZ","UK","Average local bus",{"$f":"SUBSTITUTE(SUBSTITUTE(LOWER(carbonfactor_db[[#This Row],[Description]]&carbonfactor_db[[#This Row],[Unit]]&carbonfactor_db[[#This Row],[Year]]),\" \",\"\"),\"-\",\"\")","v":"buspassenger.km2025"}]
[null,580,"Rail national",3.5459999999999998E-2,null,"passenger.km",2025,"DESNZ","UK",null,{"$f":"SUBSTITUTE(SUBSTITUTE(LOWER(carbonfactor_db[[#This Row],[Description]]&carbonfactor_db[[#This Row],[Unit]]&carbonfactor_db[[#This Row],[Year]]),\" \",\"\"),\"-\",\"\")","v":"railnationalpassenger.km2025"}]
[null,581,"Rail international",4.4600000000000004E-3,null,"passenger.km",2025,"DESNZ","UK",null,{"$f":"SUBSTITUTE(SUBSTITUTE(LOWER(carbonfactor_db[[#This Row],[Description]]&carbonfactor_db[[#This Row],[Unit]]&carbonfactor_db[[#This Row],[Year]]),\" \",\"\"),\"-\",\"\")","v":"railinternationalpassenger.km2025"}]
[null,582,"Tram",2.86E-2,null,"passenger.km",2025,"DESNZ","UK",null,{"$f":"SUBSTITUTE(SUBSTITUTE(LOWER(carbonfactor_db[[#This Row],[Description]]&carbonfactor_db[[#This Row],[Unit]]&carbonfactor_db[[#This Row],[Year]]),\" \",\"\"),\"-\",\"\")","v":"trampassenger.km2025"}]
[null,583,"London Underground",2.7799999999999998E-2,null,"passenger.km",2025,"DESNZ","UK",null,{"$f":"SUBSTITUTE(SUBSTITUTE(LOWER(carbonfactor_db[[#This Row],[Description]]&carbonfactor_db[[#This Row],[Unit]]&carbonfactor_db[[#This Row],[Year]]),\" \",\"\"),\"-\",\"\")","v":"londonundergroundpassenger.km2025"}]
[null,584,"Flight Domestic, to/from UK average passenger",0.22928000000000001,null,"passenger.km",2025,"DESNZ","UK",null,{"$f":"SUBSTITUTE(SUBSTITUTE(LOWER(carbonfactor_db[[#This Row],[Description]]&carbonfactor_db[[#This Row],[Unit]]&carbonfactor_db[[#This Row],[Year]]),\" \",\"\"),\"-\",\"\")","v":"flightdomestic,to/fromukaveragepassengerpassenger.km2025"}]
[null,585,"Flight Short-haul, to/from UK average passenger",0.12786,null,"passenger.km",2025,"DESNZ","UK",null,{"$f":"SUBSTITUTE(SUBSTITUTE(LOWER(carbonfactor_db[[#This Row],[Description]]&carbonfactor_db[[#This Row],[Unit]]&carbonfactor_db[[#This Row],[Year]]),\" \",\"\"),\"-\",\"\")","v":"flightshorthaul,to/fromukaveragepassengerpassenger.km2025"}]
[null,586,"Flight Short-haul, to/from UK economy class",0.12576000000000001,null,"passenger.km",2025,"DESNZ","UK",null,{"$f":"SUBSTITUTE(SUBSTITUTE(LOWER(carbonfactor_db[[#This Row],[Description]]&carbonfactor_db[[#This Row],[Unit]]&carbonfactor_db[[#This Row],[Year]]),\" \",\"\"),\"-\",\"\")","v":"flightshorthaul,to/fromukeconomyclasspassenger.km2025"}]
[null,587,"Flight Short-haul, to/from UK business class",0.18862999999999999,null,"passenger.km",2025,"DESNZ","UK",null,{"$f":"SUBSTITUTE(SUBSTITUTE(LOWER(carbonfactor_db[[#This Row],[Description]]&carbonfactor_db[[#This Row],[Unit]]&carbonfactor_db[[#This Row],[Year]]),\" \",\"\"),\"-\",\"\")","v":"flightshorthaul,to/fromukbusinessclasspassenger.km2025"}]
[null,588,"Flight Long-haul, to/from UK average passenger",0.15282000000000001,null,"passenger.km",2025,"DESNZ","UK",null,{"$f":"SUBSTITUTE(SUBSTITUTE(LOWER(carbonfactor_db[[#This Row],[Description]]&carbonfactor_db[[#This Row],[Unit]]&carbonfactor_db[[#This Row],[Year]]),\" \",\"\"),\"-\",\"\")","v":"flightlonghaul,to/fromukaveragepassengerpassenger.km2025"}]
[null,589,"Flight Long-haul, to/from UK economy class",0.11704000000000001,null,"passenger.km",2025,"DESNZ","UK",null,{"$f":"SUBSTITUTE(SUBSTITUTE(LOWER(carbonfactor_db[[#This Row],[Description]]&carbonfactor_db[[#This Row],[Unit]]&carbonfactor_db[[#This Row],[Year]]),\" \",\"\"),\"-\",\"\")","v":"flightlonghaul,to/fromukeconomyclasspassenger.km2025"}]
[null,590,"Flight Long-haul, to/from UK premium economy class",0.18726000000000001,null,"passenger.km",2025,"DESNZ","UK",null,{"$f":"SUBSTITUTE(SUBSTITUTE(LOWER(carbonfactor_db[[#This Row],[Description]]&carbonfactor_db[[#This Row],[Unit]]&carbonfactor_db[[#This Row],[Year]]),\" \",\"\"),\"-\",\"\")","v":"flightlonghaul,to/fromukpremiumeconomyclasspassenger.km2025"}]
[null,591,"Flight Long-haul, to/from UK business class",0.33939999999999998,null,"passenger.km",2025,"DESNZ","UK",null,{"$f":"SUBSTITUTE(SUBSTITUTE(LOWER(carbonfactor_db[[#This Row],[Description]]&carbonfactor_db[[#This Row],[Unit]]&carbonfactor_db[[#This Row],[Year]]),\" \",\"\"),\"-\",\"\")","v":"flightlonghaul,to/fromukbusinessclasspassenger.km2025"}]
[null,592,"Flight Long-haul, to/from UK first class",0.46814,null,"passenger.km",2025,"DESNZ","UK",null,{"$f":"SUBSTITUTE(SUBSTITUTE(LOWER(carbonfactor_db[[#This Row],[Description]]&carbonfactor_db[[#This Row],[Unit]]&carbonfactor_db[[#This Row],[Year]]),\" \",\"\"),\"-\",\"\")","v":"flightlonghaul,to/fromukfirstclasspassenger.km2025"}]
[null,593,"Flight International, to/from non-UK average passenger",0.14252999999999999,null,"passenger.km",2025,"DESNZ","UK",null,{"$f":"SUBSTITUTE(SUBSTITUTE(LOWER(carbonfactor_db[[#This Row],[Description]]&carbonfactor_db[[#This Row],[Unit]]&carbonfactor_db[[#This Row],[Year]]),\" \",\"\"),\"-\",\"\")","v":"flightinternational,to/fromnonukaveragepassengerpassenger.km2025"}]
[null,594,"Flight International, to/from non-UK economy class",0.10915999999999999,null,"passenger.km",2025,"DESNZ","UK",null,{"$f":"SUBSTITUTE(SUBSTITUTE(LOWER(carbonfactor_db[[#This Row],[Description]]&carbonfactor_db[[#This Row],[Unit]]&carbonfactor_db[[#This Row],[Year]]),\" \",\"\"),\"-\",\"\")","v":"flightinternational,to/fromnonukeconomyclasspassenger.km2025"}]
[null,595,"Flight International, to/from non-UK premium economy class",0.17465,null,"passenger.km",2025,"DESNZ","UK",null,{"$f":"SUBSTITUTE(SUBSTITUTE(LOWER(carbonfactor_db[[#This Row],[Description]]&carbonfactor_db[[#This Row],[Unit]]&carbonfactor_db[[#This Row],[Year]]),\" \",\"\"),\"-\",\"\")","v":"flightinternational,to/fromnonukpremiumeconomyclasspassenger.km2025"}]
[null,596,"Flight International, to/from non-UK Business class",0.31656000000000001,null,"passenger.km",2025,"DESNZ","UK",null,{"$f":"SUBSTITUTE(SUBSTITUTE(LOWER(carbonfactor_db[[#This Row],[Description]]&carbonfactor_db[[#This Row],[Unit]]&carbonfactor_db[[#This Row],[Year]]),\" \",\"\"),\"-\",\"\")","v":"flightinternational,to/fromnonukbusinessclasspassenger.km2025"}]
[null,597,"Flight International, to/from non-UK First class",0.43663000000000002,null,"passenger.km",2025,"DESNZ","UK",null,{"$f":"SUBSTITUTE(SUBSTITUTE(LOWER(carbonfactor_db[[#This Row],[Description]]&carbonfactor_db[[#This Row],[Unit]]&carbonfactor_db[[#This Row],[Year]]),\" \",\"\"),\"-\",\"\")","v":"flightinternational,to/fromnonukfirstclasspassenger.km2025"}]
[null,598,"Ferry",0.11269999999999999,null,"passenger.km",2025,"DESNZ","UK","Average (all passenger)",{"$f":"SUBSTITUTE(SUBSTITUTE(LOWER(carbonfactor_db[[#This Row],[Description]]&carbonfactor_db[[#This Row],[Unit]]&carbonfactor_db[[#This Row],[Year]]),\" \",\"\"),\"-\",\"\")","v":"ferrypassenger.km2025"}]
[null,599,"Car average unknown fuel - upstream",4.3990000000000001E-2,null,"km",2025,"DESNZ","UK",null,{"$f":"SUBSTITUTE(SUBSTITUTE(LOWER(carbonfactor_db[[#This Row],[Description]]&carbonfactor_db[[#This Row],[Unit]]&carbonfactor_db[[#This Row],[Year]]),\" \",\"\"),\"-\",\"\")","v":"caraverageunknownfuelupstreamkm2025"}]
[null,600,"Car small diesel - upstream",3.4090000000000002E-2,null,"km",2025,"DESNZ","UK",null,{"$f":"SUBSTITUTE(SUBSTITUTE(LOWER(carbonfactor_db[[#This Row],[Description]]&carbonfactor_db[[#This Row],[Unit]]&carbonfactor_db[[#This Row],[Year]]),\" \",\"\"),\"-\",\"\")","v":"carsmalldieselupstreamkm2025"}]
[null,601,"Car medium diesel - upstream",4.1029999999999997E-2,null,"km",2025,"DESNZ","UK",null,{"$f":"SUBSTITUTE(SUBSTITUTE(LOWER(carbonfactor_db[[#This Row],[Description]]&carbonfactor_db[[#This Row],[Unit]]&carbonfactor_db[[#This Row],[Year]]),\" \",\"\"),\"-\",\"\")","v":"carmediumdieselupstreamkm2025"}]
[null,602,"Car large diesel - upstream",5.0700000000000002E-2,null,"km",2025,"DESNZ","UK",null,{"$f":"SUBSTITUTE(SUBSTITUTE(LOWER(carbonfactor_db[[#This Row],[Description]]&carbonfactor_db[[#This Row],[Unit]]&carbonfactor_db[[#This Row],[Year]]),\" \",\"\"),\"-\",\"\")","v":"carlargedieselupstreamkm2025"}]
[null,603,"Car average diesel - upstream",4.1459999999999997E-2,null,"km",2025,"DESNZ","UK",null,{"$f":"SUBSTITUTE(SUBSTITUTE(LOWER(carbonfactor_db[[#This Row],[Description]]&carbonfactor_db[[#This Row],[Unit]]&carbonfactor_db[[#This Row],[Year]]),\" \",\"\"),\"-\",\"\")","v":"caraveragedieselupstreamkm2025"}]
[null,604,"Car small petrol - upstream",4.0149999999999998E-2,null,"km",2025,"DESNZ","UK",null,{"$f":"SUBSTITUTE(SUBSTITUTE(LOWER(carbonfactor_db[[#This Row],[Description]]&carbonfactor_db[[#This Row],[Unit]]&carbonfactor_db[[#This Row],[Year]]),\" \",\"\"),\"-\",\"\")","v":"carsmallpetrolupstreamkm2025"}]
[null,605,"Car medium petrol - upstream",4.9570000000000003E-2,null,"km",2025,"DESNZ","UK",null,{"$f":"SUBSTITUTE(SUBSTITUTE(LOWER(carbonfactor_db[[#This Row],[Description]]&carbonfactor_db[[#This Row],[Unit]]&carbonfactor_db[[#This Row],[Year]]),\" \",\"\"),\"-\",\"\")","v":"carmediumpetrolupstreamkm2025"}]
[null,606,"Car large petrol - upstream",7.528E-2,null,"km",2025,"DESNZ","UK",null,{"$f":"SUBSTITUTE(SUBSTITUTE(LOWER(carbonfactor_db[[#This Row],[Description]]&carbonfactor_db[[#This Row],[Unit]]&carbonfactor_db[[#This Row],[Year]]),\" \",\"\"),\"-\",\"\")","v":"carlargepetrolupstreamkm2025"}]
[null,607,"Car average petrol - upstream",4.5990000000000003E-2,null,"km",2025,"DESNZ","UK",null,{"$f":"SUBSTITUTE(SUBSTITUTE(LOWER(carbonfactor_db[[#This Row],[Description]]&carbonfactor_db[[#This Row],[Unit]]&carbonfactor_db[[#This Row],[Year]]),\" \",\"\"),\"-\",\"\")","v":"caraveragepetrolupstreamkm2025"}]
[null,608,"Car small EV - upstream",9.4800000000000006E-3,null,"km",2025,"DESNZ","UK",null,{"$f":"SUBSTITUTE(SUBSTITUTE(LOWER(carbonfactor_db[[#This Row],[Description]]&carbonfactor_db[[#This Row],[Unit]]&carbonfactor_db[[#This Row],[Year]]),\" \",\"\"),\"-\",\"\")","v":"carsmallevupstreamkm2025"}]
[null,609,"Car medium EV - upstream",1.022E-2,null,"km",2025,"DESNZ","UK",null,{"$f":"SUBSTITUTE(SUBSTITUTE(LOWER(carbonfactor_db[[#This Row],[Description]]&carbonfactor_db[[#This Row],[Unit]]&carbonfactor_db[[#This Row],[Year]]),\" \",\"\"),\"-\",\"\")","v":"carmediumevupstreamkm2025"}]
[null,610,"Car large EV - upstream",1.0880000000000001E-2,null,"km",2025,"DESNZ","UK",null,{"$f":"SUBSTITUTE(SUBSTITUTE(LOWER(carbonfactor_db[[#This Row],[Description]]&carbonfactor_db[[#This Row],[Unit]]&carbonfactor_db[[#This Row],[Year]]),\" \",\"\"),\"-\",\"\")","v":"carlargeevupstreamkm2025"}]
[null,611,"Car average EV - upstream",1.0489999999999999E-2,null,"km",2025,"DESNZ","UK",null,{"$f":"SUBSTITUTE(SUBSTITUTE(LOWER(carbonfactor_db[[#This Row],[Description]]&carbonfactor_db[[#This Row],[Unit]]&carbonfactor_db[[#This Row],[Year]]),\" \",\"\"),\"-\",\"\")","v":"caraverageevupstreamkm2025"}]
[null,612,"Car small unknown fuel - upstream",3.8359999999999998E-2,null,"km",2025,"DESNZ","UK",null,{"$f":"SUBSTITUTE(SUBSTITUTE(LOWER(carbonfactor_db[[#This Row],[Description]]&carbonfactor_db[[#This Row],[Unit]]&carbonfactor_db[[#This Row],[Year]]),\" \",\"\"),\"-\",\"\")","v":"carsmallunknownfuelupstreamkm2025"}]
[null,613,"Car medium unknown fuel - upstream",4.5179999999999998E-2,null,"km",2025,"DESNZ","UK",null,{"$f":"SUBSTITUTE(SUBSTITUTE(LOWER(carbonfactor_db[[#This Row],[Description]]&carbonfactor_db[[#This Row],[Unit]]&carbonfactor_db[[#This Row],[Year]]),\" \",\"\"),\"-\",\"\")","v":"carmediumunknownfuelupstreamkm2025"}]
[null,614,"Car large unknown fuel - upstream",5.7639999999999997E-2,null,"km",2025,"DESNZ","UK",null,{"$f":"SUBSTITUTE(SUBSTITUTE(LOWER(carbonfactor_db[[#This Row],[Description]]&carbonfactor_db[[#This Row],[Unit]]&carbonfactor_db[[#This Row],[Year]]),\" \",\"\"),\"-\",\"\")","v":"carlargeunknownfuelupstreamkm2025"}]
[null,615,"Car small hybrid - upstream",3.0259999999999999E-2,null,"km",2025,"DESNZ","UK",null,{"$f":"SUBSTITUTE(SUBSTITUTE(LOWER(carbonfactor_db[[#This Row],[Description]]&carbonfactor_db[[#This Row],[Unit]]&carbonfactor_db[[#This Row],[Year]]),\" \",\"\"),\"-\",\"\")","v":"carsmallhybridupstreamkm2025"}]
[null,616,"Car medium hybrid - upstream",2.998E-2,null,"km",2025,"DESNZ","UK",null,{"$f":"SUBSTITUTE(SUBSTITUTE(LOWER(carbonfactor_db[[#This Row],[Description]]&carbonfactor_db[[#This Row],[Unit]]&carbonfactor_db[[#This Row],[Year]]),\" \",\"\"),\"-\",\"\")","v":"carmediumhybridupstreamkm2025"}]
[null,617,"Car large hybrid - upstream",3.9609999999999999E-2,null,"km",2025,"DESNZ","UK",null,{"$f":"SUBSTITUTE(SUBSTITUTE(LOWER(carbonfactor_db[[#This Row],[Description]]&carbonfactor_db[[#This Row],[Unit]]&carbonfactor_db[[#This Row],[Year]]),\" \",\"\"),\"-\",\"\")","v":"carlargehybridupstreamkm2025"}]
[null,618,"Car average hybrid - upstream",3.3149999999999999E-2,null,"km",2025,"DESNZ","UK",null,{"$f":"SUBSTITUTE(SUBSTITUTE(LOWER(carbonfactor_db[[#This Row],[Description]]&carbonfactor_db[[#This Row],[Unit]]&carbonfactor_db[[#This Row],[Year]]),\" \",\"\"),\"-\",\"\")","v":"caraveragehybridupstreamkm2025"}]
[null,619,"Car small plug-in hybrid - upstream",1.52E-2,null,"km",2025,"DESNZ","UK",null,{"$f":"SUBSTITUTE(SUBSTITUTE(LOWER(carbonfactor_db[[#This Row],[Description]]&carbonfactor_db[[#This Row],[Unit]]&carbonfactor_db[[#This Row],[Year]]),\" \",\"\"),\"-\",\"\")","v":"carsmallpluginhybridupstreamkm2025"}]
[null,620,"Car medium plug-in hybrid - upstream",2.5239999999999999E-2,null,"km",2025,"DESNZ","UK",null,{"$f":"SUBSTITUTE(SUBSTITUTE(LOWER(carbonfactor_db[[#This Row],[Description]]&carbonfactor_db[[#This Row],[Unit]]&carbonfactor_db[[#This Row],[Year]]),\" \",\"\"),\"-\",\"\")","v":"carmediumpluginhybridupstreamkm2025"}]
[null,621,"Car large plug-in hybrid - upstream",3.2210000000000003E-2,null,"km",2025,"DESNZ","UK",null,{"$f":"SUBSTITUTE(SUBSTITUTE(LOWER(carbonfactor_db[[#This Row],[Description]]&carbonfactor_db[[#This Row],[Unit]]&carbonfactor_db[[#This Row],[Year]]),\" \",\"\"),\"-\",\"\")","v":"carlargepluginhybridupstreamkm2025"}]
[null,622,"Car average plug-in hybrid - upstream",2.9340000000000001E-2,null,"km",2025,"DESNZ","UK",null,{"$f":"SUBSTITUTE(SUBSTITUTE(LOWER(carbonfactor_db[[#This Row],[Description]]&carbonfactor_db[[#This Row],[Unit]]&carbonfactor_db[[#This Row],[Year]]),\" \",\"\"),\"-\",\"\")","v":"caraveragepluginhybridupstreamkm2025"}]
[null,623,"Van class I (up to 1.305 tonnes) diesel - upstream",3.746E-2,null,"km",2025,"DESNZ","UK",null,{"$f":"SUBSTITUTE(SUBSTITUTE(LOWER(carbonfactor_db[[#This Row],[Description]]&carbonfactor_db[[#This Row],[Unit]]&carbonfactor_db[[#This Row],[Year]]),\" \",\"\"),\"-\",\"\")","v":"vanclassi(upto1.305tonnes)dieselupstreamkm2025"}]
[null,624,"Van class II (1.305 to 1.74 tonnes) diesel - upstream",4.6019999999999998E-2,null,"km",2025,"DESNZ","UK",null,{"$f":"SUBSTITUTE(SUBSTITUTE(LOWER(carbonfactor_db[[#This Row],[Description]]&carbonfactor_db[[#This Row],[Unit]]&carbonfactor_db[[#This Row],[Year]]),\" \",\"\"),\"-\",\"\")","v":"vanclassii(1.305to1.74tonnes)dieselupstreamkm2025"}]
[null,625,"Van class III (1.74 to 3.5 tonnes) diesel - upstream",6.7059999999999995E-2,null,"km",2025,"DESNZ","UK",null,{"$f":"SUBSTITUTE(SUBSTITUTE(LOWER(carbonfactor_db[[#This Row],[Description]]&carbonfactor_db[[#This Row],[Unit]]&carbonfactor_db[[#This Row],[Year]]),\" \",\"\"),\"-\",\"\")","v":"vanclassiii(1.74to3.5tonnes)dieselupstreamkm2025"}]
[null,626,"Van average (up to 3.5 tonnes) diesel - upstream",6.1280000000000001E-2,null,"km",2025,"DESNZ","UK",null,{"$f":"SUBSTITUTE(SUBSTITUTE(LOWER(carbonfactor_db[[#This Row],[Description]]&carbonfactor_db[[#This Row],[Unit]]&carbonfactor_db[[#This Row],[Year]]),\" \",\"\"),\"-\",\"\")","v":"vanaverage(upto3.5tonnes)dieselupstreamkm2025"}]
[null,627,"Van class I (up to 1.305 tonnes) petrol - upstream",5.6140000000000002E-2,null,"km",2025,"DESNZ","UK",null,{"$f":"SUBSTITUTE(SUBSTITUTE(LOWER(carbonfactor_db[[#This Row],[Description]]&carbonfactor_db[[#This Row],[Unit]]&carbonfactor_db[[#This Row],[Year]]),\" \",\"\"),\"-\",\"\")","v":"vanclassi(upto1.305tonnes)petrolupstreamkm2025"}]
[null,628,"Van class II (1.305 to 1.74 tonnes) petrol - upstream",6.0740000000000002E-2,null,"km",2025,"DESNZ","UK",null,{"$f":"SUBSTITUTE(SUBSTITUTE(LOWER(carbonfactor_db[[#This Row],[Description]]&carbonfactor_db[[#This Row],[Unit]]&carbonfactor_db[[#This Row],[Year]]),\" \",\"\"),\"-\",\"\")","v":"vanclassii(1.305to1.74tonnes)petrolupstreamkm2025"}]
[null,629,"Van class III (1.74 to 3.5 tonnes) petrol - upstream",9.783E-2,null,"km",2025,"DESNZ","UK",null,{"$f":"SUBSTITUTE(SUBSTITUTE(LOWER(carbonfactor_db[[#This Row],[Description]]&carbonfactor_db[[#This Row],[Unit]]&carbonfactor_db[[#This Row],[Year]]),\" \",\"\"),\"-\",\"\")","v":"vanclassiii(1.74to3.5tonnes)petrolupstreamkm2025"}]
[null,630,"Van average (up to 3.5 tonnes) petrol - upstream",6.1830000000000003E-2,null,"km",2025,"DESNZ","UK",null,{"$f":"SUBSTITUTE(SUBSTITUTE(LOWER(carbonfactor_db[[#This Row],[Description]]&carbonfactor_db[[#This Row],[Unit]]&carbonfactor_db[[#This Row],[Year]]),\" \",\"\"),\"-\",\"\")","v":"vanaverage(upto3.5tonnes)petrolupstreamkm2025"}]
[null,631,"Van class I (up to 1.305 tonnes) electric - upstream",9.4299999999999991E-3,null,"km",2025,"DESNZ","UK",null,{"$f":"SUBSTITUTE(SUBSTITUTE(LOWER(carbonfactor_db[[#This Row],[Description]]&carbonfactor_db[[#This Row],[Unit]]&carbonfactor_db[[#This Row],[Year]]),\" \",\"\"),\"-\",\"\")","v":"vanclassi(upto1.305tonnes)electricupstreamkm2025"}]
[null,632,"Van class II (1.305 to 1.74 tonnes) electric - upstream",1.4540000000000001E-2,null,"km",2025,"DESNZ","UK",null,{"$f":"SUBSTITUTE(SUBSTITUTE(LOWER(carbonfactor_db[[#This Row],[Description]]&carbonfactor_db[[#This Row],[Unit]]&carbonfactor_db[[#This Row],[Year]]),\" \",\"\"),\"-\",\"\")","v":"vanclassii(1.305to1.74tonnes)electricupstreamkm2025"}]
[null,633,"Van class III (1.74 to 3.5 tonnes) electric - upstream",1.9789999999999999E-2,null,"km",2025,"DESNZ","UK",null,{"$f":"SUBSTITUTE(SUBSTITUTE(LOWER(carbonfactor_db[[#This Row],[Description]]&carbonfactor_db[[#This Row],[Unit]]&carbonfactor_db[[#This Row],[Year]]),\" \",\"\"),\"-\",\"\")","v":"vanclassiii(1.74to3.5tonnes)electricupstreamkm2025"}]
[null,634,"Van average (up to 3.5 tonnes) electric - upstream",1.7590000000000001E-2,null,"km",2025,"DESNZ","UK",null,{"$f":"SUBSTITUTE(SUBSTITUTE(LOWER(carbonfactor_db[[#This Row],[Description]]&carbonfactor_db[[#This Row],[Unit]]&carbonfactor_db[[#This Row],[Year]]),\" \",\"\"),\"-\",\"\")","v":"vanaverage(upto3.5tonnes)electricupstreamkm2025"}]
[null,635,"Van average (up to 3.5 tonnes) unknown fuel - upstream",6.13E-2,null,"km",2025,"DESNZ","UK",null,{"$f":"SUBSTITUTE(SUBSTITUTE(LOWER(carbonfactor_db[[#This Row],[Description]]&carbonfactor_db[[#This Row],[Unit]]&carbonfactor_db[[#This Row],[Year]]),\" \",\"\"),\"-\",\"\")","v":"vanaverage(upto3.5tonnes)unknownfuelupstreamkm2025"}]
[null,636,"Van average (up to 3.5 tonnes) diesel - upstream",0.15095,null,"passenger.km",2025,"DESNZ","UK",null,{"$f":"SUBSTITUTE(SUBSTITUTE(LOWER(carbonfactor_db[[#This Row],[Description]]&carbonfactor_db[[#This Row],[Unit]]&carbonfactor_db[[#This Row],[Year]]),\" \",\"\"),\"-\",\"\")","v":"vanaverage(upto3.5tonnes)dieselupstreampassenger.km2025"}]
[null,637,"Motorbike - upstream",2.9559999999999999E-2,null,"passenger.km",2025,"DESNZ","UK","Average motorbike",{"$f":"SUBSTITUTE(SUBSTITUTE(LOWER(carbonfactor_db[[#This Row],[Description]]&carbonfactor_db[[#This Row],[Unit]]&carbonfactor_db[[#This Row],[Year]]),\" \",\"\"),\"-\",\"\")","v":"motorbikeupstreampassenger.km2025"}]
[null,638,"Taxi regular taxi - upstream",3.6970000000000003E-2,null,"passenger.km",2025,"DESNZ","UK",null,{"$f":"SUBSTITUTE(SUBSTITUTE(LOWER(carbonfactor_db[[#This Row],[Description]]&carbonfactor_db[[#This Row],[Unit]]&carbonfactor_db[[#This Row],[Year]]),\" \",\"\"),\"-\",\"\")","v":"taxiregulartaxiupstreampassenger.km2025"}]
[null,639,"Taxi black cab - upstream",5.0900000000000001E-2,null,"passenger.km",2025,"DESNZ","UK",null,{"$f":"SUBSTITUTE(SUBSTITUTE(LOWER(carbonfactor_db[[#This Row],[Description]]&carbonfactor_db[[#This Row],[Unit]]&carbonfactor_db[[#This Row],[Year]]),\" \",\"\"),\"-\",\"\")","v":"taxiblackcabupstreampassenger.km2025"}]
[null,640,"Bus - upstream",3.1739999999999997E-2,null,"passenger.km",2025,"DESNZ","UK","Average local bus",{"$f":"SUBSTITUTE(SUBSTITUTE(LOWER(carbonfactor_db[[#This Row],[Description]]&carbonfactor_db[[#This Row],[Unit]]&carbonfactor_db[[#This Row],[Year]]),\" \",\"\"),\"-\",\"\")","v":"busupstreampassenger.km2025"}]
[null,641,"Rail national - upstream",8.9700000000000005E-3,null,"passenger.km",2025,"DESNZ","UK",null,{"$f":"SUBSTITUTE(SUBSTITUTE(LOWER(carbonfactor_db[[#This Row],[Description]]&carbonfactor_db[[#This Row],[Unit]]&carbonfactor_db[[#This Row],[Year]]),\" \",\"\"),\"-\",\"\")","v":"railnationalupstreampassenger.km2025"}]
[null,642,"Rail international - upstream",1.17E-3,null,"passenger.km",2025,"DESNZ","UK",null,{"$f":"SUBSTITUTE(SUBSTITUTE(LOWER(carbonfactor_db[[#This Row],[Description]]&carbonfactor_db[[#This Row],[Unit]]&carbonfactor_db[[#This Row],[Year]]),\" \",\"\"),\"-\",\"\")","v":"railinternationalupstreampassenger.km2025"}]
[null,643,"Tram - upstream",7.4900000000000001E-3,null,"passenger.km",2025,"DESNZ","UK",null,{"$f":"SUBSTITUTE(SUBSTITUTE(LOWER(carbonfactor_db[[#This Row],[Description]]&carbonfactor_db[[#This Row],[Unit]]&carbonfactor_db[[#This Row],[Year]]),\" \",\"\"),\"-\",\"\")","v":"tramupstreampassenger.km2025"}]
[null,644,"London Underground - upstream",7.28E-3,null,"passenger.km",2025,"DESNZ","UK",null,{"$f":"SUBSTITUTE(SUBSTITUTE(LOWER(carbonfactor_db[[#This Row],[Description]]&carbonfactor_db[[#This Row],[Unit]]&carbonfactor_db[[#This Row],[Year]]),\" \",\"\"),\"-\",\"\")","v":"londonundergroundupstreampassenger.km2025"}]
[null,645,"Flight Domestic, to/from UK average passenger - upstream",3.3500000000000002E-2,null,"passenger.km",2025,"DESNZ","UK",null,{"$f":"SUBSTITUTE(SUBSTITUTE(LOWER(carbonfactor_db[[#This Row],[Description]]&carbonfactor_db[[#This Row],[Unit]]&carbonfactor_db[[#This Row],[Year]]),\" \",\"\"),\"-\",\"\")","v":"flightdomestic,to/fromukaveragepassengerupstreampassenger.km2025"}]
[null,646,"Flight Short-haul, to/from UK average passenger - upstream",2.2859999999999998E-2,null,"passenger.km",2025,"DESNZ","UK",null,{"$f":"SUBSTITUTE(SUBSTITUTE(LOWER(carbonfactor_db[[#This Row],[Description]]&carbonfactor_db[[#This Row],[Unit]]&carbonfactor_db[[#This Row],[Year]]),\" \",\"\"),\"-\",\"\")","v":"flightshorthaul,to/fromukaveragepassengerupstreampassenger.km2025"}]
[null,647,"Flight Short-haul, to/from UK economy class - upstream",2.249E-2,null,"passenger.km",2025,"DESNZ","UK",null,{"$f":"SUBSTITUTE(SUBSTITUTE(LOWER(carbonfactor_db[[#This Row],[Description]]&carbonfactor_db[[#This Row],[Unit]]&carbonfactor_db[[#This Row],[Year]]),\" \",\"\"),\"-\",\"\")","v":"flightshorthaul,to/fromukeconomyclassupstreampassenger.km2025"}]
[null,648,"Flight Short-haul, to/from UK business class - upstream",3.3730000000000003E-2,null,"passenger.km",2025,"DESNZ","UK",null,{"$f":"SUBSTITUTE(SUBSTITUTE(LOWER(carbonfactor_db[[#This Row],[Description]]&carbonfactor_db[[#This Row],[Unit]]&carbonfactor_db[[#This Row],[Year]]),\" \",\"\"),\"-\",\"\")","v":"flightshorthaul,to/fromukbusinessclassupstreampassenger.km2025"}]
[null,649,"Flight Long-haul, to/from UK average passenger - upstream",3.2129999999999999E-2,null,"passenger.km",2025,"DESNZ","UK",null,{"$f":"SUBSTITUTE(SUBSTITUTE(LOWER(carbonfactor_db[[#This Row],[Description]]&carbonfactor_db[[#This Row],[Unit]]&carbonfactor_db[[#This Row],[Year]]),\" \",\"\"),\"-\",\"\")","v":"flightlonghaul,to/fromukaveragepassengerupstreampassenger.km2025"}]
[null,650,"Flight Long-haul, to/from UK economy class - upstream",2.461E-2,null,"passenger.km",2025,"DESNZ","UK",null,{"$f":"SUBSTITUTE(SUBSTITUTE(LOWER(carbonfactor_db[[#This Row],[Description]]&carbonfactor_db[[#This Row],[Unit]]&carbonfactor_db[[#This Row],[Year]]),\" \",\"\"),\"-\",\"\")","v":"flightlonghaul,to/fromukeconomyclassupstreampassenger.km2025"}]
[null,651,"Flight Long-haul, to/from UK premium economy class - upstream",3.9370000000000002E-2,null,"passenger.km",2025,"DESNZ","UK",null,{"$f":"SUBSTITUTE(SUBSTITUTE(LOWER(carbonfactor_db[[#This Row],[Description]]&carbonfactor_db[[#This Row],[Unit]]&carbonfactor_db[[#This Row],[Year]]),\" \",\"\"),\"-\",\"\")","v":"flightlonghaul,to/fromukpremiumeconomyclassupstreampassenger.km2025"}]
[null,652,"Flight Long-haul, to/from UK business class - upstream",7.1370000000000003E-2,null,"passenger.km",2025,"DESNZ","UK",null,{"$f":"SUBSTITUTE(SUBSTITUTE(LOWER(carbonfactor_db[[#This Row],[Description]]&carbonfactor_db[[#This Row],[Unit]]&carbonfactor_db[[#This Row],[Year]]),\" \",\"\"),\"-\",\"\")","v":"flightlonghaul,to/fromukbusinessclassupstreampassenger.km2025"}]
[null,653,"Flight Long-haul, to/from UK first class - upstream",9.844E-2,null,"passenger.km",2025,"DESNZ","UK",null,{"$f":"SUBSTITUTE(SUBSTITUTE(LOWER(carbonfactor_db[[#This Row],[Description]]&carbonfactor_db[[#This Row],[Unit]]&carbonfactor_db[[#This Row],[Year]]),\" \",\"\"),\"-\",\"\")","v":"flightlonghaul,to/fromukfirstclassupstreampassenger.km2025"}]
[null,654,"Flight International, to/from non-UK average passenger - upstream",2.162E-2,null,"passenger.km",2025,"DESNZ","UK",null,{"$f":"SUBSTITUTE(SUBSTITUTE(LOWER(carbonfactor_db[[#This Row],[Description]]&carbonfactor_db[[#This Row],[Unit]]&carbonfactor_db[[#This Row],[Year]]),\" \",\"\"),\"-\",\"\")","v":"flightinternational,to/fromnonukaveragepassengerupstreampassenger.km2025"}]
[null,655,"Flight International, to/from non-UK economy class - upstream",1.6559999999999998E-2,null,"passenger.km",2025,"DESNZ","UK",null,{"$f":"SUBSTITUTE(SUBSTITUTE(LOWER(carbonfactor_db[[#This Row],[Description]]&carbonfactor_db[[#This Row],[Unit]]&carbonfactor_db[[#This Row],[Year]]),\" \",\"\"),\"-\",\"\")","v":"flightinternational,to/fromnonukeconomyclassupstreampassenger.km2025"}]
[null,656,"Flight International, to/from non-UK premium economy class - upstream",2.649E-2,null,"passenger.km",2025,"DESNZ","UK",null,{"$f":"SUBSTITUTE(SUBSTITUTE(LOWER(carbonfactor_db[[#This Row],[Description]]&carbonfactor_db[[#This Row],[Unit]]&carbonfactor_db[[#This Row],[Year]]),\" \",\"\"),\"-\",\"\")","v":"flightinternational,to/fromnonukpremiumeconomyclassupstreampassenger.km2025"}]
[null,657,"Flight International, to/from non-UK Business class - upstream",4.802E-2,null,"passenger.km",2025,"DESNZ","UK",null,{"$f":"SUBSTITUTE(SUBSTITUTE(LOWER(carbonfactor_db[[#This Row],[Description]]&carbonfactor_db[[#This Row],[Unit]]&carbonfactor_db[[#This Row],[Year]]),\" \",\"\"),\"-\",\"\")","v":"flightinternational,to/fromnonukbusinessclassupstreampassenger.km2025"}]
[null,658,"Flight International, to/from non-UK First class - upstream",6.6229999999999997E-2,null,"passenger.km",2025,"DESNZ","UK",null,{"$f":"SUBSTITUTE(SUBSTITUTE(LOWER(carbonfactor_db[[#This Row],[Description]]&carbonfactor_db[[#This Row],[Unit]]&carbonfactor_db[[#This Row],[Year]]),\" \",\"\"),\"-\",\"\")","v":"flightinternational,to/fromnonukfirstclassupstreampassenger.km2025"}]
[null,659,"Water supply",0.1913,null,"m3",2025,"DESNZ","UK",null,{"$f":"SUBSTITUTE(SUBSTITUTE(LOWER(carbonfactor_db[[#This Row],[Description]]&carbonfactor_db[[#This Row],[Unit]]&carbonfactor_db[[#This Row],[Year]]),\" \",\"\"),\"-\",\"\")","v":"watersupplym32025"}]
[null,660,"Hotels and Accommodation",0.1913,null,"Room per night",2025,"DESNZ","UK",null,{"$f":"SUBSTITUTE(SUBSTITUTE(LOWER(carbonfactor_db[[#This Row],[Description]]&carbonfactor_db[[#This Row],[Unit]]&carbonfactor_db[[#This Row],[Year]]),\" \",\"\"),\"-\",\"\")","v":"hotelsandaccommodationroompernight2025"}]

{"sheet":"Emissions db","index":15,"n_rows":8,"n_cols":55,"rows_kept":8,"cut":false,"hidden":false,"merged":[[6,48,6,54],[6,0,6,11],[6,12,6,18],[6,19,6,26],[6,27,6,28],[6,29,6,47]]}
[]
[]
[]
[]
[null,"Emissions database"]
[]
["Basic data",null,null,null,null,null,null,null,null,null,null,null,"BoQ",null,null,null,null,null,null,"Soil and excavation",null,null,null,null,null,null,null,"Overheads",null,"Carbon calculations",null,null,null,null,null,null,null,null,null,null,null,null,null,null,null,null,null,null,"Helper columns"]
["Record number","Data marker","Date of entry into database","Data entry by (name)","Record type","Record data start date","Record data end date","Category","User notes","Calculation notes","Overhead number","Project code","Section","Reference","Item specification","Unit","Quantity solely for archaeology activity","Quantity for archaeology and other development purposes","Custom carbon factor (if applicable)","Country","Land use","Soil type","Peat storage months","Detail","Soil/Excavation unit","Value solely for archaeology activity","Value for archaeology and other development purposes","Office name","Operational control","Carbon factor record number","BoQ (tonnes CO2e)","Project transport (tonnes CO2e)","Project transport EVs (tonnes CO2e)","Excavation emissions (tonnes CO2e)","Upstream impacts - project specific (tonnes CO2e)","Electricity locational-based (tonnes CO2e)","Electricity market-based (tonnes CO2e)","Natural gas (tonnes CO2e)","Fuel oil (tonnes CO2e)","Leased assets [locational-based] (tonnes CO2e)","Leased assets [market-based] (tonnes CO2e)","Commuting/homeworking (tonnes CO2e)","Business travel (tonnes CO2e)","Upstream impacts - overheads [locational-based] (tonnes CO2e)","Upstream impacts - overheads [market-based] (tonnes CO2e)","Biogenic emissions (tonnes CO2e)","Development emissions [fossil] (tonnes CO2e)","Development emissions [biogenic] (tonnes CO2e)","% of record within chosen reporting period","Dashboard year - 1","% of record within chosen project reporting period and project period","Project person days in month","Total person days in month","% of overhead allocated to project","Unique code"]

{"sheet":"BoQ carbon factor db","index":16,"n_rows":160,"n_cols":6,"rows_kept":160,"cut":false,"hidden":true,"merged":[]}
[]
[null,"Reference","Item specification","Carbon factor unit","Physical units carbon factor","Exiobase carbon factor description"]
[null,"A - PRELIMINARIES",null,null,null,""]
[null,"A1","Supply H&S Plan","hours","Homeworking (office equipment + heating)","Other business services"]
[null,"A2 - Supply and update 'WSI' or Method Statement "]
[null,"A2.1","Supply  'WSI' or Method Statement","hours","Homeworking (office equipment + heating)","Other business services"]
[null,"A2.2","Update  'WSI' or Method Statement","hours","Homeworking (office equipment + heating)","Other business services"]
[null,"A3 - Supply and update Programme"]
[null,"A3.1","Supply  Programme","hours","Homeworking (office equipment + heating)","Other business services"]
[null,"A3.2","Update Programme","hours","Homeworking (office equipment + heating)","Other business services"]
[null,"A4","Attend meetings","hours","Homeworking (office equipment + heating)","Other business services"]
[null,"A5","Handover","hours","Homeworking (office equipment + heating)","Other business services"]
[null,"A7 - Site establishment",null,""]
[null,"A7.1.1.1","Option 1 - Temporary site accommodation, litres of diesel consumed","litres","Diesel (average biofuel blend)","Diesel (average biofuel blend)"]
[null,"A7.1.1.2","Option 1 - Temporary site accommodation, litres of biodiesel consumed","litres","Biodiesel HVO","Biodiesel HVO"]
[null,"A7.1.1.3","Option 2 - Amount spent on temporary site accommodation",null,null,"Rental of machinery and equipment (without operator) and of personal and household goods (services)"]
[null,"A7.2.1","Temporary works in connection with site establishment (road surface)","m2","Road surface","Construction work"]
[null,"A7.2.2","Temporary works in connection with site establishment (concrete)","tonne/m3","Concrete - average UK mix","Construction work"]
[null,"A7.3","Furniture and equipment",null,null,"Furniture/other manufactured goods (not elsewhere specified)"]
[null,"A7.4 - IT systems"]
[null,"A7.4.1","IT systems - hardware",null,null,"Office and computer machinery"]
[null,"A7.4.2","IT systems - software",null,null,"Computer and related services"]
[null,"A7.5 - Consumables and services"]
[null,"A7.5.1","Stationary and printing","kg","Paper","Paper and paper products"]
[null,"A7.5.2","Computer and printer consumables",null,null,"Office and computer machinery"]
[null,"A7.5.3","Postage",null,null,"Post and telecommunications"]
[null,"A7.5.4","Food and drink",null,null,"Beverages"]
[null,"A7.5.5","First aid consumables","kg","Polypropylene (injection moulding)","Textiles"]
[null,"A7.6 - Brought-in services",null,"",null,""]
[null,"A7.6.1","Catering",null,null,"Hotel and restaurant (services)"]
[null,"A7.6.2","Equipment maintenance",null,null,"Sale/maintenance/repair/parts/accessories of motor vehicles/motorcycles"]
[null,"A7.6.3","Document management",null,null,"Computer and related services"]
[null,"A7.6.4","Printing (purchasing)","kg","Paper","Printed matter and recorded media"]
[null,"A7.6.5","Parking",null,null,"Supporting and auxiliary transport services/travel agency services"]
[null,"A7.6.6","Meeting room facilities",null,null,"Real estate services"]
[null,"A7.6.7","Photographic services",null,null,"Other business services"]
[null,"A7.7","Sundries","kg","ABS","Rubber and Plastic products"]
[null,"A8 - Temporary services",null,"",null,""]
[null,"A8.1 - Temporary water supply - infrastructure"]
[null,"A8.1.1","Temporary water supply - services/meter charges","m3","Water supply","Collected and purified water/distribution of water (services)"]
[null,"A8.1.2","Temporary water supply - infrastructure (connections and distribution)",null,null,"Collected and purified water/distribution of water (services)"]
[null,"A8.2 Temporary gas supply - infrastructure"]
[null,"A8.2.1","Temporary gas supply - services (charges)","kWh","Natural gas","LPG (liquefied petroleum gas)"]
[null,"A8.2.2","Temporary gas supply - infrastructure (connections and distribution)",null,null,"LPG (liquefied petroleum gas)"]
[null,"A8.3 - Temporary electricity supply"]
[null,"A8.3.1.1","Temporary electricity supply - infrastructure (attendance, UPS, etc)",null,null,"Transmission of electricity (services)"]
[null,"A8.3.1.2","Temporary electricity supply - infrastructure (connections and distribution)",null,null,"Transmission of electricity (services)"]
[null,"A8.3.2","Temporary electricity supply - charges","kWh","Electricity"]
[null,"A8.4 - Temporary telecommunication systems"]
[null,"A8.4.1.1","Temporary telecommunication systems - consumables (wires and lines)",null,null,"Post and telecommunications"]
[null,"A8.4.1.2","Temporary telecommunication systems - consumables (handsets etc)","",null,"Radio/television and communication equipment and apparatus"]
[null,"A8.4.2","Temporary telecommunication systems - services",null,null,"Post and telecommunications"]
[null,"A8.5 - Temporary drainage"]
[null,"A8.5.1","Temporary drainage - infrastructure",null,null,"Construction work"]
[null,"A8.5.2","Temporary drainage - waste",null,null,"Other waste for treatment: waste water treatment"]
[null,"A9 - Security",null,null,null,""]
[null,"A9.1","Security staff",null,null,"Other business services"]
[null,"A9.2","Security equipment",null,null,"Office and computer machinery"]
[null,"A9.3.1","Hoardings, fences and gates (steel hot rolled coil)","kg","Steel hot rolled coil","Fabricated metal products/except machinery and equipment"]
[null,"A9.3.2","Hoardings, fences and gates (steel welded pipe)","kg","Steel welded pipe","Fabricated metal products/except machinery and equipment"]
[null,"A9.3.3","Hoardings, fences and gates (aluminium sheet)","kg","Aluminium sheet","Fabricated metal products/except machinery and equipment"]
[null,"A9.3.4","Hoardings, fences and gates (aluminium extruded profile)","kg","Aluminium extruded profile","Fabricated metal products/except machinery and equipment"]
[null,"A10 - Safety and environmental protection",null,""]
[null,"A10 - Safety and environmental protection"]
[null,"A10.1.1","Safety programme - services",null,null,"Other business services"]
[null,"A10.1.2","Safety programme - PPE",null,null,"Textiles"]
[null,"A10.1.3","Safety programme - equipment",null,null,"Real estate services"]
[null,"A10.1.4","Safety programme - education",null,null,"Education Services"]
[null,"A10.2.1","Barriers and safety scaffolding (steel hot rolled coil)","kg","Steel hot rolled coil","Fabricated metal products/except machinery and equipment"]
[null,"A10.2.2","Barriers and safety scaffolding (steel welded pipe)","kg","Steel welded pipe","Fabricated metal products/except machinery and equipment"]
[null,"A10.2.3","Barriers and safety scaffolding (aluminium sheet)","kg","Aluminium sheet","Fabricated metal products/except machinery and equipment"]
[null,"A10.2.4","Barriers and safety scaffolding (aluminium extruded profile)","kg","Aluminium extruded profile","Fabricated metal products/except machinery and equipment"]
[null,"A10.3","Environmental protection measures",null,null,"Other business services"]
[null,"A11 - Control and protection",null,null,null,""]
[null,"A11.1","Survey, inspections and monitoring",null,null,"Other business services"]
[null,"A11.2.1","Setting out - services",null,null,"Other business services"]
[null,"A11.2.2.1","Setting out - equipment (steel hot rolled coil)","kg","Steel hot rolled coil","Fabricated metal products/except machinery and equipment"]
[null,"A11.2.2.2","Setting out - equipment (steel welded pipe)","kg","Steel welded pipe","Fabricated metal products/except machinery and equipment"]
[null,"A11.2.2.3","Setting out - equipment (aluminium sheet)","kg","Aluminium sheet","Fabricated metal products/except machinery and equipment"]
[null,"A11.2.2.4","Setting out - equipment (aluminium extruded profile)","kg","Aluminium extruded profile","Fabricated metal products/except machinery and equipment"]
[null,"A11.3","Protection of works",null,null,"Paper and paper products"]
[null,"A11.5","Environmental control of building",null,null,"Construction work"]
[null,"A13 - Temporary works"]
[null,"A13.1","Access scaffolding",null,null,"Construction work"]
[null,"A13.2","Temporary works",null,null,"Rental of machinery and equipment (without operator) and of personal and household goods (services)"]
[null,"A14 - Cleaning"]
[null,"A14.1.2","Site tidy - cleaning",null,null,"Real estate services"]
[null,"A14.1.3","Site tidy - waste disposal",null,null,"Inert/metal waste for treatment: incineration"]
[null,"A14.2","Maintenance of roads, paths and pavings","",null,"Construction work"]
[null,"A14.3","Building clean",null,null,"Real estate services"]
[null,"A16 - Insurance, bonds, guarantees and warranties"]
[null,"A16.1","Works insurance",null,null,"Insurance and pension funding services"]
[null,"A16.2","Public liability insurance",null,null,"Insurance and pension funding services"]
[null,"A16.3","Employer’s (main contractor’s) liability insurance",null,null,"Insurance and pension funding services"]
[null,"A16.4","Other insurances",null,null,"Insurance and pension funding services"]
[null,"A16.5","Bonds","",null,"Financial intermediation services (except insurance and pension funding services)"]
[null,"A16.6","Guarantees","",null,"Financial intermediation services (except insurance and pension funding services)"]
[null,"A16.7","Warranties","",null,"Financial intermediation services (except insurance and pension funding services)"]
[null,"A17","De-watering",null,null,"Rental of machinery and equipment (without operator) and of personal and household goods (services)"]
[null,"B - EXCAVATION/INVESTIGATION - this might involve other methods than just excavation"]
[null,"B1 - Interventions",null,null,null,""]
[null,"B1.5","Surveys, characterisations, and photography eg.  metal detecting survey, hedgerow survey, conventional aerial photography, historic landscape and seascape characterisation\nActivities specified in FAME's Bill of Quantities Section B1.5-7, B1.17-22, B1.24 -30 ",null,null,"Other business services"]
[null,"B1.8","Sampling such as gravity core, monolith, timber\nActivities specified in FAME's Bill of Quantities Section B1.8-16",null,null,"Research and Development services"]
[null,"B1.19.2","Acoustic Ground Discriminating Radar",null,null,"Rental of machinery and equipment (without operator) and of personal and household goods (services)"]
[null,"B1.23","Desk Based Assessment","hours","Homeworking (office equipment + heating)","Other business services"]
[null,"B1.31","Remote Operated Vehicle Survey",null,null,"Rental of machinery and equipment (without operator) and of personal and household goods (services)"]
[null,"C - PROCESSING OF RECOVERED MATERIALS"]
[null,"C1","Process, stabilise and catalogue bulk artefacts ",null,null,"Research and Development services"]
[null,"C2","Process, stabilise and catalogue 'special' artefacts ",null,null,"Research and Development services"]
[null,"C3 - Process, catalogue and stabilise bulk soil samples as specified"]
[null,"C3.1","Soil samples for envi assessment",null,null,"Research and Development services"]
[null,"C3.2","Cremation-related deposits",null,null,"Research and Development services"]
[null,"C4 - Off-site 'excavation' of contained remains (urns, lead coffins etc.)"]
[null,"C4.1","Urned cremation remains",null,null,"Wood and products of wood"]
[null,"C4.2","Coffins ",null,null,"Wood and products of wood"]
[null,"C4.3","Block lifted deposits",null,null,"Wood and products of wood"]
[null,"C5 - Process, catalogue and stablise structure elements as specified"]
[null,"C5.1","Structual elements",null,null,"Recreational/cultural and sporting services"]
[null,"D - POST-EXCAVATION ASSESSMENT"]
[null,"D1 - Supply assessment of research potential of the archive"]
[null,"D1.1","Stratigraphic assemblage",null,null,"Other business services"]
[null,"D1.2","Artefactual assemblage",null,null,"Other business services"]
[null,"D1.3","Environmental assemblage",null,null,"Other business services"]
[null,"D1.4","Photo and Record logs","kg","Paper","Printed matter and recorded media"]
[null,"D2","Full Post-excavation assessment report",null,null,"Other business services"]
[null,"D3","Post-excavation assessment meetings",null,null,"Other business services"]
[null,"E - POST-EXCAVATION ANALYSIS AND DISSEMINATION"]
[null,"E1","Chemical Techniques",null,null,"Research and Development services"]
[null,"E2","Dating Techniques",null,null,"Research and Development services"]
[null,"E3","Physical techniques",null,null,"Research and Development services"]
[null,"E5.1","Report write-up",null,null,"Education Services"]
[null,"E5.2","Specialist sub-reports - add as many as required.",null,null,"Education Services"]
[null,"E5.3","Figure creation",null,null,"Education Services"]
[null,"E5.3.1","Site plan processing",null,null,"Other business services"]
[null,"E5.3.2","Section plan processing",null,null,"Other business services"]
[null,"E5.3.3","Reconsturctions",null,null,"Other business services"]
[null,"E5.3.4","Artefact drawings",null,null,"Other business services"]
[null,"E5.3.5","Graphs and tables",null,null,"Education Services"]
[null,"E5.3.6","Other figures",null,null,"Education Services"]
[null,"E5.4","Copyediting",null,null,"Education Services"]
[null,"E5.5","Review and revision",null,null,"Education Services"]
[null,"E5.6","Additional publication costs e.g. printing, design",null,null,"Printed matter and recorded media"]
[null,"F - PUBLIC ENGAGEMENT"]
[null,"F1","Location hire",null,null,"Real estate services"]
[null,"F2","Printed materials","kg","Paper","Printed matter and recorded media"]
[null,"F3","Digital items (third-party)",null,null,"Printed matter and recorded media"]
[null,"F4","Education services",null,null,"Education Services"]
[null,"G - DEPOSITION"]
[null,"G1","Museum/archive deposition charges",null,null,"Recreational/cultural and sporting services"]
[null,"G2","Transport/carriage to museum","tonne.km","Van average (up to 3.5 tonnes) diesel","Other land transportation services"]
[null,"G3","Dispose of discarded materials","",null,"Inert/metal waste for treatment: incineration"]
[null,"G4","OASIS upload",null,null,"Computer and related services"]
[null,"G5","Digital archive",null,null,"Computer and related services"]
[null,"Y - PLANT HIRE"]
[null,"Y0","Option 1 - Litres of diesel consumed","litres","Diesel (average biofuel blend)","Diesel (average biofuel blend)"]
[null,"Y1","Option 1 - Litres of biodiesel consumed","litres","Biodiesel HVO","Biodiesel HVO"]
[null,"Y2","Option 2 - Amount spent on plant hire",null,null,"Rental of machinery and equipment (without operator) and of personal and household goods (services)"]
[null,"AA - SEL Adds"]
[null,"AA1","Hotels and Accommodation","Room per night","Hotels and Accommodation","Hotel and restaurant (services)"]
[null,"AA2","Food and Subsistence",null,null,"Hotel and restaurant (services)"]

{"sheet":"userName","index":17,"n_rows":1,"n_cols":1,"rows_kept":1,"cut":false,"hidden":true,"merged":[]}
["CS"]

{"sheet":"Carbon factor dropdowns","index":18,"n_rows":86,"n_cols":22,"rows_kept":86,"cut":false,"hidden":true,"merged":[]}
[]
["Counties",null,"Travel mode","Car dropdown","Rail dropdown","Taxi dropdown","Flight dropdown","Ferry dropdown","Van dropdown",null,null,null,"Soil location dropdown","Previous Landuse dropdown","Dug Depth (cm) dropdwon","Soil Type dropdwon","Area undergoing soil movement dropdown",null,"Excavator type","Unit",null,"CIBSE category"]
["Bedfordshire",null,"Car","average unknown fuel","national","regular taxi","Domestic, to/from UK - average passenger","Inland","Class I (up to 1.305 tonnes) diesel",null,null,null,"England","Seminatural","0-30","Organic","Ha",null,"White diesel powered excavator","hour",null,"Office - cellular naturally ventilated"]
["Berkshire",null,"Bus","small unknown fuel","international","black cab","Short-haul, to/from UK - average passenger","Coastal","Class II (1.305 to 1.74 tonnes) diesel",null,null,null,"Scotland","Pasture","30-100","Organo-minerals","m2",null,"Biodiesel excavator","m3",null,"Office - open plan naturally ventilated"]
["Bristol",null,"Rail","medium unknown fuel",null,null,"Short-haul, to/from UK - economy class",null,"Class III (1.74 to 3.5 tonnes) diesel",null,null,null,"Wales","Arable","0-100","Mineral soils","sq mile",null,"Electric Excavator - charged from UK mains",null,null,"Office - standard air conditioned"]
["Buckinghamshire",null,"Taxi","large unknown fuel",null,null,"Short-haul, to/from UK - business class",null,"Average (up to 3.5 tonnes) diesel",null,null,null,"Northern Ireland","Woodland",null,null,"sq km",null,"Electric excavator - renewable power",null,null,"Office - prestige air conditioned"]
["Cambridgeshire",null,"Tram","small diesel",null,null,"Long-haul, to/from UK - average passenger",null,"Class I (up to 1.305 tonnes) petrol",null,null,null,null,"Gardens",null,null,null,null,null,null,null,"Warehouse"]
["Cheshire",null,"London Underground","medium diesel",null,null,"Long-haul, to/from UK - economy class",null,"Class II (1.305 to 1.74 tonnes) petrol"]
["Cornwall",null,"Flight","large diesel",null,null,"Long-haul, to/from UK - premium economy class",null,"Class III (1.74 to 3.5 tonnes) petrol"]
["Cumbria",null,"Ferry","unknown size diesel",null,null,"Long-haul, to/from UK - business class",null,"Average (up to 3.5 tonnes) petrol"]
["Derbyshire",null,null,"small petrol",null,null,"Long-haul, to/from UK - first class",null,"Class I (up to 1.305 tonnes) electric"]
["Devon",null,null,"medium petrol",null,null,"International, to/from non-UK - average passenger",null,"Class II (1.305 to 1.74 tonnes) electric"]
["Dorset",null,null,"large petrol",null,null,"International, to/from non-UK - economy class",null,"Class III (1.74 to 3.5 tonnes) electric"]
["Durham",null,null,"unknown size petrol",null,null,"International, to/from non-UK - premium economy class",null,"Average (up to 3.5 tonnes) electric"]
["East Sussex",null,null,"small hybrid",null,null,"International, to/from non-UK - Business class",null,"Average (up to 3.5 tonnes) unknown fuel"]
["Essex",null,null,"medium hybrid",null,null,"International, to/from non-UK - First class"]
["Gloucestershire",null,null,"large hybrid"]
["Greater London",null,null,"unknown size hybrid"]
["Greater Manchester",null,null,"small plug-in hybrid"]
["Hampshire",null,null,"medium plug-in hybrid"]
["Herefordshire",null,null,"large plug-in hybrid"]
["Hertfordshire",null,null,"unknown size plug-in hybrid"]
["Isle of Wight",null,null,"small EV"]
["Kent",null,null,"medium EV"]
["Lancashire",null,null,"large EV"]
["Leicestershire",null,null,"unknown size EV"]
["Lincolnshire"]
["Merseyside"]
["Norfolk"]
["North Yorkshire"]
["Northamptonshire"]
["Northumberland"]
["Nottinghamshire"]
["Oxfordshire"]
["Rutland"]
["Shropshire"]
["Somerset"]
["South Yorkshire"]
["Staffordshire"]
["Suffolk"]
["Surrey"]
["Tyne and Wear"]
["Warwickshire"]
["West Midlands"]
["West Sussex"]
["West Yorkshire"]
["Wiltshire"]
["Worcestershire"]
["North Lincolnshire"]
["North East Lincolnshire"]
["Aberdeenshire"]
["Angus"]
["Argyll and Bute"]
["Ayrshire"]
["Caithness"]
["Clackmannanshire"]
["Dumfries and Galloway"]
["Dundee City"]
["Anglesey"]
["Brecknockshire"]
["Caernarfonshire"]
["Clwyd"]
["Dyfed"]
["Gwent"]
["Gwynedd"]
["Clwyd"]
["Merionethshire"]
["Monmouthshire"]
["Montgomeryshire"]
["Pembrokeshire"]
["Powys"]
["Radnorshire"]
["South Glamorgan"]
["West Glamorgan"]
["East Glamorgan"]
["Wrexham"]
["Ceredigion"]
["Conwy"]
["Pembrokeshire"]
["Powys"]
["Antrim"]
["Armagh"]
["Londonderry"]
["Down"]
["Fermanagh"]
["Tyrone"]

{"sheet":"Conversion factors","index":19,"n_rows":25,"n_cols":26,"rows_kept":25,"cut":false,"hidden":true,"merged":[]}
[]
[]
[]
[]
[null,"Conversion factors"]
[null,null,null,null,null,null,null,null,null,null,null,null,null,null,null,null,null,null,null,"HMRC exchange rates","Bank of England inflation calculator"]
[null,"Name","Value","Source",null,"CIBSE category","Electricity - typical practice (kWh/m2/year)","Fossil fuels - typical practice (kWh/m2/year)","Year","Notes",null,"Fuel","Year","Average fuel rate (£/litre)","Source","Description code",null,"Reporting year","Exiobase year","GBP to EUR in Exiobase year","GBP in reporting year to GBP in Exiobase year","Conversion factor","Description code",null,"Month","GBP to EUR"]
[null,"GWP of CH4",28,"Fifth assessment report (AR5)",null,"Office - cellular naturally ventilated",54,151,2024,null,null,"Diesel",2022,{"$f":"177.78/100","v":1.7778},"gov.uk",{"$f":"SUBSTITUTE(SUBSTITUTE(LOWER(L8&M8),\" \",\"\"),\"-\",\"\")","v":"diesel2022"},null,2025,2019,{"$f":"Z20","v":1.1377583333333336},0.78,{"$f":"exiobase_currency_inflation[[#This Row],[GBP in reporting year to GBP in Exiobase year]]*exiobase_currency_inflation[[#This Row],[GBP to EUR in Exiobase year]]","v":0.88745150000000028},{"$f":"exiobase_currency_inflation[[#This Row],[Reporting year]]&exiobase_currency_inflation[[#This Row],[Exiobase year]]","v":"20252019"},null,"2019-01-01",1.1069]
[null,"On-road EV charging",75,"p/kWh [2024]",null,"Office - open plan naturally ventilated",85,151,2024,null,null,"Diesel",2023,{"$f":"158.12/100","v":1.5811999999999999},"gov.uk","diesel2023",null,2024,2019,{"$f":"Z20","v":1.1377583333333336},0.8,{"$f":"exiobase_currency_inflation[[#This Row],[GBP in reporting year to GBP in Exiobase year]]*exiobase_currency_inflation[[#This Row],[GBP to EUR in Exiobase year]]","v":0.91020666666666694},{"$f":"exiobase_currency_inflation[[#This Row],[Reporting year]]&exiobase_currency_inflation[[#This Row],[Exiobase year]]","v":"20242019"},null,"2019-02-01",1.1478999999999999]
[null,null,null,null,null,"Office - standard air conditioned",226,178,2024,null,null,"Diesel",2024,{"$f":"149.31/100","v":1.4931000000000001},"gov.uk","diesel2024",null,2023,2019,{"$f":"Z20","v":1.1377583333333336},0.82,{"$f":"exiobase_currency_inflation[[#This Row],[GBP in reporting year to GBP in Exiobase year]]*exiobase_currency_inflation[[#This Row],[GBP to EUR in Exiobase year]]","v":0.93296183333333349},{"$f":"exiobase_currency_inflation[[#This Row],[Reporting year]]&exiobase_currency_inflation[[#This Row],[Exiobase year]]","v":"20232019"},null,"2019-03-01",1.1511]
[null,null,null,null,null,"Office - prestige air conditioned",358,210,2024,null,null,"Petrol",2022,{"$f":"164.64/100","v":1.6463999999999999},"gov.uk","petrol2022",null,2022,2019,{"$f":"Z20","v":1.1377583333333336},0.89,{"$f":"exiobase_currency_inflation[[#This Row],[GBP in reporting year to GBP in Exiobase year]]*exiobase_currency_inflation[[#This Row],[GBP to EUR in Exiobase year]]","v":1.0126049166666669},{"$f":"exiobase_currency_inflation[[#This Row],[Reporting year]]&exiobase_currency_inflation[[#This Row],[Exiobase year]]","v":"20222019"},null,"2019-04-01",1.1617999999999999]
[null,null,null,null,null,"All-electric office - cellular naturally ventilated",{"$f":"G8+H8/2.7","v":109.92592592592592},0,2024,"COP = 2.7",null,"Petrol",2023,{"$f":"147.65/100","v":1.4765000000000001},"gov.uk","petrol2023",null,2021,2019,{"$f":"Z20","v":1.1377583333333336},0.97,{"$f":"exiobase_currency_inflation[[#This Row],[GBP in reporting year to GBP in Exiobase year]]*exiobase_currency_inflation[[#This Row],[GBP to EUR in Exiobase year]]","v":1.1036255833333337},{"$f":"exiobase_currency_inflation[[#This Row],[Reporting year]]&exiobase_currency_inflation[[#This Row],[Exiobase year]]","v":"20212019"},null,"2019-05-01",1.1545000000000001]
[null,null,null,null,null,"All-electric office - open plan naturally ventilated",{"$f":"G9+H9/2.7","v":140.92592592592592},0,2024,"COP = 2.7",null,"Petrol",2024,{"$f":"142.31/100","v":1.4231},"gov.uk","petrol2024",null,2020,2019,{"$f":"Z20","v":1.1377583333333336},0.99,{"$f":"exiobase_currency_inflation[[#This Row],[GBP in reporting year to GBP in Exiobase year]]*exiobase_currency_inflation[[#This Row],[GBP to EUR in Exiobase year]]","v":1.1263807500000003},{"$f":"exiobase_currency_inflation[[#This Row],[Reporting year]]&exiobase_currency_inflation[[#This Row],[Exiobase year]]","v":"20202019"},null,"2019-06-01",1.1349]
[null,null,null,null,null,"All-electric office - standard air conditioned",{"$f":"G10+H10/2.7","v":291.92592592592592},0,2024,"COP = 2.7",null,null,null,null,null,null,null,2019,2019,{"$f":"Z20","v":1.1377583333333336},1,{"$f":"exiobase_currency_inflation[[#This Row],[GBP in reporting year to GBP in Exiobase year]]*exiobase_currency_inflation[[#This Row],[GBP to EUR in Exiobase year]]","v":1.1377583333333336},{"$f":"exiobase_currency_inflation[[#This Row],[Reporting year]]&exiobase_currency_inflation[[#This Row],[Exiobase year]]","v":"20192019"},null,"2019-07-01",1.1263000000000001]
[null,null,null,null,null,"All-electric office - prestige air conditioned",{"$f":"G11+H11/2.7","v":435.77777777777777},0,2024,"COP = 2.7",null,null,null,null,null,null,null,null,null,null,null,null,null,null,"2019-08-01",1.1216999999999999]
[null,null,null,null,null,"Industrial building post-1995 > 5000m2",null,92,2024,"Good practice - no electricity",null,null,null,null,null,null,null,null,null,null,null,null,null,null,"2019-09-01",1.0934999999999999]
[null,null,null,null,null,"Industrial building pre-1995 > 5000m2",null,103,2024,"Good practice - no electricity",null,null,null,null,null,null,null,null,null,null,null,null,null,null,"2019-10-01",1.1288]
[null,null,null,null,null,"Industrial building post-1995 <= 5000m2",null,96,2024,"Good practice - no electricity",null,null,null,null,null,null,null,null,null,null,null,null,null,null,"2019-11-01",1.1589]
[null,null,null,null,null,"Industrial building pre-1995 <= 5000m2",null,107,2024,"Good practice - no electricity",null,null,null,null,null,null,null,null,null,null,null,null,null,null,"2019-12-01",1.1668000000000001]
[null,null,null,null,null,"All-electric - industrial building post-1995 > 5000m2",{"$f":"H16/2.7","v":34.074074074074069},null,2024,"COP = 2.7",null,null,null,null,null,null,null,null,null,null,null,null,null,null,"Average",{"$f":"AVERAGE(Z8:Z19)","v":1.1377583333333336}]
[null,null,null,null,null,"All-electric - industrial building pre-1995 > 5000m2",{"$f":"H17/2.7","v":38.148148148148145},null,2024,"COP = 2.7"]
[null,null,null,null,null,"All-electric - industrial building post-1995 <= 5000m2",{"$f":"H18/2.7","v":35.55555555555555},null,2024,"COP = 2.7"]
[null,null,null,null,null,"All-electric - industrial building pre-1995 <= 5000m2",{"$f":"H19/2.7","v":39.629629629629626},null,2024,"COP = 2.7"]
[null,null,null,null,null,"Warehouse",67,169,null,"Retail - distribution warehouse"]
[null,null,null,null,null,"All-electric warehouse",101,0,null,"Retail - distribution warehouse"]

{"sheet":"Clients_projects","index":20,"n_rows":3,"n_cols":5,"rows_kept":3,"cut":false,"hidden":true,"merged":[]}
[]
[null,"Client dropdown",null,"Column1","EA"]
[null,"EA",null,null,"Test"]

{"sheet":"Locations_projects","index":21,"n_rows":86,"n_cols":8,"rows_kept":86,"cut":false,"hidden":true,"merged":[]}
[]
[null,"Location list",null,"Location dropdown",null,"Column1","Buckinghamshire","Bristol"]
[null,"Bristol",null,"Bedfordshire",null,null,null,"Test"]
[null,null,null,"Berkshire"]
[null,null,null,"Bristol"]
[null,null,null,"Buckinghamshire"]
[null,null,null,"Cambridgeshire"]
[null,null,null,"Cheshire"]
[null,null,null,"Cornwall"]
[null,null,null,"Cumbria"]
[null,null,null,"Derbyshire"]
[null,null,null,"Devon"]
[null,null,null,"Dorset"]
[null,null,null,"Durham"]
[null,null,null,"East Sussex"]
[null,null,null,"Essex"]
[null,null,null,"Gloucestershire"]
[null,null,null,"Greater London"]
[null,null,null,"Greater Manchester"]
[null,null,null,"Hampshire"]
[null,null,null,"Herefordshire"]
[null,null,null,"Hertfordshire"]
[null,null,null,"Isle of Wight"]
[null,null,null,"Kent"]
[null,null,null,"Lancashire"]
[null,null,null,"Leicestershire"]
[null,null,null,"Lincolnshire"]
[null,null,null,"Merseyside"]
[null,null,null,"Norfolk"]
[null,null,null,"North Yorkshire"]
[null,null,null,"Northamptonshire"]
[null,null,null,"Northumberland"]
[null,null,null,"Nottinghamshire"]
[null,null,null,"Oxfordshire"]
[null,null,null,"Rutland"]
[null,null,null,"Shropshire"]
[null,null,null,"Somerset"]
[null,null,null,"South Yorkshire"]
[null,null,null,"Staffordshire"]
[null,null,null,"Suffolk"]
[null,null,null,"Surrey"]
[null,null,null,"Tyne and Wear"]
[null,null,null,"Warwickshire"]
[null,null,null,"West Midlands"]
[null,null,null,"West Sussex"]
[null,null,null,"West Yorkshire"]
[null,null,null,"Wiltshire"]
[null,null,null,"Worcestershire"]
[null,null,null,"North Lincolnshire"]
[null,null,null,"North East Lincolnshire"]
[null,null,null,"Aberdeenshire"]
[null,null,null,"Angus"]
[null,null,null,"Argyll and Bute"]
[null,null,null,"Ayrshire"]
[null,null,null,"Caithness"]
[null,null,null,"Clackmannanshire"]
[null,null,null,"Dumfries and Galloway"]
[null,null,null,"Dundee City"]
[null,null,null,"Anglesey"]
[null,null,null,"Brecknockshire"]
[null,null,null,"Caernarfonshire"]
[null,null,null,"Clwyd"]
[null,null,null,"Dyfed"]
[null,null,null,"Gwent"]
[null,null,null,"Gwynedd"]
[null,null,null,"Clwyd"]
[null,null,null,"Merionethshire"]
[null,null,null,"Monmouthshire"]
[null,null,null,"Montgomeryshire"]
[null,null,null,"Pembrokeshire"]
[null,null,null,"Powys"]
[null,null,null,"Radnorshire"]
[null,null,null,"South Glamorgan"]
[null,null,null,"West Glamorgan"]
[null,null,null,"East Glamorgan"]
[null,null,null,"Wrexham"]
[null,null,null,"Ceredigion"]
[null,null,null,"Conwy"]
[null,null,null,"Pembrokeshire"]
[null,null,null,"Powys"]
[null,null,null,"Antrim"]
[null,null,null,"Armagh"]
[null,null,null,"Londonderry"]
[null,null,null,"Down"]
[null,null,null,"Fermanagh"]
[null,null,null,"Tyrone"]

{"sheet":"Emission table","index":22,"n_rows":38,"n_cols":43,"rows_kept":38,"cut":false,"hidden":true,"merged":[[18,31,19,32],[18,41,19,42],[18,20,19,21],[4,1,4,19],[10,13,10,14],[10,15,10,16]]}
[]
[]
[]
[]
[null,"Emission table"]
[null,"Start date","End date",null,null,null,null,null,null,"Project code",{"$f":"VLOOKUP(Dashboard!dashboard_project,project_db[[#All],[Project name]:[Project code]],2,FALSE)","v":{"$error":"#N/A"}},null,null,null,null,null,null,null,null,null,null,null,null,null,"Client","EA",null,null,null,null,null,null,null,null,"Location","Buckinghamshire"]
[null,{"$f":"Dashboard!dashboard_yr_startdate","v":"00:00:00"},{"$f":"Dashboard!dashboard_yr_enddate","v":"00:00:00"},null,null,null,null,null,null,"Project start date",{"$f":"VLOOKUP(proj_code,project_db[[#All],[Project code]:[Expected end date]],MATCH(\"Expected start date\",project_db[[#Headers],[Project code]:[Expected end date]],0),FALSE)","v":{"$error":"#N/A"}},null,null,null,null,null,null,null,null,null,null,null,null,null,"Start date","2025-04-01",null,null,null,null,null,null,null,null,"Start date","2025-01-01"]
["Period in previous year",{"$f":"DATE(YEAR(Dashboard!dashboard_yr_startdate)-1,MONTH(Dashboard!dashboard_yr_startdate),DAY(Dashboard!dashboard_yr_startdate))","v":"3798-12-31"},{"$f":"DATE(YEAR(Dashboard!dashboard_yr_enddate)-1,MONTH(Dashboard!dashboard_yr_enddate),DAY(Dashboard!dashboard_yr_enddate))","v":"3798-12-31"},null,null,null,null,null,null,"Project end date",{"$f":"VLOOKUP(proj_code,project_db[[#All],[Project code]:[Expected end date]],MATCH(\"Expected end date\",project_db[[#Headers],[Project code]:[Expected end date]],0),FALSE)","v":{"$error":"#N/A"}},null,null,null,null,null,null,null,null,null,null,null,null,null,"End date","2025-05-01",null,null,null,null,null,null,null,null,"End date","2025-12-31"]
[null,null,null,null,null,null,null,null,null,null,null,null,null,null,null,null,null,null,null,null,null,null,null,null,"Market/locational","Locational-based",null,null,null,null,null,null,null,null,"Market/locational","Market-based"]
[null,"Annual table",{"$f":"Dashboard!lastyear_label","v":"1/1/2024 - 1/1/2025"},{"$f":"Dashboard!thisyear_label","v":"1/1/2025 - 1/1/2026"},null,null,null,{"$f":"\"Tonnes CO2e \"&Dashboard!thisyear_label","v":"Tonnes CO2e 1/1/2025 - 1/1/2026"},null,"Project person days in overlap period/Total person days in overlap period",{"$f":"IFERROR(SUMPRODUCT((persondays_db[Record type]= \"Forecast\")* (persondays_db[Data marker]= \"live\") * (#REF!) * (persondays_db[Person-days])*(persondays_db[Project code]=proj_code))/SUMPRODUCT((persondays_db[Record type]= \"Forecast\")* (persondays_db[Data marker]= \"live\") * (#REF!) * (persondays_db[Person-days])*(persondays_db[Resolution]=\"Total company\")),0)","v":0},{"$f":"IFERROR(SUMPRODUCT((persondays_db[Record type]= \"Actual\")* (persondays_db[Data marker]= \"live\") * (#REF!) * (persondays_db[Person-days])*(persondays_db[Project code]=proj_code))/SUMPRODUCT((persondays_db[Record type]= \"Actual\")* (persondays_db[Data marker]= \"live\") * (#REF!) * (persondays_db[Person-days])*(persondays_db[Resolution]=\"Total company\")),0)","v":0},"Project table",null,null,null,null,null,null,null,null,null,null,null,"Client table",null,null,null,null,null,null,null,null,null,"Location table"]
["Total market-based carbon footprint (tonnes CO2e)","Emission","Dashboard yr - 1","Dashboard yr",null,"Project code","Project name","Tonnes CO2e",null,"Total carbon footprint (tonnes CO2e)",null,null,null,"Forecast",null,"Actual",null,null,{"$f":"\"Forecast vs Actual Scope 1 and 2 emissions  [\"&Dashboard!dashboard_project&\" \" &DAY(Dashboard!dashboard_start_date)&\"/\"&MONTH(Dashboard!dashboard_start_date)&\"/\"&YEAR(Dashboard!dashboard_start_date)&\" - \" &DAY(Dashboard!dashboard_end_date)&\"/\"&MONTH(Dashboard!dashboard_end_date)&\"/\"&YEAR(Dashboard!dashboard_end_date)&\"]\"","v":"Forecast vs Actual Scope 1 and 2 emissions  [ 0/1/1900 - 0/1/1900]"},null,null,null,null,null,"Total locational-based carbon footprint (tonnes CO2e)",null,null,null,null,{"$f":"\"Forecast vs Actual Scope 1 and 2 \"&emtbl_client_markloc& \" emissions [\"&emtbl_client&\" \"&DAY(emtbl_client_SD)&\"/\"&MONTH(emtbl_client_SD)&\"/\"&YEAR(emtbl_client_SD)&\" - \"&DAY(emtbl_client_ED)&\"/\"&MONTH(emtbl_client_ED)&\"/\"&YEAR(emtbl_client_ED)&\"]\"","v":"Forecast vs Actual Scope 1 and 2 Locational-based emissions [EA 1/4/2025 - 1/5/2025]"},null,null,null,null,"Total market-based carbon footprint (tonnes CO2e)",null,null,null,null,{"$f":"\"Forecast vs Actual Scope 1 and 2 \" &emtbl_loc_markloc&\" emissions [\"&emtbl_loc&\" \" &DAY(emtbl_loc_SD)&\"/\"&MONTH(emtbl_loc_SD)&\"/\"&YEAR(emtbl_loc_SD)&\" - \" &DAY(emtbl_loc_ED)&\"/\"&MONTH(emtbl_loc_ED)&\"/\"&YEAR(emtbl_loc_ED)&\"]\"","v":"Forecast vs Actual Scope 1 and 2 Market-based emissions [Buckinghamshire 1/1/2025 - 31/12/2025]"}]
[null,"Stationary combustion",0,0,null,"1","Project - Master",0,null,"Emission","Forecast","Actual","Actual as a % of forecast","Market","Locational","Market","Locational",null,{"$f":"\"Forecast vs Actual Scope 3 emissions [\"&Dashboard!dashboard_project&\" \" &DAY(Dashboard!dashboard_start_date)&\"/\"&MONTH(Dashboard!dashboard_start_date)&\"/\"&YEAR(Dashboard!dashboard_start_date)&\" - \" &DAY(Dashboard!dashboard_end_date)&\"/\"&MONTH(Dashboard!dashboard_end_date)&\"/\"&YEAR(Dashboard!dashboard_end_date)&\"]\"","v":"Forecast vs Actual Scope 3 emissions [ 0/1/1900 - 0/1/1900]"},null,null,null,null,null,"Emission","Forecast","Actual","Actual as a % of forecast",null,{"$f":"\"Forecast vs Actual Scope 3 \" & emtbl_client_markloc& \" emissions [\"&emtbl_client&\" \" &DAY(emtbl_client_SD)&\"/\"&MONTH(emtbl_client_SD)&\"/\"&YEAR(emtbl_client_SD)&\" - \" &DAY(emtbl_client_ED)&\"/\"&MONTH(emtbl_client_ED)&\"/\"&YEAR(emtbl_client_ED)&\"]\"","v":"Forecast vs Actual Scope 3 Locational-based emissions [EA 1/4/2025 - 1/5/2025]"},null,null,null,null,"Emission","Forecast","Actual","Actual as a % of forecast",null,{"$f":"\"Forecast vs Actual Scope 3 \"&emtbl_loc_markloc&\" emissions [\"&emtbl_loc&\" \" &DAY(emtbl_loc_SD)&\"/\"&MONTH(emtbl_loc_SD)&\"/\"&YEAR(emtbl_loc_SD)&\" - \" &DAY(emtbl_loc_ED)&\"/\"&MONTH(emtbl_loc_ED)&\"/\"&YEAR(emtbl_loc_ED)&\"]\"","v":"Forecast vs Actual Scope 3 Market-based emissions [Buckinghamshire 1/1/2025 - 31/12/2025]"}]
[null,"Project transport - company owned/leased vehicles",0,0,null,"2","Project - Carbon Reduction Activity 1",0,null,"Stationary combustion",{"$f":"IFERROR(SUMPRODUCT((emissions_db[Record type] = \"Forecast\")* (emissions_db[Data marker] = \"live\") * (emissions_db[% of record within chosen project reporting period and project period]) * (emissions_db[Natural gas (tonnes CO2e)])*emissions_db[% of overhead allocated to project])+SUMPRODUCT((emissions_db[Record type] = \"Forecast\") * (emissions_db[% of record within chosen project reporting period and project period]) * (emissions_db[Fuel oil (tonnes CO2e)])*emissions_db[% of overhead allocated to project]),0)","v":0},{"$f":"IFERROR(SUMPRODUCT((emissions_db[Record type] = \"Actual\")  * (emissions_db[Data marker] = \"live\") *(emissions_db[% of record within chosen project reporting period and project period]) * (emissions_db[Natural gas (tonnes CO2e)])*emissions_db[% of overhead allocated to project])+SUMPRODUCT((emissions_db[Record type] = \"Actual\") * (emissions_db[% of record within chosen project reporting period and project period]) * (emissions_db[Fuel oil (tonnes CO2e)])*emissions_db[% of overhead allocated to project]),0)","v":0},{"$f":"IFERROR(L13/K13,0)","v":0},null,null,null,null,null,null,"Forecast","Actual - to date",null,null,null,"Stationary combustion",0,0,{"$f":"IFERROR(AA13/Z13,0)","v":0},null,null,"Forecast","Actual - to date",null,null,"Stationary combustion",0,0,{"$f":"IFERROR(AK13/AJ13,0)","v":0},null,null,"Forecast","Actual - to date"]
[null,"Electricity",0,0,null,"3","Project - Carbon Reduction Activity 2",0,null,"Project transport - company owned/leased vehicles",{"$f":"IFERROR(SUMPRODUCT((emissions_db[Record type] = \"Forecast\")* (emissions_db[Data marker] = \"live\")  * (emissions_db[% of record within chosen project reporting period and project period]) *(emissions_db[Category] = \"Project transport - company vehicles\")* (emissions_db[Project code] = proj_code)*(emissions_db[Project transport (tonnes CO2e)])),0)","v":0},{"$f":"IFERROR(SUMPRODUCT((emissions_db[Record type] = \"Actual\")* (emissions_db[Data marker] = \"live\")  * (emissions_db[% of record within chosen project reporting period and project period]) *(emissions_db[Category] = \"Project transport - company vehicles\")* (emissions_db[Project code] = proj_code)*(emissions_db[Project transport (tonnes CO2e)])),0)","v":0},{"$f":"IFERROR(L14/K14,0)","v":0},null,null,null,null,null,"Scope 1",{"$f":"SUM(K13:K14)","v":0},{"$f":"SUM(L13:L14)","v":0},null,null,null,"Project transport - company owned/leased vehicles",0,0,{"$f":"IFERROR(AA14/Z14,0)","v":0},null,"Scope 1",{"$f":"SUM(Z13:Z14)","v":0},{"$f":"SUM(AA13:AA14)","v":0},null,null,"Project transport - company owned/leased vehicles",0,0,{"$f":"IFERROR(AK14/AJ14,0)","v":0},null,"Scope 1",{"$f":"SUM(AJ13:AJ14)","v":0},{"$f":"SUM(AK13:AK14)","v":0}]
[null,"Electricity - company owned/leased EVs",0,0,null,"4","Project - Carbon Reduction Activity 3",0,null,"Electricity",{"$f":"IF(Dashboard!proj_mark_or_loc = \"Locational-based\",O15,N15)","v":0},{"$f":"IF(Dashboard!proj_mark_or_loc  = \"Locational-based\",Q15,P15)","v":0},0,{"$f":"IFERROR(SUMPRODUCT((emissions_db[Record type] = \"Forecast\")* (emissions_db[Data marker] = \"live\")  * (emissions_db[% of record within chosen project reporting period and project period]) * (emissions_db[Electricity market-based (tonnes CO2e)])*emissions_db[% of overhead allocated to project]),0)","v":0},{"$f":"IFERROR(SUMPRODUCT((emissions_db[Record type] = \"Forecast\")* (emissions_db[Data marker] = \"live\")  * (emissions_db[% of record within chosen project reporting period and project period]) * (emissions_db[Electricity locational-based (tonnes CO2e)])*emissions_db[% of overhead allocated to project]),0)","v":0},{"$f":"IFERROR(SUMPRODUCT((emissions_db[Record type] = \"Actual\")* (emissions_db[Data marker] = \"live\")  * (emissions_db[% of record within chosen project reporting period and project period]) * (emissions_db[Electricity market-based (tonnes CO2e)])*emissions_db[% of overhead allocated to project]),0)","v":0},{"$f":"IFERROR(SUMPRODUCT((emissions_db[Record type] = \"Actual\")* (emissions_db[Data marker] = \"live\")  * (emissions_db[% of record within chosen project reporting period and project period]) * (emissions_db[Electricity locational-based (tonnes CO2e)])*emissions_db[% of overhead allocated to project]),0)","v":0},null,"Scope 2",{"$f":"SUM(K15:K16)","v":0},{"$f":"SUM(L15,L16)","v":0},null,null,null,"Electricity",0,0,{"$f":"IFERROR(AA15/Z15,0)","v":0},null,"Scope 2",{"$f":"SUM(Z15:Z16)","v":0},{"$f":"SUM(AA15:AA16)","v":0},null,null,"Electricity",0,0,{"$f":"IFERROR(AK15/AJ15,0)","v":0},null,"Scope 2",{"$f":"SUM(AJ15:AJ16)","v":0},{"$f":"SUM(AK15:AK16)","v":0}]
[null,"Upstream leased assets",0,0,null,"5","Project - Carbon Reduction Activity 4",0,null,"Electricity - company owned/leased EVs",{"$f":"IFERROR(SUMPRODUCT((emissions_db[Record type] = \"Forecast\")* (emissions_db[Data marker] = \"live\")  * (emissions_db[% of record within chosen project reporting period and project period]) *(emissions_db[Category] = \"Project transport - company vehicles\")* (emissions_db[Project code] = proj_code)*(emissions_db[Project transport EVs (tonnes CO2e)])),0)","v":0},{"$f":"IFERROR(SUMPRODUCT((emissions_db[Record type] = \"Actual\")* (emissions_db[Data marker] = \"live\")  * (emissions_db[% of record within chosen project reporting period and project period]) *(emissions_db[Category] = \"Project transport - company vehicles\")* (emissions_db[Project code] = proj_code)*(emissions_db[Project transport EVs (tonnes CO2e)])),0)","v":0},{"$f":"IFERROR(L16/K16,0)","v":0},null,null,null,null,null,"Scope 3",{"$f":"SUM(K17:K31)","v":0},{"$f":"SUM(L17:L31)","v":0},null,null,null,"Electricity - company owned/leased EVs",0,0,{"$f":"IFERROR(AA16/Z16,0)","v":0},null,"Scope 3",{"$f":"SUM(Z17:Z31)","v":1.5068032786885246E-3},{"$f":"SUM(AA17:AA31)","v":0},null,null,"Electricity - company owned/leased EVs",0,0,{"$f":"IFERROR(AK16/AJ16,0)","v":0},null,"Scope 3",{"$f":"SUM(AJ17:AJ31)","v":0},{"$f":"SUM(AK17:AK31)","v":0}]
[null,"Overheads - business travel",0,0,null,"6","Project - Carbon Reduction Activity 5",0,null,"Upstream leased assets",{"$f":"IF(Dashboard!proj_mark_or_loc  = \"Locational-based\",O17,N17)","v":0},{"$f":"IF(Dashboard!proj_mark_or_loc = \"Locational-based\",Q17,P17)","v":0},0,{"$f":"IFERROR(SUMPRODUCT((emissions_db[Record type] = \"Forecast\")* (emissions_db[Data marker] = \"live\")  * (emissions_db[% of record within chosen project reporting period and project period]) * (emissions_db[Leased assets '[market-based'] (tonnes CO2e)])*emissions_db[% of overhead allocated to project]),0)","v":0},{"$f":"IFERROR(SUMPRODUCT((emissions_db[Record type] = \"Forecast\")* (emissions_db[Data marker] = \"live\")  * (emissions_db[% of record within chosen project reporting period and project period]) * (emissions_db[Leased assets '[locational-based'] (tonnes CO2e)])*emissions_db[% of overhead allocated to project]),0)","v":0},{"$f":"IFERROR(SUMPRODUCT((emissions_db[Record type] = \"Actual\")* (emissions_db[Data marker] = \"live\")  * (emissions_db[% of record within chosen project reporting period and project period]) * (emissions_db[Leased assets '[market-based'] (tonnes CO2e)])*emissions_db[% of overhead allocated to project]),0)","v":0},{"$f":"IFERROR(SUMPRODUCT((emissions_db[Record type] = \"Actual\")* (emissions_db[Data marker] = \"live\")  * (emissions_db[% of record within chosen project reporting period and project period]) * (emissions_db[Leased assets '[locational-based'] (tonnes CO2e)])*emissions_db[% of overhead allocated to project]),0)","v":0},null,"Biogenic",{"$f":"SUM(K34)","v":0},{"$f":"L34","v":0},null,null,null,"Upstream leased assets",0,0,{"$f":"IFERROR(AA17/Z17,0)","v":0},null,"Biogenic",{"$f":"Z34","v":0},{"$f":"AA34","v":0},null,null,"Upstream leased assets",0,0,{"$f":"IFERROR(AK17/AJ17,0)","v":0},null,"Biogenic",{"$f":"AJ34","v":0},{"$f":"AK34","v":0}]
[null,"Commuting",0,0,null,"2","Test",0,null,"Overheads - business travel",{"$f":"IFERROR(SUMPRODUCT((emissions_db[Record type] = \"Forecast\")* (emissions_db[Data marker] = \"live\")  * (emissions_db[% of record within chosen project reporting period and project period]) * (emissions_db[Business travel (tonnes CO2e)])*emissions_db[% of overhead allocated to project]),0)","v":0},{"$f":"IFERROR(SUMPRODUCT((emissions_db[Record type] = \"Actual\") * (emissions_db[Data marker] = \"live\") * (emissions_db[% of record within chosen project reporting period and project period]) * (emissions_db[Business travel (tonnes CO2e)])*emissions_db[% of overhead allocated to project]),0)","v":0},0,null,null,null,null,null,null,null,null,null,null,null,"Overheads - business travel",0,0,{"$f":"IFERROR(AA18/Z18,0)","v":0},null,null,null,null,null,null,"Overheads - business travel",0,0,{"$f":"IFERROR(AK18/AJ18,0)","v":0}]
[null,"Upstream impacts - overheads",0,0,null,"1","Test",null,null,"Commuting",{"$f":"IFERROR(SUMPRODUCT((emissions_db[Record type] = \"Forecast\")* (emissions_db[Data marker] = \"live\")  * (emissions_db[% of record within chosen project reporting period and project period]) * (emissions_db[Commuting/homeworking (tonnes CO2e)])*emissions_db[% of overhead allocated to project]),0)","v":0},{"$f":"IFERROR(SUMPRODUCT((emissions_db[Record type] = \"Actual\") * (emissions_db[Data marker] = \"live\") * (emissions_db[% of record within chosen project reporting period and project period]) * (emissions_db[Commuting/homeworking (tonnes CO2e)])*emissions_db[% of overhead allocated to project]),0)","v":0},0,null,null,null,null,null,null,null,"Helper column so that 0% projects don't show",null,null,null,"Commuting",0,0,0,null,null,null,"Helper column so that 0% projects don't show",null,null,"Commuting",0,0,0,null,null,null,"Helper column so that 0% projects don't show"]
[null,"Project transport - greyfleet",0,0,null,null,null,null,null,"Upstream impacts - overheads",{"$f":"IF(Dashboard!proj_mark_or_loc = \"Locational-based\",O20,N20)","v":0},{"$f":"IF(Dashboard!proj_mark_or_loc  = \"Locational-based\",Q20,P20)","v":0},0,{"$f":"IFERROR(SUMPRODUCT((emissions_db[Record type] = \"Forecast\")* (emissions_db[Data marker] = \"live\")  * (emissions_db[% of record within chosen project reporting period and project period]) * (emissions_db[Upstream impacts - overheads '[market-based'] (tonnes CO2e)])*emissions_db[% of overhead allocated to project]),0)","v":0},{"$f":"IFERROR(SUMPRODUCT((emissions_db[Record type] = \"Forecast\")* (emissions_db[Data marker] = \"live\")  * (emissions_db[% of record within chosen project reporting period and project period]) * (emissions_db[Upstream impacts - overheads '[locational-based'] (tonnes CO2e)])*emissions_db[% of overhead allocated to project]),0)","v":0},{"$f":"IFERROR(SUMPRODUCT((emissions_db[Record type] = \"Actual\")* (emissions_db[Data marker] = \"live\")  * (emissions_db[% of record within chosen project reporting period and project period]) * (emissions_db[Upstream impacts - overheads '[market-based'] (tonnes CO2e)])*emissions_db[% of overhead allocated to project]),0)","v":0},{"$f":"IFERROR(SUMPRODUCT((emissions_db[Record type] = \"Actual\")* (emissions_db[Data marker] = \"live\")  * (emissions_db[% of record within chosen project reporting period and project period]) * (emissions_db[Upstream impacts - overheads '[locational-based'] (tonnes CO2e)])*emissions_db[% of overhead allocated to project]),0)","v":0},null,null,null,null,null,null,null,"Upstream impacts - overheads",0,0,0,null,null,null,null,null,null,"Upstream impacts - overheads",0,0,0]
[null,"Project transport - business travel",0,0,null,null,null,null,null,"Project transport - greyfleet",{"$f":"IFERROR(SUMPRODUCT((emissions_db[Record type] = \"Forecast\")* (emissions_db[Data marker] = \"live\")  * (emissions_db[% of record within chosen project reporting period and project period]) *(emissions_db[Category] = \"Project transport - greyfleet\")* (emissions_db[Project code] = proj_code)*(emissions_db[Project transport (tonnes CO2e)])),0)+IFERROR(SUMPRODUCT((emissions_db[Record type] = \"Forecast\")* (emissions_db[Data marker] = \"live\")  * (emissions_db[% of record within chosen project reporting period and project period]) *(emissions_db[Category] = \"Project transport - greyfleet\")* (emissions_db[Project code] = proj_code)*(emissions_db[Project transport EVs (tonnes CO2e)])),0)","v":0},{"$f":"IFERROR(SUMPRODUCT((emissions_db[Record type] = \"Actual\")* (emissions_db[Data marker] = \"live\")  * (emissions_db[% of record within chosen project reporting period and project period]) *(emissions_db[Category] = \"Project transport - greyfleet\")* (emissions_db[Project code] = proj_code)*(emissions_db[Project transport (tonnes CO2e)])),0)+IFERROR(SUMPRODUCT((emissions_db[Record type] = \"Actual\")* (emissions_db[Data marker] = \"live\")  * (emissions_db[% of record within chosen project reporting period and project period]) *(emissions_db[Category] = \"Project transport - greyfleet\")* (emissions_db[Project code] = proj_code)*(emissions_db[Project transport EVs (tonnes CO2e)])),0)","v":0},0,null,null,null,null,null,null,{"$f":"\"CO2e breakdown for \"&Dashboard!dashboard_project& \" \" &DAY(Dashboard!dashboard_start_date)&\"/\"&MONTH(Dashboard!dashboard_start_date)&\"/\"&YEAR(Dashboard!dashboard_start_date)&\" - \" &DAY(Dashboard!dashboard_end_date)&\"/\"&MONTH(Dashboard!dashboard_end_date)&\"/\"&YEAR(Dashboard!dashboard_end_date)","v":"CO2e breakdown for  0/1/1900 - 0/1/1900"},{"$f":"\"CO2e breakdown for \"&Dashboard!dashboard_project& \" \" &DAY(Dashboard!dashboard_start_date)&\"/\"&MONTH(Dashboard!dashboard_start_date)&\"/\"&YEAR(Dashboard!dashboard_start_date)&\" - \" &DAY(Dashboard!dashboard_end_date)&\"/\"&MONTH(Dashboard!dashboard_end_date)&\"/\"&YEAR(Dashboard!dashboard_end_date)","v":"CO2e breakdown for  0/1/1900 - 0/1/1900"},{"$f":"\"Tonnes CO2e [\"&Dashboard!dashboard_project& \"]\"","v":"Tonnes CO2e []"},null,null,"Project transport - greyfleet",0,0,0,null,null,{"$f":"emtbl_client_markloc&\" CO2e breakdown for \"&emtbl_client&\" \" &DAY(emtbl_client_SD)&\"/\"&MONTH(emtbl_client_SD)&\"/\"&YEAR(emtbl_client_SD)&\" - \" &DAY(emtbl_client_ED)&\"/\"&MONTH(emtbl_client_ED)&\"/\"&YEAR(emtbl_client_ED)&\"]\"","v":"Locational-based CO2e breakdown for EA 1/4/2025 - 1/5/2025]"},{"$f":"emtbl_client_markloc&\" CO2e breakdown for \"&emtbl_client&\" \" &DAY(emtbl_client_SD)&\"/\"&MONTH(emtbl_client_SD)&\"/\"&YEAR(emtbl_client_SD)&\" - \" &DAY(emtbl_client_ED)&\"/\"&MONTH(emtbl_client_ED)&\"/\"&YEAR(emtbl_client_ED)&\"]\"","v":"Locational-based CO2e breakdown for EA 1/4/2025 - 1/5/2025]"},{"$f":"\"Tonnes CO2e [\"&[0]!dashboard_client& \"]\"","v":"Tonnes CO2e []"},null,"Project transport - greyfleet",0,0,0,null,null,{"$f":"emtbl_loc_markloc&\" CO2e breakdown for \"&emtbl_loc&\" \" &DAY(emtbl_loc_SD)&\"/\"&MONTH(emtbl_loc_SD)&\"/\"&YEAR(emtbl_loc_SD)&\" - \" &DAY(emtbl_loc_ED)&\"/\"&MONTH(emtbl_loc_ED)&\"/\"&YEAR(emtbl_loc_ED)","v":"Market-based CO2e breakdown for Buckinghamshire 1/1/2025 - 31/12/2025"},{"$f":"\"CO2e breakdown for \"&emtbl_loc&\" \" &DAY(emtbl_loc_SD)&\"/\"&MONTH(emtbl_loc_SD)&\"/\"&YEAR(emtbl_loc_SD)&\" - \" &DAY(emtbl_loc_ED)&\"/\"&MONTH(emtbl_loc_ED)&\"/\"&YEAR(emtbl_loc_ED)","v":"CO2e breakdown for Buckinghamshire 1/1/2025 - 31/12/2025"},{"$f":"\"Tonnes CO2e [\"&Dashboard!dashboard_loc& \"]\"","v":"Tonnes CO2e []"}]
[null,"Upstream impacts - project specific",0,0,null,null,null,null,null,"Project transport - business travel",{"$f":"IFERROR(SUMPRODUCT((emissions_db[Record type] = \"Forecast\")* (emissions_db[Data marker] = \"live\")  * (emissions_db[% of record within chosen project reporting period and project period]) *(emissions_db[Category] = \"Project transport - business travel\")* (emissions_db[Project code] = proj_code)*(emissions_db[Project transport (tonnes CO2e)])),0)+IFERROR(SUMPRODUCT((emissions_db[Record type] = \"Forecast\")* (emissions_db[Data marker] = \"live\")  * (emissions_db[% of record within chosen project reporting period and project period]) *(emissions_db[Category] = \"Project transport - business travel\")* (emissions_db[Project code] = proj_code)*(emissions_db[Project transport EVs (tonnes CO2e)])),0)","v":0},{"$f":"IFERROR(SUMPRODUCT((emissions_db[Record type] = \"Actual\")* (emissions_db[Data marker] = \"live\")  * (emissions_db[% of record within chosen project reporting period and project period]) *(emissions_db[Category] = \"Project transport - business travel\")* (emissions_db[Project code] = proj_code)*(emissions_db[Project transport (tonnes CO2e)])),0)+IFERROR(SUMPRODUCT((emissions_db[Record type] = \"Actual\")* (emissions_db[Data marker] = \"live\")  * (emissions_db[% of record within chosen project reporting period and project period]) *(emissions_db[Category] = \"Project transport - business travel\")* (emissions_db[Project code] = proj_code)*(emissions_db[Project transport EVs (tonnes CO2e)])),0)","v":0},{"$f":"IFERROR(L22/K22,0)","v":0},null,null,null,null,null,"Buildings",{"$f":"SUM(L13,L15,L17,L20)","v":0},{"$f":"IF(T22=0,NA(),S22)","v":{"$error":"#N/A"}},{"$f":"IF(T22=0,NA(),T22)","v":{"$error":"#N/A"}},null,null,"Project transport - business travel",0,0,{"$f":"IFERROR(AA22/Z22,0)","v":0},null,"Buildings",{"$f":"SUM(AA13,AA15,AA17,AA20)","v":0},{"$f":"IF(AE22=0,NA(),AD22)","v":{"$error":"#N/A"}},{"$f":"IF(AE22=0,NA(),AE22)","v":{"$error":"#N/A"}},null,"Project transport - business travel",0,0,{"$f":"IFERROR(AK22/AJ22,0)","v":0},null,"Buildings",{"$f":"SUM(AK13,AK15,AK17,AK20)","v":0},{"$f":"IF(AO22=0,NA(),AN22)","v":{"$error":"#N/A"}},{"$f":"IF(AO22=0,NA(),AO22)","v":{"$error":"#N/A"}}]
[null,"Preliminaries",0,0,null,null,null,null,null,"Upstream impacts - project specific",{"$f":"IFERROR(SUMPRODUCT((emissions_db[Record type] = \"Forecast\")* (emissions_db[Data marker] = \"live\")  * (emissions_db[% of record within chosen project reporting period and project period]) * (emissions_db[Project code] = proj_code)*(emissions_db[Upstream impacts - project specific (tonnes CO2e)])),0)","v":0},{"$f":"IFERROR(SUMPRODUCT((emissions_db[Record type] = \"Actual\")* (emissions_db[Data marker] = \"live\")  * (emissions_db[% of record within chosen project reporting period and project period]) * (emissions_db[Project code] = proj_code)*(emissions_db[Upstream impacts - project specific (tonnes CO2e)])),0)","v":0},0,null,null,null,null,null,"Transport",{"$f":"SUM(L14,L16,L18,L21:L23)","v":0},{"$f":"IF(T23=0,NA(),S23)","v":{"$error":"#N/A"}},{"$f":"IF(T23=0,NA(),T23)","v":{"$error":"#N/A"}},null,null,"Upstream impacts - project specific",0,0,{"$f":"IFERROR(AA23/Z23,0)","v":0},null,"Transport",{"$f":"SUM(AA14,AA16,AA18,AA21,AA22,AA23)","v":0},{"$f":"IF(AE23=0,NA(),AD23)","v":{"$error":"#N/A"}},{"$f":"IF(AE23=0,NA(),AE23)","v":{"$error":"#N/A"}},null,"Upstream impacts - project specific",0,0,{"$f":"IFERROR(AK23/AJ23,0)","v":0},null,"Transport",{"$f":"SUM(AK14,AK16,AK18,AK21:AK23)","v":0},{"$f":"IF(AO23=0,NA(),AN23)","v":{"$error":"#N/A"}},{"$f":"IF(AO23=0,NA(),AO23)","v":{"$error":"#N/A"}}]
[null,"Excavation/Investigation",0,0,null,null,null,null,null,"Preliminaries",{"$f":"IFERROR(SUMPRODUCT((emissions_db[Record type] = \"Forecast\")* (emissions_db[Data marker] = \"live\")  * (emissions_db[% of record within chosen project reporting period and project period]) *(emissions_db[Section] = \"A\")* (emissions_db[Project code] = proj_code)*(emissions_db[BoQ (tonnes CO2e)])),0)","v":0},{"$f":"IFERROR(SUMPRODUCT((emissions_db[Record type] = \"Actual\")* (emissions_db[Data marker] = \"live\")  * (emissions_db[% of record within chosen project reporting period and project period]) *(emissions_db[Section] = \"A\")* (emissions_db[Project code] = proj_code)*(emissions_db[BoQ (tonnes CO2e)])),0)","v":0},0,null,null,null,null,null,"Commuting",{"$f":"L19","v":0},{"$f":"IF(T24=0,NA(),S24)","v":{"$error":"#N/A"}},{"$f":"IF(T24=0,NA(),T24)","v":{"$error":"#N/A"}},null,null,"Preliminaries",0,0,0,null,"Commuting",{"$f":"AA19","v":0},{"$f":"IF(AE24=0,NA(),AD24)","v":{"$error":"#N/A"}},{"$f":"IF(AE24=0,NA(),AE24)","v":{"$error":"#N/A"}},null,"Preliminaries",0,0,0,null,"Commuting",{"$f":"AK19","v":0},{"$f":"IF(AO24=0,NA(),AN24)","v":{"$error":"#N/A"}},{"$f":"IF(AO24=0,NA(),AO24)","v":{"$error":"#N/A"}}]
[null,"Processing of recovered materials",0,0,null,null,null,null,null,"Excavation/Investigation",{"$f":"IFERROR(SUMPRODUCT((emissions_db[Record type] = \"Forecast\")* (emissions_db[Data marker] = \"live\")  * (emissions_db[% of record within chosen project reporting period and project period]) *(emissions_db[Section] = \"B\")* (emissions_db[Project code] = proj_code)*(emissions_db[BoQ (tonnes CO2e)])),0)","v":0},{"$f":"IFERROR(SUMPRODUCT((emissions_db[Record type] = \"Actual\")* (emissions_db[Data marker] = \"live\")  * (emissions_db[% of record within chosen project reporting period and project period]) *(emissions_db[Section] = \"B\")* (emissions_db[Project code] = proj_code)*(emissions_db[BoQ (tonnes CO2e)])),0)","v":0},0,null,null,null,null,null,"Purchased goods and services",{"$f":"SUM(L24:L31)","v":0},{"$f":"IF(T25=0,NA(),S25)","v":{"$error":"#N/A"}},{"$f":"IF(T25=0,NA(),T25)","v":{"$error":"#N/A"}},null,null,"Excavation/Investigation",0,0,0,null,"Purchased goods and services",{"$f":"SUM(AA24:AA31)","v":0},{"$f":"IF(AE25=0,NA(),AD25)","v":{"$error":"#N/A"}},{"$f":"IF(AE25=0,NA(),AE25)","v":{"$error":"#N/A"}},null,"Excavation/Investigation",0,0,0,null,"Purchased goods and services",{"$f":"SUM(AK24:AK31)","v":0},{"$f":"IF(AO25=0,NA(),AN25)","v":{"$error":"#N/A"}},{"$f":"IF(AO25=0,NA(),AO25)","v":{"$error":"#N/A"}}]
[null,"Post-excavation assessment",0,0,null,null,null,null,null,"Processing of recovered materials",{"$f":"IFERROR(SUMPRODUCT((emissions_db[Record type] = \"Forecast\")* (emissions_db[Data marker] = \"live\")  * (emissions_db[% of record within chosen project reporting period and project period]) *(emissions_db[Section] = \"C\")* (emissions_db[Project code] = proj_code)*(emissions_db[BoQ (tonnes CO2e)])),0)","v":0},{"$f":"IFERROR(SUMPRODUCT((emissions_db[Record type] = \"Actual\")* (emissions_db[Data marker] = \"live\")  * (emissions_db[% of record within chosen project reporting period and project period]) *(emissions_db[Section] = \"C\")* (emissions_db[Project code] = proj_code)*(emissions_db[BoQ (tonnes CO2e)])),0)","v":0},0,null,null,null,null,null,"Biogenic",{"$f":"L34","v":0},{"$f":"IF(T26=0,NA(),S26)","v":{"$error":"#N/A"}},{"$f":"IF(T26=0,NA(),T26)","v":{"$error":"#N/A"}},null,null,"Processing of recovered materials",0,0,0,null,"Biogenic",{"$f":"AA34","v":0},{"$f":"IF(AE26=0,NA(),AD26)","v":{"$error":"#N/A"}},{"$f":"IF(AE26=0,NA(),AE26)","v":{"$error":"#N/A"}},null,"Processing of recovered materials",0,0,0,null,"Biogenic",{"$f":"AK34","v":0},{"$f":"IF(AO26=0,NA(),AN26)","v":{"$error":"#N/A"}},{"$f":"IF(AO26=0,NA(),AO26)","v":{"$error":"#N/A"}}]
[null,"Post-excavation analysis and dissemination",0,0,null,null,null,null,null,"Post-excavation assessment",{"$f":"IFERROR(SUMPRODUCT((emissions_db[Record type] = \"Forecast\")* (emissions_db[Data marker] = \"live\")  * (emissions_db[% of record within chosen project reporting period and project period]) *(emissions_db[Section] = \"D\")* (emissions_db[Project code] = proj_code)*(emissions_db[BoQ (tonnes CO2e)])),0)","v":0},{"$f":"IFERROR(SUMPRODUCT((emissions_db[Record type] = \"Actual\")* (emissions_db[Data marker] = \"live\")  * (emissions_db[% of record within chosen project reporting period and project period]) *(emissions_db[Section] = \"D\")* (emissions_db[Project code] = proj_code)*(emissions_db[BoQ (tonnes CO2e)])),0)","v":0},0,null,null,null,null,null,null,null,null,null,null,null,"Post-excavation assessment",0,0,0,null,null,null,null,null,null,"Post-excavation assessment",0,0,0]
[null,"Public engagement",0,0,null,null,null,null,null,"Post-excavation analysis and dissemination",{"$f":"IFERROR(SUMPRODUCT((emissions_db[Record type] = \"Forecast\")* (emissions_db[Data marker] = \"live\")  * (emissions_db[% of record within chosen project reporting period and project period]) *(emissions_db[Section] = \"E\")* (emissions_db[Project code] = proj_code)*(emissions_db[BoQ (tonnes CO2e)])),0)","v":0},{"$f":"IFERROR(SUMPRODUCT((emissions_db[Record type] = \"Actual\")* (emissions_db[Data marker] = \"live\")  * (emissions_db[% of record within chosen project reporting period and project period]) *(emissions_db[Section] = \"E\")* (emissions_db[Project code] = proj_code)*(emissions_db[BoQ (tonnes CO2e)])),0)","v":0},0,null,null,null,null,null,null,null,null,null,null,null,"Post-excavation analysis and dissemination",0,0,0,null,null,null,null,null,null,"Post-excavation analysis and dissemination",0,0,0]
[null,"Deposition",0,0,null,null,null,null,null,"Public engagement",{"$f":"IFERROR(SUMPRODUCT((emissions_db[Record type] = \"Forecast\")* (emissions_db[Data marker] = \"live\")  * (emissions_db[% of record within chosen project reporting period and project period]) *(emissions_db[Section] = \"F\")* (emissions_db[Project code] = proj_code)*(emissions_db[BoQ (tonnes CO2e)])),0)","v":0},{"$f":"IFERROR(SUMPRODUCT((emissions_db[Record type] = \"Actual\")* (emissions_db[Data marker] = \"live\")  * (emissions_db[% of record within chosen project reporting period and project period]) *(emissions_db[Section] = \"F\")* (emissions_db[Project code] = proj_code)*(emissions_db[BoQ (tonnes CO2e)])),0)","v":0},0,null,null,null,null,null,null,null,null,null,null,null,"Public engagement",0,0,0,null,null,null,null,null,null,"Public engagement",0,0,0]
[null,"Plant hire",0,0,null,null,null,null,null,"Deposition",{"$f":"IFERROR(SUMPRODUCT((emissions_db[Record type] = \"Forecast\")* (emissions_db[Data marker] = \"live\")  * (emissions_db[% of record within chosen project reporting period and project period]) *(emissions_db[Section] = \"G\")* (emissions_db[Project code] = proj_code)*(emissions_db[BoQ (tonnes CO2e)])),0)","v":0},{"$f":"IFERROR(SUMPRODUCT((emissions_db[Record type] = \"Actual\")* (emissions_db[Data marker] = \"live\")  * (emissions_db[% of record within chosen project reporting period and project period]) *(emissions_db[Section] = \"G\")* (emissions_db[Project code] = proj_code)*(emissions_db[BoQ (tonnes CO2e)])),0)","v":0},0,null,null,null,null,null,null,null,null,null,null,null,"Deposition",0,0,0,null,null,null,null,null,null,"Deposition",0,0,0]
[null,"Development emissions [fossil]",0,0,null,null,null,null,null,"Plant hire",{"$f":"IFERROR(SUMPRODUCT((emissions_db[Record type] = \"Forecast\")* (emissions_db[Data marker] = \"live\")  * (emissions_db[% of record within chosen project reporting period and project period]) *(emissions_db[Section] = \"Y\")* (emissions_db[Project code] = proj_code)*(emissions_db[BoQ (tonnes CO2e)]))+SUMPRODUCT((emissions_db[Record type] = \"Forecast\")* (emissions_db[Data marker] = \"live\")  * (emissions_db[% of record within chosen project reporting period and project period]) * (emissions_db[Project code] = proj_code)*(emissions_db[Excavation emissions (tonnes CO2e)])),0)","v":0},{"$f":"IFERROR(SUMPRODUCT((emissions_db[Record type] = \"Actual\")* (emissions_db[Data marker] = \"live\")  * (emissions_db[% of record within chosen project reporting period and project period]) *(emissions_db[Section] = \"Y\")* (emissions_db[Project code] = proj_code)*(emissions_db[BoQ (tonnes CO2e)]))+SUMPRODUCT((emissions_db[Record type] = \"Actual\")* (emissions_db[Data marker] = \"live\")  * (emissions_db[% of record within chosen project reporting period and project period]) * (emissions_db[Project code] = proj_code)*(emissions_db[Excavation emissions (tonnes CO2e)])),0)","v":0},0,null,null,null,null,null,null,null,null,null,null,null,"Plant hire",1.5068032786885246E-3,0,{"$f":"IFERROR(AA31/Z31,0)","v":0},null,null,null,null,null,null,"Plant hire",0,0,{"$f":"IFERROR(AK31/AJ31,0)","v":0}]
[null,"Development emissions [biogenic]",0,0,null,null,null,null,null,"Development emissions [fossil]",{"$f":"IFERROR(SUMPRODUCT((emissions_db[Record type] = \"Forecast\")* (emissions_db[Data marker] = \"live\")  * (emissions_db[% of record within chosen project reporting period and project period])* (emissions_db[Project code] = proj_code)*(emissions_db[Development emissions '[fossil'] (tonnes CO2e)])),0)","v":0},{"$f":"IFERROR(SUMPRODUCT((emissions_db[Record type] = \"Actual\")* (emissions_db[Data marker] = \"live\")  * (emissions_db[% of record within chosen project reporting period and project period]) * (emissions_db[Project code] = proj_code)*(emissions_db[Development emissions '[fossil'] (tonnes CO2e)])),0)","v":0},0,null,null,null,null,null,null,null,null,null,null,null,"Development emissions [fossil]",0,0,{"$f":"IFERROR(AA32/Z32,0)","v":0},null,null,null,null,null,null,"Development emissions [fossil]",0,0,{"$f":"IFERROR(AK32/AJ32,0)","v":0}]
[null,"Biogenic emissions",0,0,null,null,null,null,null,"Development emissions [biogenic]",{"$f":"IFERROR(SUMPRODUCT((emissions_db[Record type] = \"Forecast\")* (emissions_db[Data marker] = \"live\")  * (emissions_db[% of record within chosen project reporting period and project period]) * (emissions_db[Project code] = proj_code)*(emissions_db[Development emissions '[biogenic'] (tonnes CO2e)])),0)","v":0},{"$f":"IFERROR(SUMPRODUCT((emissions_db[Record type] = \"Actual\")* (emissions_db[Data marker] = \"live\")  * (emissions_db[% of record within chosen project reporting period and project period])* (emissions_db[Project code] = proj_code)*(emissions_db[Development emissions '[biogenic'] (tonnes CO2e)])),0)","v":0},0,null,null,null,null,null,null,null,null,null,null,null,"Development emissions [biogenic]",0,0,{"$f":"IFERROR(AA33/Z33,0)","v":0},null,null,null,null,null,null,"Development emissions [biogenic]",0,0,{"$f":"IFERROR(AK33/AJ33,0)","v":0}]
[null,"Total overheads",null,{"$f":"SUM(D12,D14:D19)","v":0},null,null,null,null,null,"Biogenic emissions",{"$f":"IFERROR(SUMPRODUCT((emissions_db[Record type] = \"Forecast\")* (emissions_db[Data marker] = \"live\")  * (emissions_db[% of record within chosen project reporting period and project period]) * (emissions_db[Project code] = proj_code)*(emissions_db[Biogenic emissions (tonnes CO2e)])) + SUMPRODUCT((emissions_db[Record type] = \"Forecast\")* (emissions_db[Data marker] = \"live\")  * (emissions_db[% of record within chosen project reporting period and project period]) * (emissions_db[Category]=\"Buildings\")*(emissions_db[Biogenic emissions (tonnes CO2e)])*(emissions_db[% of overhead allocated to project])),0)","v":0},{"$f":"IFERROR(SUMPRODUCT((emissions_db[Record type] = \"Actual\")* (emissions_db[Data marker] = \"live\")  * (emissions_db[% of record within chosen project reporting period and project period]) * (emissions_db[Project code] = proj_code)*(emissions_db[Biogenic emissions (tonnes CO2e)]))+ SUMPRODUCT((emissions_db[Record type] = \"Actual\")* (emissions_db[Data marker] = \"live\")  * (emissions_db[% of record within chosen project reporting period and project period]) * (emissions_db[Category]=\"Buildings\")*(emissions_db[Biogenic emissions (tonnes CO2e)])*(emissions_db[% of overhead allocated to project])),0)","v":0},0,null,null,null,null,null,null,null,null,null,null,null,"Biogenic emissions",0,0,{"$f":"IFERROR(AA34/Z34,0)","v":0},null,null,null,null,null,null,"Biogenic emissions",0,0,{"$f":"IFERROR(AK34/AJ34,0)","v":0}]
[null,null,null,null,null,null,null,null,null,null,{"$f":"SUBTOTAL(109,proj_tbl[Forecast])","v":0},{"$f":"SUBTOTAL(109,proj_tbl[Actual])","v":0}]
[null,{"$f":"\"Pie chart: Projects \" &Dashboard!thisyear_label","v":"Pie chart: Projects 1/1/2025 - 1/1/2026"},null,null,null,null,null,null,null,null,{"$f":"SUM(K13:K31)","v":0},{"$f":"SUM(L13:L31)","v":0},null,null,null,null,null,null,null,null,null,null,null,null,{"$f":"emtbl_client_markloc& \" emission breakdown by project \"&\"[\"&emtbl_client&\" \" &DAY(emtbl_client_SD)&\"/\"&MONTH(emtbl_client_SD)&\"/\"&YEAR(emtbl_client_SD)&\" - \" &DAY(emtbl_client_ED)&\"/\"&MONTH(emtbl_client_ED)&\"/\"&YEAR(emtbl_client_ED)&\"]\"","v":"Locational-based emission breakdown by project [EA 1/4/2025 - 1/5/2025]"},null,null,null,null,null,null,null,null,null,{"$f":"emtbl_loc_markloc& \" emission breakdown by project \"&\"[\"&emtbl_loc&\" \" &DAY(emtbl_loc_SD)&\"/\"&MONTH(emtbl_loc_SD)&\"/\"&YEAR(emtbl_loc_SD)&\" - \" &DAY(emtbl_loc_ED)&\"/\"&MONTH(emtbl_loc_ED)&\"/\"&YEAR(emtbl_loc_ED)&\"]\"&\"]\"","v":"Market-based emission breakdown by project [Buckinghamshire 1/1/2025 - 31/12/2025]]"}]
[null,"Project code","Project name","Tonnes CO2e",null,null,null,null,null,null,null,null,null,null,null,null,null,null,null,null,null,null,null,null,"Project name","Forecast","Actual",null,null,null,null,null,null,null,"Project name","Forecast","Actual"]
[null,null,null,0,null,null,null,null,null,null,null,null,null,null,null,null,null,null,null,null,null,null,null,null,null,0,0,null,null,null,null,null,null,null,null,0,0]

{"sheet":"FrontSheet","index":23,"n_rows":38,"n_cols":4,"rows_kept":38,"cut":false,"hidden":true,"merged":[[26,1,30,3],[32,1,34,3],[37,1,39,3],[21,1,23,3]]}
[]
[null,"This document displays carbon emissions data for:"]
[null,"Client"]
[null,"Location"]
[null,"Project(s)"]
[null,"The data represents emissions in the following period:"]
[null,"Start date"]
[null,"End date"]
[]
[null,"The emissions are split into the following categories:"]
[]
[null,"Reporting scope","Emissions","Categories included"]
[null,"Non-project based reporting only","In-scope emission allocation to reporting period [locational]","BoQ, Project transport, Project transport EVs, Excavation emissions, Upstream impacts - project specific, Electricity locational-based, Natural gas, Fuel oil, Leased assets '[locational-based'], Commuting/homeworking, Business travel, Upstream impacts - overheads '[locational-based']"]
[null,"Non-project based reporting only","In-scope emission allocation to reporting period [market]","BoQ, Project transport, Project transport EVs, Excavation emissions, Upstream impacts - project specific, Electricity market-based, Natural gas, Fuel oil, Leased assets '[market-based'], Commuting/homeworking, Business travel, Upstream impacts - overheads '[market-based']"]
[null,"Project based reporting only","In-scope project emission allocation to reporting period","BoQ, Project transport, Project transport EVs, Excavation emissions, Upstream impacts - project specific"]
[null,"Project based reporting only","Overhead emission allocation to project and reporting period [locational]","Electricity locational-based, Natural gas, Fuel oil, Leased assets [locational-based], Commuting/homeworking, Business travel, Upstream impacts - overheads [locational-based]"]
[null,"Project based reporting only","Overhead emission allocation to project and reporting period [market]","Electricity market-based, Natural gas, Fuel oil, Leased assets [market-based], Commuting/homeworking, Business travel, Upstream impacts - overheads [market-based]"]
[null,"All reporting","Biogenic emissions allocation to reporting period","Biogenic emissions"]
[null,"All reporting","Development emissions allocation to reporting period","Development emissions [fossil], Development emissions [biogenic]"]
[]
[null,"Overhead allocation to project"]
[null,"To accurately allocate overhead emissions to a project, all overhead emissions within the project's time period is broken down into emissions per person-day at monthly resolution. This is calculated using the total FTE person-days worked by all employees involved in project delivery across the whole organisation. These emissions are then be scaled according to the total number of person-days required for the project during the time period being reported."]
[]
[]
[]
[null,"Biogenic emissions - DEZNZ guidance"]
[null,"Outside of scopes includes biogenic CO2 factors that should be used to account for the direct carbon dioxide (CO2) impact of burning biomass and biofuels, including when reporting emissions from electricity consumption. Biogenic CO2  emissions are one of several activities labelled ‘outside of scopes’ by the GHG Protocol Corporate Accounting and Reporting Standard because the Scope 1 impact of these fuels has been determined to be a net ‘0’ (since the fuel source itself absorbs an equivalent amount of CO2 during the growth phase as the amount of CO2 released through combustion). Full reporting of any fuel from a biogenic source, including electricity, should have the biogenic CO2 value documented to ensure complete accounting for the emissions created."]
[]
[]
[]
[]
[null,"Biogenic emissions - application to archaeology"]
[null,"Biogenic emissions have been included as the GHG Protocol intends to introduce mandatory reporting in this category. At the moment, biogenic emissions should be reported as \"out of scope\".\nFor archaeology companies, biogenic emissions come from petrol, diesel, and biodiesel consumption, as well as the emissions relating to the displacement of soil during excavation. All of the listed have been included in our calculations."]
[]
[]
[]
[null,"Development emissions"]
[null,"The reporting of the emissions released purely due to archaeological activity when placed in the wider development is resolved by separately reporting the areas which are disturbed purely for archaeological activity and those where archaeology activity may come first, but where the development would have undertaken these activities regardless of the archaeological intervention. Emissions that are of a result of activities considered to be part of the wider development are reported in the development emissions category."]

{"sheet":"Summary","index":24,"n_rows":0,"n_cols":0,"rows_kept":0,"cut":false,"hidden":true,"merged":[]}